Workbook

Sheet Filtro
A1: Mes | B1: (Todas)
A2: Establecimiento | B2: (Todas)
A3: Comuna/ Hospital | B3: (Todas)
A5: Etiquetas de fila | B5: Suma de Col01 | C5: Suma de Col02 | D5: Suma de Col03 | E5: Suma de Col04 | F5: Suma de Col05 | G5: Suma de Col06 | H5: Suma de Col07 | I5: Suma de Col08 | J5: Suma de Col09 | K5: Suma de Col10 | L5: Suma de Col11 | M5: Suma de Col12 | N5: Suma de Col13 | O5: Suma de Col14 | P5: Suma de Col15 | Q5: Suma de Col16 | R5: Suma de Col17 | S5: Suma de Col18 | T5: Suma de Col19 | U5: Suma de Col20 | V5: Suma de Col21 | W5: Suma de Col22 | X5: Suma de Col23 | Y5: Suma de Col24 | Z5: Suma de Col25 | AA5: Suma de Col26 | AB5: Suma de Col27 | AC5: Suma de Col28 | AD5: Suma de Col29 | AE5: Suma de Col30 | AF5: Suma de Col31 | AG5: Suma de Col32 | AH5: Suma de Col33 | AI5: Suma de Col34 | AJ5: Suma de Col35 | AK5: Suma de Col36 | AL5: Suma de Col37 | AM5: Suma de Col38 | AN5: Suma de Col39 | AO5: Suma de Col40 | AP5: Suma de Col41 | AQ5: Suma de col42 | AR5: Suma de col43 | AS5: Suma de col44 | AT5: Suma de col45 | AU5: Suma de col46 | AV5: Suma de col47 | AW5: Suma de col48
A6: 01010101 | B6: 6 | E6: 0 | F6: 0 | G6: 1 | H6: 2 | I6: 1 | J6: 1 | K6: 1 | L6: 0 | M6: 0 | N6: 0 | T6: 0 | U6: 6 | X6: 0 | Y6: 0 | Z6: 0 | AA6: 0 | AB6: 0
A7: 01010103 | B7: 1411 | E7: 1 | F7: 52 | G7: 236 | H7: 373 | I7: 384 | J7: 235 | K7: 101 | L7: 24 | M7: 4 | N7: 1 | T7: 15 | U7: 1396 | W7: 0 | X7: 5 | Y7: 7 | Z7: 0 | AA7: 17 | AB7: 76
A8: 01010201 | B8: 193 | E8: 0 | F8: 16 | G8: 35 | H8: 49 | I8: 59 | J8: 26 | K8: 8 | L8: 0 | M8: 0 | N8: 0 | U8: 193 | V8: 7 | Y8: 0 | Z8: 0 | AA8: 0 | AB8: 0
A9: 01010203 | B9: 37792 | E9: 80 | F9: 2127 | G9: 8031 | H9: 10822 | I9: 10010 | J9: 5428 | K9: 1205 | L9: 78 | M9: 3 | N9: 8 | U9: 37792 | V9: 11660 | Y9: 239 | Z9: 56 | AA9: 823 | AB9: 3618
A10: 01010401 | B10: 80 | E10: 9 | F10: 36 | G10: 6 | H10: 7 | I10: 9 | J10: 6 | K10: 3 | L10: 3 | M10: 0 | N10: 1 | O10: 0 | P10: 0 | Q10: 0 | R10: 0 | S10: 0 | T10: 1 | U10: 79 | X10: 41 | Y10: 0 | Z10: 0 | AA10: 0 | AB10: 0
A11: 01010403 | B11: 81316 | E11: 1840 | F11: 12922 | G11: 13146 | H11: 13979 | I11: 13082 | J11: 10243 | K11: 8060 | L11: 5881 | M11: 1932 | N11: 171 | O11: 32 | P11: 17 | Q11: 8 | R11: 2 | S11: 1 | T11: 324 | U11: 80979 | X11: 2111 | Y11: 61 | Z11: 90 | AA11: 992 | AB11: 3400
A12: 01010601 | B12: 1382 | E12: 23 | F12: 84 | G12: 71 | H12: 99 | I12: 150 | J12: 161 | K12: 184 | L12: 174 | M12: 151 | N12: 97 | O12: 78 | P12: 43 | Q12: 26 | R12: 24 | S12: 17 | U12: 1382 | X12: 0 | Y12: 0 | Z12: 0 | AA12: 0 | AB12: 20
A13: 01010603 | B13: 47766 | E13: 293 | F13: 773 | G13: 1903 | H13: 3834 | I13: 4776 | J13: 4822 | K13: 5686 | L13: 5744 | M13: 5895 | N13: 5546 | O13: 4627 | P13: 2316 | Q13: 994 | R13: 359 | S13: 198 | T13: 0 | U13: 47759 | X13: 222 | Y13: 110 | Z13: 26 | AA13: 445 | AB13: 1950
A14: 01010901 | B14: 486 | L14: 151 | M14: 176 | N14: 87 | O14: 72 | U14: 486 | AA14: 0 | AB14: 5
A15: 01010903 | B15: 4676 | L15: 1184 | M15: 1743 | N15: 1144 | O15: 605 | P15: 0 | Q15: 0 | R15: 0 | S15: 0 | T15: 0 | U15: 4666 | W15: 0 | X15: 0 | Y15: 0 | Z15: 0 | AA15: 81 | AB15: 157
A16: 01030100 | B16: 2464 | C16: 7 | D16: 159 | E16: 1914 | F16: 382 | G16: 11 | H16: 11 | I16: 19 | J16: 172 | K16: 2357 | L16: 1756 | M16: 228 | N16: 3 | O16: 2 | P16: 830 | Q16: 1336 | R16: 72 | S16: 2205 | T16: 13 | U16: 104 | V16: 2028 | W16: 0 | X16: 149 | Y16: 324 | Z16: 1
A17: 01030100A | B17: 85 | C17: 30 | D17: 55 | AE17: 8 | AF17: 21 | AG17: 9 | AH17: 18 | AI17: 8 | AJ17: 7 | AK17: 5 | AL17: 9 | AM17: 0 | AN17: 0
A18: 01030200B | B18: 1279 | C18: 487 | D18: 792 | AE18: 145 | AF18: 249 | AG18: 147 | AH18: 235 | AI18: 99 | AJ18: 158 | AK18: 96 | AL18: 150 | AM18: 13 | AN18: 3
A19: 01030300 | B19: 1165 | C19: 0 | D19: 23 | E19: 835 | F19: 307 | G19: 0 | H19: 1 | I19: 0 | J19: 26 | K19: 1080 | L19: 1104 | M19: 3 | N19: 0 | O19: 13 | P19: 0 | Q19: 22 | R19: 8 | S19: 127 | T19: 73 | U19: 1332 | V19: 874 | W19: 0 | X19: 58 | Y19: 112 | Z19: 0
A20: 01030300C | B20: 21 | C20: 7 | D20: 14 | AE20: 2 | AF20: 2 | AG20: 0 | AH20: 3 | AI20: 0 | AJ20: 2 | AK20: 5 | AL20: 7 | AM20: 0 | AN20: 0
A21: 01030400 | B21: 897 | C21: 897 | K21: 5 | L21: 641 | M21: 47 | N21: 586 | O21: 589
A22: 01030400D | B22: 452 | C22: 173 | D22: 279 | AE22: 25 | AF22: 32 | AG22: 20 | AH22: 29 | AI22: 23 | AJ22: 57 | AK22: 105 | AL22: 161 | AM22: 1 | AN22: 0
A23: 01030500 | B23: 1865 | C23: 788 | D23: 1077 | E23: 1501 | F23: 539 | G23: 962 | H23: 195 | I23: 179 | J23: 26 | K23: 71
A24: 01030600 | B24: 4127 | C24: 1821 | D24: 2306 | E24: 2097 | F24: 812 | G24: 1285 | H24: 439 | I24: 369 | J24: 89 | K24: 259
A25: 01030700 | B25: 4263 | C25: 2111 | D25: 2152 | E25: 1847 | F25: 865 | G25: 982 | H25: 190 | I25: 230 | J25: 7 | K25: 88
A26: 01030800 | B26: 147 | C26: 53 | D26: 94 | E26: 35 | F26: 16 | G26: 19 | H26: 10 | I26: 1 | J26: 1 | K26: 11
A27: 01031000 | B27: 851 | C27: 416 | D27: 435 | E27: 512 | F27: 313 | H27: 0 | I27: 0 | J27: 14 | K27: 59 | L27: 1 | M27: 0
A28: 01031100 | B28: 1250 | C28: 621 | D28: 629 | E28: 848 | F28: 651 | H28: 0 | I28: 0 | J28: 18 | K28: 121 | L28: 7 | M28: 0
A29: 01031200 | B29: 1445 | C29: 721 | D29: 724 | E29: 955 | F29: 740 | H29: 0 | I29: 0 | J29: 22 | K29: 153 | L29: 7 | M29: 1
A30: 01031300 | B30: 1580 | C30: 748 | D30: 832 | E30: 1168 | F30: 951 | H30: 0 | I30: 0 | J30: 23 | K30: 153 | L30: 3 | M30: 0
A31: 01031400 | B31: 1514 | C31: 713 | D31: 801 | E31: 1461 | F31: 1312 | H31: 4 | I31: 3 | J31: 29 | K31: 130 | L31: 15 | M31: 4
A32: 01060100 | B32: 5455 | C32: 3 | D32: 28 | E32: 33 | F32: 89 | G32: 250 | H32: 1005 | I32: 3638 | J32: 409 | K32: 87
A33: 01080003 | B33: 26 | C33: 2 | D33: 2 | E33: 7 | F33: 14 | G33: 0 | H33: 0 | I33: 0 | J33: 1 | K33: 0 | L33: 0 | M33: 1
A34: 01080004 | B34: 449 | C34: 19 | D34: 143 | E34: 67 | F34: 194 | G34: 0 | H34: 3 | I34: 5 | J34: 19 | K34: 4 | L34: 8 | M34: 100
A35: 01080008 | B35: 6161 | C35: 15 | D35: 390 | E35: 1338 | F35: 1755 | G35: 1561 | H35: 872 | I35: 215 | J35: 14 | K35: 1 | L35: 0 | M35: 134 | N35: 349 | O35: 841 | P35: 324 | Q35: 785
A36: 01080009 | B36: 5381 | C36: 9 | D36: 322 | E36: 1135 | F36: 1572 | G36: 1386 | H36: 768 | I36: 176 | J36: 12 | K36: 1 | L36: 0 | M36: 84 | N36: 288 | O36: 635 | P36: 237 | Q36: 628
A37: 01080010 | B37: 2381 | C37: 15 | D37: 344 | E37: 851 | F37: 662 | G37: 366 | H37: 127 | I37: 16 | J37: 0 | K37: 0 | L37: 0 | M37: 34 | N37: 132 | O37: 306 | P37: 108 | Q37: 316
A38: 01080011 | B38: 758 | C38: 10 | D38: 50 | E38: 138 | F38: 178 | G38: 148 | H38: 126 | I38: 72 | J38: 24 | K38: 10 | L38: 2 | P38: 13 | Q38: 237 | R38: 13 | S38: 40 | T38: 0
A39: 01080013 | B39: 918 | C39: 53 | D39: 183 | E39: 153 | F39: 138 | G39: 140 | H39: 86 | I39: 77 | J39: 58 | K39: 24 | L39: 6 | M39: 0 | N39: 0 | O39: 0 | P39: 79 | Q39: 252 | R39: 8 | S39: 48 | T39: 1
A40: 01080014 | B40: 505 | C40: 63 | D40: 278 | E40: 41 | F40: 33 | G40: 31 | H40: 28 | I40: 20 | J40: 8 | K40: 3 | L40: 0 | P40: 204 | Q40: 10 | R40: 8 | S40: 15 | T40: 0
A41: 01080016 | B41: 390
A42: 01080017 | B42: 85 | C42: 0 | D42: 3 | E42: 10
A43: 01080018 | B43: 134 | C43: 0 | D43: 6 | E43: 5
A44: 01080019 | B44: 791 | C44: 0 | D44: 33 | E44: 110
A45: 01080020 | B45: 7328
A46: 01080021 | B46: 4615 | C46: 358 | D46: 1426 | E46: 841 | F46: 750 | G46: 602 | H46: 350 | I46: 217 | J46: 65 | K46: 5 | L46: 1 | P46: 410 | Q46: 1055 | R46: 83 | S46: 212 | T46: 5
A47: 01080022 | B47: 1952 | C47: 17 | D47: 112 | E47: 237 | F47: 358 | G47: 383 | H47: 269 | I47: 262 | J47: 250 | K47: 59 | L47: 5 | P47: 42 | Q47: 560 | R47: 23 | S47: 89 | T47: 3
A48: 01080023 | B48: 2308 | C48: 145 | D48: 697 | E48: 492 | F48: 361 | G48: 352 | H48: 147 | I48: 79 | J48: 32 | K48: 3 | L48: 0 | P48: 193 | Q48: 764 | R48: 53 | S48: 153 | T48: 1
A49: 01080030 | B49: 2 | I49: 2 | U49: 2 | V49: 0 | W49: 0 | Y49: 0 | Z49: 0 | AA49: 0 | AB49: 1
A50: 01080040 | B50: 1541 | E50: 1 | F50: 69 | G50: 300 | H50: 445 | I50: 410 | J50: 234 | K50: 72 | L50: 10 | M50: 0 | N50: 0 | U50: 1542 | V50: 333 | W50: 615 | Y50: 11 | Z50: 1 | AA50: 33 | AB50: 124
A51: 01080090 | B51: 1704
A52: 01090040 | B52: 46 | C52: 0 | D52: 0 | E52: 8
A53: 01090050 | B53: 3479 | C53: 12 | D53: 320 | E53: 849 | F53: 951 | G53: 772 | H53: 441 | I53: 124 | J53: 10 | K53: 0 | L53: 0 | M53: 76 | N53: 199 | O53: 479 | P53: 142 | Q53: 359
A54: 01090060 | B54: 5151 | C54: 177 | D54: 908 | E54: 991 | F54: 1022 | G54: 801 | H54: 567 | I54: 394 | J54: 237 | K54: 51 | L54: 3 | M54: 0 | N54: 0 | O54: 0 | P54: 300 | Q54: 1303 | R54: 98 | S54: 327 | T54: 4
A55: 01110106 | B55: 6 | H55: 3 | I55: 1 | J55: 2 | U55: 6 | V55: 3 | W55: 5 | Y55: 0 | Z55: 0 | AA55: 0 | AB55: 0
A56: 01110107 | B56: 3405 | E56: 7 | F56: 147 | G56: 718 | H56: 972 | I56: 933 | J56: 505 | K56: 121 | L56: 2 | M56: 0 | N56: 0 | O56: 0 | P56: 0 | Q56: 0 | R56: 0 | S56: 0 | T56: 0 | U56: 3406 | V56: 922 | W56: 1569 | Y56: 32 | Z56: 9 | AA56: 73 | AB56: 287
A57: 01200010 | B57: 122 | C57: 38 | D57: 84 | E57: 0 | F57: 0 | G57: 2 | H57: 2 | I57: 0 | J57: 3 | K57: 1 | L57: 2 | M57: 0 | N57: 4 | O57: 0 | P57: 2 | Q57: 0 | R57: 2 | S57: 2 | T57: 3 | U57: 2 | V57: 4 | W57: 2 | X57: 3 | Y57: 1 | Z57: 7 | AA57: 3 | AB57: 6 | AC57: 3 | AD57: 6 | AE57: 5 | AF57: 5 | AG57: 2 | AH57: 10 | AI57: 4 | AJ57: 10 | AK57: 11 | AL57: 15 | AM57: 0 | AN57: 0
A58: 01200020 | B58: 8 | C58: 1 | D58: 7 | E58: 0 | F58: 0 | G58: 0 | H58: 0 | I58: 0 | J58: 0 | K58: 0 | L58: 0 | M58: 0 | N58: 0 | O58: 0 | P58: 0 | Q58: 0 | R58: 2 | S58: 0 | T58: 0 | U58: 0 | V58: 0 | W58: 0 | X58: 1 | Y58: 0 | Z58: 0 | AA58: 0 | AB58: 1 | AC58: 0 | AD58: 1 | AE58: 1 | AF58: 1 | AG58: 0 | AH58: 1 | AI58: 0 | AJ58: 0 | AK58: 0 | AL58: 0 | AM58: 0 | AN58: 0
A59: 01200030 | B59: 437 | C59: 105 | D59: 332 | E59: 0 | F59: 0 | G59: 0 | H59: 0 | I59: 0 | J59: 1 | K59: 1 | L59: 5 | M59: 8 | N59: 57 | O59: 20 | P59: 43 | Q59: 13 | R59: 49 | S59: 12 | T59: 42 | U59: 5 | V59: 32 | W59: 9 | X59: 21 | Y59: 2 | Z59: 14 | AA59: 2 | AB59: 18 | AC59: 1 | AD59: 6 | AE59: 20 | AF59: 13 | AG59: 4 | AH59: 12 | AI59: 5 | AJ59: 4 | AK59: 3 | AL59: 15 | AM59: 0 | AN59: 22
A60: 01200031 | B60: 107 | C60: 70 | D60: 37 | E60: 25 | F60: 20 | G60: 33 | H60: 7 | I60: 8 | J60: 6 | K60: 4 | L60: 4 | AM60: 4 | AN60: 1
A61: 01200032 | B61: 1972 | C61: 1177 | D61: 795 | E61: 691 | F61: 545 | G61: 398 | H61: 205 | I61: 66 | J61: 28 | K61: 22 | L61: 17 | AM61: 17 | AN61: 7
A62: 01200033 | B62: 7 | C62: 4 | D62: 3 | E62: 2 | F62: 1 | G62: 2 | H62: 1 | I62: 0 | J62: 1 | K62: 0 | L62: 0 | AM62: 0 | AN62: 0
A63: 01200034 | B63: 470 | C63: 286 | D63: 184 | E63: 179 | F63: 159 | G63: 76 | H63: 18 | I63: 26 | J63: 2 | K63: 5 | L63: 5 | AM63: 0 | AN63: 1
A64: 01501010 | B64: 113 | C64: 31 | D64: 82 | E64: 1 | F64: 8 | G64: 1 | H64: 0 | I64: 0 | J64: 3 | K64: 0 | L64: 1 | M64: 0 | N64: 3 | O64: 1 | P64: 4 | Q64: 0 | R64: 5 | S64: 7 | T64: 17 | U64: 5 | V64: 8 | W64: 4 | X64: 13 | Y64: 0 | Z64: 7 | AA64: 5 | AB64: 6 | AC64: 2 | AD64: 3 | AE64: 5 | AF64: 4 | AG64: 0 | AH64: 0
A65: 01501020 | B65: 212 | C65: 76 | D65: 136 | E65: 0 | F65: 2 | G65: 0 | H65: 0 | I65: 0 | J65: 0 | K65: 0 | L65: 1 | M65: 2 | N65: 3 | O65: 2 | P65: 8 | Q65: 4 | R65: 7 | S65: 7 | T65: 14 | U65: 10 | V65: 19 | W65: 11 | X65: 24 | Y65: 19 | Z65: 20 | AA65: 7 | AB65: 30 | AC65: 3 | AD65: 6 | AE65: 11 | AF65: 2 | AG65: 0 | AH65: 0
A66: 01501030 | B66: 5119 | C66: 1401 | D66: 3718 | E66: 0 | F66: 1 | G66: 0 | H66: 8 | I66: 4 | J66: 1 | K66: 1 | L66: 26 | M66: 6 | N66: 27 | O66: 23 | P66: 73 | Q66: 35 | R66: 132 | S66: 54 | T66: 233 | U66: 106 | V66: 394 | W66: 169 | X66: 554 | Y66: 331 | Z66: 815 | AA66: 244 | AB66: 597 | AC66: 202 | AD66: 368 | AE66: 226 | AF66: 489 | AG66: 5 | AH66: 17
A67: 01501040 | B67: 3707 | C67: 1043 | D67: 2664 | E67: 0 | F67: 0 | G67: 0 | H67: 5 | I67: 2 | J67: 2 | K67: 1 | L67: 19 | M67: 7 | N67: 25 | O67: 14 | P67: 56 | Q67: 31 | R67: 91 | S67: 45 | T67: 158 | U67: 74 | V67: 260 | W67: 95 | X67: 345 | Y67: 292 | Z67: 653 | AA67: 164 | AB67: 415 | AC67: 138 | AD67: 305 | AE67: 180 | AF67: 330 | AG67: 3 | AH67: 11
A68: 01501050 | B68: 2 | E68: 0 | F68: 0 | G68: 0 | H68: 1 | I68: 1 | J68: 0 | K68: 0 | L68: 0 | M68: 0 | N68: 0 | U68: 2 | Y68: 0 | Z68: 0 | AA68: 0 | AB68: 0
A69: 01501060 | B69: 485 | E69: 0 | F69: 20 | G69: 107 | H69: 137 | I69: 126 | J69: 77 | K69: 17 | L69: 1 | M69: 0 | N69: 0 | U69: 485 | Y69: 2 | Z69: 1 | AA69: 11 | AB69: 21
A70: 01501070 | B70: 8 | E70: 0 | F70: 0 | G70: 1 | H70: 3 | I70: 1 | J70: 2 | K70: 1 | L70: 0 | M70: 0 | N70: 0 | U70: 8 | Y70: 0 | Z70: 0 | AA70: 0 | AB70: 0
A71: 01501080 | B71: 203 | E71: 0 | F71: 8 | G71: 37 | H71: 48 | I71: 47 | J71: 38 | K71: 21 | L71: 4 | M71: 0 | N71: 0 | U71: 203 | Y71: 0 | Z71: 0 | AA71: 1 | AB71: 8
A72: 01501090 | B72: 5 | C72: 5 | T72: 1 | U72: 4 | V72: 0 | W72: 1 | X72: 0 | Y72: 0 | Z72: 0 | AA72: 0 | AB72: 0
A73: 01502000 | B73: 866 | C73: 866 | T73: 379 | U73: 487 | V73: 298 | W73: 412 | X73: 0 | Y73: 0 | Z73: 0 | AA73: 6 | AB73: 7
A74: 01502010 | B74: 1 | C74: 1 | T74: 1 | U74: 0 | V74: 0 | W74: 1 | X74: 0 | Y74: 0 | Z74: 0 | AA74: 0 | AB74: 0
A75: 01502020 | B75: 359 | C75: 359 | T75: 172 | U75: 188 | V75: 133 | W75: 131 | X75: 0 | Y75: 0 | Z75: 0 | AA75: 5 | AB75: 4
A76: 01502030 | B76: 21 | C76: 6 | D76: 15 | X76: 2 | Y76: 1 | AA76: 3 | AB76: 3 | AC76: 2 | AD76: 10 | AG76: 0 | AH76: 0
A77: 01502040 | B77: 234 | C77: 91 | D77: 143 | E77: 0 | F77: 0 | G77: 0 | H77: 1 | I77: 0 | J77: 0 | K77: 2 | L77: 0 | M77: 3 | N77: 3 | O77: 0 | P77: 2 | Q77: 5 | R77: 5 | S77: 10 | T77: 12 | U77: 11 | V77: 16 | W77: 16 | X77: 22 | Y77: 13 | Z77: 26 | AA77: 13 | AB77: 18 | AC77: 12 | AD77: 23 | AE77: 6 | AF77: 15 | AG77: 0 | AH77: 0
A78: 01502041 | B78: 1485 | G78: 9 | H78: 8 | I78: 10
A79: 02010101 | B79: 16031 | C79: 7666 | D79: 8359 | E79: 125 | F79: 4424 | G79: 283 | H79: 4002 | I79: 355 | J79: 91 | K79: 44 | L79: 52 | M79: 30 | N79: 62 | O79: 108 | P79: 164 | Q79: 240 | R79: 1408 | S79: 882 | T79: 281 | U79: 45 | V79: 64 | W79: 62 | X79: 96 | Y79: 96 | Z79: 184 | AA79: 242 | AB79: 361 | AC79: 478 | AD79: 528 | AE79: 517 | AF79: 331 | AG79: 476 | AH79: 2152 | AI79: 52 | AJ79: 17 | AK79: 211 | AL79: 243 | AM79: 106
A80: 02010103 | B80: 24559 | C80: 4925 | D80: 19649 | E80: 3884 | S80: 4610 | T80: 3595 | U80: 1541 | V80: 1925 | W80: 1969 | X80: 1547 | Y80: 1403 | Z80: 1306 | AA80: 1044 | AB80: 833 | AC80: 520 | AD80: 240 | AE80: 90 | AF80: 34 | AG80: 18 | AH80: 1909 | AI80: 0 | AJ80: 41 | AK80: 59 | AL80: 332 | AM80: 412
A81: 02010105 | B81: 7 | C81: 2 | D81: 5 | M81: 0 | N81: 0 | O81: 1 | P81: 0 | Q81: 0 | R81: 6 | AI81: 0 | AJ81: 0 | AK81: 0 | AL81: 0 | AM81: 0
A82: 02010201 | B82: 95091 | C82: 45730 | D82: 49321 | E82: 44 | F82: 198 | G82: 4510 | H82: 269 | I82: 4568 | J82: 315 | K82: 4471 | L82: 5370 | M82: 5737 | N82: 5820 | O82: 11229 | P82: 4933 | Q82: 5048 | R82: 15732 | S82: 5057 | T82: 2448 | U82: 416 | V82: 430 | W82: 524 | X82: 548 | Y82: 547 | Z82: 638 | AA82: 751 | AB82: 940 | AC82: 1137 | AD82: 3482 | AE82: 3376 | AF82: 2662 | AG82: 3891 | AH82: 4793 | AI82: 4415 | AJ82: 206 | AK82: 349 | AL82: 1574 | AM82: 2033
A83: 02010320 | B83: 12696 | C83: 6084 | D83: 6612 | E83: 38 | F83: 31 | G83: 2227 | H83: 2187 | I83: 389 | J83: 366 | K83: 2009 | L83: 2275 | M83: 1315 | N83: 1656 | O83: 106 | P83: 97 | Q83: 64 | R83: 77
A84: 02010321 | B84: 1294 | C84: 775 | D84: 519 | E84: 7 | F84: 3 | G84: 92 | H84: 100 | I84: 59 | J84: 40 | K84: 351 | L84: 248 | M84: 263 | N84: 125 | O84: 3 | P84: 3 | Q84: 5 | R84: 11
A85: 02010322 | B85: 385 | C85: 246 | D85: 139 | E85: 2 | F85: 2 | G85: 28 | H85: 24 | I85: 14 | J85: 6 | K85: 126 | L85: 84 | M85: 69 | N85: 18 | O85: 7 | P85: 5 | Q85: 4 | R85: 2
A86: 02010420 | B86: 737 | C86: 411 | D86: 326 | E86: 2 | F86: 1 | G86: 51 | H86: 44 | I86: 33 | J86: 19 | K86: 191 | L86: 174 | M86: 103 | N86: 79 | O86: 31 | P86: 9 | Q86: 3 | R86: 5
A87: 02010421 | B87: 180 | C87: 114 | D87: 66 | E87: 0 | F87: 0 | G87: 8 | H87: 8 | I87: 13 | J87: 5 | K87: 55 | L87: 33 | M87: 36 | N87: 20 | O87: 2 | P87: 0 | Q87: 0 | R87: 1
A88: 02010422 | B88: 59 | C88: 42 | D88: 17 | E88: 0 | F88: 0 | G88: 0 | H88: 1 | I88: 3 | J88: 1 | K88: 27 | L88: 10 | M88: 7 | N88: 3 | O88: 5 | P88: 2 | Q88: 0 | R88: 0
A89: 02021730 | B89: 13348 | C89: 6744 | D89: 6604 | E89: 11 | F89: 3 | G89: 76 | H89: 68 | I89: 15 | J89: 16 | K89: 149 | L89: 119 | M89: 2083 | N89: 2031 | O89: 65 | P89: 52 | Q89: 23 | R89: 20 | S89: 91 | T89: 88 | U89: 2104 | V89: 2089 | W89: 2115 | X89: 2109
A90: 02021740 | B90: 16783 | C90: 8592 | D90: 8191 | E90: 68 | F90: 44 | G90: 2502 | H90: 2439 | I90: 592 | J90: 524 | K90: 2977 | L90: 2914 | M90: 2268 | N90: 2146 | O90: 185 | P90: 124 | Q90: 68 | R90: 91
A91: 02021790 | B91: 918 | C91: 559 | D91: 359 | E91: 16 | F91: 6 | G91: 68 | H91: 59 | I91: 62 | J91: 48 | K91: 115 | L91: 73 | M91: 286 | N91: 166 | O91: 12 | P91: 7 | Q91: 8 | R91: 6
A92: 02021810 | B92: 1112 | C92: 673 | D92: 439 | E92: 9 | F92: 8 | G92: 70 | H92: 71 | I92: 64 | J92: 45 | K92: 286 | L92: 196 | M92: 242 | N92: 116 | O92: 2 | P92: 3 | Q92: 1 | R92: 4
A93: 02021820 | B93: 272 | C93: 178 | D93: 94 | E93: 3 | F93: 2 | G93: 11 | H93: 9 | I93: 14 | J93: 6 | K93: 88 | L93: 56 | M93: 57 | N93: 17 | O93: 5 | P93: 4 | Q93: 4 | R93: 1
A94: 02021830 | B94: 5812 | C94: 1605 | D94: 1248 | E94: 138
A95: 02200010 | B95: 13345 | C95: 5404 | D95: 7942 | E95: 29 | F95: 49 | G95: 448 | H95: 643 | I95: 601 | J95: 845 | K95: 624 | L95: 1109 | M95: 582 | N95: 1002 | O95: 610 | P95: 979 | Q95: 476 | R95: 813 | S95: 411 | T95: 608 | U95: 366 | V95: 413 | W95: 282 | X95: 345 | Y95: 388 | Z95: 558 | AA95: 287 | AB95: 309 | AC95: 176 | AD95: 169 | AE95: 124 | AF95: 100 | AG95: 223 | AH95: 165
A96: 02200020 | B96: 15212 | C96: 6464 | D96: 8748 | E96: 22 | F96: 24 | G96: 157 | H96: 149 | I96: 221 | J96: 210 | K96: 248 | L96: 304 | M96: 314 | N96: 352 | O96: 369 | P96: 409 | Q96: 363 | R96: 506 | S96: 429 | T96: 497 | U96: 415 | V96: 463 | W96: 438 | X96: 423 | Y96: 859 | Z96: 1368 | AA96: 979 | AB96: 1301 | AC96: 810 | AD96: 1145 | AE96: 840 | AF96: 1597 | AG96: 256 | AH96: 168
A97: 02200030 | B97: 11301 | C97: 4094 | D97: 7207 | E97: 10 | F97: 31 | G97: 149 | H97: 385 | I97: 194 | J97: 433 | K97: 240 | L97: 544 | M97: 249 | N97: 496 | O97: 288 | P97: 546 | Q97: 283 | R97: 568 | S97: 298 | T97: 570 | U97: 257 | V97: 464 | W97: 247 | X97: 414 | Y97: 522 | Z97: 836 | AA97: 552 | AB97: 703 | AC97: 403 | AD97: 581 | AE97: 402 | AF97: 636 | AG97: 147 | AH97: 164
A98: 02200040 | B98: 5047 | C98: 1656 | D98: 3391 | E98: 1 | F98: 4 | G98: 26 | H98: 62 | I98: 50 | J98: 78 | K98: 76 | L98: 130 | M98: 116 | N98: 152 | O98: 135 | P98: 194 | Q98: 119 | R98: 306 | S98: 131 | T98: 336 | U98: 134 | V98: 297 | W98: 109 | X98: 240 | Y98: 219 | Z98: 505 | AA98: 215 | AB98: 440 | AC98: 159 | AD98: 298 | AE98: 166 | AF98: 349 | AG98: 22 | AH98: 38
A99: 03010501 | B99: 140477 | C99: 48757 | D99: 91720 | K99: 96 | L99: 128 | M99: 121 | N99: 292 | O99: 190 | P99: 561 | Q99: 406 | R99: 1137 | S99: 730 | T99: 1894 | U99: 1094 | V99: 3134 | W99: 1768 | X99: 4813 | Y99: 2939 | Z99: 7502 | AA99: 4690 | AB99: 11206 | AC99: 6901 | AD99: 13275 | AE99: 8121 | AF99: 13651 | AG99: 7792 | AH99: 12081 | AI99: 6390 | AJ99: 9895 | AK99: 7519 | AL99: 12151 | AM99: 843 | AN99: 643
A100: 03010502 | B100: 70886 | C100: 25921 | D100: 44965 | K100: 30 | L100: 47 | M100: 60 | N100: 135 | O100: 114 | P100: 254 | Q100: 221 | R100: 596 | S100: 392 | T100: 898 | U100: 632 | V100: 1463 | W100: 956 | X100: 2323 | Y100: 1490 | Z100: 3553 | AA100: 2531 | AB100: 5325 | AC100: 3520 | AD100: 6505 | AE100: 4367 | AF100: 6895 | AG100: 4289 | AH100: 6060 | AI100: 3354 | AJ100: 4778 | AK100: 3964 | AL100: 6134 | AM100: 491 | AN100: 337
A101: 03010504 | B101: 64975 | C101: 21594 | D101: 43381 | K101: 35 | L101: 48 | M101: 74 | N101: 128 | O101: 102 | P101: 259 | Q101: 197 | R101: 537 | S101: 362 | T101: 907 | U101: 542 | V101: 1578 | W101: 828 | X101: 2479 | Y101: 1309 | Z101: 3803 | AA101: 2078 | AB101: 5483 | AC101: 2869 | AD101: 6304 | AE101: 3664 | AF101: 6580 | AG101: 3528 | AH101: 5568 | AI101: 2667 | AJ101: 4316 | AK101: 3339 | AL101: 5391 | AM101: 622 | AN101: 323
A102: 03010505 | B102: 104 | C102: 34 | D102: 70 | K102: 0 | L102: 0 | M102: 0 | N102: 0 | O102: 0 | P102: 1 | Q102: 1 | R102: 3 | S102: 0 | T102: 3 | U102: 1 | V102: 5 | W102: 6 | X102: 8 | Y102: 5 | Z102: 8 | AA102: 4 | AB102: 3 | AC102: 2 | AD102: 4 | AE102: 3 | AF102: 5 | AG102: 2 | AH102: 4 | AI102: 2 | AJ102: 14 | AK102: 8 | AL102: 12 | AM102: 0 | AN102: 0
A103: 03020101 | B103: 12396 | C103: 5188 | D103: 7208 | E103: 293 | F103: 242 | G103: 1079 | H103: 1009 | I103: 1305 | J103: 1253 | K103: 867 | L103: 714 | M103: 323 | N103: 431 | O103: 120 | P103: 220 | Q103: 104 | R103: 311 | S103: 122 | T103: 344 | U103: 105 | V103: 304 | W103: 81 | X103: 303 | Y103: 85 | Z103: 296 | AA103: 102 | AB103: 338 | AC103: 110 | AD103: 359 | AE103: 106 | AF103: 330 | AG103: 113 | AH103: 266 | AI103: 93 | AJ103: 188 | AK103: 97 | AL103: 151 | AM103: 83 | AN103: 149 | AO103: 110 | AP103: 125 | AQ103: 31 | AR103: 60 | AS103: 88
A104: 03020201 | B104: 1102 | C104: 607 | D104: 495 | E104: 133 | F104: 74 | G104: 274 | H104: 242 | I104: 200 | J104: 179 | AO104: 13 | AP104: 7 | AQ104: 3 | AR104: 7 | AS104: 23
A105: 03020301 | B105: 1916 | C105: 780 | D105: 1136 | E105: 16 | F105: 11 | G105: 80 | H105: 55 | I105: 109 | J105: 85 | K105: 68 | L105: 46 | M105: 20 | N105: 25 | O105: 3 | P105: 15 | Q105: 23 | R105: 23 | S105: 18 | T105: 31 | U105: 9 | V105: 41 | W105: 11 | X105: 41 | Y105: 11 | Z105: 49 | AA105: 26 | AB105: 62 | AC105: 22 | AD105: 37 | AE105: 51 | AF105: 100 | AG105: 50 | AH105: 106 | AI105: 60 | AJ105: 78 | AK105: 71 | AL105: 101 | AM105: 132 | AN105: 230 | AO105: 11 | AP105: 8 | AQ105: 3 | AR105: 0 | AS105: 24
A106: 03020401 | B106: 9777 | C106: 3882 | D106: 5895 | E106: 199 | F106: 125 | G106: 590 | H106: 635 | I106: 814 | J106: 767 | K106: 506 | L106: 414 | M106: 243 | N106: 275 | O106: 83 | P106: 184 | Q106: 96 | R106: 232 | S106: 103 | T106: 276 | U106: 116 | V106: 305 | W106: 70 | X106: 295 | Y106: 88 | Z106: 261 | AA106: 80 | AB106: 257 | AC106: 112 | AD106: 327 | AE106: 120 | AF106: 377 | AG106: 170 | AH106: 371 | AI106: 180 | AJ106: 272 | AK106: 129 | AL106: 201 | AM106: 183 | AN106: 321 | AO106: 242 | AP106: 173 | AQ106: 27 | AR106: 26 | AS106: 134
A107: 03020402 | B107: 1683 | C107: 629 | D107: 1054 | I107: 178 | J107: 141 | K107: 139 | L107: 93 | M107: 72 | N107: 60 | O107: 21 | P107: 33 | Q107: 10 | R107: 47 | S107: 19 | T107: 51 | U107: 14 | V107: 60 | W107: 14 | X107: 44 | Y107: 10 | Z107: 54 | AA107: 11 | AB107: 72 | AC107: 21 | AD107: 74 | AE107: 18 | AF107: 81 | AG107: 24 | AH107: 83 | AI107: 26 | AJ107: 48 | AK107: 21 | AL107: 66 | AM107: 31 | AN107: 47 | AO107: 8 | AP107: 8 | AQ107: 0 | AR107: 2 | AS107: 15
A108: 03020403 | B108: 738 | C108: 392 | D108: 346 | U108: 1 | V108: 12 | W108: 0 | X108: 6 | Y108: 5 | Z108: 12 | AA108: 12 | AB108: 12 | AC108: 12 | AD108: 25 | AE108: 30 | AF108: 44 | AG108: 61 | AH108: 50 | AI108: 72 | AJ108: 50 | AK108: 60 | AL108: 42 | AM108: 139 | AN108: 93 | AO108: 3 | AP108: 2 | AQ108: 0 | AR108: 0 | AS108: 18
A109: 03020501 | B109: 361514 | C109: 135417 | D109: 226097 | E109: 2603 | F109: 2366 | G109: 7431 | H109: 6535 | I109: 9789 | J109: 9098 | K109: 8971 | L109: 8726 | M109: 7057 | N109: 9229 | O109: 4128 | P109: 7866 | Q109: 4061 | R109: 9355 | S109: 4673 | T109: 11261 | U109: 4906 | V109: 12722 | W109: 5306 | X109: 13346 | Y109: 6001 | Z109: 14679 | AA109: 7484 | AB109: 17276 | AC109: 9697 | AD109: 19592 | AE109: 11521 | AF109: 20915 | AG109: 12230 | AH109: 19157 | AI109: 10800 | AJ109: 15912 | AK109: 8403 | AL109: 12242 | AM109: 10356 | AN109: 15820 | AO109: 4285 | AP109: 7733 | AQ109: 1192 | AR109: 288 | AS109: 154
A110: 03020604 | B110: 27400 | C110: 10319 | D110: 17081 | E110: 3103 | F110: 2959 | G110: 2302 | H110: 2223 | I110: 1242 | J110: 1299 | K110: 725 | L110: 934 | M110: 439 | N110: 1084 | O110: 100 | P110: 1128 | Q110: 102 | R110: 1350 | S110: 115 | T110: 1265 | U110: 86 | V110: 830 | W110: 103 | X110: 528 | Y110: 101 | Z110: 423 | AA110: 153 | AB110: 420 | AC110: 152 | AD110: 429 | AE110: 195 | AF110: 388 | AG110: 293 | AH110: 473 | AI110: 349 | AJ110: 434 | AK110: 312 | AL110: 347 | AM110: 447 | AN110: 568 | AO110: 527 | AP110: 349 | AQ110: 582 | AR110: 36 | AS110: 138
A111: 03020702 | B111: 52403 | C111: 23778 | D111: 28625 | E111: 673 | F111: 787 | G111: 1292 | H111: 1115 | I111: 589 | J111: 538 | K111: 521 | L111: 651 | M111: 303 | N111: 414 | O111: 251 | P111: 432 | Q111: 255 | R111: 493 | S111: 265 | T111: 779 | U111: 455 | V111: 848 | W111: 411 | X111: 1006 | Y111: 945 | Z111: 1324 | AA111: 1404 | AB111: 1793 | AC111: 1780 | AD111: 2663 | AE111: 2896 | AF111: 2702 | AG111: 3574 | AH111: 3672 | AI111: 3082 | AJ111: 2854 | AK111: 2175 | AL111: 2305 | AM111: 2907 | AN111: 4249 | AO111: 704 | AP111: 660 | AQ111: 361 | AR111: 117 | AS111: 35
A112: 03020806 | B112: 66720 | C112: 23571 | D112: 43149 | E112: 1157 | F112: 1278 | G112: 1427 | H112: 1173 | I112: 1978 | J112: 1519 | K112: 1628 | L112: 1834 | M112: 1214 | N112: 2082 | O112: 872 | P112: 3025 | Q112: 1056 | R112: 3986 | S112: 1161 | T112: 4100 | U112: 1148 | V112: 3394 | W112: 1105 | X112: 2640 | Y112: 1179 | Z112: 2578 | AA112: 1340 | AB112: 2638 | AC112: 1690 | AD112: 3070 | AE112: 1765 | AF112: 2646 | AG112: 1308 | AH112: 1884 | AI112: 1118 | AJ112: 1467 | AK112: 879 | AL112: 1180 | AM112: 1546 | AN112: 2655 | AO112: 967 | AP112: 6033 | AQ112: 306 | AR112: 252 | AS112: 900
A113: 03020908 | B113: 17241 | C113: 5552 | D113: 11684 | E113: 30 | F113: 23 | G113: 387 | H113: 255 | I113: 1004 | J113: 697 | K113: 1142 | L113: 1778 | M113: 825 | N113: 1385 | O113: 170 | P113: 603 | Q113: 128 | R113: 777 | S113: 192 | T113: 835 | U113: 197 | V113: 742 | W113: 165 | X113: 661 | Y113: 121 | Z113: 493 | AA113: 131 | AB113: 518 | AC113: 163 | AD113: 622 | AE113: 135 | AF113: 452 | AG113: 148 | AH113: 471 | AI113: 161 | AJ113: 386 | AK113: 151 | AL113: 329 | AM113: 305 | AN113: 662 | AO113: 346 | AP113: 177 | AQ113: 1549 | AR113: 108 | AS113: 540
A114: 03021106 | B114: 6294 | C114: 2750 | D114: 3544 | E114: 16 | F114: 6 | G114: 15 | H114: 16 | I114: 25 | J114: 36 | K114: 48 | L114: 91 | M114: 93 | N114: 144 | O114: 111 | P114: 241 | Q114: 146 | R114: 292 | S114: 231 | T114: 379 | U114: 326 | V114: 463 | W114: 430 | X114: 463 | Y114: 490 | Z114: 458 | AA114: 353 | AB114: 368 | AC114: 223 | AD114: 240 | AE114: 243 | AF114: 347 | AG114: 35 | AH114: 100
A115: 03021107 | B115: 3264 | C115: 1421 | D115: 1843 | E115: 4 | F115: 3 | G115: 5 | H115: 13 | I115: 14 | J115: 24 | K115: 31 | L115: 62 | M115: 53 | N115: 80 | O115: 73 | P115: 107 | Q115: 97 | R115: 160 | S115: 135 | T115: 205 | U115: 200 | V115: 258 | W115: 203 | X115: 272 | Y115: 241 | Z115: 280 | AA115: 176 | AB115: 165 | AC115: 95 | AD115: 102 | AE115: 94 | AF115: 112 | AG115: 18 | AH115: 46
A116: 03021108 | B116: 4081 | C116: 1536 | D116: 2545 | E116: 7 | F116: 7 | G116: 6 | H116: 21 | I116: 15 | J116: 37 | K116: 46 | L116: 86 | M116: 64 | N116: 107 | O116: 77 | P116: 129 | Q116: 113 | R116: 209 | S116: 146 | T116: 331 | U116: 191 | V116: 354 | W116: 209 | X116: 409 | Y116: 249 | Z116: 320 | AA116: 191 | AB116: 220 | AC116: 109 | AD116: 137 | AE116: 113 | AF116: 178 | AG116: 26 | AH116: 47
A117: 03030101 | B117: 965 | C117: 487 | D117: 478 | E117: 2 | F117: 4
A118: 03030102 | B118: 56584 | C118: 21446 | D118: 35138 | E118: 370 | F118: 1120
A119: 03030103 | B119: 3447 | C119: 243 | D119: 3204 | E119: 16 | F119: 41
A120: 03030104 | B120: 7008 | C120: 2715 | D120: 4293 | E120: 55 | F120: 99
A121: 03030110 | B121: 13291 | C121: 4611 | D121: 8680 | E121: 228 | F121: 260
A122: 03030120 | B122: 30697 | C122: 11966 | D122: 18731 | E122: 62 | F122: 119 | G122: 575 | H122: 1099 | I122: 797 | J122: 1432 | K122: 905 | L122: 1672 | M122: 921 | N122: 1567 | O122: 846 | P122: 1468 | Q122: 804 | R122: 1324 | S122: 781 | T122: 1164 | U122: 764 | V122: 1007 | W122: 684 | X122: 783 | Y122: 1320 | Z122: 2005 | AA122: 1309 | AB122: 1846 | AC122: 1062 | AD122: 1543 | AE122: 1140 | AF122: 1702 | AG122: 367 | AH122: 558
A123: 03030130 | B123: 27588 | C123: 8016 | D123: 19572 | E123: 64 | F123: 128 | G123: 370 | H123: 1175 | I123: 552 | J123: 1586 | K123: 683 | L123: 1946 | M123: 715 | N123: 1777 | O123: 677 | P123: 1628 | Q123: 595 | R123: 1481 | S123: 597 | T123: 1270 | U123: 483 | V123: 926 | W123: 393 | X123: 661 | Y123: 888 | Z123: 2343 | AA123: 867 | AB123: 1940 | AC123: 604 | AD123: 1333 | AE123: 528 | AF123: 1378 | AG123: 346 | AH123: 416
A124: 03030140 | B124: 33237 | C124: 10145 | D124: 23092 | E124: 108 | F124: 107 | G124: 192 | H124: 173 | I124: 167 | J124: 136 | K124: 164 | L124: 280 | M124: 165 | N124: 380 | O124: 139 | P124: 476 | Q124: 147 | R124: 696 | S124: 145 | T124: 923 | U124: 238 | V124: 986 | W124: 287 | X124: 1396 | Y124: 411 | Z124: 1731 | AA124: 688 | AB124: 2446 | AC124: 1105 | AD124: 3007 | AE124: 1357 | AF124: 2900 | AG124: 1565 | AH124: 2647 | AI124: 1265 | AJ124: 2033 | AK124: 2002 | AL124: 2775 | AM124: 180 | AN124: 89
A125: 03030150 | B125: 4438 | C125: 1238 | D125: 3200 | E125: 5 | F125: 7 | G125: 7 | H125: 4 | I125: 1 | J125: 2 | K125: 8 | L125: 11 | M125: 4 | N125: 25 | O125: 9 | P125: 32 | Q125: 13 | R125: 60 | S125: 14 | T125: 79 | U125: 27 | V125: 100 | W125: 28 | X125: 161 | Y125: 56 | Z125: 206 | AA125: 92 | AB125: 365 | AC125: 141 | AD125: 410 | AE125: 185 | AF125: 513 | AG125: 212 | AH125: 452 | AI125: 171 | AJ125: 373 | AK125: 265 | AL125: 400 | AM125: 62 | AN125: 12
A126: 03030160 | B126: 5714 | C126: 1398 | D126: 4316 | E126: 135 | F126: 107 | G126: 62 | H126: 48 | I126: 50 | J126: 73 | K126: 30 | L126: 116 | M126: 41 | N126: 251 | O126: 58 | P126: 275 | Q126: 51 | R126: 317 | S126: 48 | T126: 279 | U126: 60 | V126: 297 | W126: 42 | X126: 281 | Y126: 74 | Z126: 328 | AA126: 88 | AB126: 348 | AC126: 108 | AD126: 367 | AE126: 138 | AF126: 408 | AG126: 140 | AH126: 306 | AI126: 107 | AJ126: 251 | AK126: 166 | AL126: 264 | AM126: 98 | AN126: 112
A127: 03030170 | B127: 152 | C127: 5 | D127: 147 | E127: 0 | F127: 1 | G127: 0 | H127: 1 | I127: 0 | J127: 6 | K127: 0 | L127: 12 | M127: 0 | N127: 12 | O127: 0 | P127: 21 | Q127: 0 | R127: 36 | S127: 0 | T127: 11 | U127: 0 | V127: 9 | W127: 0 | X127: 12 | Y127: 1 | Z127: 2 | AA127: 0 | AB127: 3 | AC127: 0 | AD127: 0 | AE127: 1 | AF127: 4 | AG127: 0 | AH127: 1 | AI127: 2 | AJ127: 8 | AK127: 1 | AL127: 8 | AM127: 0 | AN127: 11
A128: 03030180 | B128: 226 | C128: 102 | D128: 124 | E128: 4 | F128: 3 | G128: 10 | H128: 8 | I128: 8 | J128: 11 | K128: 4 | L128: 5 | M128: 5 | N128: 8 | O128: 12 | P128: 5 | Q128: 0 | R128: 18 | S128: 6 | T128: 10 | U128: 8 | V128: 6 | W128: 7 | X128: 2 | Y128: 7 | Z128: 6 | AA128: 0 | AB128: 9 | AC128: 14 | AD128: 8 | AE128: 5 | AF128: 7 | AG128: 3 | AH128: 5 | AI128: 6 | AJ128: 5 | AK128: 3 | AL128: 8 | AM128: 0 | AN128: 0
A129: 03030250 | B129: 13980 | C129: 8799 | D129: 5181 | E129: 181 | F129: 130 | G129: 5911 | H129: 3162 | I129: 1574 | J129: 724 | K129: 311 | L129: 103 | M129: 75 | N129: 65 | O129: 22 | P129: 15 | Q129: 13 | R129: 70 | S129: 9 | T129: 32 | U129: 25 | V129: 40 | W129: 17 | X129: 51 | Y129: 10 | Z129: 63 | AA129: 47 | AB129: 48 | AC129: 25 | AD129: 70 | AE129: 72 | AF129: 63 | AG129: 144 | AH129: 99 | AI129: 107 | AJ129: 144 | AK129: 95 | AL129: 74 | AM129: 161 | AN129: 228 | AO129: 127 | AP129: 80 | AQ129: 75 | AR129: 3 | AS129: 89
A130: 03030270 | B130: 2419 | C130: 1350 | D130: 1069 | E130: 24 | F130: 20 | G130: 292 | H130: 100 | I130: 391 | J130: 108 | K130: 183 | L130: 51 | M130: 29 | N130: 29 | O130: 5 | P130: 5 | Q130: 10 | R130: 2 | S130: 7 | T130: 12 | U130: 10 | V130: 6 | W130: 5 | X130: 17 | Y130: 26 | Z130: 17 | AA130: 5 | AB130: 51 | AC130: 28 | AD130: 40 | AE130: 51 | AF130: 27 | AG130: 30 | AH130: 51 | AI130: 44 | AJ130: 119 | AK130: 55 | AL130: 114 | AM130: 155 | AN130: 300 | AO130: 7 | AP130: 8 | AQ130: 19 | AR130: 2 | AS130: 3
A131: 03030280 | B131: 150 | C131: 48 | D131: 102 | E131: 0 | F131: 5 | G131: 4 | H131: 4 | I131: 7 | J131: 2 | K131: 2 | L131: 2 | M131: 2 | N131: 0 | O131: 4 | P131: 4 | Q131: 0 | R131: 8 | S131: 1 | T131: 6 | U131: 6 | V131: 14 | W131: 3 | X131: 12 | Y131: 4 | Z131: 5 | AA131: 2 | AB131: 8 | AC131: 2 | AD131: 11 | AE131: 4 | AF131: 6 | AG131: 2 | AH131: 7 | AI131: 1 | AJ131: 4 | AK131: 0 | AL131: 2 | AM131: 4 | AN131: 2 | AO131: 0 | AP131: 18 | AQ131: 0 | AR131: 0 | AS131: 3
A132: 03030290 | B132: 128984
A133: 03030330 | B133: 28391 | C133: 11683 | D133: 16708 | E133: 150 | F133: 196 | G133: 792 | H133: 1201 | I133: 738 | J133: 1242 | K133: 643 | L133: 1256 | M133: 506 | N133: 1041 | O133: 430 | P133: 874 | Q133: 405 | R133: 737 | S133: 389 | T133: 650 | U133: 359 | V133: 537 | W133: 358 | X133: 446 | Y133: 1522 | Z133: 1978 | AA133: 1697 | AB133: 1932 | AC133: 1572 | AD133: 1781 | AE133: 2122 | AF133: 2838 | AG133: 306 | AH133: 461
A134: 03030340 | B134: 4786 | C134: 1934 | D134: 2852 | E134: 45 | F134: 20 | G134: 48 | H134: 92 | I134: 26 | J134: 63 | K134: 18 | L134: 35 | M134: 18 | N134: 29 | O134: 15 | P134: 22 | Q134: 4 | R134: 23 | S134: 20 | T134: 20 | U134: 12 | V134: 16 | W134: 7 | X134: 21 | Y134: 296 | Z134: 410 | AA134: 345 | AB134: 442 | AC134: 372 | AD134: 481 | AE134: 708 | AF134: 1178 | AG134: 65 | AH134: 37
A135: 03030350 | B135: 10181 | C135: 4100 | D135: 6081 | E135: 25 | F135: 56
A136: 03030360 | B136: 11467 | C136: 4775 | D136: 6692 | E136: 25 | F136: 16 | G136: 25 | H136: 53 | I136: 53 | J136: 98 | K136: 107 | L136: 228 | M136: 189 | N136: 320 | O136: 233 | P136: 434 | Q136: 338 | R136: 600 | S136: 423 | T136: 796 | U136: 612 | V136: 938 | W136: 734 | X136: 935 | Y136: 761 | Z136: 835 | AA136: 562 | AB136: 583 | AC136: 350 | AD136: 367 | AE136: 363 | AF136: 489 | AG136: 60 | AH136: 154
A137: 03040210 | B137: 190 | D137: 190 | L137: 0 | N137: 11 | P137: 42 | R137: 57 | T137: 46 | V137: 17 | X137: 12 | Z137: 0 | AB137: 1 | AD137: 2 | AF137: 2 | AO137: 0 | AP137: 3 | AQ137: 0 | AR137: 0 | AS137: 0
A138: 03040220 | B138: 384 | D138: 384 | F138: 1 | H138: 1 | J138: 9 | L138: 11 | N138: 31 | P138: 25 | R138: 24 | T138: 25 | V138: 25 | X138: 26 | Z138: 50 | AB138: 55 | AD138: 20 | AF138: 23 | AH138: 26 | AJ138: 8 | AL138: 10 | AN138: 14 | AO138: 0 | AP138: 3 | AQ138: 2 | AR138: 1 | AS138: 0
A139: 03050400 | B139: 6898 | C139: 3065 | D139: 3833 | E139: 1986 | F139: 2476 | G139: 1079 | H139: 1357
A140: 03050500 | B140: 920 | C140: 476 | D140: 444 | E140: 274 | F140: 290 | G140: 202 | H140: 154
A141: 03050600 | B141: 3906 | C141: 1595 | D141: 2311 | E141: 1171 | F141: 1503 | G141: 424 | H141: 808
A142: 03050700 | B142: 2827 | C142: 1294 | D142: 1533 | E142: 1014 | F142: 991 | G142: 280 | H142: 542
A143: 03050710 | B143: 562 | C143: 290 | D143: 272 | E143: 199 | F143: 151 | G143: 91 | H143: 121
A144: 03051000A | B144: 9 | C144: 3 | D144: 6 | E144: 0 | F144: 0 | G144: 0 | H144: 0 | I144: 0 | J144: 2 | K144: 2 | L144: 1 | M144: 0 | N144: 0 | O144: 0 | P144: 0 | Q144: 0 | R144: 0 | S144: 1 | T144: 2 | U144: 0 | V144: 0 | W144: 0 | X144: 0 | Y144: 0 | Z144: 1
A145: 03051100 | B145: 326 | C145: 166 | D145: 160 | E145: 0 | F145: 0 | G145: 2 | H145: 0 | I145: 1 | J145: 1 | K145: 3 | L145: 2 | M145: 3 | N145: 4 | O145: 7 | P145: 0 | Q145: 3 | R145: 3 | S145: 103 | T145: 111 | U145: 15 | V145: 7 | W145: 24 | X145: 25 | Y145: 5 | Z145: 7
A146: 03051200 | B146: 399 | C146: 191 | D146: 208 | E146: 0 | F146: 0 | G146: 2 | H146: 2 | I146: 0 | J146: 2 | K146: 6 | L146: 0 | M146: 3 | N146: 0 | O146: 2 | P146: 2 | Q146: 5 | R146: 2 | S146: 112 | T146: 144 | U146: 18 | V146: 23 | W146: 34 | X146: 26 | Y146: 9 | Z146: 7
A147: 03051300 | B147: 375 | C147: 163 | D147: 212 | E147: 0 | F147: 0 | G147: 0 | H147: 2 | I147: 3 | J147: 2 | K147: 4 | L147: 3 | M147: 4 | N147: 1 | O147: 3 | P147: 5 | Q147: 3 | R147: 2 | S147: 82 | T147: 111 | U147: 12 | V147: 16 | W147: 27 | X147: 36 | Y147: 25 | Z147: 34
A148: 03051400 | B148: 26 | C148: 11 | D148: 15 | E148: 0 | F148: 0 | G148: 0 | H148: 0 | I148: 0 | J148: 0 | K148: 1 | L148: 1 | M148: 0 | N148: 0 | O148: 0 | P148: 0 | Q148: 0 | R148: 0 | S148: 3 | T148: 4 | U148: 0 | V148: 1 | W148: 3 | X148: 1 | Y148: 4 | Z148: 8
A149: 03051500 | B149: 14 | C149: 7 | D149: 7 | E149: 0 | F149: 0 | G149: 0 | H149: 0 | I149: 0 | J149: 2 | K149: 2 | L149: 0 | M149: 0 | N149: 0 | O149: 0 | P149: 0 | Q149: 0 | R149: 0 | S149: 3 | T149: 3 | U149: 1 | V149: 1 | W149: 1 | X149: 0 | Y149: 0 | Z149: 1
A150: 03051600 | B150: 31 | C150: 17 | D150: 14 | E150: 0 | F150: 0 | G150: 0 | H150: 0 | I150: 0 | J150: 0 | K150: 0 | L150: 0 | M150: 2 | N150: 1 | O150: 0 | P150: 0 | Q150: 5 | R150: 1 | S150: 9 | T150: 10 | U150: 0 | V150: 0 | W150: 1 | X150: 1 | Y150: 0 | Z150: 1
A151: 03051700 | B151: 63 | C151: 26 | D151: 37 | E151: 0 | F151: 0 | G151: 1 | H151: 0 | I151: 0 | J151: 1 | K151: 0 | L151: 0 | M151: 1 | N151: 1 | O151: 0 | P151: 2 | Q151: 0 | R151: 1 | S151: 17 | T151: 30 | U151: 6 | V151: 1 | W151: 0 | X151: 0 | Y151: 1 | Z151: 1
A152: 03051800 | B152: 59 | C152: 25 | D152: 34 | E152: 0 | F152: 0 | G152: 0 | H152: 0 | I152: 0 | J152: 5 | K152: 1 | L152: 0 | M152: 0 | N152: 0 | O152: 0 | P152: 1 | Q152: 0 | R152: 0 | S152: 15 | T152: 19 | U152: 2 | V152: 3 | W152: 4 | X152: 2 | Y152: 3 | Z152: 4
A153: 03052000 | B153: 11 | C153: 5 | D153: 6 | E153: 0 | F153: 0 | G153: 0 | H153: 0 | I153: 0 | J153: 2 | K153: 2 | L153: 0 | M153: 0 | N153: 0 | O153: 0 | P153: 0 | Q153: 0 | R153: 0 | S153: 3 | T153: 3 | U153: 0 | V153: 0 | W153: 0 | X153: 0 | Y153: 0 | Z153: 1
A154: 03052100 | B154: 34 | C154: 21 | D154: 13 | E154: 0 | F154: 1 | G154: 1 | H154: 0 | I154: 0 | J154: 0 | K154: 3 | L154: 0 | M154: 1 | N154: 2 | O154: 2 | P154: 0 | Q154: 1 | R154: 2 | S154: 7 | T154: 7 | U154: 2 | V154: 0 | W154: 4 | X154: 1 | Y154: 0 | Z154: 0
A155: 03052200 | B155: 36 | C155: 17 | D155: 19 | E155: 0 | F155: 0 | G155: 1 | H155: 0 | I155: 0 | J155: 0 | K155: 3 | L155: 0 | M155: 1 | N155: 2 | O155: 1 | P155: 1 | Q155: 0 | R155: 1 | S155: 10 | T155: 15 | U155: 1 | V155: 0 | W155: 0 | X155: 0 | Y155: 0 | Z155: 0
A156: 03052300 | B156: 26 | C156: 12 | D156: 14 | E156: 0 | F156: 0 | G156: 0 | H156: 0 | I156: 0 | J156: 0 | K156: 1 | L156: 0 | M156: 3 | N156: 2 | O156: 1 | P156: 0 | Q156: 0 | R156: 2 | S156: 5 | T156: 7 | U156: 0 | V156: 2 | W156: 2 | X156: 1 | Y156: 0 | Z156: 0
A157: 03052500 | B157: 14 | C157: 6 | D157: 8 | E157: 0 | F157: 0 | G157: 0 | H157: 0 | I157: 0 | J157: 2 | K157: 2 | L157: 1 | M157: 0 | N157: 0 | O157: 0 | P157: 0 | Q157: 0 | R157: 0 | S157: 4 | T157: 4 | U157: 0 | V157: 0 | W157: 0 | X157: 0 | Y157: 0 | Z157: 1
A158: 03052600 | B158: 169 | C158: 113 | D158: 56 | E158: 0 | F158: 0 | G158: 0 | H158: 0 | I158: 13 | J158: 4 | K158: 36 | L158: 18 | M158: 24 | N158: 9 | O158: 12 | P158: 7 | Q158: 11 | R158: 3 | S158: 14 | T158: 14 | U158: 0 | V158: 0 | W158: 1 | X158: 0 | Y158: 2 | Z158: 1
A159: 03052700 | B159: 336 | C159: 209 | D159: 127 | E159: 1 | F159: 0 | G159: 0 | H159: 2 | I159: 36 | J159: 20 | K159: 58 | L159: 23 | M159: 62 | N159: 19 | O159: 22 | P159: 15 | Q159: 5 | R159: 6 | S159: 16 | T159: 28 | U159: 0 | V159: 3 | W159: 4 | X159: 6 | Y159: 5 | Z159: 5
A160: 03052800 | B160: 518 | C160: 315 | D160: 203 | E160: 1 | F160: 0 | G160: 5 | H160: 4 | I160: 82 | J160: 19 | K160: 97 | L160: 36 | M160: 39 | N160: 26 | O160: 14 | P160: 10 | Q160: 1 | R160: 3 | S160: 30 | T160: 36 | U160: 3 | V160: 2 | W160: 12 | X160: 11 | Y160: 31 | Z160: 56
A161: 03052900 | B161: 23 | C161: 4 | D161: 19 | E161: 0 | F161: 0 | G161: 0 | H161: 0 | I161: 0 | J161: 2 | K161: 0 | L161: 1 | M161: 0 | N161: 0 | O161: 0 | P161: 0 | Q161: 0 | R161: 0 | S161: 0 | T161: 5 | U161: 0 | V161: 1 | W161: 1 | X161: 1 | Y161: 3 | Z161: 9
A162: 03053000 | B162: 6 | C162: 3 | D162: 3 | E162: 0 | F162: 0 | G162: 0 | H162: 0 | I162: 0 | J162: 0 | K162: 0 | L162: 0 | M162: 0 | N162: 0 | O162: 0 | P162: 0 | Q162: 0 | R162: 0 | S162: 3 | T162: 3 | U162: 0 | V162: 0 | W162: 0 | X162: 0 | Y162: 0 | Z162: 0
A163: 03053100 | B163: 16 | C163: 12 | D163: 4 | E163: 0 | F163: 1 | G163: 1 | H163: 0 | I163: 0 | J163: 0 | K163: 3 | L163: 1 | M163: 3 | N163: 1 | O163: 1 | P163: 0 | Q163: 0 | R163: 0 | S163: 4 | T163: 1 | U163: 0 | V163: 0 | W163: 0 | X163: 0 | Y163: 0 | Z163: 0
A164: 03053200 | B164: 45 | C164: 25 | D164: 20 | E164: 0 | F164: 0 | G164: 0 | H164: 1 | I164: 1 | J164: 0 | K164: 4 | L164: 1 | M164: 5 | N164: 5 | O164: 4 | P164: 1 | Q164: 5 | R164: 3 | S164: 6 | T164: 8 | U164: 0 | V164: 1 | W164: 0 | X164: 0 | Y164: 0 | Z164: 0
A165: 03053300 | B165: 84 | C165: 48 | D165: 36 | E165: 0 | F165: 0 | G165: 1 | H165: 1 | I165: 4 | J165: 4 | K165: 18 | L165: 5 | M165: 9 | N165: 5 | O165: 5 | P165: 4 | Q165: 3 | R165: 3 | S165: 4 | T165: 9 | U165: 4 | V165: 2 | W165: 0 | X165: 0 | Y165: 0 | Z165: 3
A166: 03053400 | B166: 3 | C166: 1 | D166: 2 | E166: 0 | F166: 0 | G166: 0 | H166: 0 | I166: 0 | J166: 0 | K166: 0 | L166: 0 | M166: 1 | N166: 0 | O166: 0 | P166: 0 | Q166: 0 | R166: 0 | S166: 0 | T166: 0 | U166: 0 | V166: 0 | W166: 0 | X166: 1 | Y166: 0 | Z166: 1
A167: 03053500 | B167: 12 | C167: 6 | D167: 6 | E167: 0 | F167: 0 | G167: 0 | H167: 0 | I167: 1 | J167: 2 | K167: 2 | L167: 0 | M167: 0 | N167: 0 | O167: 0 | P167: 0 | Q167: 0 | R167: 0 | S167: 3 | T167: 3 | U167: 0 | V167: 0 | W167: 0 | X167: 0 | Y167: 0 | Z167: 1
A168: 03053600 | B168: 4 | C168: 2 | D168: 2 | E168: 0 | F168: 0 | G168: 0 | H168: 0 | I168: 0 | J168: 0 | K168: 0 | L168: 0 | M168: 0 | N168: 0 | O168: 0 | P168: 0 | Q168: 0 | R168: 0 | S168: 2 | T168: 2 | U168: 0 | V168: 0 | W168: 0 | X168: 0 | Y168: 0 | Z168: 0
A169: 03053700 | B169: 40 | C169: 24 | D169: 16 | E169: 0 | F169: 0 | G169: 0 | H169: 0 | I169: 0 | J169: 0 | K169: 2 | L169: 0 | M169: 3 | N169: 0 | O169: 3 | P169: 3 | Q169: 1 | R169: 0 | S169: 8 | T169: 9 | U169: 1 | V169: 0 | W169: 5 | X169: 3 | Y169: 1 | Z169: 1
A170: 03053800 | B170: 269 | C170: 125 | D170: 144 | E170: 1 | F170: 0 | G170: 4 | H170: 0 | I170: 7 | J170: 2 | K170: 11 | L170: 15 | M170: 28 | N170: 8 | O170: 10 | P170: 6 | Q170: 4 | R170: 4 | S170: 35 | T170: 75 | U170: 6 | V170: 7 | W170: 8 | X170: 10 | Y170: 11 | Z170: 17
A171: 03053900 | B171: 67 | C171: 31 | D171: 36 | E171: 0 | F171: 0 | G171: 0 | H171: 0 | I171: 1 | J171: 1 | K171: 8 | L171: 1 | M171: 1 | N171: 0 | O171: 2 | P171: 1 | Q171: 3 | R171: 0 | S171: 2 | T171: 4 | U171: 2 | V171: 2 | W171: 6 | X171: 5 | Y171: 6 | Z171: 22
A172: 03500020 | B172: 12001 | C172: 5917 | D172: 6084 | E172: 9 | F172: 3 | G172: 77 | H172: 68 | I172: 14 | J172: 17 | K172: 143 | L172: 113 | M172: 2023 | N172: 1993 | O172: 63 | P172: 49 | Q172: 22 | R172: 23 | S172: 78 | T172: 82 | U172: 1880 | V172: 1924 | W172: 1598 | X172: 1805
A173: 03500030 | B173: 1459 | C173: 882 | D173: 577 | E173: 2 | F173: 0 | G173: 0 | H173: 0 | I173: 0 | J173: 0 | K173: 6 | L173: 6 | M173: 78 | N173: 51 | O173: 2 | P173: 2 | Q173: 0 | R173: 0 | S173: 10 | T173: 5 | U173: 245 | V173: 169 | W173: 539 | X173: 343
A174: 03500040 | B174: 3484 | C174: 1729 | D174: 1755 | E174: 1473 | F174: 1516 | G174: 256 | H174: 239 | I174: 22 | J174: 10
A175: 03500050 | B175: 850 | C175: 438 | D175: 412 | E175: 350 | F175: 330 | G175: 88 | H175: 82 | I175: 8 | J175: 2
A176: 03500060 | B176: 102 | C176: 58 | D176: 44 | E176: 48 | F176: 25 | G176: 10 | H176: 19 | I176: 2 | J176: 0
A177: 03500120 | B177: 326
A178: 03500130 | B178: 321
A179: 03500140 | B179: 193
A180: 03500150 | B180: 9
A181: 03500160 | B181: 5751 | C181: 1 | D181: 586 | E181: 545
A182: 03500170 | B182: 103 | D182: 16 | E182: 13
A183: 03500200 | B183: 3814 | C183: 575 | D183: 0 | E183: 393
A184: 03500210 | B184: 3682 | C184: 595 | D184: 0 | E184: 435
A185: 03500290 | B185: 3443 | C185: 1478 | D185: 1965 | E185: 46 | F185: 36 | G185: 152 | H185: 171 | I185: 183 | J185: 259 | K185: 500 | L185: 702 | M185: 312 | N185: 454 | O185: 120 | P185: 136 | Q185: 121 | R185: 148 | S185: 44 | T185: 59
A186: 03500300 | B186: 915 | C186: 471 | D186: 444 | E186: 7 | F186: 19 | G186: 67 | H186: 59 | I186: 70 | J186: 66 | K186: 96 | L186: 103 | M186: 130 | N186: 141 | O186: 50 | P186: 28 | Q186: 34 | R186: 24 | S186: 17 | T186: 4
A187: 03500331 | B187: 125 | C187: 78 | D187: 47 | E187: 0 | F187: 0 | G187: 2 | H187: 2 | I187: 3 | J187: 3 | K187: 44 | L187: 25 | M187: 28 | N187: 17 | O187: 1 | P187: 0 | Q187: 0 | R187: 0
A188: 03500332 | B188: 113 | C188: 78 | D188: 35 | E188: 0 | F188: 0 | G188: 2 | H188: 3 | I188: 7 | J188: 1 | K188: 38 | L188: 23 | M188: 27 | N188: 6 | O188: 4 | P188: 2 | Q188: 0 | R188: 0
A189: 03500333 | B189: 8 | C189: 4 | D189: 4 | E189: 0 | F189: 0 | G189: 3 | H189: 1 | I189: 0 | J189: 0 | K189: 0 | L189: 2 | M189: 1 | N189: 0 | O189: 0 | P189: 1 | Q189: 0 | R189: 0
A190: 03500334 | B190: 11 | C190: 7 | D190: 4 | E190: 0 | F190: 0 | G190: 1 | H190: 1 | I190: 0 | J190: 0 | K190: 6 | L190: 1 | M190: 0 | N190: 2 | O190: 0 | P190: 0 | Q190: 0 | R190: 0
A191: 03500335 | B191: 4 | C191: 4 | D191: 0 | E191: 0 | F191: 0 | G191: 0 | H191: 0 | I191: 0 | J191: 0 | K191: 3 | L191: 0 | M191: 0 | N191: 0 | O191: 1 | P191: 0 | Q191: 0 | R191: 0
A192: 03500336 | B192: 244 | C192: 134 | D192: 110 | E192: 7 | F192: 0 | G192: 1 | H192: 1 | I192: 10 | J192: 6 | K192: 18 | L192: 8 | M192: 14 | N192: 8 | O192: 3 | P192: 7 | Q192: 3 | R192: 1 | S192: 48 | T192: 41 | U192: 4 | V192: 3 | W192: 16 | X192: 15 | Y192: 10 | Z192: 20
A193: 03500337 | B193: 207 | C193: 117 | D193: 90 | E193: 0 | F193: 1 | G193: 2 | H193: 0 | I193: 4 | J193: 3 | K193: 17 | L193: 6 | M193: 6 | N193: 7 | O193: 11 | P193: 3 | Q193: 4 | R193: 5 | S193: 43 | T193: 56 | U193: 12 | V193: 1 | W193: 14 | X193: 6 | Y193: 4 | Z193: 2
A194: 03500338 | B194: 312 | C194: 177 | D194: 135 | E194: 0 | F194: 0 | G194: 2 | H194: 1 | I194: 18 | J194: 10 | K194: 24 | L194: 8 | M194: 35 | N194: 10 | O194: 15 | P194: 9 | Q194: 7 | R194: 4 | S194: 52 | T194: 74 | U194: 10 | V194: 8 | W194: 14 | X194: 5 | Y194: 0 | Z194: 6
A195: 03500339 | B195: 466 | C195: 243 | D195: 223 | E195: 0 | F195: 0 | G195: 1 | H195: 2 | I195: 35 | J195: 14 | K195: 63 | L195: 24 | M195: 22 | N195: 17 | O195: 10 | P195: 11 | Q195: 3 | R195: 1 | S195: 48 | T195: 90 | U195: 12 | V195: 11 | W195: 19 | X195: 19 | Y195: 30 | Z195: 34
A196: 03500340 | B196: 43 | C196: 17 | D196: 26 | E196: 0 | F196: 0 | G196: 0 | H196: 0 | I196: 0 | J196: 2 | K196: 4 | L196: 1 | M196: 0 | N196: 0 | O196: 1 | P196: 1 | Q196: 3 | R196: 0 | S196: 2 | T196: 1 | U196: 0 | V196: 1 | W196: 1 | X196: 4 | Y196: 6 | Z196: 16
A197: 03500341 | B197: 14 | C197: 4 | D197: 10 | K197: 1 | L197: 2 | N197: 2 | S197: 2 | T197: 6 | Y197: 1
A198: 03500342 | B198: 42 | C198: 29 | D198: 13 | E198: 0 | F198: 0 | G198: 1 | H198: 0 | I198: 0 | J198: 0 | K198: 5 | L198: 1 | M198: 2 | N198: 1 | O198: 2 | P198: 1 | Q198: 2 | R198: 0 | S198: 9 | T198: 6 | U198: 2 | V198: 0 | W198: 3 | X198: 3 | Y198: 3 | Z198: 1
A199: 03500343 | B199: 149 | C199: 81 | D199: 68 | E199: 0 | F199: 0 | G199: 2 | H199: 0 | I199: 5 | J199: 3 | K199: 13 | L199: 5 | M199: 13 | N199: 4 | O199: 2 | P199: 2 | Q199: 2 | R199: 1 | S199: 32 | T199: 39 | U199: 4 | V199: 4 | W199: 5 | X199: 9 | Y199: 3 | Z199: 1
A200: 03500344 | B200: 190 | C200: 91 | D200: 99 | E200: 0 | F200: 0 | G200: 0 | H200: 1 | I200: 9 | J200: 7 | K200: 18 | L200: 8 | M200: 11 | N200: 8 | O200: 1 | P200: 5 | Q200: 0 | R200: 2 | S200: 31 | T200: 35 | U200: 2 | V200: 4 | W200: 11 | X200: 11 | Y200: 8 | Z200: 18
A201: 03500345 | B201: 15 | C201: 4 | D201: 11 | E201: 0 | F201: 0 | G201: 0 | H201: 0 | I201: 0 | J201: 0 | K201: 3 | L201: 1 | M201: 0 | N201: 0 | O201: 0 | P201: 1 | Q201: 0 | R201: 0 | S201: 0 | T201: 2 | U201: 0 | V201: 0 | W201: 1 | X201: 0 | Y201: 0 | Z201: 7
... 2472 more rows

Sheet A01
B1: SERVICIO DE SALUD
B2: =CONCATENATE("COMUNA: ",[1]NOMBRE!B2," - ","( ",[1]NOMBRE!C2,[1]NOMBRE!D2,[1]NOMBRE!E2,[1]NOMBRE!F2,[1]NOMBRE!G2," )") -> COMUNA: - ( )
B3: =CONCATENATE("ESTABLECIMIENTO/ESTRATEGIA: ",[1]NOMBRE!B3," - ","( ",[1]NOMBRE!C3,[1]NOMBRE!D3,[1]NOMBRE!E3,[1]NOMBRE!F3,[1]NOMBRE!G3,[1]NOMBRE!H3," )") -> ESTABLECIMIENTO/ESTRATEGIA: - ( )
B4: =CONCATENATE("MES: ",[1]NOMBRE!B6," - ","( ",[1]NOMBRE!C6,[1]NOMBRE!D6," )") -> MES: - ( )
B5: =CONCATENATE("AÑO: ",[1]NOMBRE!B7) -> AÑO: 2024
B6: REM-A01. CONTROLES DE SALUD
B8: SECCIÓN A: CONTROLES DE SALUD SEXUAL Y REPRODUCTIVA
B9: TIPO DE CONTROL | C9: PROFESIONAL | D9: TOTAL | E9: RANGO ETARIO | V9: Sexo | X9: Control con pareja, familiar u otro | Y9: Control de diada con presencia del padre | Z9: Espacios Amigables/ Adolescentes | AA9: Niños, Niñas, Adolescentes y Jóvenes SENAME | AB9: Niños, Niñas, Adolescentes y Jóvenes Mejor Niñez | AC9: Pueblos Originarios | AD9: Migrantes
E10: Menos de 4 años | F10: 5 - 9 años | G10: 10 - 14 años | H10: 15 - 19 años | I10: 20 - 24 años | J10: 25 - 29 años | K10: 30 - 34 años | L10: 35 - 39 años | M10: 40 - 44 años | N10: 45 - 49 años | O10: 50 - 54 años | P10: 55 - 59 años | Q10: 60 - 64 años | R10: 65 - 69 años | S10: 70 - 74 años | T10: 75 - 79 años | U10: 80 y más años | V10: Hombres | W10: Mujeres
A11: 01010101 | B11: Pre-Concepcional | C11: Médico/a | D11: =IFERROR(VLOOKUP($A11,Filtro!$A$5:$AW$2673,2,FALSE),0) -> 6 | E11: =IFERROR(VLOOKUP($A11,Filtro!$A$5:$AW$2673,3,FALSE),0) -> 0 | F11: =IFERROR(VLOOKUP($A11,Filtro!$A$5:$AW$2673,4,FALSE),0) -> 0 | G11: =IFERROR(VLOOKUP($A11,Filtro!$A$5:$AW$2673,5,FALSE),0) -> 0 | H11: =IFERROR(VLOOKUP($A11,Filtro!$A$5:$AW$2673,6,FALSE),0) -> 0 | I11: =IFERROR(VLOOKUP($A11,Filtro!$A$5:$AW$2673,7,FALSE),0) -> 1 | J11: =IFERROR(VLOOKUP($A11,Filtro!$A$5:$AW$2673,8,FALSE),0) -> 2 | K11: =IFERROR(VLOOKUP($A11,Filtro!$A$5:$AW$2673,9,FALSE),0) -> 1 | L11: =IFERROR(VLOOKUP($A11,Filtro!$A$5:$AW$2673,10,FALSE),0) -> 1 | M11: =IFERROR(VLOOKUP($A11,Filtro!$A$5:$AW$2673,11,FALSE),0) -> 1 | N11: =IFERROR(VLOOKUP($A11,Filtro!$A$5:$AW$2673,12,FALSE),0) -> 0 | O11: =IFERROR(VLOOKUP($A11,Filtro!$A$5:$AW$2673,13,FALSE),0) -> 0 | P11: =IFERROR(VLOOKUP($A11,Filtro!$A$5:$AW$2673,14,FALSE),0) -> 0 | Q11: =IFERROR(VLOOKUP($A11,Filtro!$A$5:$AW$2673,15,FALSE),0) -> 0 | R11: =IFERROR(VLOOKUP($A11,Filtro!$A$5:$AW$2673,16,FALSE),0) -> 0 | S11: =IFERROR(VLOOKUP($A11,Filtro!$A$5:$AW$2673,17,FALSE),0) -> 0 | T11: =IFERROR(VLOOKUP($A11,Filtro!$A$5:$AW$2673,18,FALSE),0) -> 0 | U11: =IFERROR(VLOOKUP($A11,Filtro!$A$5:$AW$2673,19,FALSE),0) -> 0 | V11: =IFERROR(VLOOKUP($A11,Filtro!$A$5:$AW$2673,20,FALSE),0) -> 0 | W11: =IFERROR(VLOOKUP($A11,Filtro!$A$5:$AW$2673,21,FALSE),0) -> 6 | X11: =IFERROR(VLOOKUP($A11,Filtro!$A$5:$AW$2673,22,FALSE),0) -> 0 | Y11: =IFERROR(VLOOKUP($A11,Filtro!$A$5:$AW$2673,23,FALSE),0) -> 0 | Z11: =IFERROR(VLOOKUP($A11,Filtro!$A$5:$AW$2673,24,FALSE),0) -> 0 | AA11: =IFERROR(VLOOKUP($A11,Filtro!$A$5:$AW$2673,25,FALSE),0) -> 0 | AB11: =IFERROR(VLOOKUP($A11,Filtro!$A$5:$AW$2673,26,FALSE),0) -> 0 | AC11: =IFERROR(VLOOKUP($A11,Filtro!$A$5:$AW$2673,27,FALSE),0) -> 0 | AD11: =IFERROR(VLOOKUP($A11,Filtro!$A$5:$AW$2673,28,FALSE),0) -> 0 | AE11: =$CB11&CC11&CD11&CE11&CF11&CG11&CH11&CI11&CJ11 ->  | CB11: =IF((V11+W11)<>D11," * La variable Sexo no puede ser distinto al Total","") ->  | CE11: =IF(AND($D11<>0,Z11=""),"* No olvide ingresar la columna "&Z$9&""&" (Digite CERO si no tiene). ",IF(Z11>$D11,"* El Número de Espacios Amigables/ Adolescentes no puede superar el Total. ","")) ->  | CF11: =IF(AND($D11<>0,AA11=""),"* No olvide ingresar la columna "&AA$9&""&" (Digite CERO si no tiene). ",IF(AA11>$D11,"* El Número de Niños, Niñas, Adolescentes y Jóvenes SENAME no puede superar el Total. ","")) ->  | CG11: =IF(AND($D11<>0,AB11=""),"* No olvide ingresar la columna "&AB$9&""&" (Digite CERO si no tiene). ",IF(AB11>$D11,"* El Número de Niños, Niñas, Adolescentes y Jóvenes Mejor Niñez no puede superar el Total. ","")) ->  | CH11: =IF(AND($D11<>0,AC11=""),"* No olvide ingresar la columna "&AC$9&""&" (Digite CERO si no tiene). ",IF(AC11>$D11,"* El Número de Pueblos Originarios no puede superar el Total. ","")) ->  | CI11: =IF(AND($D11<>0,AD11=""),"* No olvide ingresar la columna "&AD$9&""&" (Digite CERO si no tiene). ",IF(AD11>$D11,"* El Número de Migrantes no puede superar el Total. ","")) ->  | CL11: =IF((V11+W11)<>D11,1,0) -> 0 | CO11: =IF(AND($D11<>0,Z11=""),1,0) -> 0 | CP11: 0 | CQ11: 0 | CR11: 0 | CS11: 0
A12: 01010103 | C12: Matrona/ón | D12: =IFERROR(VLOOKUP($A12,Filtro!$A$5:$AW$2673,2,FALSE),0) -> 1411 | E12: =IFERROR(VLOOKUP($A12,Filtro!$A$5:$AW$2673,3,FALSE),0) -> 0 | F12: =IFERROR(VLOOKUP($A12,Filtro!$A$5:$AW$2673,4,FALSE),0) -> 0 | G12: =IFERROR(VLOOKUP($A12,Filtro!$A$5:$AW$2673,5,FALSE),0) -> 1 | H12: =IFERROR(VLOOKUP($A12,Filtro!$A$5:$AW$2673,6,FALSE),0) -> 52 | I12: =IFERROR(VLOOKUP($A12,Filtro!$A$5:$AW$2673,7,FALSE),0) -> 236 | J12: =IFERROR(VLOOKUP($A12,Filtro!$A$5:$AW$2673,8,FALSE),0) -> 373 | K12: =IFERROR(VLOOKUP($A12,Filtro!$A$5:$AW$2673,9,FALSE),0) -> 384 | L12: =IFERROR(VLOOKUP($A12,Filtro!$A$5:$AW$2673,10,FALSE),0) -> 235 | M12: =IFERROR(VLOOKUP($A12,Filtro!$A$5:$AW$2673,11,FALSE),0) -> 101 | N12: =IFERROR(VLOOKUP($A12,Filtro!$A$5:$AW$2673,12,FALSE),0) -> 24 | O12: =IFERROR(VLOOKUP($A12,Filtro!$A$5:$AW$2673,13,FALSE),0) -> 4 | P12: =IFERROR(VLOOKUP($A12,Filtro!$A$5:$AW$2673,14,FALSE),0) -> 1 | Q12: =IFERROR(VLOOKUP($A12,Filtro!$A$5:$AW$2673,15,FALSE),0) -> 0 | R12: =IFERROR(VLOOKUP($A12,Filtro!$A$5:$AW$2673,16,FALSE),0) -> 0 | S12: =IFERROR(VLOOKUP($A12,Filtro!$A$5:$AW$2673,17,FALSE),0) -> 0 | T12: =IFERROR(VLOOKUP($A12,Filtro!$A$5:$AW$2673,18,FALSE),0) -> 0 | U12: =IFERROR(VLOOKUP($A12,Filtro!$A$5:$AW$2673,19,FALSE),0) -> 0 | V12: =IFERROR(VLOOKUP($A12,Filtro!$A$5:$AW$2673,20,FALSE),0) -> 15 | W12: =IFERROR(VLOOKUP($A12,Filtro!$A$5:$AW$2673,21,FALSE),0) -> 1396 | X12: =IFERROR(VLOOKUP($A12,Filtro!$A$5:$AW$2673,22,FALSE),0) -> 0 | Y12: =IFERROR(VLOOKUP($A12,Filtro!$A$5:$AW$2673,23,FALSE),0) -> 0 | Z12: =IFERROR(VLOOKUP($A12,Filtro!$A$5:$AW$2673,24,FALSE),0) -> 5 | AA12: =IFERROR(VLOOKUP($A12,Filtro!$A$5:$AW$2673,25,FALSE),0) -> 7 | AB12: =IFERROR(VLOOKUP($A12,Filtro!$A$5:$AW$2673,26,FALSE),0) -> 0 | AC12: =IFERROR(VLOOKUP($A12,Filtro!$A$5:$AW$2673,27,FALSE),0) -> 17 | AD12: =IFERROR(VLOOKUP($A12,Filtro!$A$5:$AW$2673,28,FALSE),0) -> 76 | CE12: =IF(AND($D12<>0,Z12=""),"* No olvide ingresar la columna "&Z$9&""&" (Digite CERO si no tiene). ",IF(Z12>$D12,"* El Número de Espacios Amigables/ Adolescentes no puede superar el Total. ","")) ->  | CL12: 0 | CO12: 0 | CP12: 0 | CQ12: 0 | CR12: 0 | CS12: 0
A13: 01010201 | B13: Prenatal | C13: Médico/a | D13: =IFERROR(VLOOKUP($A13,Filtro!$A$5:$AW$2673,2,FALSE),0) -> 193 | E13: =IFERROR(VLOOKUP($A13,Filtro!$A$5:$AW$2673,3,FALSE),0) -> 0 | F13: =IFERROR(VLOOKUP($A13,Filtro!$A$5:$AW$2673,4,FALSE),0) -> 0 | G13: =IFERROR(VLOOKUP($A13,Filtro!$A$5:$AW$2673,5,FALSE),0) -> 0 | H13: =IFERROR(VLOOKUP($A13,Filtro!$A$5:$AW$2673,6,FALSE),0) -> 16 | I13: =IFERROR(VLOOKUP($A13,Filtro!$A$5:$AW$2673,7,FALSE),0) -> 35 | J13: =IFERROR(VLOOKUP($A13,Filtro!$A$5:$AW$2673,8,FALSE),0) -> 49 | K13: =IFERROR(VLOOKUP($A13,Filtro!$A$5:$AW$2673,9,FALSE),0) -> 59 | L13: =IFERROR(VLOOKUP($A13,Filtro!$A$5:$AW$2673,10,FALSE),0) -> 26 | M13: =IFERROR(VLOOKUP($A13,Filtro!$A$5:$AW$2673,11,FALSE),0) -> 8 | N13: =IFERROR(VLOOKUP($A13,Filtro!$A$5:$AW$2673,12,FALSE),0) -> 0 | O13: =IFERROR(VLOOKUP($A13,Filtro!$A$5:$AW$2673,13,FALSE),0) -> 0 | P13: =IFERROR(VLOOKUP($A13,Filtro!$A$5:$AW$2673,14,FALSE),0) -> 0 | Q13: =IFERROR(VLOOKUP($A13,Filtro!$A$5:$AW$2673,15,FALSE),0) -> 0 | R13: =IFERROR(VLOOKUP($A13,Filtro!$A$5:$AW$2673,16,FALSE),0) -> 0 | S13: =IFERROR(VLOOKUP($A13,Filtro!$A$5:$AW$2673,17,FALSE),0) -> 0 | T13: =IFERROR(VLOOKUP($A13,Filtro!$A$5:$AW$2673,18,FALSE),0) -> 0 | U13: =IFERROR(VLOOKUP($A13,Filtro!$A$5:$AW$2673,19,FALSE),0) -> 0 | V13: =IFERROR(VLOOKUP($A13,Filtro!$A$5:$AW$2673,20,FALSE),0) -> 0 | W13: =IFERROR(VLOOKUP($A13,Filtro!$A$5:$AW$2673,21,FALSE),0) -> 193 | X13: =IFERROR(VLOOKUP($A13,Filtro!$A$5:$AW$2673,22,FALSE),0) -> 7 | Y13: =IFERROR(VLOOKUP($A13,Filtro!$A$5:$AW$2673,23,FALSE),0) -> 0 | Z13: =IFERROR(VLOOKUP($A13,Filtro!$A$5:$AW$2673,24,FALSE),0) -> 0 | AA13: =IFERROR(VLOOKUP($A13,Filtro!$A$5:$AW$2673,25,FALSE),0) -> 0 | AB13: =IFERROR(VLOOKUP($A13,Filtro!$A$5:$AW$2673,26,FALSE),0) -> 0 | AC13: =IFERROR(VLOOKUP($A13,Filtro!$A$5:$AW$2673,27,FALSE),0) -> 0 | AD13: =IFERROR(VLOOKUP($A13,Filtro!$A$5:$AW$2673,28,FALSE),0) -> 0 | CC13: =IF(AND($D13<>0,X13=""),"* No olvide ingresar la columna "&X$9&""&" (Digite CERO si no tiene). ",IF(X13>$D13,"* El Número de Control con pareja, familiar u otro no puede superar el Total. ","")) ->  | CL13: 0 | CM13: =IF(AND($D13<>0,X13=""),1,0) -> 0 | CP13: =IF(AND($D13<>0,AA13=""),1,0) -> 0 | CQ13: =IF(AND($D13<>0,AB13=""),1,0) -> 0 | CR13: =IF(AND($D13<>0,AC13=""),1,0) -> 0 | CS13: =IF(AND($D13<>0,AD13=""),1,0) -> 0
A14: 01010203 | C14: Matrona/ón | D14: =IFERROR(VLOOKUP($A14,Filtro!$A$5:$AW$2673,2,FALSE),0) -> 37792 | E14: =IFERROR(VLOOKUP($A14,Filtro!$A$5:$AW$2673,3,FALSE),0) -> 0 | F14: =IFERROR(VLOOKUP($A14,Filtro!$A$5:$AW$2673,4,FALSE),0) -> 0 | G14: =IFERROR(VLOOKUP($A14,Filtro!$A$5:$AW$2673,5,FALSE),0) -> 80 | H14: =IFERROR(VLOOKUP($A14,Filtro!$A$5:$AW$2673,6,FALSE),0) -> 2127 | I14: =IFERROR(VLOOKUP($A14,Filtro!$A$5:$AW$2673,7,FALSE),0) -> 8031 | J14: =IFERROR(VLOOKUP($A14,Filtro!$A$5:$AW$2673,8,FALSE),0) -> 10822 | K14: =IFERROR(VLOOKUP($A14,Filtro!$A$5:$AW$2673,9,FALSE),0) -> 10010 | L14: =IFERROR(VLOOKUP($A14,Filtro!$A$5:$AW$2673,10,FALSE),0) -> 5428 | M14: =IFERROR(VLOOKUP($A14,Filtro!$A$5:$AW$2673,11,FALSE),0) -> 1205 | N14: =IFERROR(VLOOKUP($A14,Filtro!$A$5:$AW$2673,12,FALSE),0) -> 78 | O14: =IFERROR(VLOOKUP($A14,Filtro!$A$5:$AW$2673,13,FALSE),0) -> 3 | P14: =IFERROR(VLOOKUP($A14,Filtro!$A$5:$AW$2673,14,FALSE),0) -> 8 | Q14: =IFERROR(VLOOKUP($A14,Filtro!$A$5:$AW$2673,15,FALSE),0) -> 0 | R14: =IFERROR(VLOOKUP($A14,Filtro!$A$5:$AW$2673,16,FALSE),0) -> 0 | S14: =IFERROR(VLOOKUP($A14,Filtro!$A$5:$AW$2673,17,FALSE),0) -> 0 | T14: =IFERROR(VLOOKUP($A14,Filtro!$A$5:$AW$2673,18,FALSE),0) -> 0 | U14: =IFERROR(VLOOKUP($A14,Filtro!$A$5:$AW$2673,19,FALSE),0) -> 0 | V14: =IFERROR(VLOOKUP($A14,Filtro!$A$5:$AW$2673,20,FALSE),0) -> 0 | W14: =IFERROR(VLOOKUP($A14,Filtro!$A$5:$AW$2673,21,FALSE),0) -> 37792 | X14: =IFERROR(VLOOKUP($A14,Filtro!$A$5:$AW$2673,22,FALSE),0) -> 11660 | Y14: =IFERROR(VLOOKUP($A14,Filtro!$A$5:$AW$2673,23,FALSE),0) -> 0 | Z14: =IFERROR(VLOOKUP($A14,Filtro!$A$5:$AW$2673,24,FALSE),0) -> 0 | AA14: =IFERROR(VLOOKUP($A14,Filtro!$A$5:$AW$2673,25,FALSE),0) -> 239 | AB14: =IFERROR(VLOOKUP($A14,Filtro!$A$5:$AW$2673,26,FALSE),0) -> 56 | AC14: =IFERROR(VLOOKUP($A14,Filtro!$A$5:$AW$2673,27,FALSE),0) -> 823 | AD14: =IFERROR(VLOOKUP($A14,Filtro!$A$5:$AW$2673,28,FALSE),0) -> 3618 | CC14: =IF(AND($D14<>0,X14=""),"* No olvide ingresar la columna "&X$9&""&" (Digite CERO si no tiene). ",IF(X14>$D14,"* El Número de Control con pareja, familiar u otro no puede superar el Total. ","")) ->  | CL14: 0 | CM14: =IF(AND($D14<>0,X14=""),1,0) -> 0 | CP14: 0 | CQ14: 0 | CR14: 0 | CS14: 0
A15: 01501050 | B15: Post Parto | C15: Médico/a | D15: =IFERROR(VLOOKUP($A15,Filtro!$A$5:$AW$2673,2,FALSE),0) -> 2 | E15: =IFERROR(VLOOKUP($A15,Filtro!$A$5:$AW$2673,3,FALSE),0) -> 0 | F15: =IFERROR(VLOOKUP($A15,Filtro!$A$5:$AW$2673,4,FALSE),0) -> 0 | G15: =IFERROR(VLOOKUP($A15,Filtro!$A$5:$AW$2673,5,FALSE),0) -> 0 | H15: =IFERROR(VLOOKUP($A15,Filtro!$A$5:$AW$2673,6,FALSE),0) -> 0 | I15: =IFERROR(VLOOKUP($A15,Filtro!$A$5:$AW$2673,7,FALSE),0) -> 0 | J15: =IFERROR(VLOOKUP($A15,Filtro!$A$5:$AW$2673,8,FALSE),0) -> 1 | K15: =IFERROR(VLOOKUP($A15,Filtro!$A$5:$AW$2673,9,FALSE),0) -> 1 | L15: =IFERROR(VLOOKUP($A15,Filtro!$A$5:$AW$2673,10,FALSE),0) -> 0 | M15: =IFERROR(VLOOKUP($A15,Filtro!$A$5:$AW$2673,11,FALSE),0) -> 0 | N15: =IFERROR(VLOOKUP($A15,Filtro!$A$5:$AW$2673,12,FALSE),0) -> 0 | O15: =IFERROR(VLOOKUP($A15,Filtro!$A$5:$AW$2673,13,FALSE),0) -> 0 | P15: =IFERROR(VLOOKUP($A15,Filtro!$A$5:$AW$2673,14,FALSE),0) -> 0 | Q15: =IFERROR(VLOOKUP($A15,Filtro!$A$5:$AW$2673,15,FALSE),0) -> 0 | R15: =IFERROR(VLOOKUP($A15,Filtro!$A$5:$AW$2673,16,FALSE),0) -> 0 | S15: =IFERROR(VLOOKUP($A15,Filtro!$A$5:$AW$2673,17,FALSE),0) -> 0 | T15: =IFERROR(VLOOKUP($A15,Filtro!$A$5:$AW$2673,18,FALSE),0) -> 0 | U15: =IFERROR(VLOOKUP($A15,Filtro!$A$5:$AW$2673,19,FALSE),0) -> 0 | V15: =IFERROR(VLOOKUP($A15,Filtro!$A$5:$AW$2673,20,FALSE),0) -> 0 | W15: =IFERROR(VLOOKUP($A15,Filtro!$A$5:$AW$2673,21,FALSE),0) -> 2 | X15: =IFERROR(VLOOKUP($A15,Filtro!$A$5:$AW$2673,22,FALSE),0) -> 0 | Y15: =IFERROR(VLOOKUP($A15,Filtro!$A$5:$AW$2673,23,FALSE),0) -> 0 | Z15: =IFERROR(VLOOKUP($A15,Filtro!$A$5:$AW$2673,24,FALSE),0) -> 0 | AA15: =IFERROR(VLOOKUP($A15,Filtro!$A$5:$AW$2673,25,FALSE),0) -> 0 | AB15: =IFERROR(VLOOKUP($A15,Filtro!$A$5:$AW$2673,26,FALSE),0) -> 0 | AC15: =IFERROR(VLOOKUP($A15,Filtro!$A$5:$AW$2673,27,FALSE),0) -> 0 | AD15: =IFERROR(VLOOKUP($A15,Filtro!$A$5:$AW$2673,28,FALSE),0) -> 0 | CL15: 0 | CP15: 0 | CQ15: 0 | CR15: 0 | CS15: 0
A16: 01501060 | C16: Matrona/ón | D16: =IFERROR(VLOOKUP($A16,Filtro!$A$5:$AW$2673,2,FALSE),0) -> 485 | E16: =IFERROR(VLOOKUP($A16,Filtro!$A$5:$AW$2673,3,FALSE),0) -> 0 | F16: =IFERROR(VLOOKUP($A16,Filtro!$A$5:$AW$2673,4,FALSE),0) -> 0 | G16: =IFERROR(VLOOKUP($A16,Filtro!$A$5:$AW$2673,5,FALSE),0) -> 0 | H16: =IFERROR(VLOOKUP($A16,Filtro!$A$5:$AW$2673,6,FALSE),0) -> 20 | I16: =IFERROR(VLOOKUP($A16,Filtro!$A$5:$AW$2673,7,FALSE),0) -> 107 | J16: =IFERROR(VLOOKUP($A16,Filtro!$A$5:$AW$2673,8,FALSE),0) -> 137 | K16: =IFERROR(VLOOKUP($A16,Filtro!$A$5:$AW$2673,9,FALSE),0) -> 126 | L16: =IFERROR(VLOOKUP($A16,Filtro!$A$5:$AW$2673,10,FALSE),0) -> 77 | M16: =IFERROR(VLOOKUP($A16,Filtro!$A$5:$AW$2673,11,FALSE),0) -> 17 | N16: =IFERROR(VLOOKUP($A16,Filtro!$A$5:$AW$2673,12,FALSE),0) -> 1 | O16: =IFERROR(VLOOKUP($A16,Filtro!$A$5:$AW$2673,13,FALSE),0) -> 0 | P16: =IFERROR(VLOOKUP($A16,Filtro!$A$5:$AW$2673,14,FALSE),0) -> 0 | Q16: =IFERROR(VLOOKUP($A16,Filtro!$A$5:$AW$2673,15,FALSE),0) -> 0 | R16: =IFERROR(VLOOKUP($A16,Filtro!$A$5:$AW$2673,16,FALSE),0) -> 0 | S16: =IFERROR(VLOOKUP($A16,Filtro!$A$5:$AW$2673,17,FALSE),0) -> 0 | T16: =IFERROR(VLOOKUP($A16,Filtro!$A$5:$AW$2673,18,FALSE),0) -> 0 | U16: =IFERROR(VLOOKUP($A16,Filtro!$A$5:$AW$2673,19,FALSE),0) -> 0 | V16: =IFERROR(VLOOKUP($A16,Filtro!$A$5:$AW$2673,20,FALSE),0) -> 0 | W16: =IFERROR(VLOOKUP($A16,Filtro!$A$5:$AW$2673,21,FALSE),0) -> 485 | X16: =IFERROR(VLOOKUP($A16,Filtro!$A$5:$AW$2673,22,FALSE),0) -> 0 | Y16: =IFERROR(VLOOKUP($A16,Filtro!$A$5:$AW$2673,23,FALSE),0) -> 0 | Z16: =IFERROR(VLOOKUP($A16,Filtro!$A$5:$AW$2673,24,FALSE),0) -> 0 | AA16: =IFERROR(VLOOKUP($A16,Filtro!$A$5:$AW$2673,25,FALSE),0) -> 2 | AB16: =IFERROR(VLOOKUP($A16,Filtro!$A$5:$AW$2673,26,FALSE),0) -> 1 | AC16: =IFERROR(VLOOKUP($A16,Filtro!$A$5:$AW$2673,27,FALSE),0) -> 11 | AD16: =IFERROR(VLOOKUP($A16,Filtro!$A$5:$AW$2673,28,FALSE),0) -> 21 | CL16: 0 | CP16: 0 | CQ16: 0 | CR16: 0 | CS16: 0
A17: 01501070 | B17: Post Aborto | C17: Médico/a | D17: =IFERROR(VLOOKUP($A17,Filtro!$A$5:$AW$2673,2,FALSE),0) -> 8 | E17: =IFERROR(VLOOKUP($A17,Filtro!$A$5:$AW$2673,3,FALSE),0) -> 0 | F17: =IFERROR(VLOOKUP($A17,Filtro!$A$5:$AW$2673,4,FALSE),0) -> 0 | G17: =IFERROR(VLOOKUP($A17,Filtro!$A$5:$AW$2673,5,FALSE),0) -> 0 | H17: =IFERROR(VLOOKUP($A17,Filtro!$A$5:$AW$2673,6,FALSE),0) -> 0 | I17: =IFERROR(VLOOKUP($A17,Filtro!$A$5:$AW$2673,7,FALSE),0) -> 1 | J17: =IFERROR(VLOOKUP($A17,Filtro!$A$5:$AW$2673,8,FALSE),0) -> 3 | K17: =IFERROR(VLOOKUP($A17,Filtro!$A$5:$AW$2673,9,FALSE),0) -> 1 | L17: =IFERROR(VLOOKUP($A17,Filtro!$A$5:$AW$2673,10,FALSE),0) -> 2 | M17: =IFERROR(VLOOKUP($A17,Filtro!$A$5:$AW$2673,11,FALSE),0) -> 1 | N17: =IFERROR(VLOOKUP($A17,Filtro!$A$5:$AW$2673,12,FALSE),0) -> 0 | O17: =IFERROR(VLOOKUP($A17,Filtro!$A$5:$AW$2673,13,FALSE),0) -> 0 | P17: =IFERROR(VLOOKUP($A17,Filtro!$A$5:$AW$2673,14,FALSE),0) -> 0 | Q17: =IFERROR(VLOOKUP($A17,Filtro!$A$5:$AW$2673,15,FALSE),0) -> 0 | R17: =IFERROR(VLOOKUP($A17,Filtro!$A$5:$AW$2673,16,FALSE),0) -> 0 | S17: =IFERROR(VLOOKUP($A17,Filtro!$A$5:$AW$2673,17,FALSE),0) -> 0 | T17: =IFERROR(VLOOKUP($A17,Filtro!$A$5:$AW$2673,18,FALSE),0) -> 0 | U17: =IFERROR(VLOOKUP($A17,Filtro!$A$5:$AW$2673,19,FALSE),0) -> 0 | V17: =IFERROR(VLOOKUP($A17,Filtro!$A$5:$AW$2673,20,FALSE),0) -> 0 | W17: =IFERROR(VLOOKUP($A17,Filtro!$A$5:$AW$2673,21,FALSE),0) -> 8 | X17: =IFERROR(VLOOKUP($A17,Filtro!$A$5:$AW$2673,22,FALSE),0) -> 0 | Y17: =IFERROR(VLOOKUP($A17,Filtro!$A$5:$AW$2673,23,FALSE),0) -> 0 | Z17: =IFERROR(VLOOKUP($A17,Filtro!$A$5:$AW$2673,24,FALSE),0) -> 0 | AA17: =IFERROR(VLOOKUP($A17,Filtro!$A$5:$AW$2673,25,FALSE),0) -> 0 | AB17: =IFERROR(VLOOKUP($A17,Filtro!$A$5:$AW$2673,26,FALSE),0) -> 0 | AC17: =IFERROR(VLOOKUP($A17,Filtro!$A$5:$AW$2673,27,FALSE),0) -> 0 | AD17: =IFERROR(VLOOKUP($A17,Filtro!$A$5:$AW$2673,28,FALSE),0) -> 0 | CL17: 0 | CP17: 0 | CQ17: 0 | CR17: 0 | CS17: 0
A18: 01501080 | C18: Matrona/ón | D18: =IFERROR(VLOOKUP($A18,Filtro!$A$5:$AW$2673,2,FALSE),0) -> 203 | E18: =IFERROR(VLOOKUP($A18,Filtro!$A$5:$AW$2673,3,FALSE),0) -> 0 | F18: =IFERROR(VLOOKUP($A18,Filtro!$A$5:$AW$2673,4,FALSE),0) -> 0 | G18: =IFERROR(VLOOKUP($A18,Filtro!$A$5:$AW$2673,5,FALSE),0) -> 0 | H18: =IFERROR(VLOOKUP($A18,Filtro!$A$5:$AW$2673,6,FALSE),0) -> 8 | I18: =IFERROR(VLOOKUP($A18,Filtro!$A$5:$AW$2673,7,FALSE),0) -> 37 | J18: =IFERROR(VLOOKUP($A18,Filtro!$A$5:$AW$2673,8,FALSE),0) -> 48 | K18: =IFERROR(VLOOKUP($A18,Filtro!$A$5:$AW$2673,9,FALSE),0) -> 47 | L18: =IFERROR(VLOOKUP($A18,Filtro!$A$5:$AW$2673,10,FALSE),0) -> 38 | M18: =IFERROR(VLOOKUP($A18,Filtro!$A$5:$AW$2673,11,FALSE),0) -> 21 | N18: =IFERROR(VLOOKUP($A18,Filtro!$A$5:$AW$2673,12,FALSE),0) -> 4 | O18: =IFERROR(VLOOKUP($A18,Filtro!$A$5:$AW$2673,13,FALSE),0) -> 0 | P18: =IFERROR(VLOOKUP($A18,Filtro!$A$5:$AW$2673,14,FALSE),0) -> 0 | Q18: =IFERROR(VLOOKUP($A18,Filtro!$A$5:$AW$2673,15,FALSE),0) -> 0 | R18: =IFERROR(VLOOKUP($A18,Filtro!$A$5:$AW$2673,16,FALSE),0) -> 0 | S18: =IFERROR(VLOOKUP($A18,Filtro!$A$5:$AW$2673,17,FALSE),0) -> 0 | T18: =IFERROR(VLOOKUP($A18,Filtro!$A$5:$AW$2673,18,FALSE),0) -> 0 | U18: =IFERROR(VLOOKUP($A18,Filtro!$A$5:$AW$2673,19,FALSE),0) -> 0 | V18: =IFERROR(VLOOKUP($A18,Filtro!$A$5:$AW$2673,20,FALSE),0) -> 0 | W18: =IFERROR(VLOOKUP($A18,Filtro!$A$5:$AW$2673,21,FALSE),0) -> 203 | X18: =IFERROR(VLOOKUP($A18,Filtro!$A$5:$AW$2673,22,FALSE),0) -> 0 | Y18: =IFERROR(VLOOKUP($A18,Filtro!$A$5:$AW$2673,23,FALSE),0) -> 0 | Z18: =IFERROR(VLOOKUP($A18,Filtro!$A$5:$AW$2673,24,FALSE),0) -> 0 | AA18: =IFERROR(VLOOKUP($A18,Filtro!$A$5:$AW$2673,25,FALSE),0) -> 0 | AB18: =IFERROR(VLOOKUP($A18,Filtro!$A$5:$AW$2673,26,FALSE),0) -> 0 | AC18: =IFERROR(VLOOKUP($A18,Filtro!$A$5:$AW$2673,27,FALSE),0) -> 1 | AD18: =IFERROR(VLOOKUP($A18,Filtro!$A$5:$AW$2673,28,FALSE),0) -> 8 | CL18: 0 | CP18: 0 | CQ18: 0 | CR18: 0 | CS18: 0
A19: 01110106 | B19: Puérpera con recién nacido hasta 10 días de vida | C19: Médico/a | D19: =IFERROR(VLOOKUP($A19,Filtro!$A$5:$AW$2673,2,FALSE),0) -> 6 | E19: =IFERROR(VLOOKUP($A19,Filtro!$A$5:$AW$2673,3,FALSE),0) -> 0 | F19: =IFERROR(VLOOKUP($A19,Filtro!$A$5:$AW$2673,4,FALSE),0) -> 0 | G19: =IFERROR(VLOOKUP($A19,Filtro!$A$5:$AW$2673,5,FALSE),0) -> 0 | H19: =IFERROR(VLOOKUP($A19,Filtro!$A$5:$AW$2673,6,FALSE),0) -> 0 | I19: =IFERROR(VLOOKUP($A19,Filtro!$A$5:$AW$2673,7,FALSE),0) -> 0 | J19: =IFERROR(VLOOKUP($A19,Filtro!$A$5:$AW$2673,8,FALSE),0) -> 3 | K19: =IFERROR(VLOOKUP($A19,Filtro!$A$5:$AW$2673,9,FALSE),0) -> 1 | L19: =IFERROR(VLOOKUP($A19,Filtro!$A$5:$AW$2673,10,FALSE),0) -> 2 | M19: =IFERROR(VLOOKUP($A19,Filtro!$A$5:$AW$2673,11,FALSE),0) -> 0 | N19: =IFERROR(VLOOKUP($A19,Filtro!$A$5:$AW$2673,12,FALSE),0) -> 0 | O19: =IFERROR(VLOOKUP($A19,Filtro!$A$5:$AW$2673,13,FALSE),0) -> 0 | P19: =IFERROR(VLOOKUP($A19,Filtro!$A$5:$AW$2673,14,FALSE),0) -> 0 | Q19: =IFERROR(VLOOKUP($A19,Filtro!$A$5:$AW$2673,15,FALSE),0) -> 0 | R19: =IFERROR(VLOOKUP($A19,Filtro!$A$5:$AW$2673,16,FALSE),0) -> 0 | S19: =IFERROR(VLOOKUP($A19,Filtro!$A$5:$AW$2673,17,FALSE),0) -> 0 | T19: =IFERROR(VLOOKUP($A19,Filtro!$A$5:$AW$2673,18,FALSE),0) -> 0 | U19: =IFERROR(VLOOKUP($A19,Filtro!$A$5:$AW$2673,19,FALSE),0) -> 0 | V19: =IFERROR(VLOOKUP($A19,Filtro!$A$5:$AW$2673,20,FALSE),0) -> 0 | W19: =IFERROR(VLOOKUP($A19,Filtro!$A$5:$AW$2673,21,FALSE),0) -> 6 | X19: =IFERROR(VLOOKUP($A19,Filtro!$A$5:$AW$2673,22,FALSE),0) -> 3 | Y19: =IFERROR(VLOOKUP($A19,Filtro!$A$5:$AW$2673,23,FALSE),0) -> 5 | Z19: =IFERROR(VLOOKUP($A19,Filtro!$A$5:$AW$2673,24,FALSE),0) -> 0 | AA19: =IFERROR(VLOOKUP($A19,Filtro!$A$5:$AW$2673,25,FALSE),0) -> 0 | AB19: =IFERROR(VLOOKUP($A19,Filtro!$A$5:$AW$2673,26,FALSE),0) -> 0 | AC19: =IFERROR(VLOOKUP($A19,Filtro!$A$5:$AW$2673,27,FALSE),0) -> 0 | AD19: =IFERROR(VLOOKUP($A19,Filtro!$A$5:$AW$2673,28,FALSE),0) -> 0 | CC19: =IF(AND($D19<>0,X19=""),"* No olvide ingresar la columna "&X$9&""&" (Digite CERO si no tiene). ",IF(X19>$D19,"* El Número de Control con pareja, familiar u otro no puede superar el Total. ","")) ->  | CD19: =IF(AND($D19<>0,Y19=""),"* No olvide ingresar la columna "&Y$9&""&" (Digite CERO si no tiene). ",IF(Y19>$D19,"* El Número de Control de diada con presencia del padre no puede superar el Total. ","")) ->  | CL19: 0 | CM19: =IF(AND($D19<>0,X19=""),1,0) -> 0 | CN19: 0 | CP19: 0 | CQ19: 0 | CR19: 0 | CS19: 0
A20: 01110107 | C20: Matrona/ón | D20: =IFERROR(VLOOKUP($A20,Filtro!$A$5:$AW$2673,2,FALSE),0) -> 3405 | E20: =IFERROR(VLOOKUP($A20,Filtro!$A$5:$AW$2673,3,FALSE),0) -> 0 | F20: =IFERROR(VLOOKUP($A20,Filtro!$A$5:$AW$2673,4,FALSE),0) -> 0 | G20: =IFERROR(VLOOKUP($A20,Filtro!$A$5:$AW$2673,5,FALSE),0) -> 7 | H20: =IFERROR(VLOOKUP($A20,Filtro!$A$5:$AW$2673,6,FALSE),0) -> 147 | I20: =IFERROR(VLOOKUP($A20,Filtro!$A$5:$AW$2673,7,FALSE),0) -> 718 | J20: =IFERROR(VLOOKUP($A20,Filtro!$A$5:$AW$2673,8,FALSE),0) -> 972 | K20: =IFERROR(VLOOKUP($A20,Filtro!$A$5:$AW$2673,9,FALSE),0) -> 933 | L20: =IFERROR(VLOOKUP($A20,Filtro!$A$5:$AW$2673,10,FALSE),0) -> 505 | M20: =IFERROR(VLOOKUP($A20,Filtro!$A$5:$AW$2673,11,FALSE),0) -> 121 | N20: =IFERROR(VLOOKUP($A20,Filtro!$A$5:$AW$2673,12,FALSE),0) -> 2 | O20: =IFERROR(VLOOKUP($A20,Filtro!$A$5:$AW$2673,13,FALSE),0) -> 0 | P20: =IFERROR(VLOOKUP($A20,Filtro!$A$5:$AW$2673,14,FALSE),0) -> 0 | Q20: =IFERROR(VLOOKUP($A20,Filtro!$A$5:$AW$2673,15,FALSE),0) -> 0 | R20: =IFERROR(VLOOKUP($A20,Filtro!$A$5:$AW$2673,16,FALSE),0) -> 0 | S20: =IFERROR(VLOOKUP($A20,Filtro!$A$5:$AW$2673,17,FALSE),0) -> 0 | T20: =IFERROR(VLOOKUP($A20,Filtro!$A$5:$AW$2673,18,FALSE),0) -> 0 | U20: =IFERROR(VLOOKUP($A20,Filtro!$A$5:$AW$2673,19,FALSE),0) -> 0 | V20: =IFERROR(VLOOKUP($A20,Filtro!$A$5:$AW$2673,20,FALSE),0) -> 0 | W20: =IFERROR(VLOOKUP($A20,Filtro!$A$5:$AW$2673,21,FALSE),0) -> 3406 | X20: =IFERROR(VLOOKUP($A20,Filtro!$A$5:$AW$2673,22,FALSE),0) -> 922 | Y20: =IFERROR(VLOOKUP($A20,Filtro!$A$5:$AW$2673,23,FALSE),0) -> 1569 | Z20: =IFERROR(VLOOKUP($A20,Filtro!$A$5:$AW$2673,24,FALSE),0) -> 0 | AA20: =IFERROR(VLOOKUP($A20,Filtro!$A$5:$AW$2673,25,FALSE),0) -> 32 | AB20: =IFERROR(VLOOKUP($A20,Filtro!$A$5:$AW$2673,26,FALSE),0) -> 9 | AC20: =IFERROR(VLOOKUP($A20,Filtro!$A$5:$AW$2673,27,FALSE),0) -> 73 | AD20: =IFERROR(VLOOKUP($A20,Filtro!$A$5:$AW$2673,28,FALSE),0) -> 287 | AE20: * La variable Sexo no puede ser distinto al Total | CB20: * La variable Sexo no puede ser distinto al Total | CL20: 1 | CM20: 0 | CN20: 0 | CP20: 0 | CQ20: 0 | CR20: 0 | CS20: 0
A21: 01080030 | B21: Puérpera con recién nacido entre 11 y 28 días | C21: Médico/a | D21: =IFERROR(VLOOKUP($A21,Filtro!$A$5:$AW$2673,2,FALSE),0) -> 2 | E21: =IFERROR(VLOOKUP($A21,Filtro!$A$5:$AW$2673,3,FALSE),0) -> 0 | F21: =IFERROR(VLOOKUP($A21,Filtro!$A$5:$AW$2673,4,FALSE),0) -> 0 | G21: =IFERROR(VLOOKUP($A21,Filtro!$A$5:$AW$2673,5,FALSE),0) -> 0 | H21: =IFERROR(VLOOKUP($A21,Filtro!$A$5:$AW$2673,6,FALSE),0) -> 0 | I21: =IFERROR(VLOOKUP($A21,Filtro!$A$5:$AW$2673,7,FALSE),0) -> 0 | J21: =IFERROR(VLOOKUP($A21,Filtro!$A$5:$AW$2673,8,FALSE),0) -> 0 | K21: =IFERROR(VLOOKUP($A21,Filtro!$A$5:$AW$2673,9,FALSE),0) -> 2 | L21: =IFERROR(VLOOKUP($A21,Filtro!$A$5:$AW$2673,10,FALSE),0) -> 0 | M21: =IFERROR(VLOOKUP($A21,Filtro!$A$5:$AW$2673,11,FALSE),0) -> 0 | N21: =IFERROR(VLOOKUP($A21,Filtro!$A$5:$AW$2673,12,FALSE),0) -> 0 | O21: =IFERROR(VLOOKUP($A21,Filtro!$A$5:$AW$2673,13,FALSE),0) -> 0 | P21: =IFERROR(VLOOKUP($A21,Filtro!$A$5:$AW$2673,14,FALSE),0) -> 0 | Q21: =IFERROR(VLOOKUP($A21,Filtro!$A$5:$AW$2673,15,FALSE),0) -> 0 | R21: =IFERROR(VLOOKUP($A21,Filtro!$A$5:$AW$2673,16,FALSE),0) -> 0 | S21: =IFERROR(VLOOKUP($A21,Filtro!$A$5:$AW$2673,17,FALSE),0) -> 0 | T21: =IFERROR(VLOOKUP($A21,Filtro!$A$5:$AW$2673,18,FALSE),0) -> 0 | U21: =IFERROR(VLOOKUP($A21,Filtro!$A$5:$AW$2673,19,FALSE),0) -> 0 | V21: =IFERROR(VLOOKUP($A21,Filtro!$A$5:$AW$2673,20,FALSE),0) -> 0 | W21: =IFERROR(VLOOKUP($A21,Filtro!$A$5:$AW$2673,21,FALSE),0) -> 2 | X21: =IFERROR(VLOOKUP($A21,Filtro!$A$5:$AW$2673,22,FALSE),0) -> 0 | Y21: =IFERROR(VLOOKUP($A21,Filtro!$A$5:$AW$2673,23,FALSE),0) -> 0 | Z21: =IFERROR(VLOOKUP($A21,Filtro!$A$5:$AW$2673,24,FALSE),0) -> 0 | AA21: =IFERROR(VLOOKUP($A21,Filtro!$A$5:$AW$2673,25,FALSE),0) -> 0 | AB21: =IFERROR(VLOOKUP($A21,Filtro!$A$5:$AW$2673,26,FALSE),0) -> 0 | AC21: =IFERROR(VLOOKUP($A21,Filtro!$A$5:$AW$2673,27,FALSE),0) -> 0 | AD21: =IFERROR(VLOOKUP($A21,Filtro!$A$5:$AW$2673,28,FALSE),0) -> 1 | CL21: 0 | CM21: 0 | CN21: 0 | CP21: 0 | CQ21: 0 | CR21: 0 | CS21: 0
A22: 01080040 | C22: Matrona/ón | D22: =IFERROR(VLOOKUP($A22,Filtro!$A$5:$AW$2673,2,FALSE),0) -> 1541 | E22: =IFERROR(VLOOKUP($A22,Filtro!$A$5:$AW$2673,3,FALSE),0) -> 0 | F22: =IFERROR(VLOOKUP($A22,Filtro!$A$5:$AW$2673,4,FALSE),0) -> 0 | G22: =IFERROR(VLOOKUP($A22,Filtro!$A$5:$AW$2673,5,FALSE),0) -> 1 | H22: =IFERROR(VLOOKUP($A22,Filtro!$A$5:$AW$2673,6,FALSE),0) -> 69 | I22: =IFERROR(VLOOKUP($A22,Filtro!$A$5:$AW$2673,7,FALSE),0) -> 300 | J22: =IFERROR(VLOOKUP($A22,Filtro!$A$5:$AW$2673,8,FALSE),0) -> 445 | K22: =IFERROR(VLOOKUP($A22,Filtro!$A$5:$AW$2673,9,FALSE),0) -> 410 | L22: =IFERROR(VLOOKUP($A22,Filtro!$A$5:$AW$2673,10,FALSE),0) -> 234 | M22: =IFERROR(VLOOKUP($A22,Filtro!$A$5:$AW$2673,11,FALSE),0) -> 72 | N22: =IFERROR(VLOOKUP($A22,Filtro!$A$5:$AW$2673,12,FALSE),0) -> 10 | O22: =IFERROR(VLOOKUP($A22,Filtro!$A$5:$AW$2673,13,FALSE),0) -> 0 | P22: =IFERROR(VLOOKUP($A22,Filtro!$A$5:$AW$2673,14,FALSE),0) -> 0 | Q22: =IFERROR(VLOOKUP($A22,Filtro!$A$5:$AW$2673,15,FALSE),0) -> 0 | R22: =IFERROR(VLOOKUP($A22,Filtro!$A$5:$AW$2673,16,FALSE),0) -> 0 | S22: =IFERROR(VLOOKUP($A22,Filtro!$A$5:$AW$2673,17,FALSE),0) -> 0 | T22: =IFERROR(VLOOKUP($A22,Filtro!$A$5:$AW$2673,18,FALSE),0) -> 0 | U22: =IFERROR(VLOOKUP($A22,Filtro!$A$5:$AW$2673,19,FALSE),0) -> 0 | V22: =IFERROR(VLOOKUP($A22,Filtro!$A$5:$AW$2673,20,FALSE),0) -> 0 | W22: =IFERROR(VLOOKUP($A22,Filtro!$A$5:$AW$2673,21,FALSE),0) -> 1542 | X22: =IFERROR(VLOOKUP($A22,Filtro!$A$5:$AW$2673,22,FALSE),0) -> 333 | Y22: =IFERROR(VLOOKUP($A22,Filtro!$A$5:$AW$2673,23,FALSE),0) -> 615 | Z22: =IFERROR(VLOOKUP($A22,Filtro!$A$5:$AW$2673,24,FALSE),0) -> 0 | AA22: =IFERROR(VLOOKUP($A22,Filtro!$A$5:$AW$2673,25,FALSE),0) -> 11 | AB22: =IFERROR(VLOOKUP($A22,Filtro!$A$5:$AW$2673,26,FALSE),0) -> 1 | AC22: =IFERROR(VLOOKUP($A22,Filtro!$A$5:$AW$2673,27,FALSE),0) -> 33 | AD22: =IFERROR(VLOOKUP($A22,Filtro!$A$5:$AW$2673,28,FALSE),0) -> 124 | AE22: * La variable Sexo no puede ser distinto al Total | CB22: * La variable Sexo no puede ser distinto al Total | CL22: 1 | CM22: 0 | CN22: 0 | CP22: 0 | CQ22: 0 | CR22: 0 | CS22: 0
A23: 01501090 | B23: Recién nacido hasta 10 días de vida | C23: Médico/a | D23: =IFERROR(VLOOKUP($A23,Filtro!$A$5:$AW$2673,2,FALSE),0) -> 5 | E23: =IFERROR(VLOOKUP($A23,Filtro!$A$5:$AW$2673,3,FALSE),0) -> 5 | F23: =IFERROR(VLOOKUP($A23,Filtro!$A$5:$AW$2673,4,FALSE),0) -> 0 | G23: =IFERROR(VLOOKUP($A23,Filtro!$A$5:$AW$2673,5,FALSE),0) -> 0 | H23: =IFERROR(VLOOKUP($A23,Filtro!$A$5:$AW$2673,6,FALSE),0) -> 0 | I23: =IFERROR(VLOOKUP($A23,Filtro!$A$5:$AW$2673,7,FALSE),0) -> 0 | J23: =IFERROR(VLOOKUP($A23,Filtro!$A$5:$AW$2673,8,FALSE),0) -> 0 | K23: =IFERROR(VLOOKUP($A23,Filtro!$A$5:$AW$2673,9,FALSE),0) -> 0 | L23: =IFERROR(VLOOKUP($A23,Filtro!$A$5:$AW$2673,10,FALSE),0) -> 0 | M23: =IFERROR(VLOOKUP($A23,Filtro!$A$5:$AW$2673,11,FALSE),0) -> 0 | N23: =IFERROR(VLOOKUP($A23,Filtro!$A$5:$AW$2673,12,FALSE),0) -> 0 | O23: =IFERROR(VLOOKUP($A23,Filtro!$A$5:$AW$2673,13,FALSE),0) -> 0 | P23: =IFERROR(VLOOKUP($A23,Filtro!$A$5:$AW$2673,14,FALSE),0) -> 0 | Q23: =IFERROR(VLOOKUP($A23,Filtro!$A$5:$AW$2673,15,FALSE),0) -> 0 | R23: =IFERROR(VLOOKUP($A23,Filtro!$A$5:$AW$2673,16,FALSE),0) -> 0 | S23: =IFERROR(VLOOKUP($A23,Filtro!$A$5:$AW$2673,17,FALSE),0) -> 0 | T23: =IFERROR(VLOOKUP($A23,Filtro!$A$5:$AW$2673,18,FALSE),0) -> 0 | U23: =IFERROR(VLOOKUP($A23,Filtro!$A$5:$AW$2673,19,FALSE),0) -> 0 | V23: =IFERROR(VLOOKUP($A23,Filtro!$A$5:$AW$2673,20,FALSE),0) -> 1 | W23: =IFERROR(VLOOKUP($A23,Filtro!$A$5:$AW$2673,21,FALSE),0) -> 4 | X23: =IFERROR(VLOOKUP($A23,Filtro!$A$5:$AW$2673,22,FALSE),0) -> 0 | Y23: =IFERROR(VLOOKUP($A23,Filtro!$A$5:$AW$2673,23,FALSE),0) -> 1 | Z23: =IFERROR(VLOOKUP($A23,Filtro!$A$5:$AW$2673,24,FALSE),0) -> 0 | AA23: =IFERROR(VLOOKUP($A23,Filtro!$A$5:$AW$2673,25,FALSE),0) -> 0 | AB23: =IFERROR(VLOOKUP($A23,Filtro!$A$5:$AW$2673,26,FALSE),0) -> 0 | AC23: =IFERROR(VLOOKUP($A23,Filtro!$A$5:$AW$2673,27,FALSE),0) -> 0 | AD23: =IFERROR(VLOOKUP($A23,Filtro!$A$5:$AW$2673,28,FALSE),0) -> 0 | CE23: =IF(AND($D23<>0,Z23=""),"* No olvide ingresar la columna "&Z$9&""&" (Digite CERO si no tiene). ",IF(Z23>$D23,"* El Número de Espacios Amigables/ Adolescentes no puede superar el Total. ","")) ->  | CL23: 0 | CM23: 0 | CN23: 0 | CO23: =IF(AND($D23<>0,Z23=""),1,0) -> 0 | CP23: 0 | CQ23: 0 | CR23: 0 | CS23: 0
A24: 01502000 | C24: Matrona/ón | D24: =IFERROR(VLOOKUP($A24,Filtro!$A$5:$AW$2673,2,FALSE),0) -> 866 | E24: =IFERROR(VLOOKUP($A24,Filtro!$A$5:$AW$2673,3,FALSE),0) -> 866 | F24: =IFERROR(VLOOKUP($A24,Filtro!$A$5:$AW$2673,4,FALSE),0) -> 0 | G24: =IFERROR(VLOOKUP($A24,Filtro!$A$5:$AW$2673,5,FALSE),0) -> 0 | H24: =IFERROR(VLOOKUP($A24,Filtro!$A$5:$AW$2673,6,FALSE),0) -> 0 | I24: =IFERROR(VLOOKUP($A24,Filtro!$A$5:$AW$2673,7,FALSE),0) -> 0 | J24: =IFERROR(VLOOKUP($A24,Filtro!$A$5:$AW$2673,8,FALSE),0) -> 0 | K24: =IFERROR(VLOOKUP($A24,Filtro!$A$5:$AW$2673,9,FALSE),0) -> 0 | L24: =IFERROR(VLOOKUP($A24,Filtro!$A$5:$AW$2673,10,FALSE),0) -> 0 | M24: =IFERROR(VLOOKUP($A24,Filtro!$A$5:$AW$2673,11,FALSE),0) -> 0 | N24: =IFERROR(VLOOKUP($A24,Filtro!$A$5:$AW$2673,12,FALSE),0) -> 0 | O24: =IFERROR(VLOOKUP($A24,Filtro!$A$5:$AW$2673,13,FALSE),0) -> 0 | P24: =IFERROR(VLOOKUP($A24,Filtro!$A$5:$AW$2673,14,FALSE),0) -> 0 | Q24: =IFERROR(VLOOKUP($A24,Filtro!$A$5:$AW$2673,15,FALSE),0) -> 0 | R24: =IFERROR(VLOOKUP($A24,Filtro!$A$5:$AW$2673,16,FALSE),0) -> 0 | S24: =IFERROR(VLOOKUP($A24,Filtro!$A$5:$AW$2673,17,FALSE),0) -> 0 | T24: =IFERROR(VLOOKUP($A24,Filtro!$A$5:$AW$2673,18,FALSE),0) -> 0 | U24: =IFERROR(VLOOKUP($A24,Filtro!$A$5:$AW$2673,19,FALSE),0) -> 0 | V24: =IFERROR(VLOOKUP($A24,Filtro!$A$5:$AW$2673,20,FALSE),0) -> 379 | W24: =IFERROR(VLOOKUP($A24,Filtro!$A$5:$AW$2673,21,FALSE),0) -> 487 | X24: =IFERROR(VLOOKUP($A24,Filtro!$A$5:$AW$2673,22,FALSE),0) -> 298 | Y24: =IFERROR(VLOOKUP($A24,Filtro!$A$5:$AW$2673,23,FALSE),0) -> 412 | Z24: =IFERROR(VLOOKUP($A24,Filtro!$A$5:$AW$2673,24,FALSE),0) -> 0 | AA24: =IFERROR(VLOOKUP($A24,Filtro!$A$5:$AW$2673,25,FALSE),0) -> 0 | AB24: =IFERROR(VLOOKUP($A24,Filtro!$A$5:$AW$2673,26,FALSE),0) -> 0 | AC24: =IFERROR(VLOOKUP($A24,Filtro!$A$5:$AW$2673,27,FALSE),0) -> 6 | AD24: =IFERROR(VLOOKUP($A24,Filtro!$A$5:$AW$2673,28,FALSE),0) -> 7 | CL24: 0 | CM24: 0 | CN24: 0 | CO24: 0 | CP24: 0 | CQ24: 0 | CR24: 0 | CS24: 0
A25: 01502010 | B25: Recién nacido entre 11 y 28 días | C25: Médico/a | D25: =IFERROR(VLOOKUP($A25,Filtro!$A$5:$AW$2673,2,FALSE),0) -> 1 | E25: =IFERROR(VLOOKUP($A25,Filtro!$A$5:$AW$2673,3,FALSE),0) -> 1 | F25: =IFERROR(VLOOKUP($A25,Filtro!$A$5:$AW$2673,4,FALSE),0) -> 0 | G25: =IFERROR(VLOOKUP($A25,Filtro!$A$5:$AW$2673,5,FALSE),0) -> 0 | H25: =IFERROR(VLOOKUP($A25,Filtro!$A$5:$AW$2673,6,FALSE),0) -> 0 | I25: =IFERROR(VLOOKUP($A25,Filtro!$A$5:$AW$2673,7,FALSE),0) -> 0 | J25: =IFERROR(VLOOKUP($A25,Filtro!$A$5:$AW$2673,8,FALSE),0) -> 0 | K25: =IFERROR(VLOOKUP($A25,Filtro!$A$5:$AW$2673,9,FALSE),0) -> 0 | L25: =IFERROR(VLOOKUP($A25,Filtro!$A$5:$AW$2673,10,FALSE),0) -> 0 | M25: =IFERROR(VLOOKUP($A25,Filtro!$A$5:$AW$2673,11,FALSE),0) -> 0 | N25: =IFERROR(VLOOKUP($A25,Filtro!$A$5:$AW$2673,12,FALSE),0) -> 0 | O25: =IFERROR(VLOOKUP($A25,Filtro!$A$5:$AW$2673,13,FALSE),0) -> 0 | P25: =IFERROR(VLOOKUP($A25,Filtro!$A$5:$AW$2673,14,FALSE),0) -> 0 | Q25: =IFERROR(VLOOKUP($A25,Filtro!$A$5:$AW$2673,15,FALSE),0) -> 0 | R25: =IFERROR(VLOOKUP($A25,Filtro!$A$5:$AW$2673,16,FALSE),0) -> 0 | S25: =IFERROR(VLOOKUP($A25,Filtro!$A$5:$AW$2673,17,FALSE),0) -> 0 | T25: =IFERROR(VLOOKUP($A25,Filtro!$A$5:$AW$2673,18,FALSE),0) -> 0 | U25: =IFERROR(VLOOKUP($A25,Filtro!$A$5:$AW$2673,19,FALSE),0) -> 0 | V25: =IFERROR(VLOOKUP($A25,Filtro!$A$5:$AW$2673,20,FALSE),0) -> 1 | W25: =IFERROR(VLOOKUP($A25,Filtro!$A$5:$AW$2673,21,FALSE),0) -> 0 | X25: =IFERROR(VLOOKUP($A25,Filtro!$A$5:$AW$2673,22,FALSE),0) -> 0 | Y25: =IFERROR(VLOOKUP($A25,Filtro!$A$5:$AW$2673,23,FALSE),0) -> 1 | Z25: =IFERROR(VLOOKUP($A25,Filtro!$A$5:$AW$2673,24,FALSE),0) -> 0 | AA25: =IFERROR(VLOOKUP($A25,Filtro!$A$5:$AW$2673,25,FALSE),0) -> 0 | AB25: =IFERROR(VLOOKUP($A25,Filtro!$A$5:$AW$2673,26,FALSE),0) -> 0 | AC25: =IFERROR(VLOOKUP($A25,Filtro!$A$5:$AW$2673,27,FALSE),0) -> 0 | AD25: =IFERROR(VLOOKUP($A25,Filtro!$A$5:$AW$2673,28,FALSE),0) -> 0 | CL25: 0 | CM25: 0 | CN25: 0 | CO25: 0 | CP25: 0 | CQ25: 0 | CR25: 0 | CS25: 0
A26: 01502020 | C26: Matrona/ón | D26: =IFERROR(VLOOKUP($A26,Filtro!$A$5:$AW$2673,2,FALSE),0) -> 359 | E26: =IFERROR(VLOOKUP($A26,Filtro!$A$5:$AW$2673,3,FALSE),0) -> 359 | F26: =IFERROR(VLOOKUP($A26,Filtro!$A$5:$AW$2673,4,FALSE),0) -> 0 | G26: =IFERROR(VLOOKUP($A26,Filtro!$A$5:$AW$2673,5,FALSE),0) -> 0 | H26: =IFERROR(VLOOKUP($A26,Filtro!$A$5:$AW$2673,6,FALSE),0) -> 0 | I26: =IFERROR(VLOOKUP($A26,Filtro!$A$5:$AW$2673,7,FALSE),0) -> 0 | J26: =IFERROR(VLOOKUP($A26,Filtro!$A$5:$AW$2673,8,FALSE),0) -> 0 | K26: =IFERROR(VLOOKUP($A26,Filtro!$A$5:$AW$2673,9,FALSE),0) -> 0 | L26: =IFERROR(VLOOKUP($A26,Filtro!$A$5:$AW$2673,10,FALSE),0) -> 0 | M26: =IFERROR(VLOOKUP($A26,Filtro!$A$5:$AW$2673,11,FALSE),0) -> 0 | N26: =IFERROR(VLOOKUP($A26,Filtro!$A$5:$AW$2673,12,FALSE),0) -> 0 | O26: =IFERROR(VLOOKUP($A26,Filtro!$A$5:$AW$2673,13,FALSE),0) -> 0 | P26: =IFERROR(VLOOKUP($A26,Filtro!$A$5:$AW$2673,14,FALSE),0) -> 0 | Q26: =IFERROR(VLOOKUP($A26,Filtro!$A$5:$AW$2673,15,FALSE),0) -> 0 | R26: =IFERROR(VLOOKUP($A26,Filtro!$A$5:$AW$2673,16,FALSE),0) -> 0 | S26: =IFERROR(VLOOKUP($A26,Filtro!$A$5:$AW$2673,17,FALSE),0) -> 0 | T26: =IFERROR(VLOOKUP($A26,Filtro!$A$5:$AW$2673,18,FALSE),0) -> 0 | U26: =IFERROR(VLOOKUP($A26,Filtro!$A$5:$AW$2673,19,FALSE),0) -> 0 | V26: =IFERROR(VLOOKUP($A26,Filtro!$A$5:$AW$2673,20,FALSE),0) -> 172 | W26: =IFERROR(VLOOKUP($A26,Filtro!$A$5:$AW$2673,21,FALSE),0) -> 188 | X26: =IFERROR(VLOOKUP($A26,Filtro!$A$5:$AW$2673,22,FALSE),0) -> 133 | Y26: =IFERROR(VLOOKUP($A26,Filtro!$A$5:$AW$2673,23,FALSE),0) -> 131 | Z26: =IFERROR(VLOOKUP($A26,Filtro!$A$5:$AW$2673,24,FALSE),0) -> 0 | AA26: =IFERROR(VLOOKUP($A26,Filtro!$A$5:$AW$2673,25,FALSE),0) -> 0 | AB26: =IFERROR(VLOOKUP($A26,Filtro!$A$5:$AW$2673,26,FALSE),0) -> 0 | AC26: =IFERROR(VLOOKUP($A26,Filtro!$A$5:$AW$2673,27,FALSE),0) -> 5 | AD26: =IFERROR(VLOOKUP($A26,Filtro!$A$5:$AW$2673,28,FALSE),0) -> 4 | AE26: * La variable Sexo no puede ser distinto al Total | CB26: * La variable Sexo no puede ser distinto al Total | CL26: 1 | CM26: 0 | CN26: 0 | CO26: 0 | CP26: 0 | CQ26: 0 | CR26: 0 | CS26: 0
A27: 01010601 | B27: Ginecológico | C27: Médico/a | D27: =IFERROR(VLOOKUP($A27,Filtro!$A$5:$AW$2673,2,FALSE),0) -> 1382 | E27: =IFERROR(VLOOKUP($A27,Filtro!$A$5:$AW$2673,3,FALSE),0) -> 0 | F27: =IFERROR(VLOOKUP($A27,Filtro!$A$5:$AW$2673,4,FALSE),0) -> 0 | G27: =IFERROR(VLOOKUP($A27,Filtro!$A$5:$AW$2673,5,FALSE),0) -> 23 | H27: =IFERROR(VLOOKUP($A27,Filtro!$A$5:$AW$2673,6,FALSE),0) -> 84 | I27: =IFERROR(VLOOKUP($A27,Filtro!$A$5:$AW$2673,7,FALSE),0) -> 71 | J27: =IFERROR(VLOOKUP($A27,Filtro!$A$5:$AW$2673,8,FALSE),0) -> 99 | K27: =IFERROR(VLOOKUP($A27,Filtro!$A$5:$AW$2673,9,FALSE),0) -> 150 | L27: =IFERROR(VLOOKUP($A27,Filtro!$A$5:$AW$2673,10,FALSE),0) -> 161 | M27: =IFERROR(VLOOKUP($A27,Filtro!$A$5:$AW$2673,11,FALSE),0) -> 184 | N27: =IFERROR(VLOOKUP($A27,Filtro!$A$5:$AW$2673,12,FALSE),0) -> 174 | O27: =IFERROR(VLOOKUP($A27,Filtro!$A$5:$AW$2673,13,FALSE),0) -> 151 | P27: =IFERROR(VLOOKUP($A27,Filtro!$A$5:$AW$2673,14,FALSE),0) -> 97 | Q27: =IFERROR(VLOOKUP($A27,Filtro!$A$5:$AW$2673,15,FALSE),0) -> 78 | R27: =IFERROR(VLOOKUP($A27,Filtro!$A$5:$AW$2673,16,FALSE),0) -> 43 | S27: =IFERROR(VLOOKUP($A27,Filtro!$A$5:$AW$2673,17,FALSE),0) -> 26 | T27: =IFERROR(VLOOKUP($A27,Filtro!$A$5:$AW$2673,18,FALSE),0) -> 24 | U27: =IFERROR(VLOOKUP($A27,Filtro!$A$5:$AW$2673,19,FALSE),0) -> 17 | V27: =IFERROR(VLOOKUP($A27,Filtro!$A$5:$AW$2673,20,FALSE),0) -> 0 | W27: =IFERROR(VLOOKUP($A27,Filtro!$A$5:$AW$2673,21,FALSE),0) -> 1382 | X27: =IFERROR(VLOOKUP($A27,Filtro!$A$5:$AW$2673,22,FALSE),0) -> 0 | Y27: =IFERROR(VLOOKUP($A27,Filtro!$A$5:$AW$2673,23,FALSE),0) -> 0 | Z27: =IFERROR(VLOOKUP($A27,Filtro!$A$5:$AW$2673,24,FALSE),0) -> 0 | AA27: =IFERROR(VLOOKUP($A27,Filtro!$A$5:$AW$2673,25,FALSE),0) -> 0 | AB27: =IFERROR(VLOOKUP($A27,Filtro!$A$5:$AW$2673,26,FALSE),0) -> 0 | AC27: =IFERROR(VLOOKUP($A27,Filtro!$A$5:$AW$2673,27,FALSE),0) -> 0 | AD27: =IFERROR(VLOOKUP($A27,Filtro!$A$5:$AW$2673,28,FALSE),0) -> 20 | CL27: 0 | CO27: 0 | CP27: 0 | CQ27: 0 | CR27: 0 | CS27: 0
A28: 01010603 | C28: Matrona/ón | D28: =IFERROR(VLOOKUP($A28,Filtro!$A$5:$AW$2673,2,FALSE),0) -> 47766 | E28: =IFERROR(VLOOKUP($A28,Filtro!$A$5:$AW$2673,3,FALSE),0) -> 0 | F28: =IFERROR(VLOOKUP($A28,Filtro!$A$5:$AW$2673,4,FALSE),0) -> 0 | G28: =IFERROR(VLOOKUP($A28,Filtro!$A$5:$AW$2673,5,FALSE),0) -> 293 | H28: =IFERROR(VLOOKUP($A28,Filtro!$A$5:$AW$2673,6,FALSE),0) -> 773 | I28: =IFERROR(VLOOKUP($A28,Filtro!$A$5:$AW$2673,7,FALSE),0) -> 1903 | J28: =IFERROR(VLOOKUP($A28,Filtro!$A$5:$AW$2673,8,FALSE),0) -> 3834 | K28: =IFERROR(VLOOKUP($A28,Filtro!$A$5:$AW$2673,9,FALSE),0) -> 4776 | L28: =IFERROR(VLOOKUP($A28,Filtro!$A$5:$AW$2673,10,FALSE),0) -> 4822 | M28: =IFERROR(VLOOKUP($A28,Filtro!$A$5:$AW$2673,11,FALSE),0) -> 5686 | N28: =IFERROR(VLOOKUP($A28,Filtro!$A$5:$AW$2673,12,FALSE),0) -> 5744 | O28: =IFERROR(VLOOKUP($A28,Filtro!$A$5:$AW$2673,13,FALSE),0) -> 5895 | P28: =IFERROR(VLOOKUP($A28,Filtro!$A$5:$AW$2673,14,FALSE),0) -> 5546 | Q28: =IFERROR(VLOOKUP($A28,Filtro!$A$5:$AW$2673,15,FALSE),0) -> 4627 | R28: =IFERROR(VLOOKUP($A28,Filtro!$A$5:$AW$2673,16,FALSE),0) -> 2316 | S28: =IFERROR(VLOOKUP($A28,Filtro!$A$5:$AW$2673,17,FALSE),0) -> 994 | T28: =IFERROR(VLOOKUP($A28,Filtro!$A$5:$AW$2673,18,FALSE),0) -> 359 | U28: =IFERROR(VLOOKUP($A28,Filtro!$A$5:$AW$2673,19,FALSE),0) -> 198 | V28: =IFERROR(VLOOKUP($A28,Filtro!$A$5:$AW$2673,20,FALSE),0) -> 0 | W28: =IFERROR(VLOOKUP($A28,Filtro!$A$5:$AW$2673,21,FALSE),0) -> 47759 | X28: =IFERROR(VLOOKUP($A28,Filtro!$A$5:$AW$2673,22,FALSE),0) -> 0 | Y28: =IFERROR(VLOOKUP($A28,Filtro!$A$5:$AW$2673,23,FALSE),0) -> 0 | Z28: =IFERROR(VLOOKUP($A28,Filtro!$A$5:$AW$2673,24,FALSE),0) -> 222 | AA28: =IFERROR(VLOOKUP($A28,Filtro!$A$5:$AW$2673,25,FALSE),0) -> 110 | AB28: =IFERROR(VLOOKUP($A28,Filtro!$A$5:$AW$2673,26,FALSE),0) -> 26 | AC28: =IFERROR(VLOOKUP($A28,Filtro!$A$5:$AW$2673,27,FALSE),0) -> 445 | AD28: =IFERROR(VLOOKUP($A28,Filtro!$A$5:$AW$2673,28,FALSE),0) -> 1950 | AE28: * La variable Sexo no puede ser distinto al Total | CB28: * La variable Sexo no puede ser distinto al Total | CL28: 1 | CO28: 0 | CP28: 0 | CQ28: 0 | CR28: 0 | CS28: 0
A29: 01010901 | B29: Climaterio | C29: Médico/a | D29: =IFERROR(VLOOKUP($A29,Filtro!$A$5:$AW$2673,2,FALSE),0) -> 486 | E29: =IFERROR(VLOOKUP($A29,Filtro!$A$5:$AW$2673,3,FALSE),0) -> 0 | F29: =IFERROR(VLOOKUP($A29,Filtro!$A$5:$AW$2673,4,FALSE),0) -> 0 | G29: =IFERROR(VLOOKUP($A29,Filtro!$A$5:$AW$2673,5,FALSE),0) -> 0 | H29: =IFERROR(VLOOKUP($A29,Filtro!$A$5:$AW$2673,6,FALSE),0) -> 0 | I29: =IFERROR(VLOOKUP($A29,Filtro!$A$5:$AW$2673,7,FALSE),0) -> 0 | J29: =IFERROR(VLOOKUP($A29,Filtro!$A$5:$AW$2673,8,FALSE),0) -> 0 | K29: =IFERROR(VLOOKUP($A29,Filtro!$A$5:$AW$2673,9,FALSE),0) -> 0 | L29: =IFERROR(VLOOKUP($A29,Filtro!$A$5:$AW$2673,10,FALSE),0) -> 0 | M29: =IFERROR(VLOOKUP($A29,Filtro!$A$5:$AW$2673,11,FALSE),0) -> 0 | N29: =IFERROR(VLOOKUP($A29,Filtro!$A$5:$AW$2673,12,FALSE),0) -> 151 | O29: =IFERROR(VLOOKUP($A29,Filtro!$A$5:$AW$2673,13,FALSE),0) -> 176 | P29: =IFERROR(VLOOKUP($A29,Filtro!$A$5:$AW$2673,14,FALSE),0) -> 87 | Q29: =IFERROR(VLOOKUP($A29,Filtro!$A$5:$AW$2673,15,FALSE),0) -> 72 | R29: =IFERROR(VLOOKUP($A29,Filtro!$A$5:$AW$2673,16,FALSE),0) -> 0 | S29: =IFERROR(VLOOKUP($A29,Filtro!$A$5:$AW$2673,17,FALSE),0) -> 0 | T29: =IFERROR(VLOOKUP($A29,Filtro!$A$5:$AW$2673,18,FALSE),0) -> 0 | U29: =IFERROR(VLOOKUP($A29,Filtro!$A$5:$AW$2673,19,FALSE),0) -> 0 | V29: =IFERROR(VLOOKUP($A29,Filtro!$A$5:$AW$2673,20,FALSE),0) -> 0 | W29: =IFERROR(VLOOKUP($A29,Filtro!$A$5:$AW$2673,21,FALSE),0) -> 486 | X29: =IFERROR(VLOOKUP($A29,Filtro!$A$5:$AW$2673,22,FALSE),0) -> 0 | Y29: =IFERROR(VLOOKUP($A29,Filtro!$A$5:$AW$2673,23,FALSE),0) -> 0 | Z29: =IFERROR(VLOOKUP($A29,Filtro!$A$5:$AW$2673,24,FALSE),0) -> 0 | AA29: =IFERROR(VLOOKUP($A29,Filtro!$A$5:$AW$2673,25,FALSE),0) -> 0 | AB29: =IFERROR(VLOOKUP($A29,Filtro!$A$5:$AW$2673,26,FALSE),0) -> 0 | AC29: =IFERROR(VLOOKUP($A29,Filtro!$A$5:$AW$2673,27,FALSE),0) -> 0 | AD29: =IFERROR(VLOOKUP($A29,Filtro!$A$5:$AW$2673,28,FALSE),0) -> 5 | CL29: 0 | CR29: =IF(AND($D29<>0,AC29=""),1,0) -> 0 | CS29: 0
A30: 01010903 | C30: Matrona/ón | D30: =IFERROR(VLOOKUP($A30,Filtro!$A$5:$AW$2673,2,FALSE),0) -> 4676 | E30: =IFERROR(VLOOKUP($A30,Filtro!$A$5:$AW$2673,3,FALSE),0) -> 0 | F30: =IFERROR(VLOOKUP($A30,Filtro!$A$5:$AW$2673,4,FALSE),0) -> 0 | G30: =IFERROR(VLOOKUP($A30,Filtro!$A$5:$AW$2673,5,FALSE),0) -> 0 | H30: =IFERROR(VLOOKUP($A30,Filtro!$A$5:$AW$2673,6,FALSE),0) -> 0 | I30: =IFERROR(VLOOKUP($A30,Filtro!$A$5:$AW$2673,7,FALSE),0) -> 0 | J30: =IFERROR(VLOOKUP($A30,Filtro!$A$5:$AW$2673,8,FALSE),0) -> 0 | K30: =IFERROR(VLOOKUP($A30,Filtro!$A$5:$AW$2673,9,FALSE),0) -> 0 | L30: =IFERROR(VLOOKUP($A30,Filtro!$A$5:$AW$2673,10,FALSE),0) -> 0 | M30: =IFERROR(VLOOKUP($A30,Filtro!$A$5:$AW$2673,11,FALSE),0) -> 0 | N30: =IFERROR(VLOOKUP($A30,Filtro!$A$5:$AW$2673,12,FALSE),0) -> 1184 | O30: =IFERROR(VLOOKUP($A30,Filtro!$A$5:$AW$2673,13,FALSE),0) -> 1743 | P30: =IFERROR(VLOOKUP($A30,Filtro!$A$5:$AW$2673,14,FALSE),0) -> 1144 | Q30: =IFERROR(VLOOKUP($A30,Filtro!$A$5:$AW$2673,15,FALSE),0) -> 605 | R30: =IFERROR(VLOOKUP($A30,Filtro!$A$5:$AW$2673,16,FALSE),0) -> 0 | S30: =IFERROR(VLOOKUP($A30,Filtro!$A$5:$AW$2673,17,FALSE),0) -> 0 | T30: =IFERROR(VLOOKUP($A30,Filtro!$A$5:$AW$2673,18,FALSE),0) -> 0 | U30: =IFERROR(VLOOKUP($A30,Filtro!$A$5:$AW$2673,19,FALSE),0) -> 0 | V30: =IFERROR(VLOOKUP($A30,Filtro!$A$5:$AW$2673,20,FALSE),0) -> 0 | W30: =IFERROR(VLOOKUP($A30,Filtro!$A$5:$AW$2673,21,FALSE),0) -> 4666 | X30: =IFERROR(VLOOKUP($A30,Filtro!$A$5:$AW$2673,22,FALSE),0) -> 0 | Y30: =IFERROR(VLOOKUP($A30,Filtro!$A$5:$AW$2673,23,FALSE),0) -> 0 | Z30: =IFERROR(VLOOKUP($A30,Filtro!$A$5:$AW$2673,24,FALSE),0) -> 0 | AA30: =IFERROR(VLOOKUP($A30,Filtro!$A$5:$AW$2673,25,FALSE),0) -> 0 | AB30: =IFERROR(VLOOKUP($A30,Filtro!$A$5:$AW$2673,26,FALSE),0) -> 0 | AC30: =IFERROR(VLOOKUP($A30,Filtro!$A$5:$AW$2673,27,FALSE),0) -> 81 | AD30: =IFERROR(VLOOKUP($A30,Filtro!$A$5:$AW$2673,28,FALSE),0) -> 157 | AE30: * La variable Sexo no puede ser distinto al Total | CB30: * La variable Sexo no puede ser distinto al Total | CL30: 1 | CR30: 0 | CS30: 0
A31: 01010401 | B31: Regulación de Fecundidad | C31: Médico/a | D31: =IFERROR(VLOOKUP($A31,Filtro!$A$5:$AW$2673,2,FALSE),0) -> 80 | E31: =IFERROR(VLOOKUP($A31,Filtro!$A$5:$AW$2673,3,FALSE),0) -> 0 | F31: =IFERROR(VLOOKUP($A31,Filtro!$A$5:$AW$2673,4,FALSE),0) -> 0 | G31: =IFERROR(VLOOKUP($A31,Filtro!$A$5:$AW$2673,5,FALSE),0) -> 9 | H31: =IFERROR(VLOOKUP($A31,Filtro!$A$5:$AW$2673,6,FALSE),0) -> 36 | I31: =IFERROR(VLOOKUP($A31,Filtro!$A$5:$AW$2673,7,FALSE),0) -> 6 | J31: =IFERROR(VLOOKUP($A31,Filtro!$A$5:$AW$2673,8,FALSE),0) -> 7 | K31: =IFERROR(VLOOKUP($A31,Filtro!$A$5:$AW$2673,9,FALSE),0) -> 9 | L31: =IFERROR(VLOOKUP($A31,Filtro!$A$5:$AW$2673,10,FALSE),0) -> 6 | M31: =IFERROR(VLOOKUP($A31,Filtro!$A$5:$AW$2673,11,FALSE),0) -> 3 | N31: =IFERROR(VLOOKUP($A31,Filtro!$A$5:$AW$2673,12,FALSE),0) -> 3 | O31: =IFERROR(VLOOKUP($A31,Filtro!$A$5:$AW$2673,13,FALSE),0) -> 0 | P31: =IFERROR(VLOOKUP($A31,Filtro!$A$5:$AW$2673,14,FALSE),0) -> 1 | Q31: =IFERROR(VLOOKUP($A31,Filtro!$A$5:$AW$2673,15,FALSE),0) -> 0 | R31: =IFERROR(VLOOKUP($A31,Filtro!$A$5:$AW$2673,16,FALSE),0) -> 0 | S31: =IFERROR(VLOOKUP($A31,Filtro!$A$5:$AW$2673,17,FALSE),0) -> 0 | T31: =IFERROR(VLOOKUP($A31,Filtro!$A$5:$AW$2673,18,FALSE),0) -> 0 | U31: =IFERROR(VLOOKUP($A31,Filtro!$A$5:$AW$2673,19,FALSE),0) -> 0 | V31: =IFERROR(VLOOKUP($A31,Filtro!$A$5:$AW$2673,20,FALSE),0) -> 1 | W31: =IFERROR(VLOOKUP($A31,Filtro!$A$5:$AW$2673,21,FALSE),0) -> 79 | X31: =IFERROR(VLOOKUP($A31,Filtro!$A$5:$AW$2673,22,FALSE),0) -> 0 | Y31: =IFERROR(VLOOKUP($A31,Filtro!$A$5:$AW$2673,23,FALSE),0) -> 0 | Z31: =IFERROR(VLOOKUP($A31,Filtro!$A$5:$AW$2673,24,FALSE),0) -> 41 | AA31: =IFERROR(VLOOKUP($A31,Filtro!$A$5:$AW$2673,25,FALSE),0) -> 0 | AB31: =IFERROR(VLOOKUP($A31,Filtro!$A$5:$AW$2673,26,FALSE),0) -> 0 | AC31: =IFERROR(VLOOKUP($A31,Filtro!$A$5:$AW$2673,27,FALSE),0) -> 0 | AD31: =IFERROR(VLOOKUP($A31,Filtro!$A$5:$AW$2673,28,FALSE),0) -> 0 | CE31: =IF(AND($D31<>0,Z31=""),"* No olvide ingresar la columna "&Z$9&""&" (Digite CERO si no tiene). ",IF(Z31>$D31,"* El Número de Espacios Amigables/ Adolescentes no puede superar el Total. ","")) ->  | CF31: =IF(AND($D31<>0,AA31=""),"* No olvide ingresar la columna "&AA$9&""&" (Digite CERO si no tiene). ",IF(AA31>$D31,"* El Número de Niños, Niñas, Adolescentes y Jóvenes SENAME no puede superar el Total. ","")) ->  | CG31: =IF(AND($D31<>0,AB31=""),"* No olvide ingresar la columna "&AB$9&""&" (Digite CERO si no tiene). ",IF(AB31>$D31,"* El Número de Niños, Niñas, Adolescentes y Jóvenes Mejor Niñez no puede superar el Total. ","")) ->  | CL31: 0 | CO31: =IF(AND($D31<>0,Z31=""),1,0) -> 0 | CP31: 0 | CQ31: 0 | CR31: 0 | CS31: 0
A32: 01010403 | C32: Matrona/ón | D32: =IFERROR(VLOOKUP($A32,Filtro!$A$5:$AW$2673,2,FALSE),0) -> 81316 | E32: =IFERROR(VLOOKUP($A32,Filtro!$A$5:$AW$2673,3,FALSE),0) -> 0 | F32: =IFERROR(VLOOKUP($A32,Filtro!$A$5:$AW$2673,4,FALSE),0) -> 0 | G32: =IFERROR(VLOOKUP($A32,Filtro!$A$5:$AW$2673,5,FALSE),0) -> 1840 | H32: =IFERROR(VLOOKUP($A32,Filtro!$A$5:$AW$2673,6,FALSE),0) -> 12922 | I32: =IFERROR(VLOOKUP($A32,Filtro!$A$5:$AW$2673,7,FALSE),0) -> 13146 | J32: =IFERROR(VLOOKUP($A32,Filtro!$A$5:$AW$2673,8,FALSE),0) -> 13979 | K32: =IFERROR(VLOOKUP($A32,Filtro!$A$5:$AW$2673,9,FALSE),0) -> 13082 | L32: =IFERROR(VLOOKUP($A32,Filtro!$A$5:$AW$2673,10,FALSE),0) -> 10243 | M32: =IFERROR(VLOOKUP($A32,Filtro!$A$5:$AW$2673,11,FALSE),0) -> 8060 | N32: =IFERROR(VLOOKUP($A32,Filtro!$A$5:$AW$2673,12,FALSE),0) -> 5881 | O32: =IFERROR(VLOOKUP($A32,Filtro!$A$5:$AW$2673,13,FALSE),0) -> 1932 | P32: =IFERROR(VLOOKUP($A32,Filtro!$A$5:$AW$2673,14,FALSE),0) -> 171 | Q32: =IFERROR(VLOOKUP($A32,Filtro!$A$5:$AW$2673,15,FALSE),0) -> 32 | R32: =IFERROR(VLOOKUP($A32,Filtro!$A$5:$AW$2673,16,FALSE),0) -> 17 | S32: =IFERROR(VLOOKUP($A32,Filtro!$A$5:$AW$2673,17,FALSE),0) -> 8 | T32: =IFERROR(VLOOKUP($A32,Filtro!$A$5:$AW$2673,18,FALSE),0) -> 2 | U32: =IFERROR(VLOOKUP($A32,Filtro!$A$5:$AW$2673,19,FALSE),0) -> 1 | V32: =IFERROR(VLOOKUP($A32,Filtro!$A$5:$AW$2673,20,FALSE),0) -> 324 | W32: =IFERROR(VLOOKUP($A32,Filtro!$A$5:$AW$2673,21,FALSE),0) -> 80979 | X32: =IFERROR(VLOOKUP($A32,Filtro!$A$5:$AW$2673,22,FALSE),0) -> 0 | Y32: =IFERROR(VLOOKUP($A32,Filtro!$A$5:$AW$2673,23,FALSE),0) -> 0 | Z32: =IFERROR(VLOOKUP($A32,Filtro!$A$5:$AW$2673,24,FALSE),0) -> 2111 | AA32: =IFERROR(VLOOKUP($A32,Filtro!$A$5:$AW$2673,25,FALSE),0) -> 61 | AB32: =IFERROR(VLOOKUP($A32,Filtro!$A$5:$AW$2673,26,FALSE),0) -> 90 | AC32: =IFERROR(VLOOKUP($A32,Filtro!$A$5:$AW$2673,27,FALSE),0) -> 992 | AD32: =IFERROR(VLOOKUP($A32,Filtro!$A$5:$AW$2673,28,FALSE),0) -> 3400 | AE32: * La variable Sexo no puede ser distinto al Total | CB32: * La variable Sexo no puede ser distinto al Total | CE32: =IF(AND($D32<>0,Z32=""),"* No olvide ingresar la columna "&Z$9&""&" (Digite CERO si no tiene). ",IF(Z32>$D32,"* El Número de Espacios Amigables/ Adolescentes no puede superar el Total. ","")) ->  | CF32: =IF(AND($D32<>0,AA32=""),"* No olvide ingresar la columna "&AA$9&""&" (Digite CERO si no tiene). ",IF(AA32>$D32,"* El Número de Niños, Niñas, Adolescentes y Jóvenes SENAME no puede superar el Total. ","")) ->  | CG32: =IF(AND($D32<>0,AB32=""),"* No olvide ingresar la columna "&AB$9&""&" (Digite CERO si no tiene). ",IF(AB32>$D32,"* El Número de Niños, Niñas, Adolescentes y Jóvenes Mejor Niñez no puede superar el Total. ","")) ->  | CL32: 1 | CO32: 0 | CP32: 0 | CQ32: 0 | CR32: 0 | CS32: 0
B33: SECCIÓN B: CONTROLES DE SALUD SEGÚN CICLO VITAL
B34: TIPO DE CONTROL | C34: PROFESIONAL | D34: TOTAL | G34: RANGO ETARIO | AJ34: Control con Presencia del Padre | AL34: Niños, Niñas, Adolescentes y Jóvenes SENAME | AM34: Niños, Niñas, Adolescentes y Jóvenes Mejor Niñez | AN34: Pueblos Originarios | AO34: Migrantes
D35: Ambos Sexos | E35: Hombres | F35: Mujeres | G35: Menos de 1 mes | H35: 1 mes | I35: 2 meses | J35: 3 meses | K35: 4 meses | L35: 5 meses | M35: 6 meses | N35: 7 - 11 meses | O35: 12 - 17 meses | P35: 18 - 23 meses | Q35: 24 - 47 meses | R35: 48 - 59 meses | S35: 60 - 71 meses | T35: 6 - 9 años | U35: 10 - 14 años | V35: 15 - 19 años | W35: 20 - 24 años | X35: 25 - 29 años | Y35: 30 - 34 años | Z35: 35 - 39 años | AA35: 40 - 44 años | AB35: 45 - 49 años | AC35: 50 - 54 años | AD35: 55 - 59 años | AE35: 60 - 64 años | AF35: 65 - 69 años | AG35: 70 - 74 años | AH35: 75 - 79 años | AI35: 80 y más años | AJ35: Menor 1 año | AK35: 1 año a 3 años 11 meses 29 días
A36: 02010101 | B36: De salud | C36: Médico/a | D36: =IFERROR(VLOOKUP($A36,Filtro!$A$5:$AW$2673,2,FALSE),0) -> 16031 | E36: =IFERROR(VLOOKUP($A36,Filtro!$A$5:$AW$2673,3,FALSE),0) -> 7666 | F36: =IFERROR(VLOOKUP($A36,Filtro!$A$5:$AW$2673,4,FALSE),0) -> 8359 | G36: =IFERROR(VLOOKUP($A36,Filtro!$A$5:$AW$2673,5,FALSE),0) -> 125 | H36: =IFERROR(VLOOKUP($A36,Filtro!$A$5:$AW$2673,6,FALSE),0) -> 4424 | I36: =IFERROR(VLOOKUP($A36,Filtro!$A$5:$AW$2673,7,FALSE),0) -> 283 | J36: =IFERROR(VLOOKUP($A36,Filtro!$A$5:$AW$2673,8,FALSE),0) -> 4002 | K36: =IFERROR(VLOOKUP($A36,Filtro!$A$5:$AW$2673,9,FALSE),0) -> 355 | L36: =IFERROR(VLOOKUP($A36,Filtro!$A$5:$AW$2673,10,FALSE),0) -> 91 | M36: =IFERROR(VLOOKUP($A36,Filtro!$A$5:$AW$2673,11,FALSE),0) -> 44 | N36: =IFERROR(VLOOKUP($A36,Filtro!$A$5:$AW$2673,12,FALSE),0) -> 52 | O36: =IFERROR(VLOOKUP($A36,Filtro!$A$5:$AW$2673,13,FALSE),0) -> 30 | P36: =IFERROR(VLOOKUP($A36,Filtro!$A$5:$AW$2673,14,FALSE),0) -> 62 | Q36: =IFERROR(VLOOKUP($A36,Filtro!$A$5:$AW$2673,15,FALSE),0) -> 108 | R36: =IFERROR(VLOOKUP($A36,Filtro!$A$5:$AW$2673,16,FALSE),0) -> 164 | S36: =IFERROR(VLOOKUP($A36,Filtro!$A$5:$AW$2673,17,FALSE),0) -> 240 | T36: =IFERROR(VLOOKUP($A36,Filtro!$A$5:$AW$2673,18,FALSE),0) -> 1408 | U36: =IFERROR(VLOOKUP($A36,Filtro!$A$5:$AW$2673,19,FALSE),0) -> 882 | V36: =IFERROR(VLOOKUP($A36,Filtro!$A$5:$AW$2673,20,FALSE),0) -> 281 | W36: =IFERROR(VLOOKUP($A36,Filtro!$A$5:$AW$2673,21,FALSE),0) -> 45 | X36: =IFERROR(VLOOKUP($A36,Filtro!$A$5:$AW$2673,22,FALSE),0) -> 64 | Y36: =IFERROR(VLOOKUP($A36,Filtro!$A$5:$AW$2673,23,FALSE),0) -> 62 | Z36: =IFERROR(VLOOKUP($A36,Filtro!$A$5:$AW$2673,24,FALSE),0) -> 96 | AA36: =IFERROR(VLOOKUP($A36,Filtro!$A$5:$AW$2673,25,FALSE),0) -> 96 | AB36: =IFERROR(VLOOKUP($A36,Filtro!$A$5:$AW$2673,26,FALSE),0) -> 184 | AC36: =IFERROR(VLOOKUP($A36,Filtro!$A$5:$AW$2673,27,FALSE),0) -> 242 | AD36: =IFERROR(VLOOKUP($A36,Filtro!$A$5:$AW$2673,28,FALSE),0) -> 361 | AE36: =IFERROR(VLOOKUP($A36,Filtro!$A$5:$AW$2673,29,FALSE),0) -> 478 | AF36: =IFERROR(VLOOKUP($A36,Filtro!$A$5:$AW$2673,30,FALSE),0) -> 528 | AG36: =IFERROR(VLOOKUP($A36,Filtro!$A$5:$AW$2673,31,FALSE),0) -> 517 | AH36: =IFERROR(VLOOKUP($A36,Filtro!$A$5:$AW$2673,32,FALSE),0) -> 331 | AI36: =IFERROR(VLOOKUP($A36,Filtro!$A$5:$AW$2673,33,FALSE),0) -> 476 | AJ36: =IFERROR(VLOOKUP($A36,Filtro!$A$5:$AW$2673,34,FALSE),0) -> 2152 | AK36: =IFERROR(VLOOKUP($A36,Filtro!$A$5:$AW$2673,35,FALSE),0) -> 52 | AL36: =IFERROR(VLOOKUP($A36,Filtro!$A$5:$AW$2673,36,FALSE),0) -> 17 | AM36: =IFERROR(VLOOKUP($A36,Filtro!$A$5:$AW$2673,37,FALSE),0) -> 211 | AN36: =IFERROR(VLOOKUP($A36,Filtro!$A$5:$AW$2673,38,FALSE),0) -> 243 | AO36: =IFERROR(VLOOKUP($A36,Filtro!$A$5:$AW$2673,39,FALSE),0) -> 106 | AP36: =CB36&CC36&CE36&CF36&CG36&CH36&CI36 -> * El Total de Controles por Sexo (Hombres+Mujeres) no puede ser distinto al desglose por rango etario. | CB36: =IF((E36+F36)<>SUM(G36:AI36)," * El Total de Controles por Sexo (Hombres+Mujeres) no puede ser distinto al desglose por rango etario.","") -> * El Total de Controles por Sexo (Hombres+Mujeres) no puede ser distinto al desglose por rango etario. | CC36: =IF(AND(SUM(G36:N36)>0,AJ36="")," * No olvide digitar los campos "&AJ$34&""&" de menores de 1 año (Digite CERO si no tiene). ",IF(AJ36>SUM(G36:N36),"* La suma de Control con Presencia del padre de menores de 1 año no puede superar el Total de Controles de menores de 1 año. ","")) ->  | CD36: =IF(AND(SUM(O36:Q36)>0,AK36="")," * No olvide digitar los campos "&AJ$34&""&" de 1 año a 3 años 11 meses 29 días (Digite CERO si no tiene). ",IF(AK36>SUM(O36:Q36),"* La suma de Control con Presencia del padre de 1 año a 3 años 11 meses 29 días no puede superar el Total de Controles de 12 a 47 meses. ","")) ->  | CE36: =IF(AND($D36<>0,AL36=""),"* No olvide ingresar la columna "&AL$34&""&" (Digite CERO si no tiene). ",IF(AL36>$D36,"* El Número de Niños, Niñas, Adolescentes y Jóvenes SENAME no puede superar el Total Ambos Sexos. ","")) ->  | CF36: =IF(AND($D36<>0,AM36=""),"* No olvide ingresar la columna "&AM$34&""&" (Digite CERO si no tiene). ",IF(AM36>$D36,"* El Número de Niños, Niñas, Adolescentes y Jóvenes Mejor Niñez no puede superar el Total Ambos Sexos. ","")) ->  | CG36: =IF(AND($D36<>0,AN36=""),"* No olvide ingresar la columna "&AN$34&""&" (Digite CERO si no tiene). ",IF(AN36>$D36,"* El Número de Pueblos Originarios no puede superar el Total Ambos Sexos. ","")) ->  | CH36: =IF(AND($D36<>0,AO36=""),"* No olvide ingresar la columna "&AO$34&""&" (Digite CERO si no tiene). ",IF(AO36>$D36,"* El Número de Migrantes no puede superar el Total Ambos Sexos. ","")) ->  | CL36: =IF((E36+F36)<>SUM(G36:AI36),1,0) -> 1 | CM36: =IF(AND(SUM(G36:N36)>0,AJ36=""),1,IF(AJ36>SUM(G36:N36),1,0)) -> 0 | CN36: =IF(AND(SUM(O36:Q36)>0,AK36=""),1,IF(AK36>SUM(O36:Q36),1,0)) -> 0 | CO36: =IF(AND($D36<>0,AL36=""),1,IF(AL36>$D36,1,0)) -> 0 | CP36: 0 | CQ36: 0 | CR36: 0
A37: 02010201 | C37: Enfermera/o | D37: =IFERROR(VLOOKUP($A37,Filtro!$A$5:$AW$2673,2,FALSE),0) -> 95091 | E37: =IFERROR(VLOOKUP($A37,Filtro!$A$5:$AW$2673,3,FALSE),0) -> 45730 | F37: =IFERROR(VLOOKUP($A37,Filtro!$A$5:$AW$2673,4,FALSE),0) -> 49321 | G37: =IFERROR(VLOOKUP($A37,Filtro!$A$5:$AW$2673,5,FALSE),0) -> 44 | H37: =IFERROR(VLOOKUP($A37,Filtro!$A$5:$AW$2673,6,FALSE),0) -> 198 | I37: =IFERROR(VLOOKUP($A37,Filtro!$A$5:$AW$2673,7,FALSE),0) -> 4510 | J37: =IFERROR(VLOOKUP($A37,Filtro!$A$5:$AW$2673,8,FALSE),0) -> 269 | K37: =IFERROR(VLOOKUP($A37,Filtro!$A$5:$AW$2673,9,FALSE),0) -> 4568 | L37: =IFERROR(VLOOKUP($A37,Filtro!$A$5:$AW$2673,10,FALSE),0) -> 315 | M37: =IFERROR(VLOOKUP($A37,Filtro!$A$5:$AW$2673,11,FALSE),0) -> 4471 | N37: =IFERROR(VLOOKUP($A37,Filtro!$A$5:$AW$2673,12,FALSE),0) -> 5370 | O37: =IFERROR(VLOOKUP($A37,Filtro!$A$5:$AW$2673,13,FALSE),0) -> 5737 | P37: =IFERROR(VLOOKUP($A37,Filtro!$A$5:$AW$2673,14,FALSE),0) -> 5820 | Q37: =IFERROR(VLOOKUP($A37,Filtro!$A$5:$AW$2673,15,FALSE),0) -> 11229 | R37: =IFERROR(VLOOKUP($A37,Filtro!$A$5:$AW$2673,16,FALSE),0) -> 4933 | S37: =IFERROR(VLOOKUP($A37,Filtro!$A$5:$AW$2673,17,FALSE),0) -> 5048 | T37: =IFERROR(VLOOKUP($A37,Filtro!$A$5:$AW$2673,18,FALSE),0) -> 15732 | U37: =IFERROR(VLOOKUP($A37,Filtro!$A$5:$AW$2673,19,FALSE),0) -> 5057 | V37: =IFERROR(VLOOKUP($A37,Filtro!$A$5:$AW$2673,20,FALSE),0) -> 2448 | W37: =IFERROR(VLOOKUP($A37,Filtro!$A$5:$AW$2673,21,FALSE),0) -> 416 | X37: =IFERROR(VLOOKUP($A37,Filtro!$A$5:$AW$2673,22,FALSE),0) -> 430 | Y37: =IFERROR(VLOOKUP($A37,Filtro!$A$5:$AW$2673,23,FALSE),0) -> 524 | Z37: =IFERROR(VLOOKUP($A37,Filtro!$A$5:$AW$2673,24,FALSE),0) -> 548 | AA37: =IFERROR(VLOOKUP($A37,Filtro!$A$5:$AW$2673,25,FALSE),0) -> 547 | AB37: =IFERROR(VLOOKUP($A37,Filtro!$A$5:$AW$2673,26,FALSE),0) -> 638 | AC37: =IFERROR(VLOOKUP($A37,Filtro!$A$5:$AW$2673,27,FALSE),0) -> 751 | AD37: =IFERROR(VLOOKUP($A37,Filtro!$A$5:$AW$2673,28,FALSE),0) -> 940 | AE37: =IFERROR(VLOOKUP($A37,Filtro!$A$5:$AW$2673,29,FALSE),0) -> 1137 | AF37: =IFERROR(VLOOKUP($A37,Filtro!$A$5:$AW$2673,30,FALSE),0) -> 3482 | AG37: =IFERROR(VLOOKUP($A37,Filtro!$A$5:$AW$2673,31,FALSE),0) -> 3376 | AH37: =IFERROR(VLOOKUP($A37,Filtro!$A$5:$AW$2673,32,FALSE),0) -> 2662 | AI37: =IFERROR(VLOOKUP($A37,Filtro!$A$5:$AW$2673,33,FALSE),0) -> 3891 | AJ37: =IFERROR(VLOOKUP($A37,Filtro!$A$5:$AW$2673,34,FALSE),0) -> 4793 | AK37: =IFERROR(VLOOKUP($A37,Filtro!$A$5:$AW$2673,35,FALSE),0) -> 4415 | AL37: =IFERROR(VLOOKUP($A37,Filtro!$A$5:$AW$2673,36,FALSE),0) -> 206 | AM37: =IFERROR(VLOOKUP($A37,Filtro!$A$5:$AW$2673,37,FALSE),0) -> 349 | AN37: =IFERROR(VLOOKUP($A37,Filtro!$A$5:$AW$2673,38,FALSE),0) -> 1574 | AO37: =IFERROR(VLOOKUP($A37,Filtro!$A$5:$AW$2673,39,FALSE),0) -> 2033 | AP37: =CB37&CC37&CD37&CE37&CF37&CG37&CH37 -> * El Total de Controles por Sexo (Hombres+Mujeres) no puede ser distinto al desglose por rango etario. | CB37: =IF((E37+F37)<>SUM(G37:AI37)," * El Total de Controles por Sexo (Hombres+Mujeres) no puede ser distinto al desglose por rango etario.","") -> * El Total de Controles por Sexo (Hombres+Mujeres) no puede ser distinto al desglose por rango etario. | CC37: =IF(AND(SUM(G37:N37)>0,AJ37="")," * No olvide digitar los campos "&AJ$34&""&" de menores de 1 año (Digite CERO si no tiene). ",IF(AJ37>SUM(G37:N37),"* La suma de Control con Presencia del padre de menores de 1 año no puede superar el Total de Controles de menores de 1 año. ","")) ->  | CD37: =IF(AND(SUM(O37:Q37)>0,AK37="")," * No olvide digitar los campos "&AJ$34&""&" de 1 año a 3 años 11 meses 29 días (Digite CERO si no tiene). ",IF(AK37>SUM(O37:Q37),"* La suma de Control con Presencia del padre de 1 año a 3 años 11 meses 29 días no puede superar el Total de Controles de 12 a 47 meses. ","")) ->  | CE37: =IF(AND($D37<>0,AL37=""),"* No olvide ingresar la columna "&AL$34&""&" (Digite CERO si no tiene). ",IF(AL37>$D37,"* El Número de Niños, Niñas, Adolescentes y Jóvenes SENAME no puede superar el Total Ambos Sexos. ","")) ->  | CF37: =IF(AND($D37<>0,AM37=""),"* No olvide ingresar la columna "&AM$34&""&" (Digite CERO si no tiene). ",IF(AM37>$D37,"* El Número de Niños, Niñas, Adolescentes y Jóvenes Mejor Niñez no puede superar el Total Ambos Sexos. ","")) ->  | CG37: =IF(AND($D37<>0,AN37=""),"* No olvide ingresar la columna "&AN$34&""&" (Digite CERO si no tiene). ",IF(AN37>$D37,"* El Número de Pueblos Originarios no puede superar el Total Ambos Sexos. ","")) ->  | CH37: =IF(AND($D37<>0,AO37=""),"* No olvide ingresar la columna "&AO$34&""&" (Digite CERO si no tiene). ",IF(AO37>$D37,"* El Número de Migrantes no puede superar el Total Ambos Sexos. ","")) ->  | CL37: =IF((E37+F37)<>SUM(G37:AI37),1,0) -> 1 | CM37: =IF(AND(SUM(G37:N37)>0,AJ37=""),1,IF(AJ37>SUM(G37:N37),1,0)) -> 0 | CN37: =IF(AND(SUM(O37:Q37)>0,AK37=""),1,IF(AK37>SUM(O37:Q37),1,0)) -> 0 | CO37: 0 | CP37: 0 | CQ37: 0 | CR37: 0
A38: 02010103 | C38: Matrona/ón | D38: =IFERROR(VLOOKUP($A38,Filtro!$A$5:$AW$2673,2,FALSE),0) -> 24559 | E38: =IFERROR(VLOOKUP($A38,Filtro!$A$5:$AW$2673,3,FALSE),0) -> 4925 | F38: =IFERROR(VLOOKUP($A38,Filtro!$A$5:$AW$2673,4,FALSE),0) -> 19649 | G38: =IFERROR(VLOOKUP($A38,Filtro!$A$5:$AW$2673,5,FALSE),0) -> 3884 | H38: =IFERROR(VLOOKUP($A38,Filtro!$A$5:$AW$2673,6,FALSE),0) -> 0 | I38: =IFERROR(VLOOKUP($A38,Filtro!$A$5:$AW$2673,7,FALSE),0) -> 0 | J38: =IFERROR(VLOOKUP($A38,Filtro!$A$5:$AW$2673,8,FALSE),0) -> 0 | K38: =IFERROR(VLOOKUP($A38,Filtro!$A$5:$AW$2673,9,FALSE),0) -> 0 | L38: =IFERROR(VLOOKUP($A38,Filtro!$A$5:$AW$2673,10,FALSE),0) -> 0 | M38: =IFERROR(VLOOKUP($A38,Filtro!$A$5:$AW$2673,11,FALSE),0) -> 0 | N38: =IFERROR(VLOOKUP($A38,Filtro!$A$5:$AW$2673,12,FALSE),0) -> 0 | O38: =IFERROR(VLOOKUP($A38,Filtro!$A$5:$AW$2673,13,FALSE),0) -> 0 | P38: =IFERROR(VLOOKUP($A38,Filtro!$A$5:$AW$2673,14,FALSE),0) -> 0 | Q38: =IFERROR(VLOOKUP($A38,Filtro!$A$5:$AW$2673,15,FALSE),0) -> 0 | R38: =IFERROR(VLOOKUP($A38,Filtro!$A$5:$AW$2673,16,FALSE),0) -> 0 | S38: =IFERROR(VLOOKUP($A38,Filtro!$A$5:$AW$2673,17,FALSE),0) -> 0 | T38: =IFERROR(VLOOKUP($A38,Filtro!$A$5:$AW$2673,18,FALSE),0) -> 0 | U38: =IFERROR(VLOOKUP($A38,Filtro!$A$5:$AW$2673,19,FALSE),0) -> 4610 | V38: =IFERROR(VLOOKUP($A38,Filtro!$A$5:$AW$2673,20,FALSE),0) -> 3595 | W38: =IFERROR(VLOOKUP($A38,Filtro!$A$5:$AW$2673,21,FALSE),0) -> 1541 | X38: =IFERROR(VLOOKUP($A38,Filtro!$A$5:$AW$2673,22,FALSE),0) -> 1925 | Y38: =IFERROR(VLOOKUP($A38,Filtro!$A$5:$AW$2673,23,FALSE),0) -> 1969 | Z38: =IFERROR(VLOOKUP($A38,Filtro!$A$5:$AW$2673,24,FALSE),0) -> 1547 | AA38: =IFERROR(VLOOKUP($A38,Filtro!$A$5:$AW$2673,25,FALSE),0) -> 1403 | AB38: =IFERROR(VLOOKUP($A38,Filtro!$A$5:$AW$2673,26,FALSE),0) -> 1306 | AC38: =IFERROR(VLOOKUP($A38,Filtro!$A$5:$AW$2673,27,FALSE),0) -> 1044 | AD38: =IFERROR(VLOOKUP($A38,Filtro!$A$5:$AW$2673,28,FALSE),0) -> 833 | AE38: =IFERROR(VLOOKUP($A38,Filtro!$A$5:$AW$2673,29,FALSE),0) -> 520 | AF38: =IFERROR(VLOOKUP($A38,Filtro!$A$5:$AW$2673,30,FALSE),0) -> 240 | AG38: =IFERROR(VLOOKUP($A38,Filtro!$A$5:$AW$2673,31,FALSE),0) -> 90 | AH38: =IFERROR(VLOOKUP($A38,Filtro!$A$5:$AW$2673,32,FALSE),0) -> 34 | AI38: =IFERROR(VLOOKUP($A38,Filtro!$A$5:$AW$2673,33,FALSE),0) -> 18 | AJ38: =IFERROR(VLOOKUP($A38,Filtro!$A$5:$AW$2673,34,FALSE),0) -> 1909 | AK38: =IFERROR(VLOOKUP($A38,Filtro!$A$5:$AW$2673,35,FALSE),0) -> 0 | AL38: =IFERROR(VLOOKUP($A38,Filtro!$A$5:$AW$2673,36,FALSE),0) -> 41 | AM38: =IFERROR(VLOOKUP($A38,Filtro!$A$5:$AW$2673,37,FALSE),0) -> 59 | AN38: =IFERROR(VLOOKUP($A38,Filtro!$A$5:$AW$2673,38,FALSE),0) -> 332 | AO38: =IFERROR(VLOOKUP($A38,Filtro!$A$5:$AW$2673,39,FALSE),0) -> 412 | AP38: =CB38&CC38&CD38&CE38&CF38&CG38&CH38 -> * El Total de Controles por Sexo (Hombres+Mujeres) no puede ser distinto al desglose por rango etario. | CB38: =IF((E38+F38)<>SUM(G38,U38:AI38)," * El Total de Controles por Sexo (Hombres+Mujeres) no puede ser distinto al desglose por rango etario.","") -> * El Total de Controles por Sexo (Hombres+Mujeres) no puede ser distinto al desglose por rango etario. | CC38: =IF(AND(SUM(G38:N38)>0,AJ38="")," * No olvide digitar los campos "&AJ$34&""&" de menores de 1 año (Digite CERO si no tiene). ",IF(AJ38>SUM(G38:N38),"* La suma de Control con Presencia del padre de menores de 1 año no puede superar el Total de Controles de menores de 1 año. ","")) ->  | CE38: =IF(AND($D38<>0,AL38=""),"* No olvide ingresar la columna "&AL$34&""&" (Digite CERO si no tiene). ",IF(AL38>$D38,"* El Número de Niños, Niñas, Adolescentes y Jóvenes SENAME no puede superar el Total Ambos Sexos. ","")) ->  | CF38: =IF(AND($D38<>0,AM38=""),"* No olvide ingresar la columna "&AM$34&""&" (Digite CERO si no tiene). ",IF(AM38>$D38,"* El Número de Niños, Niñas, Adolescentes y Jóvenes Mejor Niñez no puede superar el Total Ambos Sexos. ","")) ->  | CG38: =IF(AND($D38<>0,AN38=""),"* No olvide ingresar la columna "&AN$34&""&" (Digite CERO si no tiene). ",IF(AN38>$D38,"* El Número de Pueblos Originarios no puede superar el Total Ambos Sexos. ","")) ->  | CH38: =IF(AND($D38<>0,AO38=""),"* No olvide ingresar la columna "&AO$34&""&" (Digite CERO si no tiene). ",IF(AO38>$D38,"* El Número de Migrantes no puede superar el Total Ambos Sexos. ","")) ->  | CL38: =IF((E38+F38)<>SUM(G38:AI38),1,0) -> 1 | CM38: =IF(AND(SUM(G38)>0,AJ38=""),1,IF(AJ38>SUM(G38),1,0)) -> 0 | CO38: 0 | CP38: 0 | CQ38: 0 | CR38: 0
A39: 02010105 | C39: Técnico en Enfermería | D39: =IFERROR(VLOOKUP($A39,Filtro!$A$5:$AW$2673,2,FALSE),0) -> 7 | E39: =IFERROR(VLOOKUP($A39,Filtro!$A$5:$AW$2673,3,FALSE),0) -> 2 | F39: =IFERROR(VLOOKUP($A39,Filtro!$A$5:$AW$2673,4,FALSE),0) -> 5 | G39: =IFERROR(VLOOKUP($A39,Filtro!$A$5:$AW$2673,5,FALSE),0) -> 0 | H39: =IFERROR(VLOOKUP($A39,Filtro!$A$5:$AW$2673,6,FALSE),0) -> 0 | I39: =IFERROR(VLOOKUP($A39,Filtro!$A$5:$AW$2673,7,FALSE),0) -> 0 | J39: =IFERROR(VLOOKUP($A39,Filtro!$A$5:$AW$2673,8,FALSE),0) -> 0 | K39: =IFERROR(VLOOKUP($A39,Filtro!$A$5:$AW$2673,9,FALSE),0) -> 0 | L39: =IFERROR(VLOOKUP($A39,Filtro!$A$5:$AW$2673,10,FALSE),0) -> 0 | M39: =IFERROR(VLOOKUP($A39,Filtro!$A$5:$AW$2673,11,FALSE),0) -> 0 | N39: =IFERROR(VLOOKUP($A39,Filtro!$A$5:$AW$2673,12,FALSE),0) -> 0 | O39: =IFERROR(VLOOKUP($A39,Filtro!$A$5:$AW$2673,13,FALSE),0) -> 0 | P39: =IFERROR(VLOOKUP($A39,Filtro!$A$5:$AW$2673,14,FALSE),0) -> 0 | Q39: =IFERROR(VLOOKUP($A39,Filtro!$A$5:$AW$2673,15,FALSE),0) -> 1 | R39: =IFERROR(VLOOKUP($A39,Filtro!$A$5:$AW$2673,16,FALSE),0) -> 0 | S39: =IFERROR(VLOOKUP($A39,Filtro!$A$5:$AW$2673,17,FALSE),0) -> 0 | T39: =IFERROR(VLOOKUP($A39,Filtro!$A$5:$AW$2673,18,FALSE),0) -> 6 | U39: =IFERROR(VLOOKUP($A39,Filtro!$A$5:$AW$2673,19,FALSE),0) -> 0 | V39: =IFERROR(VLOOKUP($A39,Filtro!$A$5:$AW$2673,20,FALSE),0) -> 0 | W39: =IFERROR(VLOOKUP($A39,Filtro!$A$5:$AW$2673,21,FALSE),0) -> 0 | X39: =IFERROR(VLOOKUP($A39,Filtro!$A$5:$AW$2673,22,FALSE),0) -> 0 | Y39: =IFERROR(VLOOKUP($A39,Filtro!$A$5:$AW$2673,23,FALSE),0) -> 0 | Z39: =IFERROR(VLOOKUP($A39,Filtro!$A$5:$AW$2673,24,FALSE),0) -> 0 | AA39: =IFERROR(VLOOKUP($A39,Filtro!$A$5:$AW$2673,25,FALSE),0) -> 0 | AB39: =IFERROR(VLOOKUP($A39,Filtro!$A$5:$AW$2673,26,FALSE),0) -> 0 | AC39: =IFERROR(VLOOKUP($A39,Filtro!$A$5:$AW$2673,27,FALSE),0) -> 0 | AD39: =IFERROR(VLOOKUP($A39,Filtro!$A$5:$AW$2673,28,FALSE),0) -> 0 | AE39: =IFERROR(VLOOKUP($A39,Filtro!$A$5:$AW$2673,29,FALSE),0) -> 0 | AF39: =IFERROR(VLOOKUP($A39,Filtro!$A$5:$AW$2673,30,FALSE),0) -> 0 | AG39: =IFERROR(VLOOKUP($A39,Filtro!$A$5:$AW$2673,31,FALSE),0) -> 0 | AH39: =IFERROR(VLOOKUP($A39,Filtro!$A$5:$AW$2673,32,FALSE),0) -> 0 | AI39: =IFERROR(VLOOKUP($A39,Filtro!$A$5:$AW$2673,33,FALSE),0) -> 0 | AJ39: =IFERROR(VLOOKUP($A39,Filtro!$A$5:$AW$2673,34,FALSE),0) -> 0 | AK39: =IFERROR(VLOOKUP($A39,Filtro!$A$5:$AW$2673,35,FALSE),0) -> 0 | AL39: =IFERROR(VLOOKUP($A39,Filtro!$A$5:$AW$2673,36,FALSE),0) -> 0 | AM39: =IFERROR(VLOOKUP($A39,Filtro!$A$5:$AW$2673,37,FALSE),0) -> 0 | AN39: =IFERROR(VLOOKUP($A39,Filtro!$A$5:$AW$2673,38,FALSE),0) -> 0 | AO39: =IFERROR(VLOOKUP($A39,Filtro!$A$5:$AW$2673,39,FALSE),0) -> 0 | AP39: =CB39&CC39&CD39&CE39&CF39&CG39&CH39 ->  | CB39: =IF((E39+F39)<>SUM(O39:T39)," * El Total de Controles por Sexo (Hombres+Mujeres) no puede ser distinto al desglose por rango etario.","") ->  | CD39: =IF(AND(SUM(O39:Q39)>0,AK39="")," * No olvide digitar los campos "&AJ$34&""&" de 1 año a 3 años 11 meses 29 días (Digite CERO si no tiene). ",IF(AK39>SUM(O39:Q39),"* La suma de Control con Presencia del padre de 1 año a 3 años 11 meses 29 días no puede superar el Total de Controles de 12 a 47 meses. ","")) ->  | CE39: =IF(AND($D39<>0,AL39=""),"* No olvide ingresar la columna "&AL$34&""&" (Digite CERO si no tiene). ",IF(AL39>$D39,"* El Número de Niños, Niñas, Adolescentes y Jóvenes SENAME no puede superar el Total Ambos Sexos. ","")) ->  | CF39: =IF(AND($D39<>0,AM39=""),"* No olvide ingresar la columna "&AM$34&""&" (Digite CERO si no tiene). ",IF(AM39>$D39,"* El Número de Niños, Niñas, Adolescentes y Jóvenes Mejor Niñez no puede superar el Total Ambos Sexos. ","")) ->  | CG39: =IF(AND($D39<>0,AN39=""),"* No olvide ingresar la columna "&AN$34&""&" (Digite CERO si no tiene). ",IF(AN39>$D39,"* El Número de Pueblos Originarios no puede superar el Total Ambos Sexos. ","")) ->  | CH39: =IF(AND($D39<>0,AO39=""),"* No olvide ingresar la columna "&AO$34&""&" (Digite CERO si no tiene). ",IF(AO39>$D39,"* El Número de Migrantes no puede superar el Total Ambos Sexos. ","")) ->  | CL39: =IF((E39+F39)<>SUM(G39:AI39),1,0) -> 0 | CN39: =IF(AND(SUM(O39:Q39)>0,AK39=""),1,IF(AK39>SUM(O39:Q39),1,0)) -> 0 | CO39: 0 | CP39: 0 | CQ39: 0 | CR39: 0
B40: SECCIÓN C: CONTROLES SEGÚN PROBLEMA DE SALUD
B41: TIPO DE CONTROL | C41: PROFESIONAL | D41: TOTAL | G41: RANGO ETARIO Y SEXO | AO41: Pueblos Originarios | AP41: Migrantes
G42: 0 - 4 años | I42: 5 - 9 años | K42: 10 - 14 años | M42: 15 - 19 años | O42: 20 - 24 años | Q42: 25 - 29 años | S42: 30 - 34 años | U42: 35 - 39 años | W42: 40 - 44 años | Y42: 45 - 49 años | AA42: 50 - 54 años | AC42: 55 - 59 años | AE42: 60 - 64 años | AG42: 65 - 69 años | AI42: 70 - 74 años | AK42: 75 - 79 años | AM42: 80 y más años
D43: Ambos Sexos | E43: Hombres | F43: Mujeres | G43: Hombres | H43: Mujeres | I43: Hombres | J43: Mujeres | K43: Hombres | L43: Mujeres | M43: Hombres | N43: Mujeres | O43: Hombres | P43: Mujeres | Q43: Hombres | R43: Mujeres | S43: Hombres | T43: Mujeres | U43: Hombres | V43: Mujeres | W43: Hombres | X43: Mujeres | Y43: Hombres | Z43: Mujeres | AA43: Hombres | AB43: Mujeres | AC43: Hombres | AD43: Mujeres | AE43: Hombres | AF43: Mujeres | AG43: Hombres | AH43: Mujeres | AI43: Hombres | AJ43: Mujeres | AK43: Hombres | AL43: Mujeres | AM43: Hombres | AN43: Mujeres
A44: 03010501 | B44: De Salud Cardiovascular | C44: Médico/a | D44: =IFERROR(VLOOKUP($A44,Filtro!$A$5:$AW$2673,2,FALSE),0) -> 140477 | E44: =IFERROR(VLOOKUP($A44,Filtro!$A$5:$AW$2673,3,FALSE),0) -> 48757 | F44: =IFERROR(VLOOKUP($A44,Filtro!$A$5:$AW$2673,4,FALSE),0) -> 91720 | G44: =IFERROR(VLOOKUP($A44,Filtro!$A$5:$AW$2673,5,FALSE),0) -> 0 | H44: =IFERROR(VLOOKUP($A44,Filtro!$A$5:$AW$2673,6,FALSE),0) -> 0 | I44: =IFERROR(VLOOKUP($A44,Filtro!$A$5:$AW$2673,7,FALSE),0) -> 0 | J44: =IFERROR(VLOOKUP($A44,Filtro!$A$5:$AW$2673,8,FALSE),0) -> 0 | K44: =IFERROR(VLOOKUP($A44,Filtro!$A$5:$AW$2673,9,FALSE),0) -> 0 | L44: =IFERROR(VLOOKUP($A44,Filtro!$A$5:$AW$2673,10,FALSE),0) -> 0 | M44: =IFERROR(VLOOKUP($A44,Filtro!$A$5:$AW$2673,11,FALSE),0) -> 96 | N44: =IFERROR(VLOOKUP($A44,Filtro!$A$5:$AW$2673,12,FALSE),0) -> 128 | O44: =IFERROR(VLOOKUP($A44,Filtro!$A$5:$AW$2673,13,FALSE),0) -> 121 | P44: =IFERROR(VLOOKUP($A44,Filtro!$A$5:$AW$2673,14,FALSE),0) -> 292 | Q44: =IFERROR(VLOOKUP($A44,Filtro!$A$5:$AW$2673,15,FALSE),0) -> 190 | R44: =IFERROR(VLOOKUP($A44,Filtro!$A$5:$AW$2673,16,FALSE),0) -> 561 | S44: =IFERROR(VLOOKUP($A44,Filtro!$A$5:$AW$2673,17,FALSE),0) -> 406 | T44: =IFERROR(VLOOKUP($A44,Filtro!$A$5:$AW$2673,18,FALSE),0) -> 1137 | U44: =IFERROR(VLOOKUP($A44,Filtro!$A$5:$AW$2673,19,FALSE),0) -> 730 | V44: =IFERROR(VLOOKUP($A44,Filtro!$A$5:$AW$2673,20,FALSE),0) -> 1894 | W44: =IFERROR(VLOOKUP($A44,Filtro!$A$5:$AW$2673,21,FALSE),0) -> 1094 | X44: =IFERROR(VLOOKUP($A44,Filtro!$A$5:$AW$2673,22,FALSE),0) -> 3134 | Y44: =IFERROR(VLOOKUP($A44,Filtro!$A$5:$AW$2673,23,FALSE),0) -> 1768 | Z44: =IFERROR(VLOOKUP($A44,Filtro!$A$5:$AW$2673,24,FALSE),0) -> 4813 | AA44: =IFERROR(VLOOKUP($A44,Filtro!$A$5:$AW$2673,25,FALSE),0) -> 2939 | AB44: =IFERROR(VLOOKUP($A44,Filtro!$A$5:$AW$2673,26,FALSE),0) -> 7502 | AC44: =IFERROR(VLOOKUP($A44,Filtro!$A$5:$AW$2673,27,FALSE),0) -> 4690 | AD44: =IFERROR(VLOOKUP($A44,Filtro!$A$5:$AW$2673,28,FALSE),0) -> 11206 | AE44: =IFERROR(VLOOKUP($A44,Filtro!$A$5:$AW$2673,29,FALSE),0) -> 6901 | AF44: =IFERROR(VLOOKUP($A44,Filtro!$A$5:$AW$2673,30,FALSE),0) -> 13275 | AG44: =IFERROR(VLOOKUP($A44,Filtro!$A$5:$AW$2673,31,FALSE),0) -> 8121 | AH44: =IFERROR(VLOOKUP($A44,Filtro!$A$5:$AW$2673,32,FALSE),0) -> 13651 | AI44: =IFERROR(VLOOKUP($A44,Filtro!$A$5:$AW$2673,33,FALSE),0) -> 7792 | AJ44: =IFERROR(VLOOKUP($A44,Filtro!$A$5:$AW$2673,34,FALSE),0) -> 12081 | AK44: =IFERROR(VLOOKUP($A44,Filtro!$A$5:$AW$2673,35,FALSE),0) -> 6390 | AL44: =IFERROR(VLOOKUP($A44,Filtro!$A$5:$AW$2673,36,FALSE),0) -> 9895 | AM44: =IFERROR(VLOOKUP($A44,Filtro!$A$5:$AW$2673,37,FALSE),0) -> 7519 | AN44: =IFERROR(VLOOKUP($A44,Filtro!$A$5:$AW$2673,38,FALSE),0) -> 12151 | AO44: =IFERROR(VLOOKUP($A44,Filtro!$A$5:$AW$2673,39,FALSE),0) -> 843 | AP44: =IFERROR(VLOOKUP($A44,Filtro!$A$5:$AW$2673,40,FALSE),0) -> 643 | AQ44: =CB44&CC44 ->  | CB44: =IF(AND($D44<>0,AO44=""),"* No olvide ingresar la columna "&AO$41&""&" (Digite CERO si no tiene). ",IF(AO44>$D44,"* El Número de Pueblos Originarios no puede superar el Total. ","")) ->  | CC44: =IF(AND($D44<>0,AP44=""),"* No olvide ingresar la columna "&AP$41&""&" (Digite CERO si no tiene). ",IF(AP44>$D44,"* El Número de Migrantes no puede superar el Total. ","")) ->  | CL44: =IF(AND($D44<>0,AO44=""),1,IF(AO44>$D44,1,0)) -> 0 | CM44: =IF(AND($D44<>0,AP44=""),1,IF(AP44>$D44,1,0)) -> 0
A45: 03010502 | C45: Enfermera/o | D45: =IFERROR(VLOOKUP($A45,Filtro!$A$5:$AW$2673,2,FALSE),0) -> 70886 | E45: =IFERROR(VLOOKUP($A45,Filtro!$A$5:$AW$2673,3,FALSE),0) -> 25921 | F45: =IFERROR(VLOOKUP($A45,Filtro!$A$5:$AW$2673,4,FALSE),0) -> 44965 | G45: =IFERROR(VLOOKUP($A45,Filtro!$A$5:$AW$2673,5,FALSE),0) -> 0 | H45: =IFERROR(VLOOKUP($A45,Filtro!$A$5:$AW$2673,6,FALSE),0) -> 0 | I45: =IFERROR(VLOOKUP($A45,Filtro!$A$5:$AW$2673,7,FALSE),0) -> 0 | J45: =IFERROR(VLOOKUP($A45,Filtro!$A$5:$AW$2673,8,FALSE),0) -> 0 | K45: =IFERROR(VLOOKUP($A45,Filtro!$A$5:$AW$2673,9,FALSE),0) -> 0 | L45: =IFERROR(VLOOKUP($A45,Filtro!$A$5:$AW$2673,10,FALSE),0) -> 0 | M45: =IFERROR(VLOOKUP($A45,Filtro!$A$5:$AW$2673,11,FALSE),0) -> 30 | N45: =IFERROR(VLOOKUP($A45,Filtro!$A$5:$AW$2673,12,FALSE),0) -> 47 | O45: =IFERROR(VLOOKUP($A45,Filtro!$A$5:$AW$2673,13,FALSE),0) -> 60 | P45: =IFERROR(VLOOKUP($A45,Filtro!$A$5:$AW$2673,14,FALSE),0) -> 135 | Q45: =IFERROR(VLOOKUP($A45,Filtro!$A$5:$AW$2673,15,FALSE),0) -> 114 | R45: =IFERROR(VLOOKUP($A45,Filtro!$A$5:$AW$2673,16,FALSE),0) -> 254 | S45: =IFERROR(VLOOKUP($A45,Filtro!$A$5:$AW$2673,17,FALSE),0) -> 221 | T45: =IFERROR(VLOOKUP($A45,Filtro!$A$5:$AW$2673,18,FALSE),0) -> 596 | U45: =IFERROR(VLOOKUP($A45,Filtro!$A$5:$AW$2673,19,FALSE),0) -> 392 | V45: =IFERROR(VLOOKUP($A45,Filtro!$A$5:$AW$2673,20,FALSE),0) -> 898 | W45: =IFERROR(VLOOKUP($A45,Filtro!$A$5:$AW$2673,21,FALSE),0) -> 632 | X45: =IFERROR(VLOOKUP($A45,Filtro!$A$5:$AW$2673,22,FALSE),0) -> 1463 | Y45: =IFERROR(VLOOKUP($A45,Filtro!$A$5:$AW$2673,23,FALSE),0) -> 956 | Z45: =IFERROR(VLOOKUP($A45,Filtro!$A$5:$AW$2673,24,FALSE),0) -> 2323 | AA45: =IFERROR(VLOOKUP($A45,Filtro!$A$5:$AW$2673,25,FALSE),0) -> 1490 | AB45: =IFERROR(VLOOKUP($A45,Filtro!$A$5:$AW$2673,26,FALSE),0) -> 3553 | AC45: =IFERROR(VLOOKUP($A45,Filtro!$A$5:$AW$2673,27,FALSE),0) -> 2531 | AD45: =IFERROR(VLOOKUP($A45,Filtro!$A$5:$AW$2673,28,FALSE),0) -> 5325 | AE45: =IFERROR(VLOOKUP($A45,Filtro!$A$5:$AW$2673,29,FALSE),0) -> 3520 | AF45: =IFERROR(VLOOKUP($A45,Filtro!$A$5:$AW$2673,30,FALSE),0) -> 6505 | AG45: =IFERROR(VLOOKUP($A45,Filtro!$A$5:$AW$2673,31,FALSE),0) -> 4367 | AH45: =IFERROR(VLOOKUP($A45,Filtro!$A$5:$AW$2673,32,FALSE),0) -> 6895 | AI45: =IFERROR(VLOOKUP($A45,Filtro!$A$5:$AW$2673,33,FALSE),0) -> 4289 | AJ45: =IFERROR(VLOOKUP($A45,Filtro!$A$5:$AW$2673,34,FALSE),0) -> 6060 | AK45: =IFERROR(VLOOKUP($A45,Filtro!$A$5:$AW$2673,35,FALSE),0) -> 3354 | AL45: =IFERROR(VLOOKUP($A45,Filtro!$A$5:$AW$2673,36,FALSE),0) -> 4778 | AM45: =IFERROR(VLOOKUP($A45,Filtro!$A$5:$AW$2673,37,FALSE),0) -> 3964 | AN45: =IFERROR(VLOOKUP($A45,Filtro!$A$5:$AW$2673,38,FALSE),0) -> 6134 | AO45: =IFERROR(VLOOKUP($A45,Filtro!$A$5:$AW$2673,39,FALSE),0) -> 491 | AP45: =IFERROR(VLOOKUP($A45,Filtro!$A$5:$AW$2673,40,FALSE),0) -> 337 | CL45: 0 | CM45: 0
A46: 03010504 | C46: Nutricionista | D46: =IFERROR(VLOOKUP($A46,Filtro!$A$5:$AW$2673,2,FALSE),0) -> 64975 | E46: =IFERROR(VLOOKUP($A46,Filtro!$A$5:$AW$2673,3,FALSE),0) -> 21594 | F46: =IFERROR(VLOOKUP($A46,Filtro!$A$5:$AW$2673,4,FALSE),0) -> 43381 | G46: =IFERROR(VLOOKUP($A46,Filtro!$A$5:$AW$2673,5,FALSE),0) -> 0 | H46: =IFERROR(VLOOKUP($A46,Filtro!$A$5:$AW$2673,6,FALSE),0) -> 0 | I46: =IFERROR(VLOOKUP($A46,Filtro!$A$5:$AW$2673,7,FALSE),0) -> 0 | J46: =IFERROR(VLOOKUP($A46,Filtro!$A$5:$AW$2673,8,FALSE),0) -> 0 | K46: =IFERROR(VLOOKUP($A46,Filtro!$A$5:$AW$2673,9,FALSE),0) -> 0 | L46: =IFERROR(VLOOKUP($A46,Filtro!$A$5:$AW$2673,10,FALSE),0) -> 0 | M46: =IFERROR(VLOOKUP($A46,Filtro!$A$5:$AW$2673,11,FALSE),0) -> 35 | N46: =IFERROR(VLOOKUP($A46,Filtro!$A$5:$AW$2673,12,FALSE),0) -> 48 | O46: =IFERROR(VLOOKUP($A46,Filtro!$A$5:$AW$2673,13,FALSE),0) -> 74 | P46: =IFERROR(VLOOKUP($A46,Filtro!$A$5:$AW$2673,14,FALSE),0) -> 128 | Q46: =IFERROR(VLOOKUP($A46,Filtro!$A$5:$AW$2673,15,FALSE),0) -> 102 | R46: =IFERROR(VLOOKUP($A46,Filtro!$A$5:$AW$2673,16,FALSE),0) -> 259 | S46: =IFERROR(VLOOKUP($A46,Filtro!$A$5:$AW$2673,17,FALSE),0) -> 197 | T46: =IFERROR(VLOOKUP($A46,Filtro!$A$5:$AW$2673,18,FALSE),0) -> 537 | U46: =IFERROR(VLOOKUP($A46,Filtro!$A$5:$AW$2673,19,FALSE),0) -> 362 | V46: =IFERROR(VLOOKUP($A46,Filtro!$A$5:$AW$2673,20,FALSE),0) -> 907 | W46: =IFERROR(VLOOKUP($A46,Filtro!$A$5:$AW$2673,21,FALSE),0) -> 542 | X46: =IFERROR(VLOOKUP($A46,Filtro!$A$5:$AW$2673,22,FALSE),0) -> 1578 | Y46: =IFERROR(VLOOKUP($A46,Filtro!$A$5:$AW$2673,23,FALSE),0) -> 828 | Z46: =IFERROR(VLOOKUP($A46,Filtro!$A$5:$AW$2673,24,FALSE),0) -> 2479 | AA46: =IFERROR(VLOOKUP($A46,Filtro!$A$5:$AW$2673,25,FALSE),0) -> 1309 | AB46: =IFERROR(VLOOKUP($A46,Filtro!$A$5:$AW$2673,26,FALSE),0) -> 3803 | AC46: =IFERROR(VLOOKUP($A46,Filtro!$A$5:$AW$2673,27,FALSE),0) -> 2078 | AD46: =IFERROR(VLOOKUP($A46,Filtro!$A$5:$AW$2673,28,FALSE),0) -> 5483 | AE46: =IFERROR(VLOOKUP($A46,Filtro!$A$5:$AW$2673,29,FALSE),0) -> 2869 | AF46: =IFERROR(VLOOKUP($A46,Filtro!$A$5:$AW$2673,30,FALSE),0) -> 6304 | AG46: =IFERROR(VLOOKUP($A46,Filtro!$A$5:$AW$2673,31,FALSE),0) -> 3664 | AH46: =IFERROR(VLOOKUP($A46,Filtro!$A$5:$AW$2673,32,FALSE),0) -> 6580 | AI46: =IFERROR(VLOOKUP($A46,Filtro!$A$5:$AW$2673,33,FALSE),0) -> 3528 | AJ46: =IFERROR(VLOOKUP($A46,Filtro!$A$5:$AW$2673,34,FALSE),0) -> 5568 | AK46: =IFERROR(VLOOKUP($A46,Filtro!$A$5:$AW$2673,35,FALSE),0) -> 2667 | AL46: =IFERROR(VLOOKUP($A46,Filtro!$A$5:$AW$2673,36,FALSE),0) -> 4316 | AM46: =IFERROR(VLOOKUP($A46,Filtro!$A$5:$AW$2673,37,FALSE),0) -> 3339 | AN46: =IFERROR(VLOOKUP($A46,Filtro!$A$5:$AW$2673,38,FALSE),0) -> 5391 | AO46: =IFERROR(VLOOKUP($A46,Filtro!$A$5:$AW$2673,39,FALSE),0) -> 622 | AP46: =IFERROR(VLOOKUP($A46,Filtro!$A$5:$AW$2673,40,FALSE),0) -> 323 | CL46: 0 | CM46: 0
A47: 03010505 | C47: Técnico en Enfermería | D47: =IFERROR(VLOOKUP($A47,Filtro!$A$5:$AW$2673,2,FALSE),0) -> 104 | E47: =IFERROR(VLOOKUP($A47,Filtro!$A$5:$AW$2673,3,FALSE),0) -> 34 | F47: =IFERROR(VLOOKUP($A47,Filtro!$A$5:$AW$2673,4,FALSE),0) -> 70 | G47: =IFERROR(VLOOKUP($A47,Filtro!$A$5:$AW$2673,5,FALSE),0) -> 0 | H47: =IFERROR(VLOOKUP($A47,Filtro!$A$5:$AW$2673,6,FALSE),0) -> 0 | I47: =IFERROR(VLOOKUP($A47,Filtro!$A$5:$AW$2673,7,FALSE),0) -> 0 | J47: =IFERROR(VLOOKUP($A47,Filtro!$A$5:$AW$2673,8,FALSE),0) -> 0 | K47: =IFERROR(VLOOKUP($A47,Filtro!$A$5:$AW$2673,9,FALSE),0) -> 0 | L47: =IFERROR(VLOOKUP($A47,Filtro!$A$5:$AW$2673,10,FALSE),0) -> 0 | M47: =IFERROR(VLOOKUP($A47,Filtro!$A$5:$AW$2673,11,FALSE),0) -> 0 | N47: =IFERROR(VLOOKUP($A47,Filtro!$A$5:$AW$2673,12,FALSE),0) -> 0 | O47: =IFERROR(VLOOKUP($A47,Filtro!$A$5:$AW$2673,13,FALSE),0) -> 0 | P47: =IFERROR(VLOOKUP($A47,Filtro!$A$5:$AW$2673,14,FALSE),0) -> 0 | Q47: =IFERROR(VLOOKUP($A47,Filtro!$A$5:$AW$2673,15,FALSE),0) -> 0 | R47: =IFERROR(VLOOKUP($A47,Filtro!$A$5:$AW$2673,16,FALSE),0) -> 1 | S47: =IFERROR(VLOOKUP($A47,Filtro!$A$5:$AW$2673,17,FALSE),0) -> 1 | T47: =IFERROR(VLOOKUP($A47,Filtro!$A$5:$AW$2673,18,FALSE),0) -> 3 | U47: =IFERROR(VLOOKUP($A47,Filtro!$A$5:$AW$2673,19,FALSE),0) -> 0 | V47: =IFERROR(VLOOKUP($A47,Filtro!$A$5:$AW$2673,20,FALSE),0) -> 3 | W47: =IFERROR(VLOOKUP($A47,Filtro!$A$5:$AW$2673,21,FALSE),0) -> 1 | X47: =IFERROR(VLOOKUP($A47,Filtro!$A$5:$AW$2673,22,FALSE),0) -> 5 | Y47: =IFERROR(VLOOKUP($A47,Filtro!$A$5:$AW$2673,23,FALSE),0) -> 6 | Z47: =IFERROR(VLOOKUP($A47,Filtro!$A$5:$AW$2673,24,FALSE),0) -> 8 | AA47: =IFERROR(VLOOKUP($A47,Filtro!$A$5:$AW$2673,25,FALSE),0) -> 5 | AB47: =IFERROR(VLOOKUP($A47,Filtro!$A$5:$AW$2673,26,FALSE),0) -> 8 | AC47: =IFERROR(VLOOKUP($A47,Filtro!$A$5:$AW$2673,27,FALSE),0) -> 4 | AD47: =IFERROR(VLOOKUP($A47,Filtro!$A$5:$AW$2673,28,FALSE),0) -> 3 | AE47: =IFERROR(VLOOKUP($A47,Filtro!$A$5:$AW$2673,29,FALSE),0) -> 2 | AF47: =IFERROR(VLOOKUP($A47,Filtro!$A$5:$AW$2673,30,FALSE),0) -> 4 | AG47: =IFERROR(VLOOKUP($A47,Filtro!$A$5:$AW$2673,31,FALSE),0) -> 3 | AH47: =IFERROR(VLOOKUP($A47,Filtro!$A$5:$AW$2673,32,FALSE),0) -> 5 | AI47: =IFERROR(VLOOKUP($A47,Filtro!$A$5:$AW$2673,33,FALSE),0) -> 2 | AJ47: =IFERROR(VLOOKUP($A47,Filtro!$A$5:$AW$2673,34,FALSE),0) -> 4 | AK47: =IFERROR(VLOOKUP($A47,Filtro!$A$5:$AW$2673,35,FALSE),0) -> 2 | AL47: =IFERROR(VLOOKUP($A47,Filtro!$A$5:$AW$2673,36,FALSE),0) -> 14 | AM47: =IFERROR(VLOOKUP($A47,Filtro!$A$5:$AW$2673,37,FALSE),0) -> 8 | AN47: =IFERROR(VLOOKUP($A47,Filtro!$A$5:$AW$2673,38,FALSE),0) -> 12 | AO47: =IFERROR(VLOOKUP($A47,Filtro!$A$5:$AW$2673,39,FALSE),0) -> 0 | AP47: =IFERROR(VLOOKUP($A47,Filtro!$A$5:$AW$2673,40,FALSE),0) -> 0 | CL47: 0 | CM47: 0
A48: 01030100A | B48: Seguimiento Autovalente con riesgo | C48: Médico/a | D48: =IFERROR(VLOOKUP($A48,Filtro!$A$5:$AW$2673,2,FALSE),0) -> 85 | E48: =IFERROR(VLOOKUP($A48,Filtro!$A$5:$AW$2673,3,FALSE),0) -> 30 | F48: =IFERROR(VLOOKUP($A48,Filtro!$A$5:$AW$2673,4,FALSE),0) -> 55 | G48: =IFERROR(VLOOKUP($A48,Filtro!$A$5:$AW$2673,5,FALSE),0) -> 0 | H48: =IFERROR(VLOOKUP($A48,Filtro!$A$5:$AW$2673,6,FALSE),0) -> 0 | I48: =IFERROR(VLOOKUP($A48,Filtro!$A$5:$AW$2673,7,FALSE),0) -> 0 | J48: =IFERROR(VLOOKUP($A48,Filtro!$A$5:$AW$2673,8,FALSE),0) -> 0 | K48: =IFERROR(VLOOKUP($A48,Filtro!$A$5:$AW$2673,9,FALSE),0) -> 0 | L48: =IFERROR(VLOOKUP($A48,Filtro!$A$5:$AW$2673,10,FALSE),0) -> 0 | M48: =IFERROR(VLOOKUP($A48,Filtro!$A$5:$AW$2673,11,FALSE),0) -> 0 | N48: =IFERROR(VLOOKUP($A48,Filtro!$A$5:$AW$2673,12,FALSE),0) -> 0 | O48: =IFERROR(VLOOKUP($A48,Filtro!$A$5:$AW$2673,13,FALSE),0) -> 0 | P48: =IFERROR(VLOOKUP($A48,Filtro!$A$5:$AW$2673,14,FALSE),0) -> 0 | Q48: =IFERROR(VLOOKUP($A48,Filtro!$A$5:$AW$2673,15,FALSE),0) -> 0 | R48: =IFERROR(VLOOKUP($A48,Filtro!$A$5:$AW$2673,16,FALSE),0) -> 0 | S48: =IFERROR(VLOOKUP($A48,Filtro!$A$5:$AW$2673,17,FALSE),0) -> 0 | T48: =IFERROR(VLOOKUP($A48,Filtro!$A$5:$AW$2673,18,FALSE),0) -> 0 | U48: =IFERROR(VLOOKUP($A48,Filtro!$A$5:$AW$2673,19,FALSE),0) -> 0 | V48: =IFERROR(VLOOKUP($A48,Filtro!$A$5:$AW$2673,20,FALSE),0) -> 0 | W48: =IFERROR(VLOOKUP($A48,Filtro!$A$5:$AW$2673,21,FALSE),0) -> 0 | X48: =IFERROR(VLOOKUP($A48,Filtro!$A$5:$AW$2673,22,FALSE),0) -> 0 | Y48: =IFERROR(VLOOKUP($A48,Filtro!$A$5:$AW$2673,23,FALSE),0) -> 0 | Z48: =IFERROR(VLOOKUP($A48,Filtro!$A$5:$AW$2673,24,FALSE),0) -> 0 | AA48: =IFERROR(VLOOKUP($A48,Filtro!$A$5:$AW$2673,25,FALSE),0) -> 0 | AB48: =IFERROR(VLOOKUP($A48,Filtro!$A$5:$AW$2673,26,FALSE),0) -> 0 | AC48: =IFERROR(VLOOKUP($A48,Filtro!$A$5:$AW$2673,27,FALSE),0) -> 0 | AD48: =IFERROR(VLOOKUP($A48,Filtro!$A$5:$AW$2673,28,FALSE),0) -> 0 | AE48: =IFERROR(VLOOKUP($A48,Filtro!$A$5:$AW$2673,29,FALSE),0) -> 0 | AF48: =IFERROR(VLOOKUP($A48,Filtro!$A$5:$AW$2673,30,FALSE),0) -> 0 | AG48: =IFERROR(VLOOKUP($A48,Filtro!$A$5:$AW$2673,31,FALSE),0) -> 8 | AH48: =IFERROR(VLOOKUP($A48,Filtro!$A$5:$AW$2673,32,FALSE),0) -> 21 | AI48: =IFERROR(VLOOKUP($A48,Filtro!$A$5:$AW$2673,33,FALSE),0) -> 9 | AJ48: =IFERROR(VLOOKUP($A48,Filtro!$A$5:$AW$2673,34,FALSE),0) -> 18 | AK48: =IFERROR(VLOOKUP($A48,Filtro!$A$5:$AW$2673,35,FALSE),0) -> 8 | AL48: =IFERROR(VLOOKUP($A48,Filtro!$A$5:$AW$2673,36,FALSE),0) -> 7 | AM48: =IFERROR(VLOOKUP($A48,Filtro!$A$5:$AW$2673,37,FALSE),0) -> 5 | AN48: =IFERROR(VLOOKUP($A48,Filtro!$A$5:$AW$2673,38,FALSE),0) -> 9 | AO48: =IFERROR(VLOOKUP($A48,Filtro!$A$5:$AW$2673,39,FALSE),0) -> 0 | AP48: =IFERROR(VLOOKUP($A48,Filtro!$A$5:$AW$2673,40,FALSE),0) -> 0 | CL48: 0 | CM48: 0
A49: 01030200B | C49: Enfermera/o | D49: =IFERROR(VLOOKUP($A49,Filtro!$A$5:$AW$2673,2,FALSE),0) -> 1279 | E49: =IFERROR(VLOOKUP($A49,Filtro!$A$5:$AW$2673,3,FALSE),0) -> 487 | F49: =IFERROR(VLOOKUP($A49,Filtro!$A$5:$AW$2673,4,FALSE),0) -> 792 | G49: =IFERROR(VLOOKUP($A49,Filtro!$A$5:$AW$2673,5,FALSE),0) -> 0 | H49: =IFERROR(VLOOKUP($A49,Filtro!$A$5:$AW$2673,6,FALSE),0) -> 0 | I49: =IFERROR(VLOOKUP($A49,Filtro!$A$5:$AW$2673,7,FALSE),0) -> 0 | J49: =IFERROR(VLOOKUP($A49,Filtro!$A$5:$AW$2673,8,FALSE),0) -> 0 | K49: =IFERROR(VLOOKUP($A49,Filtro!$A$5:$AW$2673,9,FALSE),0) -> 0 | L49: =IFERROR(VLOOKUP($A49,Filtro!$A$5:$AW$2673,10,FALSE),0) -> 0 | M49: =IFERROR(VLOOKUP($A49,Filtro!$A$5:$AW$2673,11,FALSE),0) -> 0 | N49: =IFERROR(VLOOKUP($A49,Filtro!$A$5:$AW$2673,12,FALSE),0) -> 0 | O49: =IFERROR(VLOOKUP($A49,Filtro!$A$5:$AW$2673,13,FALSE),0) -> 0 | P49: =IFERROR(VLOOKUP($A49,Filtro!$A$5:$AW$2673,14,FALSE),0) -> 0 | Q49: =IFERROR(VLOOKUP($A49,Filtro!$A$5:$AW$2673,15,FALSE),0) -> 0 | R49: =IFERROR(VLOOKUP($A49,Filtro!$A$5:$AW$2673,16,FALSE),0) -> 0 | S49: =IFERROR(VLOOKUP($A49,Filtro!$A$5:$AW$2673,17,FALSE),0) -> 0 | T49: =IFERROR(VLOOKUP($A49,Filtro!$A$5:$AW$2673,18,FALSE),0) -> 0 | U49: =IFERROR(VLOOKUP($A49,Filtro!$A$5:$AW$2673,19,FALSE),0) -> 0 | V49: =IFERROR(VLOOKUP($A49,Filtro!$A$5:$AW$2673,20,FALSE),0) -> 0 | W49: =IFERROR(VLOOKUP($A49,Filtro!$A$5:$AW$2673,21,FALSE),0) -> 0 | X49: =IFERROR(VLOOKUP($A49,Filtro!$A$5:$AW$2673,22,FALSE),0) -> 0 | Y49: =IFERROR(VLOOKUP($A49,Filtro!$A$5:$AW$2673,23,FALSE),0) -> 0 | Z49: =IFERROR(VLOOKUP($A49,Filtro!$A$5:$AW$2673,24,FALSE),0) -> 0 | AA49: =IFERROR(VLOOKUP($A49,Filtro!$A$5:$AW$2673,25,FALSE),0) -> 0 | AB49: =IFERROR(VLOOKUP($A49,Filtro!$A$5:$AW$2673,26,FALSE),0) -> 0 | AC49: =IFERROR(VLOOKUP($A49,Filtro!$A$5:$AW$2673,27,FALSE),0) -> 0 | AD49: =IFERROR(VLOOKUP($A49,Filtro!$A$5:$AW$2673,28,FALSE),0) -> 0 | AE49: =IFERROR(VLOOKUP($A49,Filtro!$A$5:$AW$2673,29,FALSE),0) -> 0 | AF49: =IFERROR(VLOOKUP($A49,Filtro!$A$5:$AW$2673,30,FALSE),0) -> 0 | AG49: =IFERROR(VLOOKUP($A49,Filtro!$A$5:$AW$2673,31,FALSE),0) -> 145 | AH49: =IFERROR(VLOOKUP($A49,Filtro!$A$5:$AW$2673,32,FALSE),0) -> 249 | AI49: =IFERROR(VLOOKUP($A49,Filtro!$A$5:$AW$2673,33,FALSE),0) -> 147 | AJ49: =IFERROR(VLOOKUP($A49,Filtro!$A$5:$AW$2673,34,FALSE),0) -> 235 | AK49: =IFERROR(VLOOKUP($A49,Filtro!$A$5:$AW$2673,35,FALSE),0) -> 99 | AL49: =IFERROR(VLOOKUP($A49,Filtro!$A$5:$AW$2673,36,FALSE),0) -> 158 | AM49: =IFERROR(VLOOKUP($A49,Filtro!$A$5:$AW$2673,37,FALSE),0) -> 96 | AN49: =IFERROR(VLOOKUP($A49,Filtro!$A$5:$AW$2673,38,FALSE),0) -> 150 | AO49: =IFERROR(VLOOKUP($A49,Filtro!$A$5:$AW$2673,39,FALSE),0) -> 13 | AP49: =IFERROR(VLOOKUP($A49,Filtro!$A$5:$AW$2673,40,FALSE),0) -> 3 | CL49: 0 | CM49: 0
A50: 09600204 | C50: Otros Profesionales debidamente capacitados | D50: =IFERROR(VLOOKUP($A50,Filtro!$A$5:$AW$2673,2,FALSE),0) -> 234 | E50: =IFERROR(VLOOKUP($A50,Filtro!$A$5:$AW$2673,3,FALSE),0) -> 67 | F50: =IFERROR(VLOOKUP($A50,Filtro!$A$5:$AW$2673,4,FALSE),0) -> 167 | G50: =IFERROR(VLOOKUP($A50,Filtro!$A$5:$AW$2673,5,FALSE),0) -> 0 | H50: =IFERROR(VLOOKUP($A50,Filtro!$A$5:$AW$2673,6,FALSE),0) -> 0 | I50: =IFERROR(VLOOKUP($A50,Filtro!$A$5:$AW$2673,7,FALSE),0) -> 0 | J50: =IFERROR(VLOOKUP($A50,Filtro!$A$5:$AW$2673,8,FALSE),0) -> 0 | K50: =IFERROR(VLOOKUP($A50,Filtro!$A$5:$AW$2673,9,FALSE),0) -> 0 | L50: =IFERROR(VLOOKUP($A50,Filtro!$A$5:$AW$2673,10,FALSE),0) -> 0 | M50: =IFERROR(VLOOKUP($A50,Filtro!$A$5:$AW$2673,11,FALSE),0) -> 0 | N50: =IFERROR(VLOOKUP($A50,Filtro!$A$5:$AW$2673,12,FALSE),0) -> 0 | O50: =IFERROR(VLOOKUP($A50,Filtro!$A$5:$AW$2673,13,FALSE),0) -> 0 | P50: =IFERROR(VLOOKUP($A50,Filtro!$A$5:$AW$2673,14,FALSE),0) -> 0 | Q50: =IFERROR(VLOOKUP($A50,Filtro!$A$5:$AW$2673,15,FALSE),0) -> 0 | R50: =IFERROR(VLOOKUP($A50,Filtro!$A$5:$AW$2673,16,FALSE),0) -> 0 | S50: =IFERROR(VLOOKUP($A50,Filtro!$A$5:$AW$2673,17,FALSE),0) -> 0 | T50: =IFERROR(VLOOKUP($A50,Filtro!$A$5:$AW$2673,18,FALSE),0) -> 0 | U50: =IFERROR(VLOOKUP($A50,Filtro!$A$5:$AW$2673,19,FALSE),0) -> 0 | V50: =IFERROR(VLOOKUP($A50,Filtro!$A$5:$AW$2673,20,FALSE),0) -> 0 | W50: =IFERROR(VLOOKUP($A50,Filtro!$A$5:$AW$2673,21,FALSE),0) -> 0 | X50: =IFERROR(VLOOKUP($A50,Filtro!$A$5:$AW$2673,22,FALSE),0) -> 0 | Y50: =IFERROR(VLOOKUP($A50,Filtro!$A$5:$AW$2673,23,FALSE),0) -> 0 | Z50: =IFERROR(VLOOKUP($A50,Filtro!$A$5:$AW$2673,24,FALSE),0) -> 0 | AA50: =IFERROR(VLOOKUP($A50,Filtro!$A$5:$AW$2673,25,FALSE),0) -> 0 | AB50: =IFERROR(VLOOKUP($A50,Filtro!$A$5:$AW$2673,26,FALSE),0) -> 0 | AC50: =IFERROR(VLOOKUP($A50,Filtro!$A$5:$AW$2673,27,FALSE),0) -> 0 | AD50: =IFERROR(VLOOKUP($A50,Filtro!$A$5:$AW$2673,28,FALSE),0) -> 0 | AE50: =IFERROR(VLOOKUP($A50,Filtro!$A$5:$AW$2673,29,FALSE),0) -> 0 | AF50: =IFERROR(VLOOKUP($A50,Filtro!$A$5:$AW$2673,30,FALSE),0) -> 0 | AG50: =IFERROR(VLOOKUP($A50,Filtro!$A$5:$AW$2673,31,FALSE),0) -> 20 | AH50: =IFERROR(VLOOKUP($A50,Filtro!$A$5:$AW$2673,32,FALSE),0) -> 53 | AI50: =IFERROR(VLOOKUP($A50,Filtro!$A$5:$AW$2673,33,FALSE),0) -> 23 | AJ50: =IFERROR(VLOOKUP($A50,Filtro!$A$5:$AW$2673,34,FALSE),0) -> 46 | AK50: =IFERROR(VLOOKUP($A50,Filtro!$A$5:$AW$2673,35,FALSE),0) -> 8 | AL50: =IFERROR(VLOOKUP($A50,Filtro!$A$5:$AW$2673,36,FALSE),0) -> 44 | AM50: =IFERROR(VLOOKUP($A50,Filtro!$A$5:$AW$2673,37,FALSE),0) -> 16 | AN50: =IFERROR(VLOOKUP($A50,Filtro!$A$5:$AW$2673,38,FALSE),0) -> 24 | AO50: =IFERROR(VLOOKUP($A50,Filtro!$A$5:$AW$2673,39,FALSE),0) -> 1 | AP50: =IFERROR(VLOOKUP($A50,Filtro!$A$5:$AW$2673,40,FALSE),0) -> 0 | CL50: 0 | CM50: 0
A51: 01030300C | B51: Seguimiento riesgo dependencia | C51: Médico/a | D51: =IFERROR(VLOOKUP($A51,Filtro!$A$5:$AW$2673,2,FALSE),0) -> 21 | E51: =IFERROR(VLOOKUP($A51,Filtro!$A$5:$AW$2673,3,FALSE),0) -> 7 | F51: =IFERROR(VLOOKUP($A51,Filtro!$A$5:$AW$2673,4,FALSE),0) -> 14 | G51: =IFERROR(VLOOKUP($A51,Filtro!$A$5:$AW$2673,5,FALSE),0) -> 0 | H51: =IFERROR(VLOOKUP($A51,Filtro!$A$5:$AW$2673,6,FALSE),0) -> 0 | I51: =IFERROR(VLOOKUP($A51,Filtro!$A$5:$AW$2673,7,FALSE),0) -> 0 | J51: =IFERROR(VLOOKUP($A51,Filtro!$A$5:$AW$2673,8,FALSE),0) -> 0 | K51: =IFERROR(VLOOKUP($A51,Filtro!$A$5:$AW$2673,9,FALSE),0) -> 0 | L51: =IFERROR(VLOOKUP($A51,Filtro!$A$5:$AW$2673,10,FALSE),0) -> 0 | M51: =IFERROR(VLOOKUP($A51,Filtro!$A$5:$AW$2673,11,FALSE),0) -> 0 | N51: =IFERROR(VLOOKUP($A51,Filtro!$A$5:$AW$2673,12,FALSE),0) -> 0 | O51: =IFERROR(VLOOKUP($A51,Filtro!$A$5:$AW$2673,13,FALSE),0) -> 0 | P51: =IFERROR(VLOOKUP($A51,Filtro!$A$5:$AW$2673,14,FALSE),0) -> 0 | Q51: =IFERROR(VLOOKUP($A51,Filtro!$A$5:$AW$2673,15,FALSE),0) -> 0 | R51: =IFERROR(VLOOKUP($A51,Filtro!$A$5:$AW$2673,16,FALSE),0) -> 0 | S51: =IFERROR(VLOOKUP($A51,Filtro!$A$5:$AW$2673,17,FALSE),0) -> 0 | T51: =IFERROR(VLOOKUP($A51,Filtro!$A$5:$AW$2673,18,FALSE),0) -> 0 | U51: =IFERROR(VLOOKUP($A51,Filtro!$A$5:$AW$2673,19,FALSE),0) -> 0 | V51: =IFERROR(VLOOKUP($A51,Filtro!$A$5:$AW$2673,20,FALSE),0) -> 0 | W51: =IFERROR(VLOOKUP($A51,Filtro!$A$5:$AW$2673,21,FALSE),0) -> 0 | X51: =IFERROR(VLOOKUP($A51,Filtro!$A$5:$AW$2673,22,FALSE),0) -> 0 | Y51: =IFERROR(VLOOKUP($A51,Filtro!$A$5:$AW$2673,23,FALSE),0) -> 0 | Z51: =IFERROR(VLOOKUP($A51,Filtro!$A$5:$AW$2673,24,FALSE),0) -> 0 | AA51: =IFERROR(VLOOKUP($A51,Filtro!$A$5:$AW$2673,25,FALSE),0) -> 0 | AB51: =IFERROR(VLOOKUP($A51,Filtro!$A$5:$AW$2673,26,FALSE),0) -> 0 | AC51: =IFERROR(VLOOKUP($A51,Filtro!$A$5:$AW$2673,27,FALSE),0) -> 0 | AD51: =IFERROR(VLOOKUP($A51,Filtro!$A$5:$AW$2673,28,FALSE),0) -> 0 | AE51: =IFERROR(VLOOKUP($A51,Filtro!$A$5:$AW$2673,29,FALSE),0) -> 0 | AF51: =IFERROR(VLOOKUP($A51,Filtro!$A$5:$AW$2673,30,FALSE),0) -> 0 | AG51: =IFERROR(VLOOKUP($A51,Filtro!$A$5:$AW$2673,31,FALSE),0) -> 2 | AH51: =IFERROR(VLOOKUP($A51,Filtro!$A$5:$AW$2673,32,FALSE),0) -> 2 | AI51: =IFERROR(VLOOKUP($A51,Filtro!$A$5:$AW$2673,33,FALSE),0) -> 0 | AJ51: =IFERROR(VLOOKUP($A51,Filtro!$A$5:$AW$2673,34,FALSE),0) -> 3 | AK51: =IFERROR(VLOOKUP($A51,Filtro!$A$5:$AW$2673,35,FALSE),0) -> 0 | AL51: =IFERROR(VLOOKUP($A51,Filtro!$A$5:$AW$2673,36,FALSE),0) -> 2 | AM51: =IFERROR(VLOOKUP($A51,Filtro!$A$5:$AW$2673,37,FALSE),0) -> 5 | AN51: =IFERROR(VLOOKUP($A51,Filtro!$A$5:$AW$2673,38,FALSE),0) -> 7 | AO51: =IFERROR(VLOOKUP($A51,Filtro!$A$5:$AW$2673,39,FALSE),0) -> 0 | AP51: =IFERROR(VLOOKUP($A51,Filtro!$A$5:$AW$2673,40,FALSE),0) -> 0 | CL51: 0 | CM51: 0
A52: 01030400D | C52: Enfermera/o | D52: =IFERROR(VLOOKUP($A52,Filtro!$A$5:$AW$2673,2,FALSE),0) -> 452 | E52: =IFERROR(VLOOKUP($A52,Filtro!$A$5:$AW$2673,3,FALSE),0) -> 173 | F52: =IFERROR(VLOOKUP($A52,Filtro!$A$5:$AW$2673,4,FALSE),0) -> 279 | G52: =IFERROR(VLOOKUP($A52,Filtro!$A$5:$AW$2673,5,FALSE),0) -> 0 | H52: =IFERROR(VLOOKUP($A52,Filtro!$A$5:$AW$2673,6,FALSE),0) -> 0 | I52: =IFERROR(VLOOKUP($A52,Filtro!$A$5:$AW$2673,7,FALSE),0) -> 0 | J52: =IFERROR(VLOOKUP($A52,Filtro!$A$5:$AW$2673,8,FALSE),0) -> 0 | K52: =IFERROR(VLOOKUP($A52,Filtro!$A$5:$AW$2673,9,FALSE),0) -> 0 | L52: =IFERROR(VLOOKUP($A52,Filtro!$A$5:$AW$2673,10,FALSE),0) -> 0 | M52: =IFERROR(VLOOKUP($A52,Filtro!$A$5:$AW$2673,11,FALSE),0) -> 0 | N52: =IFERROR(VLOOKUP($A52,Filtro!$A$5:$AW$2673,12,FALSE),0) -> 0 | O52: =IFERROR(VLOOKUP($A52,Filtro!$A$5:$AW$2673,13,FALSE),0) -> 0 | P52: =IFERROR(VLOOKUP($A52,Filtro!$A$5:$AW$2673,14,FALSE),0) -> 0 | Q52: =IFERROR(VLOOKUP($A52,Filtro!$A$5:$AW$2673,15,FALSE),0) -> 0 | R52: =IFERROR(VLOOKUP($A52,Filtro!$A$5:$AW$2673,16,FALSE),0) -> 0 | S52: =IFERROR(VLOOKUP($A52,Filtro!$A$5:$AW$2673,17,FALSE),0) -> 0 | T52: =IFERROR(VLOOKUP($A52,Filtro!$A$5:$AW$2673,18,FALSE),0) -> 0 | U52: =IFERROR(VLOOKUP($A52,Filtro!$A$5:$AW$2673,19,FALSE),0) -> 0 | V52: =IFERROR(VLOOKUP($A52,Filtro!$A$5:$AW$2673,20,FALSE),0) -> 0 | W52: =IFERROR(VLOOKUP($A52,Filtro!$A$5:$AW$2673,21,FALSE),0) -> 0 | X52: =IFERROR(VLOOKUP($A52,Filtro!$A$5:$AW$2673,22,FALSE),0) -> 0 | Y52: =IFERROR(VLOOKUP($A52,Filtro!$A$5:$AW$2673,23,FALSE),0) -> 0 | Z52: =IFERROR(VLOOKUP($A52,Filtro!$A$5:$AW$2673,24,FALSE),0) -> 0 | AA52: =IFERROR(VLOOKUP($A52,Filtro!$A$5:$AW$2673,25,FALSE),0) -> 0 | AB52: =IFERROR(VLOOKUP($A52,Filtro!$A$5:$AW$2673,26,FALSE),0) -> 0 | AC52: =IFERROR(VLOOKUP($A52,Filtro!$A$5:$AW$2673,27,FALSE),0) -> 0 | AD52: =IFERROR(VLOOKUP($A52,Filtro!$A$5:$AW$2673,28,FALSE),0) -> 0 | AE52: =IFERROR(VLOOKUP($A52,Filtro!$A$5:$AW$2673,29,FALSE),0) -> 0 | AF52: =IFERROR(VLOOKUP($A52,Filtro!$A$5:$AW$2673,30,FALSE),0) -> 0 | AG52: =IFERROR(VLOOKUP($A52,Filtro!$A$5:$AW$2673,31,FALSE),0) -> 25 | AH52: =IFERROR(VLOOKUP($A52,Filtro!$A$5:$AW$2673,32,FALSE),0) -> 32 | AI52: =IFERROR(VLOOKUP($A52,Filtro!$A$5:$AW$2673,33,FALSE),0) -> 20 | AJ52: =IFERROR(VLOOKUP($A52,Filtro!$A$5:$AW$2673,34,FALSE),0) -> 29 | AK52: =IFERROR(VLOOKUP($A52,Filtro!$A$5:$AW$2673,35,FALSE),0) -> 23 | AL52: =IFERROR(VLOOKUP($A52,Filtro!$A$5:$AW$2673,36,FALSE),0) -> 57 | AM52: =IFERROR(VLOOKUP($A52,Filtro!$A$5:$AW$2673,37,FALSE),0) -> 105 | AN52: =IFERROR(VLOOKUP($A52,Filtro!$A$5:$AW$2673,38,FALSE),0) -> 161 | AO52: =IFERROR(VLOOKUP($A52,Filtro!$A$5:$AW$2673,39,FALSE),0) -> 1 | AP52: =IFERROR(VLOOKUP($A52,Filtro!$A$5:$AW$2673,40,FALSE),0) -> 0 | CL52: 0 | CM52: 0
A53: 09600205 | C53: Otros Profesionales debidamente capacitados | D53: =IFERROR(VLOOKUP($A53,Filtro!$A$5:$AW$2673,2,FALSE),0) -> 63 | E53: =IFERROR(VLOOKUP($A53,Filtro!$A$5:$AW$2673,3,FALSE),0) -> 20 | F53: =IFERROR(VLOOKUP($A53,Filtro!$A$5:$AW$2673,4,FALSE),0) -> 43 | G53: =IFERROR(VLOOKUP($A53,Filtro!$A$5:$AW$2673,5,FALSE),0) -> 0 | H53: =IFERROR(VLOOKUP($A53,Filtro!$A$5:$AW$2673,6,FALSE),0) -> 0 | I53: =IFERROR(VLOOKUP($A53,Filtro!$A$5:$AW$2673,7,FALSE),0) -> 0 | J53: =IFERROR(VLOOKUP($A53,Filtro!$A$5:$AW$2673,8,FALSE),0) -> 0 | K53: =IFERROR(VLOOKUP($A53,Filtro!$A$5:$AW$2673,9,FALSE),0) -> 0 | L53: =IFERROR(VLOOKUP($A53,Filtro!$A$5:$AW$2673,10,FALSE),0) -> 0 | M53: =IFERROR(VLOOKUP($A53,Filtro!$A$5:$AW$2673,11,FALSE),0) -> 0 | N53: =IFERROR(VLOOKUP($A53,Filtro!$A$5:$AW$2673,12,FALSE),0) -> 0 | O53: =IFERROR(VLOOKUP($A53,Filtro!$A$5:$AW$2673,13,FALSE),0) -> 0 | P53: =IFERROR(VLOOKUP($A53,Filtro!$A$5:$AW$2673,14,FALSE),0) -> 0 | Q53: =IFERROR(VLOOKUP($A53,Filtro!$A$5:$AW$2673,15,FALSE),0) -> 0 | R53: =IFERROR(VLOOKUP($A53,Filtro!$A$5:$AW$2673,16,FALSE),0) -> 0 | S53: =IFERROR(VLOOKUP($A53,Filtro!$A$5:$AW$2673,17,FALSE),0) -> 0 | T53: =IFERROR(VLOOKUP($A53,Filtro!$A$5:$AW$2673,18,FALSE),0) -> 0 | U53: =IFERROR(VLOOKUP($A53,Filtro!$A$5:$AW$2673,19,FALSE),0) -> 0 | V53: =IFERROR(VLOOKUP($A53,Filtro!$A$5:$AW$2673,20,FALSE),0) -> 0 | W53: =IFERROR(VLOOKUP($A53,Filtro!$A$5:$AW$2673,21,FALSE),0) -> 0 | X53: =IFERROR(VLOOKUP($A53,Filtro!$A$5:$AW$2673,22,FALSE),0) -> 0 | Y53: =IFERROR(VLOOKUP($A53,Filtro!$A$5:$AW$2673,23,FALSE),0) -> 0 | Z53: =IFERROR(VLOOKUP($A53,Filtro!$A$5:$AW$2673,24,FALSE),0) -> 0 | AA53: =IFERROR(VLOOKUP($A53,Filtro!$A$5:$AW$2673,25,FALSE),0) -> 0 | AB53: =IFERROR(VLOOKUP($A53,Filtro!$A$5:$AW$2673,26,FALSE),0) -> 0 | AC53: =IFERROR(VLOOKUP($A53,Filtro!$A$5:$AW$2673,27,FALSE),0) -> 0 | AD53: =IFERROR(VLOOKUP($A53,Filtro!$A$5:$AW$2673,28,FALSE),0) -> 0 | AE53: =IFERROR(VLOOKUP($A53,Filtro!$A$5:$AW$2673,29,FALSE),0) -> 0 | AF53: =IFERROR(VLOOKUP($A53,Filtro!$A$5:$AW$2673,30,FALSE),0) -> 0 | AG53: =IFERROR(VLOOKUP($A53,Filtro!$A$5:$AW$2673,31,FALSE),0) -> 4 | AH53: =IFERROR(VLOOKUP($A53,Filtro!$A$5:$AW$2673,32,FALSE),0) -> 3 | AI53: =IFERROR(VLOOKUP($A53,Filtro!$A$5:$AW$2673,33,FALSE),0) -> 3 | AJ53: =IFERROR(VLOOKUP($A53,Filtro!$A$5:$AW$2673,34,FALSE),0) -> 3 | AK53: =IFERROR(VLOOKUP($A53,Filtro!$A$5:$AW$2673,35,FALSE),0) -> 4 | AL53: =IFERROR(VLOOKUP($A53,Filtro!$A$5:$AW$2673,36,FALSE),0) -> 12 | AM53: =IFERROR(VLOOKUP($A53,Filtro!$A$5:$AW$2673,37,FALSE),0) -> 9 | AN53: =IFERROR(VLOOKUP($A53,Filtro!$A$5:$AW$2673,38,FALSE),0) -> 25 | AO53: =IFERROR(VLOOKUP($A53,Filtro!$A$5:$AW$2673,39,FALSE),0) -> 1 | AP53: =IFERROR(VLOOKUP($A53,Filtro!$A$5:$AW$2673,40,FALSE),0) -> 0 | CL53: 0 | CM53: 0
A54: 01200010 | B54: De Infección Transmisión Sexual | C54: Médico/a | D54: =IFERROR(VLOOKUP($A54,Filtro!$A$5:$AW$2673,2,FALSE),0) -> 122 | E54: =IFERROR(VLOOKUP($A54,Filtro!$A$5:$AW$2673,3,FALSE),0) -> 38 | F54: =IFERROR(VLOOKUP($A54,Filtro!$A$5:$AW$2673,4,FALSE),0) -> 84 | G54: =IFERROR(VLOOKUP($A54,Filtro!$A$5:$AW$2673,5,FALSE),0) -> 0 | H54: =IFERROR(VLOOKUP($A54,Filtro!$A$5:$AW$2673,6,FALSE),0) -> 0 | I54: =IFERROR(VLOOKUP($A54,Filtro!$A$5:$AW$2673,7,FALSE),0) -> 2 | J54: =IFERROR(VLOOKUP($A54,Filtro!$A$5:$AW$2673,8,FALSE),0) -> 2 | K54: =IFERROR(VLOOKUP($A54,Filtro!$A$5:$AW$2673,9,FALSE),0) -> 0 | L54: =IFERROR(VLOOKUP($A54,Filtro!$A$5:$AW$2673,10,FALSE),0) -> 3 | M54: =IFERROR(VLOOKUP($A54,Filtro!$A$5:$AW$2673,11,FALSE),0) -> 1 | N54: =IFERROR(VLOOKUP($A54,Filtro!$A$5:$AW$2673,12,FALSE),0) -> 2 | O54: =IFERROR(VLOOKUP($A54,Filtro!$A$5:$AW$2673,13,FALSE),0) -> 0 | P54: =IFERROR(VLOOKUP($A54,Filtro!$A$5:$AW$2673,14,FALSE),0) -> 4 | Q54: =IFERROR(VLOOKUP($A54,Filtro!$A$5:$AW$2673,15,FALSE),0) -> 0 | R54: =IFERROR(VLOOKUP($A54,Filtro!$A$5:$AW$2673,16,FALSE),0) -> 2 | S54: =IFERROR(VLOOKUP($A54,Filtro!$A$5:$AW$2673,17,FALSE),0) -> 0 | T54: =IFERROR(VLOOKUP($A54,Filtro!$A$5:$AW$2673,18,FALSE),0) -> 2 | U54: =IFERROR(VLOOKUP($A54,Filtro!$A$5:$AW$2673,19,FALSE),0) -> 2 | V54: =IFERROR(VLOOKUP($A54,Filtro!$A$5:$AW$2673,20,FALSE),0) -> 3 | W54: =IFERROR(VLOOKUP($A54,Filtro!$A$5:$AW$2673,21,FALSE),0) -> 2 | X54: =IFERROR(VLOOKUP($A54,Filtro!$A$5:$AW$2673,22,FALSE),0) -> 4 | Y54: =IFERROR(VLOOKUP($A54,Filtro!$A$5:$AW$2673,23,FALSE),0) -> 2 | Z54: =IFERROR(VLOOKUP($A54,Filtro!$A$5:$AW$2673,24,FALSE),0) -> 3 | AA54: =IFERROR(VLOOKUP($A54,Filtro!$A$5:$AW$2673,25,FALSE),0) -> 1 | AB54: =IFERROR(VLOOKUP($A54,Filtro!$A$5:$AW$2673,26,FALSE),0) -> 7 | AC54: =IFERROR(VLOOKUP($A54,Filtro!$A$5:$AW$2673,27,FALSE),0) -> 3 | AD54: =IFERROR(VLOOKUP($A54,Filtro!$A$5:$AW$2673,28,FALSE),0) -> 6 | AE54: =IFERROR(VLOOKUP($A54,Filtro!$A$5:$AW$2673,29,FALSE),0) -> 3 | AF54: =IFERROR(VLOOKUP($A54,Filtro!$A$5:$AW$2673,30,FALSE),0) -> 6 | AG54: =IFERROR(VLOOKUP($A54,Filtro!$A$5:$AW$2673,31,FALSE),0) -> 5 | AH54: =IFERROR(VLOOKUP($A54,Filtro!$A$5:$AW$2673,32,FALSE),0) -> 5 | AI54: =IFERROR(VLOOKUP($A54,Filtro!$A$5:$AW$2673,33,FALSE),0) -> 2 | AJ54: =IFERROR(VLOOKUP($A54,Filtro!$A$5:$AW$2673,34,FALSE),0) -> 10 | AK54: =IFERROR(VLOOKUP($A54,Filtro!$A$5:$AW$2673,35,FALSE),0) -> 4 | AL54: =IFERROR(VLOOKUP($A54,Filtro!$A$5:$AW$2673,36,FALSE),0) -> 10 | AM54: =IFERROR(VLOOKUP($A54,Filtro!$A$5:$AW$2673,37,FALSE),0) -> 11 | AN54: =IFERROR(VLOOKUP($A54,Filtro!$A$5:$AW$2673,38,FALSE),0) -> 15 | AO54: =IFERROR(VLOOKUP($A54,Filtro!$A$5:$AW$2673,39,FALSE),0) -> 0 | AP54: =IFERROR(VLOOKUP($A54,Filtro!$A$5:$AW$2673,40,FALSE),0) -> 0 | CL54: 0 | CM54: 0
A55: 01200020 | C55: Enfermera/o | D55: =IFERROR(VLOOKUP($A55,Filtro!$A$5:$AW$2673,2,FALSE),0) -> 8 | E55: =IFERROR(VLOOKUP($A55,Filtro!$A$5:$AW$2673,3,FALSE),0) -> 1 | F55: =IFERROR(VLOOKUP($A55,Filtro!$A$5:$AW$2673,4,FALSE),0) -> 7 | G55: =IFERROR(VLOOKUP($A55,Filtro!$A$5:$AW$2673,5,FALSE),0) -> 0 | H55: =IFERROR(VLOOKUP($A55,Filtro!$A$5:$AW$2673,6,FALSE),0) -> 0 | I55: =IFERROR(VLOOKUP($A55,Filtro!$A$5:$AW$2673,7,FALSE),0) -> 0 | J55: =IFERROR(VLOOKUP($A55,Filtro!$A$5:$AW$2673,8,FALSE),0) -> 0 | K55: =IFERROR(VLOOKUP($A55,Filtro!$A$5:$AW$2673,9,FALSE),0) -> 0 | L55: =IFERROR(VLOOKUP($A55,Filtro!$A$5:$AW$2673,10,FALSE),0) -> 0 | M55: =IFERROR(VLOOKUP($A55,Filtro!$A$5:$AW$2673,11,FALSE),0) -> 0 | N55: =IFERROR(VLOOKUP($A55,Filtro!$A$5:$AW$2673,12,FALSE),0) -> 0 | O55: =IFERROR(VLOOKUP($A55,Filtro!$A$5:$AW$2673,13,FALSE),0) -> 0 | P55: =IFERROR(VLOOKUP($A55,Filtro!$A$5:$AW$2673,14,FALSE),0) -> 0 | Q55: =IFERROR(VLOOKUP($A55,Filtro!$A$5:$AW$2673,15,FALSE),0) -> 0 | R55: =IFERROR(VLOOKUP($A55,Filtro!$A$5:$AW$2673,16,FALSE),0) -> 0 | S55: =IFERROR(VLOOKUP($A55,Filtro!$A$5:$AW$2673,17,FALSE),0) -> 0 | T55: =IFERROR(VLOOKUP($A55,Filtro!$A$5:$AW$2673,18,FALSE),0) -> 2 | U55: =IFERROR(VLOOKUP($A55,Filtro!$A$5:$AW$2673,19,FALSE),0) -> 0 | V55: =IFERROR(VLOOKUP($A55,Filtro!$A$5:$AW$2673,20,FALSE),0) -> 0 | W55: =IFERROR(VLOOKUP($A55,Filtro!$A$5:$AW$2673,21,FALSE),0) -> 0 | X55: =IFERROR(VLOOKUP($A55,Filtro!$A$5:$AW$2673,22,FALSE),0) -> 0 | Y55: =IFERROR(VLOOKUP($A55,Filtro!$A$5:$AW$2673,23,FALSE),0) -> 0 | Z55: =IFERROR(VLOOKUP($A55,Filtro!$A$5:$AW$2673,24,FALSE),0) -> 1 | AA55: =IFERROR(VLOOKUP($A55,Filtro!$A$5:$AW$2673,25,FALSE),0) -> 0 | AB55: =IFERROR(VLOOKUP($A55,Filtro!$A$5:$AW$2673,26,FALSE),0) -> 0 | AC55: =IFERROR(VLOOKUP($A55,Filtro!$A$5:$AW$2673,27,FALSE),0) -> 0 | AD55: =IFERROR(VLOOKUP($A55,Filtro!$A$5:$AW$2673,28,FALSE),0) -> 1 | AE55: =IFERROR(VLOOKUP($A55,Filtro!$A$5:$AW$2673,29,FALSE),0) -> 0 | AF55: =IFERROR(VLOOKUP($A55,Filtro!$A$5:$AW$2673,30,FALSE),0) -> 1 | AG55: =IFERROR(VLOOKUP($A55,Filtro!$A$5:$AW$2673,31,FALSE),0) -> 1 | AH55: =IFERROR(VLOOKUP($A55,Filtro!$A$5:$AW$2673,32,FALSE),0) -> 1 | AI55: =IFERROR(VLOOKUP($A55,Filtro!$A$5:$AW$2673,33,FALSE),0) -> 0 | AJ55: =IFERROR(VLOOKUP($A55,Filtro!$A$5:$AW$2673,34,FALSE),0) -> 1 | AK55: =IFERROR(VLOOKUP($A55,Filtro!$A$5:$AW$2673,35,FALSE),0) -> 0 | AL55: =IFERROR(VLOOKUP($A55,Filtro!$A$5:$AW$2673,36,FALSE),0) -> 0 | AM55: =IFERROR(VLOOKUP($A55,Filtro!$A$5:$AW$2673,37,FALSE),0) -> 0 | AN55: =IFERROR(VLOOKUP($A55,Filtro!$A$5:$AW$2673,38,FALSE),0) -> 0 | AO55: =IFERROR(VLOOKUP($A55,Filtro!$A$5:$AW$2673,39,FALSE),0) -> 0 | AP55: =IFERROR(VLOOKUP($A55,Filtro!$A$5:$AW$2673,40,FALSE),0) -> 0 | CL55: 0 | CM55: 0
A56: 01200030 | C56: Matrona/ón | D56: =IFERROR(VLOOKUP($A56,Filtro!$A$5:$AW$2673,2,FALSE),0) -> 437 | E56: =IFERROR(VLOOKUP($A56,Filtro!$A$5:$AW$2673,3,FALSE),0) -> 105 | F56: =IFERROR(VLOOKUP($A56,Filtro!$A$5:$AW$2673,4,FALSE),0) -> 332 | G56: =IFERROR(VLOOKUP($A56,Filtro!$A$5:$AW$2673,5,FALSE),0) -> 0 | H56: =IFERROR(VLOOKUP($A56,Filtro!$A$5:$AW$2673,6,FALSE),0) -> 0 | I56: =IFERROR(VLOOKUP($A56,Filtro!$A$5:$AW$2673,7,FALSE),0) -> 0 | J56: =IFERROR(VLOOKUP($A56,Filtro!$A$5:$AW$2673,8,FALSE),0) -> 0 | K56: =IFERROR(VLOOKUP($A56,Filtro!$A$5:$AW$2673,9,FALSE),0) -> 0 | L56: =IFERROR(VLOOKUP($A56,Filtro!$A$5:$AW$2673,10,FALSE),0) -> 1 | M56: =IFERROR(VLOOKUP($A56,Filtro!$A$5:$AW$2673,11,FALSE),0) -> 1 | N56: =IFERROR(VLOOKUP($A56,Filtro!$A$5:$AW$2673,12,FALSE),0) -> 5 | O56: =IFERROR(VLOOKUP($A56,Filtro!$A$5:$AW$2673,13,FALSE),0) -> 8 | P56: =IFERROR(VLOOKUP($A56,Filtro!$A$5:$AW$2673,14,FALSE),0) -> 57 | Q56: =IFERROR(VLOOKUP($A56,Filtro!$A$5:$AW$2673,15,FALSE),0) -> 20 | R56: =IFERROR(VLOOKUP($A56,Filtro!$A$5:$AW$2673,16,FALSE),0) -> 43 | S56: =IFERROR(VLOOKUP($A56,Filtro!$A$5:$AW$2673,17,FALSE),0) -> 13 | T56: =IFERROR(VLOOKUP($A56,Filtro!$A$5:$AW$2673,18,FALSE),0) -> 49 | U56: =IFERROR(VLOOKUP($A56,Filtro!$A$5:$AW$2673,19,FALSE),0) -> 12 | V56: =IFERROR(VLOOKUP($A56,Filtro!$A$5:$AW$2673,20,FALSE),0) -> 42 | W56: =IFERROR(VLOOKUP($A56,Filtro!$A$5:$AW$2673,21,FALSE),0) -> 5 | X56: =IFERROR(VLOOKUP($A56,Filtro!$A$5:$AW$2673,22,FALSE),0) -> 32 | Y56: =IFERROR(VLOOKUP($A56,Filtro!$A$5:$AW$2673,23,FALSE),0) -> 9 | Z56: =IFERROR(VLOOKUP($A56,Filtro!$A$5:$AW$2673,24,FALSE),0) -> 21 | AA56: =IFERROR(VLOOKUP($A56,Filtro!$A$5:$AW$2673,25,FALSE),0) -> 2 | AB56: =IFERROR(VLOOKUP($A56,Filtro!$A$5:$AW$2673,26,FALSE),0) -> 14 | AC56: =IFERROR(VLOOKUP($A56,Filtro!$A$5:$AW$2673,27,FALSE),0) -> 2 | AD56: =IFERROR(VLOOKUP($A56,Filtro!$A$5:$AW$2673,28,FALSE),0) -> 18 | AE56: =IFERROR(VLOOKUP($A56,Filtro!$A$5:$AW$2673,29,FALSE),0) -> 1 | AF56: =IFERROR(VLOOKUP($A56,Filtro!$A$5:$AW$2673,30,FALSE),0) -> 6 | AG56: =IFERROR(VLOOKUP($A56,Filtro!$A$5:$AW$2673,31,FALSE),0) -> 20 | AH56: =IFERROR(VLOOKUP($A56,Filtro!$A$5:$AW$2673,32,FALSE),0) -> 13 | AI56: =IFERROR(VLOOKUP($A56,Filtro!$A$5:$AW$2673,33,FALSE),0) -> 4 | AJ56: =IFERROR(VLOOKUP($A56,Filtro!$A$5:$AW$2673,34,FALSE),0) -> 12 | AK56: =IFERROR(VLOOKUP($A56,Filtro!$A$5:$AW$2673,35,FALSE),0) -> 5 | AL56: =IFERROR(VLOOKUP($A56,Filtro!$A$5:$AW$2673,36,FALSE),0) -> 4 | AM56: =IFERROR(VLOOKUP($A56,Filtro!$A$5:$AW$2673,37,FALSE),0) -> 3 | AN56: =IFERROR(VLOOKUP($A56,Filtro!$A$5:$AW$2673,38,FALSE),0) -> 15 | AO56: =IFERROR(VLOOKUP($A56,Filtro!$A$5:$AW$2673,39,FALSE),0) -> 0 | AP56: =IFERROR(VLOOKUP($A56,Filtro!$A$5:$AW$2673,40,FALSE),0) -> 22 | CL56: 0 | CM56: 0
A57: 03030140 | B57: Otros problemas de salud | C57: Médico/a | D57: =IFERROR(VLOOKUP($A57,Filtro!$A$5:$AW$2673,2,FALSE),0) -> 33237 | E57: =IFERROR(VLOOKUP($A57,Filtro!$A$5:$AW$2673,3,FALSE),0) -> 10145 | F57: =IFERROR(VLOOKUP($A57,Filtro!$A$5:$AW$2673,4,FALSE),0) -> 23092 | G57: =IFERROR(VLOOKUP($A57,Filtro!$A$5:$AW$2673,5,FALSE),0) -> 108 | H57: =IFERROR(VLOOKUP($A57,Filtro!$A$5:$AW$2673,6,FALSE),0) -> 107 | I57: =IFERROR(VLOOKUP($A57,Filtro!$A$5:$AW$2673,7,FALSE),0) -> 192 | J57: =IFERROR(VLOOKUP($A57,Filtro!$A$5:$AW$2673,8,FALSE),0) -> 173 | K57: =IFERROR(VLOOKUP($A57,Filtro!$A$5:$AW$2673,9,FALSE),0) -> 167 | L57: =IFERROR(VLOOKUP($A57,Filtro!$A$5:$AW$2673,10,FALSE),0) -> 136 | M57: =IFERROR(VLOOKUP($A57,Filtro!$A$5:$AW$2673,11,FALSE),0) -> 164 | N57: =IFERROR(VLOOKUP($A57,Filtro!$A$5:$AW$2673,12,FALSE),0) -> 280 | O57: =IFERROR(VLOOKUP($A57,Filtro!$A$5:$AW$2673,13,FALSE),0) -> 165 | P57: =IFERROR(VLOOKUP($A57,Filtro!$A$5:$AW$2673,14,FALSE),0) -> 380 | Q57: =IFERROR(VLOOKUP($A57,Filtro!$A$5:$AW$2673,15,FALSE),0) -> 139 | R57: =IFERROR(VLOOKUP($A57,Filtro!$A$5:$AW$2673,16,FALSE),0) -> 476 | S57: =IFERROR(VLOOKUP($A57,Filtro!$A$5:$AW$2673,17,FALSE),0) -> 147 | T57: =IFERROR(VLOOKUP($A57,Filtro!$A$5:$AW$2673,18,FALSE),0) -> 696 | U57: =IFERROR(VLOOKUP($A57,Filtro!$A$5:$AW$2673,19,FALSE),0) -> 145 | V57: =IFERROR(VLOOKUP($A57,Filtro!$A$5:$AW$2673,20,FALSE),0) -> 923 | W57: =IFERROR(VLOOKUP($A57,Filtro!$A$5:$AW$2673,21,FALSE),0) -> 238 | X57: =IFERROR(VLOOKUP($A57,Filtro!$A$5:$AW$2673,22,FALSE),0) -> 986 | Y57: =IFERROR(VLOOKUP($A57,Filtro!$A$5:$AW$2673,23,FALSE),0) -> 287 | Z57: =IFERROR(VLOOKUP($A57,Filtro!$A$5:$AW$2673,24,FALSE),0) -> 1396 | AA57: =IFERROR(VLOOKUP($A57,Filtro!$A$5:$AW$2673,25,FALSE),0) -> 411 | AB57: =IFERROR(VLOOKUP($A57,Filtro!$A$5:$AW$2673,26,FALSE),0) -> 1731 | AC57: =IFERROR(VLOOKUP($A57,Filtro!$A$5:$AW$2673,27,FALSE),0) -> 688 | AD57: =IFERROR(VLOOKUP($A57,Filtro!$A$5:$AW$2673,28,FALSE),0) -> 2446 | AE57: =IFERROR(VLOOKUP($A57,Filtro!$A$5:$AW$2673,29,FALSE),0) -> 1105 | AF57: =IFERROR(VLOOKUP($A57,Filtro!$A$5:$AW$2673,30,FALSE),0) -> 3007 | AG57: =IFERROR(VLOOKUP($A57,Filtro!$A$5:$AW$2673,31,FALSE),0) -> 1357 | AH57: =IFERROR(VLOOKUP($A57,Filtro!$A$5:$AW$2673,32,FALSE),0) -> 2900 | AI57: =IFERROR(VLOOKUP($A57,Filtro!$A$5:$AW$2673,33,FALSE),0) -> 1565 | AJ57: =IFERROR(VLOOKUP($A57,Filtro!$A$5:$AW$2673,34,FALSE),0) -> 2647 | AK57: =IFERROR(VLOOKUP($A57,Filtro!$A$5:$AW$2673,35,FALSE),0) -> 1265 | AL57: =IFERROR(VLOOKUP($A57,Filtro!$A$5:$AW$2673,36,FALSE),0) -> 2033 | AM57: =IFERROR(VLOOKUP($A57,Filtro!$A$5:$AW$2673,37,FALSE),0) -> 2002 | AN57: =IFERROR(VLOOKUP($A57,Filtro!$A$5:$AW$2673,38,FALSE),0) -> 2775 | AO57: =IFERROR(VLOOKUP($A57,Filtro!$A$5:$AW$2673,39,FALSE),0) -> 180 | AP57: =IFERROR(VLOOKUP($A57,Filtro!$A$5:$AW$2673,40,FALSE),0) -> 89 | CL57: 0 | CM57: 0
A58: 03030150 | C58: Enfermera/o | D58: =IFERROR(VLOOKUP($A58,Filtro!$A$5:$AW$2673,2,FALSE),0) -> 4438 | E58: =IFERROR(VLOOKUP($A58,Filtro!$A$5:$AW$2673,3,FALSE),0) -> 1238 | F58: =IFERROR(VLOOKUP($A58,Filtro!$A$5:$AW$2673,4,FALSE),0) -> 3200 | G58: =IFERROR(VLOOKUP($A58,Filtro!$A$5:$AW$2673,5,FALSE),0) -> 5 | H58: =IFERROR(VLOOKUP($A58,Filtro!$A$5:$AW$2673,6,FALSE),0) -> 7 | I58: =IFERROR(VLOOKUP($A58,Filtro!$A$5:$AW$2673,7,FALSE),0) -> 7 | J58: =IFERROR(VLOOKUP($A58,Filtro!$A$5:$AW$2673,8,FALSE),0) -> 4 | K58: =IFERROR(VLOOKUP($A58,Filtro!$A$5:$AW$2673,9,FALSE),0) -> 1 | L58: =IFERROR(VLOOKUP($A58,Filtro!$A$5:$AW$2673,10,FALSE),0) -> 2 | M58: =IFERROR(VLOOKUP($A58,Filtro!$A$5:$AW$2673,11,FALSE),0) -> 8 | N58: =IFERROR(VLOOKUP($A58,Filtro!$A$5:$AW$2673,12,FALSE),0) -> 11 | O58: =IFERROR(VLOOKUP($A58,Filtro!$A$5:$AW$2673,13,FALSE),0) -> 4 | P58: =IFERROR(VLOOKUP($A58,Filtro!$A$5:$AW$2673,14,FALSE),0) -> 25 | Q58: =IFERROR(VLOOKUP($A58,Filtro!$A$5:$AW$2673,15,FALSE),0) -> 9 | R58: =IFERROR(VLOOKUP($A58,Filtro!$A$5:$AW$2673,16,FALSE),0) -> 32 | S58: =IFERROR(VLOOKUP($A58,Filtro!$A$5:$AW$2673,17,FALSE),0) -> 13 | T58: =IFERROR(VLOOKUP($A58,Filtro!$A$5:$AW$2673,18,FALSE),0) -> 60 | U58: =IFERROR(VLOOKUP($A58,Filtro!$A$5:$AW$2673,19,FALSE),0) -> 14 | V58: =IFERROR(VLOOKUP($A58,Filtro!$A$5:$AW$2673,20,FALSE),0) -> 79 | W58: =IFERROR(VLOOKUP($A58,Filtro!$A$5:$AW$2673,21,FALSE),0) -> 27 | X58: =IFERROR(VLOOKUP($A58,Filtro!$A$5:$AW$2673,22,FALSE),0) -> 100 | Y58: =IFERROR(VLOOKUP($A58,Filtro!$A$5:$AW$2673,23,FALSE),0) -> 28 | Z58: =IFERROR(VLOOKUP($A58,Filtro!$A$5:$AW$2673,24,FALSE),0) -> 161 | AA58: =IFERROR(VLOOKUP($A58,Filtro!$A$5:$AW$2673,25,FALSE),0) -> 56 | AB58: =IFERROR(VLOOKUP($A58,Filtro!$A$5:$AW$2673,26,FALSE),0) -> 206 | AC58: =IFERROR(VLOOKUP($A58,Filtro!$A$5:$AW$2673,27,FALSE),0) -> 92 | AD58: =IFERROR(VLOOKUP($A58,Filtro!$A$5:$AW$2673,28,FALSE),0) -> 365 | AE58: =IFERROR(VLOOKUP($A58,Filtro!$A$5:$AW$2673,29,FALSE),0) -> 141 | AF58: =IFERROR(VLOOKUP($A58,Filtro!$A$5:$AW$2673,30,FALSE),0) -> 410 | AG58: =IFERROR(VLOOKUP($A58,Filtro!$A$5:$AW$2673,31,FALSE),0) -> 185 | AH58: =IFERROR(VLOOKUP($A58,Filtro!$A$5:$AW$2673,32,FALSE),0) -> 513 | AI58: =IFERROR(VLOOKUP($A58,Filtro!$A$5:$AW$2673,33,FALSE),0) -> 212 | AJ58: =IFERROR(VLOOKUP($A58,Filtro!$A$5:$AW$2673,34,FALSE),0) -> 452 | AK58: =IFERROR(VLOOKUP($A58,Filtro!$A$5:$AW$2673,35,FALSE),0) -> 171 | AL58: =IFERROR(VLOOKUP($A58,Filtro!$A$5:$AW$2673,36,FALSE),0) -> 373 | AM58: =IFERROR(VLOOKUP($A58,Filtro!$A$5:$AW$2673,37,FALSE),0) -> 265 | AN58: =IFERROR(VLOOKUP($A58,Filtro!$A$5:$AW$2673,38,FALSE),0) -> 400 | AO58: =IFERROR(VLOOKUP($A58,Filtro!$A$5:$AW$2673,39,FALSE),0) -> 62 | AP58: =IFERROR(VLOOKUP($A58,Filtro!$A$5:$AW$2673,40,FALSE),0) -> 12 | CL58: 0 | CM58: 0
A59: 03030170 | C59: Matrona/ón | D59: =IFERROR(VLOOKUP($A59,Filtro!$A$5:$AW$2673,2,FALSE),0) -> 152 | E59: =IFERROR(VLOOKUP($A59,Filtro!$A$5:$AW$2673,3,FALSE),0) -> 5 | F59: =IFERROR(VLOOKUP($A59,Filtro!$A$5:$AW$2673,4,FALSE),0) -> 147 | G59: =IFERROR(VLOOKUP($A59,Filtro!$A$5:$AW$2673,5,FALSE),0) -> 0 | H59: =IFERROR(VLOOKUP($A59,Filtro!$A$5:$AW$2673,6,FALSE),0) -> 1 | I59: =IFERROR(VLOOKUP($A59,Filtro!$A$5:$AW$2673,7,FALSE),0) -> 0 | J59: =IFERROR(VLOOKUP($A59,Filtro!$A$5:$AW$2673,8,FALSE),0) -> 1 | K59: =IFERROR(VLOOKUP($A59,Filtro!$A$5:$AW$2673,9,FALSE),0) -> 0 | L59: =IFERROR(VLOOKUP($A59,Filtro!$A$5:$AW$2673,10,FALSE),0) -> 6 | M59: =IFERROR(VLOOKUP($A59,Filtro!$A$5:$AW$2673,11,FALSE),0) -> 0 | N59: =IFERROR(VLOOKUP($A59,Filtro!$A$5:$AW$2673,12,FALSE),0) -> 12 | O59: =IFERROR(VLOOKUP($A59,Filtro!$A$5:$AW$2673,13,FALSE),0) -> 0 | P59: =IFERROR(VLOOKUP($A59,Filtro!$A$5:$AW$2673,14,FALSE),0) -> 12 | Q59: =IFERROR(VLOOKUP($A59,Filtro!$A$5:$AW$2673,15,FALSE),0) -> 0 | R59: =IFERROR(VLOOKUP($A59,Filtro!$A$5:$AW$2673,16,FALSE),0) -> 21 | S59: =IFERROR(VLOOKUP($A59,Filtro!$A$5:$AW$2673,17,FALSE),0) -> 0 | T59: =IFERROR(VLOOKUP($A59,Filtro!$A$5:$AW$2673,18,FALSE),0) -> 36 | U59: =IFERROR(VLOOKUP($A59,Filtro!$A$5:$AW$2673,19,FALSE),0) -> 0 | V59: =IFERROR(VLOOKUP($A59,Filtro!$A$5:$AW$2673,20,FALSE),0) -> 11 | W59: =IFERROR(VLOOKUP($A59,Filtro!$A$5:$AW$2673,21,FALSE),0) -> 0 | X59: =IFERROR(VLOOKUP($A59,Filtro!$A$5:$AW$2673,22,FALSE),0) -> 9 | Y59: =IFERROR(VLOOKUP($A59,Filtro!$A$5:$AW$2673,23,FALSE),0) -> 0 | Z59: =IFERROR(VLOOKUP($A59,Filtro!$A$5:$AW$2673,24,FALSE),0) -> 12 | AA59: =IFERROR(VLOOKUP($A59,Filtro!$A$5:$AW$2673,25,FALSE),0) -> 1 | AB59: =IFERROR(VLOOKUP($A59,Filtro!$A$5:$AW$2673,26,FALSE),0) -> 2 | AC59: =IFERROR(VLOOKUP($A59,Filtro!$A$5:$AW$2673,27,FALSE),0) -> 0 | AD59: =IFERROR(VLOOKUP($A59,Filtro!$A$5:$AW$2673,28,FALSE),0) -> 3 | AE59: =IFERROR(VLOOKUP($A59,Filtro!$A$5:$AW$2673,29,FALSE),0) -> 0 | AF59: =IFERROR(VLOOKUP($A59,Filtro!$A$5:$AW$2673,30,FALSE),0) -> 0 | AG59: =IFERROR(VLOOKUP($A59,Filtro!$A$5:$AW$2673,31,FALSE),0) -> 1 | AH59: =IFERROR(VLOOKUP($A59,Filtro!$A$5:$AW$2673,32,FALSE),0) -> 4 | AI59: =IFERROR(VLOOKUP($A59,Filtro!$A$5:$AW$2673,33,FALSE),0) -> 0 | AJ59: =IFERROR(VLOOKUP($A59,Filtro!$A$5:$AW$2673,34,FALSE),0) -> 1 | AK59: =IFERROR(VLOOKUP($A59,Filtro!$A$5:$AW$2673,35,FALSE),0) -> 2 | AL59: =IFERROR(VLOOKUP($A59,Filtro!$A$5:$AW$2673,36,FALSE),0) -> 8 | AM59: =IFERROR(VLOOKUP($A59,Filtro!$A$5:$AW$2673,37,FALSE),0) -> 1 | AN59: =IFERROR(VLOOKUP($A59,Filtro!$A$5:$AW$2673,38,FALSE),0) -> 8 | AO59: =IFERROR(VLOOKUP($A59,Filtro!$A$5:$AW$2673,39,FALSE),0) -> 0 | AP59: =IFERROR(VLOOKUP($A59,Filtro!$A$5:$AW$2673,40,FALSE),0) -> 11 | CL59: 0 | CM59: 0
A60: 03030160 | C60: Nutricionista | D60: =IFERROR(VLOOKUP($A60,Filtro!$A$5:$AW$2673,2,FALSE),0) -> 5714 | E60: =IFERROR(VLOOKUP($A60,Filtro!$A$5:$AW$2673,3,FALSE),0) -> 1398 | F60: =IFERROR(VLOOKUP($A60,Filtro!$A$5:$AW$2673,4,FALSE),0) -> 4316 | G60: =IFERROR(VLOOKUP($A60,Filtro!$A$5:$AW$2673,5,FALSE),0) -> 135 | H60: =IFERROR(VLOOKUP($A60,Filtro!$A$5:$AW$2673,6,FALSE),0) -> 107 | I60: =IFERROR(VLOOKUP($A60,Filtro!$A$5:$AW$2673,7,FALSE),0) -> 62 | J60: =IFERROR(VLOOKUP($A60,Filtro!$A$5:$AW$2673,8,FALSE),0) -> 48 | K60: =IFERROR(VLOOKUP($A60,Filtro!$A$5:$AW$2673,9,FALSE),0) -> 50 | L60: =IFERROR(VLOOKUP($A60,Filtro!$A$5:$AW$2673,10,FALSE),0) -> 73 | M60: =IFERROR(VLOOKUP($A60,Filtro!$A$5:$AW$2673,11,FALSE),0) -> 30 | N60: =IFERROR(VLOOKUP($A60,Filtro!$A$5:$AW$2673,12,FALSE),0) -> 116 | O60: =IFERROR(VLOOKUP($A60,Filtro!$A$5:$AW$2673,13,FALSE),0) -> 41 | P60: =IFERROR(VLOOKUP($A60,Filtro!$A$5:$AW$2673,14,FALSE),0) -> 251 | Q60: =IFERROR(VLOOKUP($A60,Filtro!$A$5:$AW$2673,15,FALSE),0) -> 58 | R60: =IFERROR(VLOOKUP($A60,Filtro!$A$5:$AW$2673,16,FALSE),0) -> 275 | S60: =IFERROR(VLOOKUP($A60,Filtro!$A$5:$AW$2673,17,FALSE),0) -> 51 | T60: =IFERROR(VLOOKUP($A60,Filtro!$A$5:$AW$2673,18,FALSE),0) -> 317 | U60: =IFERROR(VLOOKUP($A60,Filtro!$A$5:$AW$2673,19,FALSE),0) -> 48 | V60: =IFERROR(VLOOKUP($A60,Filtro!$A$5:$AW$2673,20,FALSE),0) -> 279 | W60: =IFERROR(VLOOKUP($A60,Filtro!$A$5:$AW$2673,21,FALSE),0) -> 60 | X60: =IFERROR(VLOOKUP($A60,Filtro!$A$5:$AW$2673,22,FALSE),0) -> 297 | Y60: =IFERROR(VLOOKUP($A60,Filtro!$A$5:$AW$2673,23,FALSE),0) -> 42 | Z60: =IFERROR(VLOOKUP($A60,Filtro!$A$5:$AW$2673,24,FALSE),0) -> 281 | AA60: =IFERROR(VLOOKUP($A60,Filtro!$A$5:$AW$2673,25,FALSE),0) -> 74 | AB60: =IFERROR(VLOOKUP($A60,Filtro!$A$5:$AW$2673,26,FALSE),0) -> 328 | AC60: =IFERROR(VLOOKUP($A60,Filtro!$A$5:$AW$2673,27,FALSE),0) -> 88 | AD60: =IFERROR(VLOOKUP($A60,Filtro!$A$5:$AW$2673,28,FALSE),0) -> 348 | AE60: =IFERROR(VLOOKUP($A60,Filtro!$A$5:$AW$2673,29,FALSE),0) -> 108 | AF60: =IFERROR(VLOOKUP($A60,Filtro!$A$5:$AW$2673,30,FALSE),0) -> 367 | AG60: =IFERROR(VLOOKUP($A60,Filtro!$A$5:$AW$2673,31,FALSE),0) -> 138 | AH60: =IFERROR(VLOOKUP($A60,Filtro!$A$5:$AW$2673,32,FALSE),0) -> 408 | AI60: =IFERROR(VLOOKUP($A60,Filtro!$A$5:$AW$2673,33,FALSE),0) -> 140 | AJ60: =IFERROR(VLOOKUP($A60,Filtro!$A$5:$AW$2673,34,FALSE),0) -> 306 | AK60: =IFERROR(VLOOKUP($A60,Filtro!$A$5:$AW$2673,35,FALSE),0) -> 107 | AL60: =IFERROR(VLOOKUP($A60,Filtro!$A$5:$AW$2673,36,FALSE),0) -> 251 | AM60: =IFERROR(VLOOKUP($A60,Filtro!$A$5:$AW$2673,37,FALSE),0) -> 166 | AN60: =IFERROR(VLOOKUP($A60,Filtro!$A$5:$AW$2673,38,FALSE),0) -> 264 | AO60: =IFERROR(VLOOKUP($A60,Filtro!$A$5:$AW$2673,39,FALSE),0) -> 98 | AP60: =IFERROR(VLOOKUP($A60,Filtro!$A$5:$AW$2673,40,FALSE),0) -> 112 | CL60: 0 | CM60: 0
A61: 03030180 | C61: Técnico en Enfermería | D61: =IFERROR(VLOOKUP($A61,Filtro!$A$5:$AW$2673,2,FALSE),0) -> 226 | E61: =IFERROR(VLOOKUP($A61,Filtro!$A$5:$AW$2673,3,FALSE),0) -> 102 | F61: =IFERROR(VLOOKUP($A61,Filtro!$A$5:$AW$2673,4,FALSE),0) -> 124 | G61: =IFERROR(VLOOKUP($A61,Filtro!$A$5:$AW$2673,5,FALSE),0) -> 4 | H61: =IFERROR(VLOOKUP($A61,Filtro!$A$5:$AW$2673,6,FALSE),0) -> 3 | I61: =IFERROR(VLOOKUP($A61,Filtro!$A$5:$AW$2673,7,FALSE),0) -> 10 | J61: =IFERROR(VLOOKUP($A61,Filtro!$A$5:$AW$2673,8,FALSE),0) -> 8 | K61: =IFERROR(VLOOKUP($A61,Filtro!$A$5:$AW$2673,9,FALSE),0) -> 8 | L61: =IFERROR(VLOOKUP($A61,Filtro!$A$5:$AW$2673,10,FALSE),0) -> 11 | M61: =IFERROR(VLOOKUP($A61,Filtro!$A$5:$AW$2673,11,FALSE),0) -> 4 | N61: =IFERROR(VLOOKUP($A61,Filtro!$A$5:$AW$2673,12,FALSE),0) -> 5 | O61: =IFERROR(VLOOKUP($A61,Filtro!$A$5:$AW$2673,13,FALSE),0) -> 5 | P61: =IFERROR(VLOOKUP($A61,Filtro!$A$5:$AW$2673,14,FALSE),0) -> 8 | Q61: =IFERROR(VLOOKUP($A61,Filtro!$A$5:$AW$2673,15,FALSE),0) -> 12 | R61: =IFERROR(VLOOKUP($A61,Filtro!$A$5:$AW$2673,16,FALSE),0) -> 5 | S61: =IFERROR(VLOOKUP($A61,Filtro!$A$5:$AW$2673,17,FALSE),0) -> 0 | T61: =IFERROR(VLOOKUP($A61,Filtro!$A$5:$AW$2673,18,FALSE),0) -> 18 | U61: =IFERROR(VLOOKUP($A61,Filtro!$A$5:$AW$2673,19,FALSE),0) -> 6 | V61: =IFERROR(VLOOKUP($A61,Filtro!$A$5:$AW$2673,20,FALSE),0) -> 10 | W61: =IFERROR(VLOOKUP($A61,Filtro!$A$5:$AW$2673,21,FALSE),0) -> 8 | X61: =IFERROR(VLOOKUP($A61,Filtro!$A$5:$AW$2673,22,FALSE),0) -> 6 | Y61: =IFERROR(VLOOKUP($A61,Filtro!$A$5:$AW$2673,23,FALSE),0) -> 7 | Z61: =IFERROR(VLOOKUP($A61,Filtro!$A$5:$AW$2673,24,FALSE),0) -> 2 | AA61: =IFERROR(VLOOKUP($A61,Filtro!$A$5:$AW$2673,25,FALSE),0) -> 7 | AB61: =IFERROR(VLOOKUP($A61,Filtro!$A$5:$AW$2673,26,FALSE),0) -> 6 | AC61: =IFERROR(VLOOKUP($A61,Filtro!$A$5:$AW$2673,27,FALSE),0) -> 0 | AD61: =IFERROR(VLOOKUP($A61,Filtro!$A$5:$AW$2673,28,FALSE),0) -> 9 | AE61: =IFERROR(VLOOKUP($A61,Filtro!$A$5:$AW$2673,29,FALSE),0) -> 14 | AF61: =IFERROR(VLOOKUP($A61,Filtro!$A$5:$AW$2673,30,FALSE),0) -> 8 | AG61: =IFERROR(VLOOKUP($A61,Filtro!$A$5:$AW$2673,31,FALSE),0) -> 5 | AH61: =IFERROR(VLOOKUP($A61,Filtro!$A$5:$AW$2673,32,FALSE),0) -> 7 | AI61: =IFERROR(VLOOKUP($A61,Filtro!$A$5:$AW$2673,33,FALSE),0) -> 3 | AJ61: =IFERROR(VLOOKUP($A61,Filtro!$A$5:$AW$2673,34,FALSE),0) -> 5 | AK61: =IFERROR(VLOOKUP($A61,Filtro!$A$5:$AW$2673,35,FALSE),0) -> 6 | AL61: =IFERROR(VLOOKUP($A61,Filtro!$A$5:$AW$2673,36,FALSE),0) -> 5 | AM61: =IFERROR(VLOOKUP($A61,Filtro!$A$5:$AW$2673,37,FALSE),0) -> 3 | AN61: =IFERROR(VLOOKUP($A61,Filtro!$A$5:$AW$2673,38,FALSE),0) -> 8 | AO61: =IFERROR(VLOOKUP($A61,Filtro!$A$5:$AW$2673,39,FALSE),0) -> 0 | AP61: =IFERROR(VLOOKUP($A61,Filtro!$A$5:$AW$2673,40,FALSE),0) -> 0 | CL61: 0 | CM61: 0
A62: 09600206 | C62: Otros Profesionales debidamente capacitados | D62: =IFERROR(VLOOKUP($A62,Filtro!$A$5:$AW$2673,2,FALSE),0) -> 11 | E62: =IFERROR(VLOOKUP($A62,Filtro!$A$5:$AW$2673,3,FALSE),0) -> 2 | F62: =IFERROR(VLOOKUP($A62,Filtro!$A$5:$AW$2673,4,FALSE),0) -> 9 | G62: =IFERROR(VLOOKUP($A62,Filtro!$A$5:$AW$2673,5,FALSE),0) -> 0 | H62: =IFERROR(VLOOKUP($A62,Filtro!$A$5:$AW$2673,6,FALSE),0) -> 0 | I62: =IFERROR(VLOOKUP($A62,Filtro!$A$5:$AW$2673,7,FALSE),0) -> 1 | J62: =IFERROR(VLOOKUP($A62,Filtro!$A$5:$AW$2673,8,FALSE),0) -> 0 | K62: =IFERROR(VLOOKUP($A62,Filtro!$A$5:$AW$2673,9,FALSE),0) -> 0 | L62: =IFERROR(VLOOKUP($A62,Filtro!$A$5:$AW$2673,10,FALSE),0) -> 0 | M62: =IFERROR(VLOOKUP($A62,Filtro!$A$5:$AW$2673,11,FALSE),0) -> 0 | N62: =IFERROR(VLOOKUP($A62,Filtro!$A$5:$AW$2673,12,FALSE),0) -> 0 | O62: =IFERROR(VLOOKUP($A62,Filtro!$A$5:$AW$2673,13,FALSE),0) -> 0 | P62: =IFERROR(VLOOKUP($A62,Filtro!$A$5:$AW$2673,14,FALSE),0) -> 1 | Q62: =IFERROR(VLOOKUP($A62,Filtro!$A$5:$AW$2673,15,FALSE),0) -> 0 | R62: =IFERROR(VLOOKUP($A62,Filtro!$A$5:$AW$2673,16,FALSE),0) -> 0 | S62: =IFERROR(VLOOKUP($A62,Filtro!$A$5:$AW$2673,17,FALSE),0) -> 0 | T62: =IFERROR(VLOOKUP($A62,Filtro!$A$5:$AW$2673,18,FALSE),0) -> 1 | U62: =IFERROR(VLOOKUP($A62,Filtro!$A$5:$AW$2673,19,FALSE),0) -> 0 | V62: =IFERROR(VLOOKUP($A62,Filtro!$A$5:$AW$2673,20,FALSE),0) -> 0 | W62: =IFERROR(VLOOKUP($A62,Filtro!$A$5:$AW$2673,21,FALSE),0) -> 0 | X62: =IFERROR(VLOOKUP($A62,Filtro!$A$5:$AW$2673,22,FALSE),0) -> 0 | Y62: =IFERROR(VLOOKUP($A62,Filtro!$A$5:$AW$2673,23,FALSE),0) -> 0 | Z62: =IFERROR(VLOOKUP($A62,Filtro!$A$5:$AW$2673,24,FALSE),0) -> 0 | AA62: =IFERROR(VLOOKUP($A62,Filtro!$A$5:$AW$2673,25,FALSE),0) -> 0 | AB62: =IFERROR(VLOOKUP($A62,Filtro!$A$5:$AW$2673,26,FALSE),0) -> 2 | AC62: =IFERROR(VLOOKUP($A62,Filtro!$A$5:$AW$2673,27,FALSE),0) -> 0 | AD62: =IFERROR(VLOOKUP($A62,Filtro!$A$5:$AW$2673,28,FALSE),0) -> 2 | AE62: =IFERROR(VLOOKUP($A62,Filtro!$A$5:$AW$2673,29,FALSE),0) -> 0 | AF62: =IFERROR(VLOOKUP($A62,Filtro!$A$5:$AW$2673,30,FALSE),0) -> 0 | AG62: =IFERROR(VLOOKUP($A62,Filtro!$A$5:$AW$2673,31,FALSE),0) -> 0 | AH62: =IFERROR(VLOOKUP($A62,Filtro!$A$5:$AW$2673,32,FALSE),0) -> 0 | AI62: =IFERROR(VLOOKUP($A62,Filtro!$A$5:$AW$2673,33,FALSE),0) -> 0 | AJ62: =IFERROR(VLOOKUP($A62,Filtro!$A$5:$AW$2673,34,FALSE),0) -> 0 | AK62: =IFERROR(VLOOKUP($A62,Filtro!$A$5:$AW$2673,35,FALSE),0) -> 1 | AL62: =IFERROR(VLOOKUP($A62,Filtro!$A$5:$AW$2673,36,FALSE),0) -> 1 | AM62: =IFERROR(VLOOKUP($A62,Filtro!$A$5:$AW$2673,37,FALSE),0) -> 0 | AN62: =IFERROR(VLOOKUP($A62,Filtro!$A$5:$AW$2673,38,FALSE),0) -> 2 | AO62: =IFERROR(VLOOKUP($A62,Filtro!$A$5:$AW$2673,39,FALSE),0) -> 0 | AP62: =IFERROR(VLOOKUP($A62,Filtro!$A$5:$AW$2673,40,FALSE),0) -> 0 | CL62: 0 | CM62: 0
A63: 01200031 | B63: Niños con necesidades especiales | C63: Médico/a | D63: =IFERROR(VLOOKUP($A63,Filtro!$A$5:$AW$2673,2,FALSE),0) -> 107 | E63: =IFERROR(VLOOKUP($A63,Filtro!$A$5:$AW$2673,3,FALSE),0) -> 70 | F63: =IFERROR(VLOOKUP($A63,Filtro!$A$5:$AW$2673,4,FALSE),0) -> 37 | G63: =IFERROR(VLOOKUP($A63,Filtro!$A$5:$AW$2673,5,FALSE),0) -> 25 | H63: =IFERROR(VLOOKUP($A63,Filtro!$A$5:$AW$2673,6,FALSE),0) -> 20 | I63: =IFERROR(VLOOKUP($A63,Filtro!$A$5:$AW$2673,7,FALSE),0) -> 33 | J63: =IFERROR(VLOOKUP($A63,Filtro!$A$5:$AW$2673,8,FALSE),0) -> 7 | K63: =IFERROR(VLOOKUP($A63,Filtro!$A$5:$AW$2673,9,FALSE),0) -> 8 | L63: =IFERROR(VLOOKUP($A63,Filtro!$A$5:$AW$2673,10,FALSE),0) -> 6 | M63: =IFERROR(VLOOKUP($A63,Filtro!$A$5:$AW$2673,11,FALSE),0) -> 4 | N63: =IFERROR(VLOOKUP($A63,Filtro!$A$5:$AW$2673,12,FALSE),0) -> 4 | O63: =IFERROR(VLOOKUP($A63,Filtro!$A$5:$AW$2673,13,FALSE),0) -> 0 | P63: =IFERROR(VLOOKUP($A63,Filtro!$A$5:$AW$2673,14,FALSE),0) -> 0 | Q63: =IFERROR(VLOOKUP($A63,Filtro!$A$5:$AW$2673,15,FALSE),0) -> 0 | R63: =IFERROR(VLOOKUP($A63,Filtro!$A$5:$AW$2673,16,FALSE),0) -> 0 | S63: =IFERROR(VLOOKUP($A63,Filtro!$A$5:$AW$2673,17,FALSE),0) -> 0 | T63: =IFERROR(VLOOKUP($A63,Filtro!$A$5:$AW$2673,18,FALSE),0) -> 0 | U63: =IFERROR(VLOOKUP($A63,Filtro!$A$5:$AW$2673,19,FALSE),0) -> 0 | V63: =IFERROR(VLOOKUP($A63,Filtro!$A$5:$AW$2673,20,FALSE),0) -> 0 | W63: =IFERROR(VLOOKUP($A63,Filtro!$A$5:$AW$2673,21,FALSE),0) -> 0 | X63: =IFERROR(VLOOKUP($A63,Filtro!$A$5:$AW$2673,22,FALSE),0) -> 0 | Y63: =IFERROR(VLOOKUP($A63,Filtro!$A$5:$AW$2673,23,FALSE),0) -> 0 | Z63: =IFERROR(VLOOKUP($A63,Filtro!$A$5:$AW$2673,24,FALSE),0) -> 0 | AA63: =IFERROR(VLOOKUP($A63,Filtro!$A$5:$AW$2673,25,FALSE),0) -> 0 | AB63: =IFERROR(VLOOKUP($A63,Filtro!$A$5:$AW$2673,26,FALSE),0) -> 0 | AC63: =IFERROR(VLOOKUP($A63,Filtro!$A$5:$AW$2673,27,FALSE),0) -> 0 | AD63: =IFERROR(VLOOKUP($A63,Filtro!$A$5:$AW$2673,28,FALSE),0) -> 0 | AE63: =IFERROR(VLOOKUP($A63,Filtro!$A$5:$AW$2673,29,FALSE),0) -> 0 | AF63: =IFERROR(VLOOKUP($A63,Filtro!$A$5:$AW$2673,30,FALSE),0) -> 0 | AG63: =IFERROR(VLOOKUP($A63,Filtro!$A$5:$AW$2673,31,FALSE),0) -> 0 | AH63: =IFERROR(VLOOKUP($A63,Filtro!$A$5:$AW$2673,32,FALSE),0) -> 0 | AI63: =IFERROR(VLOOKUP($A63,Filtro!$A$5:$AW$2673,33,FALSE),0) -> 0 | AJ63: =IFERROR(VLOOKUP($A63,Filtro!$A$5:$AW$2673,34,FALSE),0) -> 0 | AK63: =IFERROR(VLOOKUP($A63,Filtro!$A$5:$AW$2673,35,FALSE),0) -> 0 | AL63: =IFERROR(VLOOKUP($A63,Filtro!$A$5:$AW$2673,36,FALSE),0) -> 0 | AM63: =IFERROR(VLOOKUP($A63,Filtro!$A$5:$AW$2673,37,FALSE),0) -> 0 | AN63: =IFERROR(VLOOKUP($A63,Filtro!$A$5:$AW$2673,38,FALSE),0) -> 0 | AO63: =IFERROR(VLOOKUP($A63,Filtro!$A$5:$AW$2673,39,FALSE),0) -> 4 | AP63: =IFERROR(VLOOKUP($A63,Filtro!$A$5:$AW$2673,40,FALSE),0) -> 1 | CL63: 0 | CM63: 0
A64: 01200032 | C64: Enfermera/o | D64: =IFERROR(VLOOKUP($A64,Filtro!$A$5:$AW$2673,2,FALSE),0) -> 1972 | E64: =IFERROR(VLOOKUP($A64,Filtro!$A$5:$AW$2673,3,FALSE),0) -> 1177 | F64: =IFERROR(VLOOKUP($A64,Filtro!$A$5:$AW$2673,4,FALSE),0) -> 795 | G64: =IFERROR(VLOOKUP($A64,Filtro!$A$5:$AW$2673,5,FALSE),0) -> 691 | H64: =IFERROR(VLOOKUP($A64,Filtro!$A$5:$AW$2673,6,FALSE),0) -> 545 | I64: =IFERROR(VLOOKUP($A64,Filtro!$A$5:$AW$2673,7,FALSE),0) -> 398 | J64: =IFERROR(VLOOKUP($A64,Filtro!$A$5:$AW$2673,8,FALSE),0) -> 205 | K64: =IFERROR(VLOOKUP($A64,Filtro!$A$5:$AW$2673,9,FALSE),0) -> 66 | L64: =IFERROR(VLOOKUP($A64,Filtro!$A$5:$AW$2673,10,FALSE),0) -> 28 | M64: =IFERROR(VLOOKUP($A64,Filtro!$A$5:$AW$2673,11,FALSE),0) -> 22 | N64: =IFERROR(VLOOKUP($A64,Filtro!$A$5:$AW$2673,12,FALSE),0) -> 17 | O64: =IFERROR(VLOOKUP($A64,Filtro!$A$5:$AW$2673,13,FALSE),0) -> 0 | P64: =IFERROR(VLOOKUP($A64,Filtro!$A$5:$AW$2673,14,FALSE),0) -> 0 | Q64: =IFERROR(VLOOKUP($A64,Filtro!$A$5:$AW$2673,15,FALSE),0) -> 0 | R64: =IFERROR(VLOOKUP($A64,Filtro!$A$5:$AW$2673,16,FALSE),0) -> 0 | S64: =IFERROR(VLOOKUP($A64,Filtro!$A$5:$AW$2673,17,FALSE),0) -> 0 | T64: =IFERROR(VLOOKUP($A64,Filtro!$A$5:$AW$2673,18,FALSE),0) -> 0 | U64: =IFERROR(VLOOKUP($A64,Filtro!$A$5:$AW$2673,19,FALSE),0) -> 0 | V64: =IFERROR(VLOOKUP($A64,Filtro!$A$5:$AW$2673,20,FALSE),0) -> 0 | W64: =IFERROR(VLOOKUP($A64,Filtro!$A$5:$AW$2673,21,FALSE),0) -> 0 | X64: =IFERROR(VLOOKUP($A64,Filtro!$A$5:$AW$2673,22,FALSE),0) -> 0 | Y64: =IFERROR(VLOOKUP($A64,Filtro!$A$5:$AW$2673,23,FALSE),0) -> 0 | Z64: =IFERROR(VLOOKUP($A64,Filtro!$A$5:$AW$2673,24,FALSE),0) -> 0 | AA64: =IFERROR(VLOOKUP($A64,Filtro!$A$5:$AW$2673,25,FALSE),0) -> 0 | AB64: =IFERROR(VLOOKUP($A64,Filtro!$A$5:$AW$2673,26,FALSE),0) -> 0 | AC64: =IFERROR(VLOOKUP($A64,Filtro!$A$5:$AW$2673,27,FALSE),0) -> 0 | AD64: =IFERROR(VLOOKUP($A64,Filtro!$A$5:$AW$2673,28,FALSE),0) -> 0 | AE64: =IFERROR(VLOOKUP($A64,Filtro!$A$5:$AW$2673,29,FALSE),0) -> 0 | AF64: =IFERROR(VLOOKUP($A64,Filtro!$A$5:$AW$2673,30,FALSE),0) -> 0 | AG64: =IFERROR(VLOOKUP($A64,Filtro!$A$5:$AW$2673,31,FALSE),0) -> 0 | AH64: =IFERROR(VLOOKUP($A64,Filtro!$A$5:$AW$2673,32,FALSE),0) -> 0 | AI64: =IFERROR(VLOOKUP($A64,Filtro!$A$5:$AW$2673,33,FALSE),0) -> 0 | AJ64: =IFERROR(VLOOKUP($A64,Filtro!$A$5:$AW$2673,34,FALSE),0) -> 0 | AK64: =IFERROR(VLOOKUP($A64,Filtro!$A$5:$AW$2673,35,FALSE),0) -> 0 | AL64: =IFERROR(VLOOKUP($A64,Filtro!$A$5:$AW$2673,36,FALSE),0) -> 0 | AM64: =IFERROR(VLOOKUP($A64,Filtro!$A$5:$AW$2673,37,FALSE),0) -> 0 | AN64: =IFERROR(VLOOKUP($A64,Filtro!$A$5:$AW$2673,38,FALSE),0) -> 0 | AO64: =IFERROR(VLOOKUP($A64,Filtro!$A$5:$AW$2673,39,FALSE),0) -> 17 | AP64: =IFERROR(VLOOKUP($A64,Filtro!$A$5:$AW$2673,40,FALSE),0) -> 7 | CL64: 0 | CM64: 0
A65: 01200033 | C65: Matrona/ón | D65: =IFERROR(VLOOKUP($A65,Filtro!$A$5:$AW$2673,2,FALSE),0) -> 7 | E65: =IFERROR(VLOOKUP($A65,Filtro!$A$5:$AW$2673,3,FALSE),0) -> 4 | F65: =IFERROR(VLOOKUP($A65,Filtro!$A$5:$AW$2673,4,FALSE),0) -> 3 | G65: =IFERROR(VLOOKUP($A65,Filtro!$A$5:$AW$2673,5,FALSE),0) -> 2 | H65: =IFERROR(VLOOKUP($A65,Filtro!$A$5:$AW$2673,6,FALSE),0) -> 1 | I65: =IFERROR(VLOOKUP($A65,Filtro!$A$5:$AW$2673,7,FALSE),0) -> 2 | J65: =IFERROR(VLOOKUP($A65,Filtro!$A$5:$AW$2673,8,FALSE),0) -> 1 | K65: =IFERROR(VLOOKUP($A65,Filtro!$A$5:$AW$2673,9,FALSE),0) -> 0 | L65: =IFERROR(VLOOKUP($A65,Filtro!$A$5:$AW$2673,10,FALSE),0) -> 1 | M65: =IFERROR(VLOOKUP($A65,Filtro!$A$5:$AW$2673,11,FALSE),0) -> 0 | N65: =IFERROR(VLOOKUP($A65,Filtro!$A$5:$AW$2673,12,FALSE),0) -> 0 | O65: =IFERROR(VLOOKUP($A65,Filtro!$A$5:$AW$2673,13,FALSE),0) -> 0 | P65: =IFERROR(VLOOKUP($A65,Filtro!$A$5:$AW$2673,14,FALSE),0) -> 0 | Q65: =IFERROR(VLOOKUP($A65,Filtro!$A$5:$AW$2673,15,FALSE),0) -> 0 | R65: =IFERROR(VLOOKUP($A65,Filtro!$A$5:$AW$2673,16,FALSE),0) -> 0 | S65: =IFERROR(VLOOKUP($A65,Filtro!$A$5:$AW$2673,17,FALSE),0) -> 0 | T65: =IFERROR(VLOOKUP($A65,Filtro!$A$5:$AW$2673,18,FALSE),0) -> 0 | U65: =IFERROR(VLOOKUP($A65,Filtro!$A$5:$AW$2673,19,FALSE),0) -> 0 | V65: =IFERROR(VLOOKUP($A65,Filtro!$A$5:$AW$2673,20,FALSE),0) -> 0 | W65: =IFERROR(VLOOKUP($A65,Filtro!$A$5:$AW$2673,21,FALSE),0) -> 0 | X65: =IFERROR(VLOOKUP($A65,Filtro!$A$5:$AW$2673,22,FALSE),0) -> 0 | Y65: =IFERROR(VLOOKUP($A65,Filtro!$A$5:$AW$2673,23,FALSE),0) -> 0 | Z65: =IFERROR(VLOOKUP($A65,Filtro!$A$5:$AW$2673,24,FALSE),0) -> 0 | AA65: =IFERROR(VLOOKUP($A65,Filtro!$A$5:$AW$2673,25,FALSE),0) -> 0 | AB65: =IFERROR(VLOOKUP($A65,Filtro!$A$5:$AW$2673,26,FALSE),0) -> 0 | AC65: =IFERROR(VLOOKUP($A65,Filtro!$A$5:$AW$2673,27,FALSE),0) -> 0 | AD65: =IFERROR(VLOOKUP($A65,Filtro!$A$5:$AW$2673,28,FALSE),0) -> 0 | AE65: =IFERROR(VLOOKUP($A65,Filtro!$A$5:$AW$2673,29,FALSE),0) -> 0 | AF65: =IFERROR(VLOOKUP($A65,Filtro!$A$5:$AW$2673,30,FALSE),0) -> 0 | AG65: =IFERROR(VLOOKUP($A65,Filtro!$A$5:$AW$2673,31,FALSE),0) -> 0 | AH65: =IFERROR(VLOOKUP($A65,Filtro!$A$5:$AW$2673,32,FALSE),0) -> 0 | AI65: =IFERROR(VLOOKUP($A65,Filtro!$A$5:$AW$2673,33,FALSE),0) -> 0 | AJ65: =IFERROR(VLOOKUP($A65,Filtro!$A$5:$AW$2673,34,FALSE),0) -> 0 | AK65: =IFERROR(VLOOKUP($A65,Filtro!$A$5:$AW$2673,35,FALSE),0) -> 0 | AL65: =IFERROR(VLOOKUP($A65,Filtro!$A$5:$AW$2673,36,FALSE),0) -> 0 | AM65: =IFERROR(VLOOKUP($A65,Filtro!$A$5:$AW$2673,37,FALSE),0) -> 0 | AN65: =IFERROR(VLOOKUP($A65,Filtro!$A$5:$AW$2673,38,FALSE),0) -> 0 | AO65: =IFERROR(VLOOKUP($A65,Filtro!$A$5:$AW$2673,39,FALSE),0) -> 0 | AP65: =IFERROR(VLOOKUP($A65,Filtro!$A$5:$AW$2673,40,FALSE),0) -> 0 | CL65: 0 | CM65: 0
A66: 01200034 | C66: Nutricionista | D66: =IFERROR(VLOOKUP($A66,Filtro!$A$5:$AW$2673,2,FALSE),0) -> 470 | E66: =IFERROR(VLOOKUP($A66,Filtro!$A$5:$AW$2673,3,FALSE),0) -> 286 | F66: =IFERROR(VLOOKUP($A66,Filtro!$A$5:$AW$2673,4,FALSE),0) -> 184 | G66: =IFERROR(VLOOKUP($A66,Filtro!$A$5:$AW$2673,5,FALSE),0) -> 179 | H66: =IFERROR(VLOOKUP($A66,Filtro!$A$5:$AW$2673,6,FALSE),0) -> 159 | I66: =IFERROR(VLOOKUP($A66,Filtro!$A$5:$AW$2673,7,FALSE),0) -> 76 | J66: =IFERROR(VLOOKUP($A66,Filtro!$A$5:$AW$2673,8,FALSE),0) -> 18 | K66: =IFERROR(VLOOKUP($A66,Filtro!$A$5:$AW$2673,9,FALSE),0) -> 26 | L66: =IFERROR(VLOOKUP($A66,Filtro!$A$5:$AW$2673,10,FALSE),0) -> 2 | M66: =IFERROR(VLOOKUP($A66,Filtro!$A$5:$AW$2673,11,FALSE),0) -> 5 | N66: =IFERROR(VLOOKUP($A66,Filtro!$A$5:$AW$2673,12,FALSE),0) -> 5 | O66: =IFERROR(VLOOKUP($A66,Filtro!$A$5:$AW$2673,13,FALSE),0) -> 0 | P66: =IFERROR(VLOOKUP($A66,Filtro!$A$5:$AW$2673,14,FALSE),0) -> 0 | Q66: =IFERROR(VLOOKUP($A66,Filtro!$A$5:$AW$2673,15,FALSE),0) -> 0 | R66: =IFERROR(VLOOKUP($A66,Filtro!$A$5:$AW$2673,16,FALSE),0) -> 0 | S66: =IFERROR(VLOOKUP($A66,Filtro!$A$5:$AW$2673,17,FALSE),0) -> 0 | T66: =IFERROR(VLOOKUP($A66,Filtro!$A$5:$AW$2673,18,FALSE),0) -> 0 | U66: =IFERROR(VLOOKUP($A66,Filtro!$A$5:$AW$2673,19,FALSE),0) -> 0 | V66: =IFERROR(VLOOKUP($A66,Filtro!$A$5:$AW$2673,20,FALSE),0) -> 0 | W66: =IFERROR(VLOOKUP($A66,Filtro!$A$5:$AW$2673,21,FALSE),0) -> 0 | X66: =IFERROR(VLOOKUP($A66,Filtro!$A$5:$AW$2673,22,FALSE),0) -> 0 | Y66: =IFERROR(VLOOKUP($A66,Filtro!$A$5:$AW$2673,23,FALSE),0) -> 0 | Z66: =IFERROR(VLOOKUP($A66,Filtro!$A$5:$AW$2673,24,FALSE),0) -> 0 | AA66: =IFERROR(VLOOKUP($A66,Filtro!$A$5:$AW$2673,25,FALSE),0) -> 0 | AB66: =IFERROR(VLOOKUP($A66,Filtro!$A$5:$AW$2673,26,FALSE),0) -> 0 | AC66: =IFERROR(VLOOKUP($A66,Filtro!$A$5:$AW$2673,27,FALSE),0) -> 0 | AD66: =IFERROR(VLOOKUP($A66,Filtro!$A$5:$AW$2673,28,FALSE),0) -> 0 | AE66: =IFERROR(VLOOKUP($A66,Filtro!$A$5:$AW$2673,29,FALSE),0) -> 0 | AF66: =IFERROR(VLOOKUP($A66,Filtro!$A$5:$AW$2673,30,FALSE),0) -> 0 | AG66: =IFERROR(VLOOKUP($A66,Filtro!$A$5:$AW$2673,31,FALSE),0) -> 0 | AH66: =IFERROR(VLOOKUP($A66,Filtro!$A$5:$AW$2673,32,FALSE),0) -> 0 | AI66: =IFERROR(VLOOKUP($A66,Filtro!$A$5:$AW$2673,33,FALSE),0) -> 0 | AJ66: =IFERROR(VLOOKUP($A66,Filtro!$A$5:$AW$2673,34,FALSE),0) -> 0 | AK66: =IFERROR(VLOOKUP($A66,Filtro!$A$5:$AW$2673,35,FALSE),0) -> 0 | AL66: =IFERROR(VLOOKUP($A66,Filtro!$A$5:$AW$2673,36,FALSE),0) -> 0 | AM66: =IFERROR(VLOOKUP($A66,Filtro!$A$5:$AW$2673,37,FALSE),0) -> 0 | AN66: =IFERROR(VLOOKUP($A66,Filtro!$A$5:$AW$2673,38,FALSE),0) -> 0 | AO66: =IFERROR(VLOOKUP($A66,Filtro!$A$5:$AW$2673,39,FALSE),0) -> 0 | AP66: =IFERROR(VLOOKUP($A66,Filtro!$A$5:$AW$2673,40,FALSE),0) -> 1 | CL66: 0 | CM66: 0
B67: SECCIÓN D: CONTROL DE SALUD INTEGRAL DE ADOLESCENTES (incluidos en sección B)
B68: LUGAR DEL CONTROL, SEGÚN EDAD | D68: 10 - 14 años | G68: 15 - 19 años | J68: Pueblos Originarios | K68: Migrantes | L68: Niños, Niñas, Adolescentes y Jóvenes SENAME | M68: Niños, Niñas, Adolescentes y Jóvenes Mejor Niñez
D69: Ambos Sexos | E69: Hombres | F69: Mujeres | G69: Ambos Sexos | H69: Hombres | I69: Mujeres
A70: 01030500 | B70: En Espacio Amigable | D70: =IFERROR(VLOOKUP($A70,Filtro!$A$5:$AW$2673,2,FALSE),0) -> 1865 | E70: =IFERROR(VLOOKUP($A70,Filtro!$A$5:$AW$2673,3,FALSE),0) -> 788 | F70: =IFERROR(VLOOKUP($A70,Filtro!$A$5:$AW$2673,4,FALSE),0) -> 1077 | G70: =IFERROR(VLOOKUP($A70,Filtro!$A$5:$AW$2673,5,FALSE),0) -> 1501 | H70: =IFERROR(VLOOKUP($A70,Filtro!$A$5:$AW$2673,6,FALSE),0) -> 539 | I70: =IFERROR(VLOOKUP($A70,Filtro!$A$5:$AW$2673,7,FALSE),0) -> 962 | J70: =IFERROR(VLOOKUP($A70,Filtro!$A$5:$AW$2673,8,FALSE),0) -> 195 | K70: =IFERROR(VLOOKUP($A70,Filtro!$A$5:$AW$2673,9,FALSE),0) -> 179 | L70: =IFERROR(VLOOKUP($A70,Filtro!$A$5:$AW$2673,10,FALSE),0) -> 26 | M70: =IFERROR(VLOOKUP($A70,Filtro!$A$5:$AW$2673,11,FALSE),0) -> 71 | N70: =$CB70&CC70&CD70&CE70 ->  | CB70: =IF(AND(($D70+G70)<>0,$J70=""),"* No olvide ingresar la columna "&$J$68&""&" (Digite CERO si no tiene). ",IF(J70>($D70+$G70),"* El Número de Pueblos Originarios no puede superar la suma de Ambos Sexos. ","")) ->  | CC70: =IF(AND(($D70+G70)<>0,$K70=""),"* No olvide ingresar la columna "&$K$68&""&" (Digite CERO si no tiene). ",IF(K70>($D70+$G70),"* El Número de Migrantes no puede superar la suma de Ambos Sexos. ","")) ->  | CD70: =IF(AND(($D70+G70)<>0,$L70=""),"* No olvide ingresar la columna "&$L$68&""&" (Digite CERO si no tiene). ",IF(L70>($D70+$G70),"* El Número de "&$L$68&" no puede superar la suma de Ambos Sexos. ","")) ->  | CE70: =IF(AND(($D70+G70)<>0,$M70=""),"* No olvide ingresar la columna "&$M$68&""&" (Digite CERO si no tiene). ",IF(M70>($D70+$G70),"* El Número de "&$M$68&" no puede superar la suma de Ambos Sexos. ","")) ->  | CL70: =IF(AND(($D70+G70)<>0,$J70=""),1,IF(J70>($D70+$G70),1,0)) -> 0 | CM70: =IF(AND(($D70+G70)<>0,$K70=""),1,IF(K70>($D70+$G70),1,0)) -> 0 | CN70: =IF(AND(($D70+G70)<>0,$L70=""),1,IF(L70>($D70+$G70),1,0)) -> 0 | CO70: =IF(AND(($D70+G70)<>0,$M70=""),1,IF(M70>($D70+$G70),1,0)) -> 0
A71: 01030600 | B71: En otros espacios del Establecimiento de Salud | D71: =IFERROR(VLOOKUP($A71,Filtro!$A$5:$AW$2673,2,FALSE),0) -> 4127 | E71: =IFERROR(VLOOKUP($A71,Filtro!$A$5:$AW$2673,3,FALSE),0) -> 1821 | F71: =IFERROR(VLOOKUP($A71,Filtro!$A$5:$AW$2673,4,FALSE),0) -> 2306 | G71: =IFERROR(VLOOKUP($A71,Filtro!$A$5:$AW$2673,5,FALSE),0) -> 2097 | H71: =IFERROR(VLOOKUP($A71,Filtro!$A$5:$AW$2673,6,FALSE),0) -> 812 | I71: =IFERROR(VLOOKUP($A71,Filtro!$A$5:$AW$2673,7,FALSE),0) -> 1285 | J71: =IFERROR(VLOOKUP($A71,Filtro!$A$5:$AW$2673,8,FALSE),0) -> 439 | K71: =IFERROR(VLOOKUP($A71,Filtro!$A$5:$AW$2673,9,FALSE),0) -> 369 | L71: =IFERROR(VLOOKUP($A71,Filtro!$A$5:$AW$2673,10,FALSE),0) -> 89 | M71: =IFERROR(VLOOKUP($A71,Filtro!$A$5:$AW$2673,11,FALSE),0) -> 259 | N71: =$CB71&CC71&CD71&CE71 ->  | CB71: =IF(AND(($D71+G71)<>0,$J71=""),"* No olvide ingresar la columna "&$J$68&""&" (Digite CERO si no tiene). ",IF(J71>($D71+$G71),"* El Número de Pueblos Originarios no puede superar la suma de Ambos Sexos. ","")) ->  | CC71: =IF(AND(($D71+G71)<>0,$K71=""),"* No olvide ingresar la columna "&$K$68&""&" (Digite CERO si no tiene). ",IF(K71>($D71+$G71),"* El Número de Migrantes no puede superar la suma de Ambos Sexos. ","")) ->  | CD71: =IF(AND(($D71+G71)<>0,$L71=""),"* No olvide ingresar la columna "&$L$68&""&" (Digite CERO si no tiene). ",IF(L71>($D71+$G71),"* El Número de "&$L$68&" no puede superar la suma de Ambos Sexos. ","")) ->  | CE71: =IF(AND(($D71+G71)<>0,$M71=""),"* No olvide ingresar la columna "&$M$68&""&" (Digite CERO si no tiene). ",IF(M71>($D71+$G71),"* El Número de "&$M$68&" no puede superar la suma de Ambos Sexos. ","")) ->  | CL71: =IF(AND(($D71+G71)<>0,$J71=""),1,IF(J71>($D71+$G71),1,0)) -> 0 | CM71: =IF(AND(($D71+G71)<>0,$K71=""),1,IF(K71>($D71+$G71),1,0)) -> 0 | CN71: =IF(AND(($D71+G71)<>0,$L71=""),1,IF(L71>($D71+$G71),1,0)) -> 0 | CO71: =IF(AND(($D71+G71)<>0,$M71=""),1,IF(M71>($D71+$G71),1,0)) -> 0
A72: 01030700 | B72: En Establecimientos Educacionales | D72: =IFERROR(VLOOKUP($A72,Filtro!$A$5:$AW$2673,2,FALSE),0) -> 4263 | E72: =IFERROR(VLOOKUP($A72,Filtro!$A$5:$AW$2673,3,FALSE),0) -> 2111 | F72: =IFERROR(VLOOKUP($A72,Filtro!$A$5:$AW$2673,4,FALSE),0) -> 2152 | G72: =IFERROR(VLOOKUP($A72,Filtro!$A$5:$AW$2673,5,FALSE),0) -> 1847 | H72: =IFERROR(VLOOKUP($A72,Filtro!$A$5:$AW$2673,6,FALSE),0) -> 865 | I72: =IFERROR(VLOOKUP($A72,Filtro!$A$5:$AW$2673,7,FALSE),0) -> 982 | J72: =IFERROR(VLOOKUP($A72,Filtro!$A$5:$AW$2673,8,FALSE),0) -> 190 | K72: =IFERROR(VLOOKUP($A72,Filtro!$A$5:$AW$2673,9,FALSE),0) -> 230 | L72: =IFERROR(VLOOKUP($A72,Filtro!$A$5:$AW$2673,10,FALSE),0) -> 7 | M72: =IFERROR(VLOOKUP($A72,Filtro!$A$5:$AW$2673,11,FALSE),0) -> 88 | N72: =$CB72&CC72&CD72&CE72 ->  | CB72: =IF(AND(($D72+G72)<>0,$J72=""),"* No olvide ingresar la columna "&$J$68&""&" (Digite CERO si no tiene). ",IF(J72>($D72+$G72),"* El Número de Pueblos Originarios no puede superar la suma de Ambos Sexos. ","")) ->  | CC72: =IF(AND(($D72+G72)<>0,$K72=""),"* No olvide ingresar la columna "&$K$68&""&" (Digite CERO si no tiene). ",IF(K72>($D72+$G72),"* El Número de Migrantes no puede superar la suma de Ambos Sexos. ","")) ->  | CD72: =IF(AND(($D72+G72)<>0,$L72=""),"* No olvide ingresar la columna "&$L$68&""&" (Digite CERO si no tiene). ",IF(L72>($D72+$G72),"* El Número de "&$L$68&" no puede superar la suma de Ambos Sexos. ","")) ->  | CE72: =IF(AND(($D72+G72)<>0,$M72=""),"* No olvide ingresar la columna "&$M$68&""&" (Digite CERO si no tiene). ",IF(M72>($D72+$G72),"* El Número de "&$M$68&" no puede superar la suma de Ambos Sexos. ","")) ->  | CL72: =IF(AND(($D72+G72)<>0,$J72=""),1,IF(J72>($D72+$G72),1,0)) -> 0 | CM72: =IF(AND(($D72+G72)<>0,$K72=""),1,IF(K72>($D72+$G72),1,0)) -> 0 | CN72: =IF(AND(($D72+G72)<>0,$L72=""),1,IF(L72>($D72+$G72),1,0)) -> 0 | CO72: =IF(AND(($D72+G72)<>0,$M72=""),1,IF(M72>($D72+$G72),1,0)) -> 0
A73: 01030800 | B73: En otros lugares fuera del Establecimiento de Salud | D73: =IFERROR(VLOOKUP($A73,Filtro!$A$5:$AW$2673,2,FALSE),0) -> 147 | E73: =IFERROR(VLOOKUP($A73,Filtro!$A$5:$AW$2673,3,FALSE),0) -> 53 | F73: =IFERROR(VLOOKUP($A73,Filtro!$A$5:$AW$2673,4,FALSE),0) -> 94 | G73: =IFERROR(VLOOKUP($A73,Filtro!$A$5:$AW$2673,5,FALSE),0) -> 35 | H73: =IFERROR(VLOOKUP($A73,Filtro!$A$5:$AW$2673,6,FALSE),0) -> 16 | I73: =IFERROR(VLOOKUP($A73,Filtro!$A$5:$AW$2673,7,FALSE),0) -> 19 | J73: =IFERROR(VLOOKUP($A73,Filtro!$A$5:$AW$2673,8,FALSE),0) -> 10 | K73: =IFERROR(VLOOKUP($A73,Filtro!$A$5:$AW$2673,9,FALSE),0) -> 1 | L73: =IFERROR(VLOOKUP($A73,Filtro!$A$5:$AW$2673,10,FALSE),0) -> 1 | M73: =IFERROR(VLOOKUP($A73,Filtro!$A$5:$AW$2673,11,FALSE),0) -> 11 | N73: =$CB73&CC73&CD73&CE73 ->  | CB73: =IF(AND(($D73+G73)<>0,$J73=""),"* No olvide ingresar la columna "&$J$68&""&" (Digite CERO si no tiene). ",IF(J73>($D73+$G73),"* El Número de Pueblos Originarios no puede superar la suma de Ambos Sexos. ","")) ->  | CC73: =IF(AND(($D73+G73)<>0,$K73=""),"* No olvide ingresar la columna "&$K$68&""&" (Digite CERO si no tiene). ",IF(K73>($D73+$G73),"* El Número de Migrantes no puede superar la suma de Ambos Sexos. ","")) ->  | CD73: =IF(AND(($D73+G73)<>0,$L73=""),"* No olvide ingresar la columna "&$L$68&""&" (Digite CERO si no tiene). ",IF(L73>($D73+$G73),"* El Número de "&$L$68&" no puede superar la suma de Ambos Sexos. ","")) ->  | CE73: =IF(AND(($D73+G73)<>0,$M73=""),"* No olvide ingresar la columna "&$M$68&""&" (Digite CERO si no tiene). ",IF(M73>($D73+$G73),"* El Número de "&$M$68&" no puede superar la suma de Ambos Sexos. ","")) ->  | CL73: =IF(AND(($D73+G73)<>0,$J73=""),1,IF(J73>($D73+$G73),1,0)) -> 0 | CM73: =IF(AND(($D73+G73)<>0,$K73=""),1,IF(K73>($D73+$G73),1,0)) -> 0 | CN73: =IF(AND(($D73+G73)<>0,$L73=""),1,IF(L73>($D73+$G73),1,0)) -> 0 | CO73: =IF(AND(($D73+G73)<>0,$M73=""),1,IF(M73>($D73+$G73),1,0)) -> 0
B74: TOTAL | D74: =SUM(D70:D73) -> 10402 | E74: 4773 | F74: 5629 | G74: 5480 | H74: 2232 | I74: 3248 | J74: 834 | K74: 779 | L74: 123 | M74: 429
B75: SECCIÓN E: CONTROLES INDIVIDUALES DE SALUD EN ESTABLECIMIENTOS EDUCACIONALES
B76: CURSO | C76: TOTAL | D76: Sexo | F76: Gestión de casos | H76: Planificación Intervención educativa | K76: Pueblos Originarios | L76: Migrantes | M76: Niños, Niñas, Adolescentes y Jóvenes SENAME | N76: Niños, Niñas, Adolescentes y Jóvenes Mejor Niñez
D77: Hombres | E77: Mujeres | F77: Total casos gestionados | G77: Casos pesquisados con riesgo | H77: Diagnóstico participativo | I77: Número de problemáticas intervenidas | J77: Intervenciones educativas finalizadas
A78: 01031000 | B78: Kínder | C78: =IFERROR(VLOOKUP($A78,Filtro!$A$5:$AW$2673,2,FALSE),0) -> 851 | D78: =IFERROR(VLOOKUP($A78,Filtro!$A$5:$AW$2673,3,FALSE),0) -> 416 | E78: =IFERROR(VLOOKUP($A78,Filtro!$A$5:$AW$2673,4,FALSE),0) -> 435 | F78: =IFERROR(VLOOKUP($A78,Filtro!$A$5:$AW$2673,5,FALSE),0) -> 512 | G78: =IFERROR(VLOOKUP($A78,Filtro!$A$5:$AW$2673,6,FALSE),0) -> 313 | H78: =IFERROR(VLOOKUP($A78,Filtro!$A$5:$AW$2673,7,FALSE),0) -> 0 | I78: =IFERROR(VLOOKUP($A78,Filtro!$A$5:$AW$2673,8,FALSE),0) -> 0 | J78: =IFERROR(VLOOKUP($A78,Filtro!$A$5:$AW$2673,9,FALSE),0) -> 0 | K78: =IFERROR(VLOOKUP($A78,Filtro!$A$5:$AW$2673,10,FALSE),0) -> 14 | L78: =IFERROR(VLOOKUP($A78,Filtro!$A$5:$AW$2673,11,FALSE),0) -> 59 | M78: =IFERROR(VLOOKUP($A78,Filtro!$A$5:$AW$2673,12,FALSE),0) -> 1 | N78: =IFERROR(VLOOKUP($A78,Filtro!$A$5:$AW$2673,13,FALSE),0) -> 0 | O78: =$CB78&CC78&CD78&CE78 ->  | CB78: =IF(AND($C78<>0,K78=""),"* No olvide ingresar la columna "&K$76&""&" (Digite CERO si no tiene). ",IF(K78>$C78,"* El Número de Pueblos Originarios no puede superar el Total. ","")) ->  | CC78: =IF(AND($C78<>0,L78=""),"* No olvide ingresar la columna "&L$76&""&" (Digite CERO si no tiene). ",IF(L78>$C78,"* El Número de Migrantes no puede superar el Total. ","")) ->  | CD78: =IF(AND($C78<>0,M78=""),"* No olvide ingresar la columna "&M$76&""&" (Digite CERO si no tiene). ",IF(M78>$C78,"* El Número de El Número de Niños, Niñas, Adolescentes y Jóvenes SENAME no puede superar el Total. ","")) ->  | CE78: =IF(AND($C78<>0,N78=""),"* No olvide ingresar la columna "&N$76&""&" (Digite CERO si no tiene). ",IF(N78>$C78,"* El Número de Niños, Niñas, Adolescentes y Jóvenes Mejor Niñez no puede superar el Total. ","")) ->  | CL78: =IF(AND($C78<>0,K78=""),1,IF(K78>$C78,1,0)) -> 0 | CM78: 0 | CN78: 0 | CO78: 0
A79: 01031100 | B79: Primero básico | C79: =IFERROR(VLOOKUP($A79,Filtro!$A$5:$AW$2673,2,FALSE),0) -> 1250 | D79: =IFERROR(VLOOKUP($A79,Filtro!$A$5:$AW$2673,3,FALSE),0) -> 621 | E79: =IFERROR(VLOOKUP($A79,Filtro!$A$5:$AW$2673,4,FALSE),0) -> 629 | F79: =IFERROR(VLOOKUP($A79,Filtro!$A$5:$AW$2673,5,FALSE),0) -> 848 | G79: =IFERROR(VLOOKUP($A79,Filtro!$A$5:$AW$2673,6,FALSE),0) -> 651 | H79: =IFERROR(VLOOKUP($A79,Filtro!$A$5:$AW$2673,7,FALSE),0) -> 0 | I79: =IFERROR(VLOOKUP($A79,Filtro!$A$5:$AW$2673,8,FALSE),0) -> 0 | J79: =IFERROR(VLOOKUP($A79,Filtro!$A$5:$AW$2673,9,FALSE),0) -> 0 | K79: =IFERROR(VLOOKUP($A79,Filtro!$A$5:$AW$2673,10,FALSE),0) -> 18 | L79: =IFERROR(VLOOKUP($A79,Filtro!$A$5:$AW$2673,11,FALSE),0) -> 121 | M79: =IFERROR(VLOOKUP($A79,Filtro!$A$5:$AW$2673,12,FALSE),0) -> 7 | N79: =IFERROR(VLOOKUP($A79,Filtro!$A$5:$AW$2673,13,FALSE),0) -> 0 | O79: =$CB79&CC79&CD79&CE79 ->  | CB79: =IF(AND($C79<>0,K79=""),"* No olvide ingresar la columna "&K$76&""&" (Digite CERO si no tiene). ",IF(K79>$C79,"* El Número de Pueblos Originarios no puede superar el Total. ","")) ->  | CC79: =IF(AND($C79<>0,L79=""),"* No olvide ingresar la columna "&L$76&""&" (Digite CERO si no tiene). ",IF(L79>$C79,"* El Número de Migrantes no puede superar el Total. ","")) ->  | CD79: =IF(AND($C79<>0,M79=""),"* No olvide ingresar la columna "&M$76&""&" (Digite CERO si no tiene). ",IF(M79>$C79,"* El Número de El Número de Niños, Niñas, Adolescentes y Jóvenes SENAME no puede superar el Total. ","")) ->  | CE79: =IF(AND($C79<>0,N79=""),"* No olvide ingresar la columna "&N$76&""&" (Digite CERO si no tiene). ",IF(N79>$C79,"* El Número de Niños, Niñas, Adolescentes y Jóvenes Mejor Niñez no puede superar el Total. ","")) ->  | CL79: 0 | CM79: 0 | CN79: 0 | CO79: 0
A80: 01031200 | B80: Segundo básico | C80: =IFERROR(VLOOKUP($A80,Filtro!$A$5:$AW$2673,2,FALSE),0) -> 1445 | D80: =IFERROR(VLOOKUP($A80,Filtro!$A$5:$AW$2673,3,FALSE),0) -> 721 | E80: =IFERROR(VLOOKUP($A80,Filtro!$A$5:$AW$2673,4,FALSE),0) -> 724 | F80: =IFERROR(VLOOKUP($A80,Filtro!$A$5:$AW$2673,5,FALSE),0) -> 955 | G80: =IFERROR(VLOOKUP($A80,Filtro!$A$5:$AW$2673,6,FALSE),0) -> 740 | H80: =IFERROR(VLOOKUP($A80,Filtro!$A$5:$AW$2673,7,FALSE),0) -> 0 | I80: =IFERROR(VLOOKUP($A80,Filtro!$A$5:$AW$2673,8,FALSE),0) -> 0 | J80: =IFERROR(VLOOKUP($A80,Filtro!$A$5:$AW$2673,9,FALSE),0) -> 0 | K80: =IFERROR(VLOOKUP($A80,Filtro!$A$5:$AW$2673,10,FALSE),0) -> 22 | L80: =IFERROR(VLOOKUP($A80,Filtro!$A$5:$AW$2673,11,FALSE),0) -> 153 | M80: =IFERROR(VLOOKUP($A80,Filtro!$A$5:$AW$2673,12,FALSE),0) -> 7 | N80: =IFERROR(VLOOKUP($A80,Filtro!$A$5:$AW$2673,13,FALSE),0) -> 1 | O80: =$CB80&CC80&CD80&CE80 ->  | CB80: =IF(AND($C80<>0,K80=""),"* No olvide ingresar la columna "&K$76&""&" (Digite CERO si no tiene). ",IF(K80>$C80,"* El Número de Pueblos Originarios no puede superar el Total. ","")) ->  | CC80: =IF(AND($C80<>0,L80=""),"* No olvide ingresar la columna "&L$76&""&" (Digite CERO si no tiene). ",IF(L80>$C80,"* El Número de Migrantes no puede superar el Total. ","")) ->  | CD80: =IF(AND($C80<>0,M80=""),"* No olvide ingresar la columna "&M$76&""&" (Digite CERO si no tiene). ",IF(M80>$C80,"* El Número de El Número de Niños, Niñas, Adolescentes y Jóvenes SENAME no puede superar el Total. ","")) ->  | CE80: =IF(AND($C80<>0,N80=""),"* No olvide ingresar la columna "&N$76&""&" (Digite CERO si no tiene). ",IF(N80>$C80,"* El Número de Niños, Niñas, Adolescentes y Jóvenes Mejor Niñez no puede superar el Total. ","")) ->  | CL80: 0 | CM80: 0 | CN80: 0 | CO80: 0
A81: 01031300 | B81: Tercero básico | C81: =IFERROR(VLOOKUP($A81,Filtro!$A$5:$AW$2673,2,FALSE),0) -> 1580 | D81: =IFERROR(VLOOKUP($A81,Filtro!$A$5:$AW$2673,3,FALSE),0) -> 748 | E81: =IFERROR(VLOOKUP($A81,Filtro!$A$5:$AW$2673,4,FALSE),0) -> 832 | F81: =IFERROR(VLOOKUP($A81,Filtro!$A$5:$AW$2673,5,FALSE),0) -> 1168 | G81: =IFERROR(VLOOKUP($A81,Filtro!$A$5:$AW$2673,6,FALSE),0) -> 951 | H81: =IFERROR(VLOOKUP($A81,Filtro!$A$5:$AW$2673,7,FALSE),0) -> 0 | I81: =IFERROR(VLOOKUP($A81,Filtro!$A$5:$AW$2673,8,FALSE),0) -> 0 | J81: =IFERROR(VLOOKUP($A81,Filtro!$A$5:$AW$2673,9,FALSE),0) -> 0 | K81: =IFERROR(VLOOKUP($A81,Filtro!$A$5:$AW$2673,10,FALSE),0) -> 23 | L81: =IFERROR(VLOOKUP($A81,Filtro!$A$5:$AW$2673,11,FALSE),0) -> 153 | M81: =IFERROR(VLOOKUP($A81,Filtro!$A$5:$AW$2673,12,FALSE),0) -> 3 | N81: =IFERROR(VLOOKUP($A81,Filtro!$A$5:$AW$2673,13,FALSE),0) -> 0 | O81: =$CB81&CC81&CD81&CE81 ->  | CB81: =IF(AND($C81<>0,K81=""),"* No olvide ingresar la columna "&K$76&""&" (Digite CERO si no tiene). ",IF(K81>$C81,"* El Número de Pueblos Originarios no puede superar el Total. ","")) ->  | CC81: =IF(AND($C81<>0,L81=""),"* No olvide ingresar la columna "&L$76&""&" (Digite CERO si no tiene). ",IF(L81>$C81,"* El Número de Migrantes no puede superar el Total. ","")) ->  | CD81: =IF(AND($C81<>0,M81=""),"* No olvide ingresar la columna "&M$76&""&" (Digite CERO si no tiene). ",IF(M81>$C81,"* El Número de El Número de Niños, Niñas, Adolescentes y Jóvenes SENAME no puede superar el Total. ","")) ->  | CE81: =IF(AND($C81<>0,N81=""),"* No olvide ingresar la columna "&N$76&""&" (Digite CERO si no tiene). ",IF(N81>$C81,"* El Número de Niños, Niñas, Adolescentes y Jóvenes Mejor Niñez no puede superar el Total. ","")) ->  | CL81: 0 | CM81: 0 | CN81: 0 | CO81: 0
A82: 01031400 | B82: Cuarto básico | C82: =IFERROR(VLOOKUP($A82,Filtro!$A$5:$AW$2673,2,FALSE),0) -> 1514 | D82: =IFERROR(VLOOKUP($A82,Filtro!$A$5:$AW$2673,3,FALSE),0) -> 713 | E82: =IFERROR(VLOOKUP($A82,Filtro!$A$5:$AW$2673,4,FALSE),0) -> 801 | F82: =IFERROR(VLOOKUP($A82,Filtro!$A$5:$AW$2673,5,FALSE),0) -> 1461 | G82: =IFERROR(VLOOKUP($A82,Filtro!$A$5:$AW$2673,6,FALSE),0) -> 1312 | H82: =IFERROR(VLOOKUP($A82,Filtro!$A$5:$AW$2673,7,FALSE),0) -> 0 | I82: =IFERROR(VLOOKUP($A82,Filtro!$A$5:$AW$2673,8,FALSE),0) -> 4 | J82: =IFERROR(VLOOKUP($A82,Filtro!$A$5:$AW$2673,9,FALSE),0) -> 3 | K82: =IFERROR(VLOOKUP($A82,Filtro!$A$5:$AW$2673,10,FALSE),0) -> 29 | L82: =IFERROR(VLOOKUP($A82,Filtro!$A$5:$AW$2673,11,FALSE),0) -> 130 | M82: =IFERROR(VLOOKUP($A82,Filtro!$A$5:$AW$2673,12,FALSE),0) -> 15 | N82: =IFERROR(VLOOKUP($A82,Filtro!$A$5:$AW$2673,13,FALSE),0) -> 4 | O82: =$CB82&CC82&CD82&CE82 ->  | CB82: =IF(AND($C82<>0,K82=""),"* No olvide ingresar la columna "&K$76&""&" (Digite CERO si no tiene). ",IF(K82>$C82,"* El Número de Pueblos Originarios no puede superar el Total. ","")) ->  | CC82: =IF(AND($C82<>0,L82=""),"* No olvide ingresar la columna "&L$76&""&" (Digite CERO si no tiene). ",IF(L82>$C82,"* El Número de Migrantes no puede superar el Total. ","")) ->  | CD82: =IF(AND($C82<>0,M82=""),"* No olvide ingresar la columna "&M$76&""&" (Digite CERO si no tiene). ",IF(M82>$C82,"* El Número de El Número de Niños, Niñas, Adolescentes y Jóvenes SENAME no puede superar el Total. ","")) ->  | CE82: =IF(AND($C82<>0,N82=""),"* No olvide ingresar la columna "&N$76&""&" (Digite CERO si no tiene). ",IF(N82>$C82,"* El Número de Niños, Niñas, Adolescentes y Jóvenes Mejor Niñez no puede superar el Total. ","")) ->  | CL82: 0 | CM82: 0 | CN82: 0 | CO82: 0
A83: 01502041 | B83: Total de Establecimientos Educacionales | C83: =IFERROR(VLOOKUP($A83,Filtro!$A$5:$AW$2673,2,FALSE),0) -> 1485 | D83: =IFERROR(VLOOKUP($A83,Filtro!$A$5:$AW$2673,3,FALSE),0) -> 0 | E83: =IFERROR(VLOOKUP($A83,Filtro!$A$5:$AW$2673,4,FALSE),0) -> 0 | F83: =IFERROR(VLOOKUP($A83,Filtro!$A$5:$AW$2673,5,FALSE),0) -> 0 | G83: =IFERROR(VLOOKUP($A83,Filtro!$A$5:$AW$2673,6,FALSE),0) -> 0 | H83: =IFERROR(VLOOKUP($A83,Filtro!$A$5:$AW$2673,7,FALSE),0) -> 9 | I83: =IFERROR(VLOOKUP($A83,Filtro!$A$5:$AW$2673,8,FALSE),0) -> 8 | J83: =IFERROR(VLOOKUP($A83,Filtro!$A$5:$AW$2673,9,FALSE),0) -> 10 | K83: =IFERROR(VLOOKUP($A83,Filtro!$A$5:$AW$2673,10,FALSE),0) -> 0 | L83: =IFERROR(VLOOKUP($A83,Filtro!$A$5:$AW$2673,11,FALSE),0) -> 0 | M83: =IFERROR(VLOOKUP($A83,Filtro!$A$5:$AW$2673,12,FALSE),0) -> 0 | N83: =IFERROR(VLOOKUP($A83,Filtro!$A$5:$AW$2673,13,FALSE),0) -> 0
B84: SECCIÓN F: CONTROLES INTEGRALES DE PERSONAS CON CONDICIONES CRÓNICAS (incluidos en Secciones B y C)
B85: TIPO DE CONTROL | C85: TOTAL | F85: RANGO ETARIO Y SEXO | AH85: Migrantes | AI85: Pueblos Originarios
F86: 15 - 19 años | H86: 20 - 24 años | J86: 25 - 29 años | L86: 30 - 34 años | N86: 35 - 39 años | P86: 40 - 44 años | R86: 45 - 49 años | T86: 50 - 54 años | V86: 55 - 59 años | X86: 60 - 64 años | Z86: 65 - 69 años | AB86: 70 - 74 años | AD86: 75 - 79 años | AF86: 80 y más años
C87: Ambos Sexos | D87: Hombres | E87: Mujeres | F87: Hombres | G87: Mujeres | H87: Hombres | I87: Mujeres | J87: Hombres | K87: Mujeres | L87: Hombres | M87: Mujeres | N87: Hombres | O87: Mujeres | P87: Hombres | Q87: Mujeres | R87: Hombres | S87: Mujeres | T87: Hombres | U87: Mujeres | V87: Hombres | W87: Mujeres | X87: Hombres | Y87: Mujeres | Z87: Hombres | AA87: Mujeres | AB87: Hombres | AC87: Mujeres | AD87: Hombres | AE87: Mujeres | AF87: Hombres | AG87: Mujeres
A88: 01501010 | B88: Control integral con riesgo leve (G1) | C88: =IFERROR(VLOOKUP($A88,Filtro!$A$5:$AW$2673,2,FALSE),0) -> 113 | D88: =IFERROR(VLOOKUP($A88,Filtro!$A$5:$AW$2673,3,FALSE),0) -> 31 | E88: =IFERROR(VLOOKUP($A88,Filtro!$A$5:$AW$2673,4,FALSE),0) -> 82 | F88: =IFERROR(VLOOKUP($A88,Filtro!$A$5:$AW$2673,5,FALSE),0) -> 1 | G88: =IFERROR(VLOOKUP($A88,Filtro!$A$5:$AW$2673,6,FALSE),0) -> 8 | H88: =IFERROR(VLOOKUP($A88,Filtro!$A$5:$AW$2673,7,FALSE),0) -> 1 | I88: =IFERROR(VLOOKUP($A88,Filtro!$A$5:$AW$2673,8,FALSE),0) -> 0 | J88: =IFERROR(VLOOKUP($A88,Filtro!$A$5:$AW$2673,9,FALSE),0) -> 0 | K88: =IFERROR(VLOOKUP($A88,Filtro!$A$5:$AW$2673,10,FALSE),0) -> 3 | L88: =IFERROR(VLOOKUP($A88,Filtro!$A$5:$AW$2673,11,FALSE),0) -> 0 | M88: =IFERROR(VLOOKUP($A88,Filtro!$A$5:$AW$2673,12,FALSE),0) -> 1 | N88: =IFERROR(VLOOKUP($A88,Filtro!$A$5:$AW$2673,13,FALSE),0) -> 0 | O88: =IFERROR(VLOOKUP($A88,Filtro!$A$5:$AW$2673,14,FALSE),0) -> 3 | P88: =IFERROR(VLOOKUP($A88,Filtro!$A$5:$AW$2673,15,FALSE),0) -> 1 | Q88: =IFERROR(VLOOKUP($A88,Filtro!$A$5:$AW$2673,16,FALSE),0) -> 4 | R88: =IFERROR(VLOOKUP($A88,Filtro!$A$5:$AW$2673,17,FALSE),0) -> 0 | S88: =IFERROR(VLOOKUP($A88,Filtro!$A$5:$AW$2673,18,FALSE),0) -> 5 | T88: =IFERROR(VLOOKUP($A88,Filtro!$A$5:$AW$2673,19,FALSE),0) -> 7 | U88: =IFERROR(VLOOKUP($A88,Filtro!$A$5:$AW$2673,20,FALSE),0) -> 17 | V88: =IFERROR(VLOOKUP($A88,Filtro!$A$5:$AW$2673,21,FALSE),0) -> 5 | W88: =IFERROR(VLOOKUP($A88,Filtro!$A$5:$AW$2673,22,FALSE),0) -> 8 | X88: =IFERROR(VLOOKUP($A88,Filtro!$A$5:$AW$2673,23,FALSE),0) -> 4 | Y88: =IFERROR(VLOOKUP($A88,Filtro!$A$5:$AW$2673,24,FALSE),0) -> 13 | Z88: =IFERROR(VLOOKUP($A88,Filtro!$A$5:$AW$2673,25,FALSE),0) -> 0 | AA88: =IFERROR(VLOOKUP($A88,Filtro!$A$5:$AW$2673,26,FALSE),0) -> 7 | AB88: =IFERROR(VLOOKUP($A88,Filtro!$A$5:$AW$2673,27,FALSE),0) -> 5 | AC88: =IFERROR(VLOOKUP($A88,Filtro!$A$5:$AW$2673,28,FALSE),0) -> 6 | AD88: =IFERROR(VLOOKUP($A88,Filtro!$A$5:$AW$2673,29,FALSE),0) -> 2 | AE88: =IFERROR(VLOOKUP($A88,Filtro!$A$5:$AW$2673,30,FALSE),0) -> 3 | AF88: =IFERROR(VLOOKUP($A88,Filtro!$A$5:$AW$2673,31,FALSE),0) -> 5 | AG88: =IFERROR(VLOOKUP($A88,Filtro!$A$5:$AW$2673,32,FALSE),0) -> 4 | AH88: =IFERROR(VLOOKUP($A88,Filtro!$A$5:$AW$2673,33,FALSE),0) -> 0 | AI88: =IFERROR(VLOOKUP($A88,Filtro!$A$5:$AW$2673,34,FALSE),0) -> 0 | AJ88: =$CB88&CC88 ->  | CB88: =IF(AND($C88<>0,AH88=""),"* No olvide ingresar la columna "&AH$85&""&" (Digite CERO si no tiene). ",IF(AH88>$C88,"* El Número de Migrantes no puede superar el Total Ambos Sexos. ","")) ->  | CC88: =IF(AND($C88<>0,AI88=""),"* No olvide ingresar la columna "&AI$85&""&" (Digite CERO si no tiene). ",IF(AI88>$C88,"* El Número de Pueblos Originarios no puede superar el Total Ambos Sexos. ","")) ->  | CL88: =IF(AND($C88<>0,AH88=""),1,IF(AH88>$C88,1,0)) -> 0 | CM88: 0
A89: 01501020 | B89: Control integral con riesgo moderado (G2) | C89: =IFERROR(VLOOKUP($A89,Filtro!$A$5:$AW$2673,2,FALSE),0) -> 212 | D89: =IFERROR(VLOOKUP($A89,Filtro!$A$5:$AW$2673,3,FALSE),0) -> 76 | E89: =IFERROR(VLOOKUP($A89,Filtro!$A$5:$AW$2673,4,FALSE),0) -> 136 | F89: =IFERROR(VLOOKUP($A89,Filtro!$A$5:$AW$2673,5,FALSE),0) -> 0 | G89: =IFERROR(VLOOKUP($A89,Filtro!$A$5:$AW$2673,6,FALSE),0) -> 2 | H89: =IFERROR(VLOOKUP($A89,Filtro!$A$5:$AW$2673,7,FALSE),0) -> 0 | I89: =IFERROR(VLOOKUP($A89,Filtro!$A$5:$AW$2673,8,FALSE),0) -> 0 | J89: =IFERROR(VLOOKUP($A89,Filtro!$A$5:$AW$2673,9,FALSE),0) -> 0 | K89: =IFERROR(VLOOKUP($A89,Filtro!$A$5:$AW$2673,10,FALSE),0) -> 0 | L89: =IFERROR(VLOOKUP($A89,Filtro!$A$5:$AW$2673,11,FALSE),0) -> 0 | M89: =IFERROR(VLOOKUP($A89,Filtro!$A$5:$AW$2673,12,FALSE),0) -> 1 | N89: =IFERROR(VLOOKUP($A89,Filtro!$A$5:$AW$2673,13,FALSE),0) -> 2 | O89: =IFERROR(VLOOKUP($A89,Filtro!$A$5:$AW$2673,14,FALSE),0) -> 3 | P89: =IFERROR(VLOOKUP($A89,Filtro!$A$5:$AW$2673,15,FALSE),0) -> 2 | Q89: =IFERROR(VLOOKUP($A89,Filtro!$A$5:$AW$2673,16,FALSE),0) -> 8 | R89: =IFERROR(VLOOKUP($A89,Filtro!$A$5:$AW$2673,17,FALSE),0) -> 4 | S89: =IFERROR(VLOOKUP($A89,Filtro!$A$5:$AW$2673,18,FALSE),0) -> 7 | T89: =IFERROR(VLOOKUP($A89,Filtro!$A$5:$AW$2673,19,FALSE),0) -> 7 | U89: =IFERROR(VLOOKUP($A89,Filtro!$A$5:$AW$2673,20,FALSE),0) -> 14 | V89: =IFERROR(VLOOKUP($A89,Filtro!$A$5:$AW$2673,21,FALSE),0) -> 10 | W89: =IFERROR(VLOOKUP($A89,Filtro!$A$5:$AW$2673,22,FALSE),0) -> 19 | X89: =IFERROR(VLOOKUP($A89,Filtro!$A$5:$AW$2673,23,FALSE),0) -> 11 | Y89: =IFERROR(VLOOKUP($A89,Filtro!$A$5:$AW$2673,24,FALSE),0) -> 24 | Z89: =IFERROR(VLOOKUP($A89,Filtro!$A$5:$AW$2673,25,FALSE),0) -> 19 | AA89: =IFERROR(VLOOKUP($A89,Filtro!$A$5:$AW$2673,26,FALSE),0) -> 20 | AB89: =IFERROR(VLOOKUP($A89,Filtro!$A$5:$AW$2673,27,FALSE),0) -> 7 | AC89: =IFERROR(VLOOKUP($A89,Filtro!$A$5:$AW$2673,28,FALSE),0) -> 30 | AD89: =IFERROR(VLOOKUP($A89,Filtro!$A$5:$AW$2673,29,FALSE),0) -> 3 | AE89: =IFERROR(VLOOKUP($A89,Filtro!$A$5:$AW$2673,30,FALSE),0) -> 6 | AF89: =IFERROR(VLOOKUP($A89,Filtro!$A$5:$AW$2673,31,FALSE),0) -> 11 | AG89: =IFERROR(VLOOKUP($A89,Filtro!$A$5:$AW$2673,32,FALSE),0) -> 2 | AH89: =IFERROR(VLOOKUP($A89,Filtro!$A$5:$AW$2673,33,FALSE),0) -> 0 | AI89: =IFERROR(VLOOKUP($A89,Filtro!$A$5:$AW$2673,34,FALSE),0) -> 0 | CL89: 0 | CM89: 0
A90: 01501030 | B90: Control integral con riesgo alto (G3) | C90: =IFERROR(VLOOKUP($A90,Filtro!$A$5:$AW$2673,2,FALSE),0) -> 5119 | D90: =IFERROR(VLOOKUP($A90,Filtro!$A$5:$AW$2673,3,FALSE),0) -> 1401 | E90: =IFERROR(VLOOKUP($A90,Filtro!$A$5:$AW$2673,4,FALSE),0) -> 3718 | F90: =IFERROR(VLOOKUP($A90,Filtro!$A$5:$AW$2673,5,FALSE),0) -> 0 | G90: =IFERROR(VLOOKUP($A90,Filtro!$A$5:$AW$2673,6,FALSE),0) -> 1 | H90: =IFERROR(VLOOKUP($A90,Filtro!$A$5:$AW$2673,7,FALSE),0) -> 0 | I90: =IFERROR(VLOOKUP($A90,Filtro!$A$5:$AW$2673,8,FALSE),0) -> 8 | J90: =IFERROR(VLOOKUP($A90,Filtro!$A$5:$AW$2673,9,FALSE),0) -> 4 | K90: =IFERROR(VLOOKUP($A90,Filtro!$A$5:$AW$2673,10,FALSE),0) -> 1 | L90: =IFERROR(VLOOKUP($A90,Filtro!$A$5:$AW$2673,11,FALSE),0) -> 1 | M90: =IFERROR(VLOOKUP($A90,Filtro!$A$5:$AW$2673,12,FALSE),0) -> 26 | N90: =IFERROR(VLOOKUP($A90,Filtro!$A$5:$AW$2673,13,FALSE),0) -> 6 | O90: =IFERROR(VLOOKUP($A90,Filtro!$A$5:$AW$2673,14,FALSE),0) -> 27 | P90: =IFERROR(VLOOKUP($A90,Filtro!$A$5:$AW$2673,15,FALSE),0) -> 23 | Q90: =IFERROR(VLOOKUP($A90,Filtro!$A$5:$AW$2673,16,FALSE),0) -> 73 | R90: =IFERROR(VLOOKUP($A90,Filtro!$A$5:$AW$2673,17,FALSE),0) -> 35 | S90: =IFERROR(VLOOKUP($A90,Filtro!$A$5:$AW$2673,18,FALSE),0) -> 132 | T90: =IFERROR(VLOOKUP($A90,Filtro!$A$5:$AW$2673,19,FALSE),0) -> 54 | U90: =IFERROR(VLOOKUP($A90,Filtro!$A$5:$AW$2673,20,FALSE),0) -> 233 | V90: =IFERROR(VLOOKUP($A90,Filtro!$A$5:$AW$2673,21,FALSE),0) -> 106 | W90: =IFERROR(VLOOKUP($A90,Filtro!$A$5:$AW$2673,22,FALSE),0) -> 394 | X90: =IFERROR(VLOOKUP($A90,Filtro!$A$5:$AW$2673,23,FALSE),0) -> 169 | Y90: =IFERROR(VLOOKUP($A90,Filtro!$A$5:$AW$2673,24,FALSE),0) -> 554 | Z90: =IFERROR(VLOOKUP($A90,Filtro!$A$5:$AW$2673,25,FALSE),0) -> 331 | AA90: =IFERROR(VLOOKUP($A90,Filtro!$A$5:$AW$2673,26,FALSE),0) -> 815 | AB90: =IFERROR(VLOOKUP($A90,Filtro!$A$5:$AW$2673,27,FALSE),0) -> 244 | AC90: =IFERROR(VLOOKUP($A90,Filtro!$A$5:$AW$2673,28,FALSE),0) -> 597 | AD90: =IFERROR(VLOOKUP($A90,Filtro!$A$5:$AW$2673,29,FALSE),0) -> 202 | AE90: =IFERROR(VLOOKUP($A90,Filtro!$A$5:$AW$2673,30,FALSE),0) -> 368 | AF90: =IFERROR(VLOOKUP($A90,Filtro!$A$5:$AW$2673,31,FALSE),0) -> 226 | AG90: =IFERROR(VLOOKUP($A90,Filtro!$A$5:$AW$2673,32,FALSE),0) -> 489 | AH90: =IFERROR(VLOOKUP($A90,Filtro!$A$5:$AW$2673,33,FALSE),0) -> 5 | AI90: =IFERROR(VLOOKUP($A90,Filtro!$A$5:$AW$2673,34,FALSE),0) -> 17 | CL90: 0 | CM90: 0
A91: 01502030 | B91: Seguimiento a distancia con riesgo leve (G1) | C91: =IFERROR(VLOOKUP($A91,Filtro!$A$5:$AW$2673,2,FALSE),0) -> 21 | D91: =IFERROR(VLOOKUP($A91,Filtro!$A$5:$AW$2673,3,FALSE),0) -> 6 | E91: =IFERROR(VLOOKUP($A91,Filtro!$A$5:$AW$2673,4,FALSE),0) -> 15 | F91: =IFERROR(VLOOKUP($A91,Filtro!$A$5:$AW$2673,5,FALSE),0) -> 0 | G91: =IFERROR(VLOOKUP($A91,Filtro!$A$5:$AW$2673,6,FALSE),0) -> 0 | H91: =IFERROR(VLOOKUP($A91,Filtro!$A$5:$AW$2673,7,FALSE),0) -> 0 | I91: =IFERROR(VLOOKUP($A91,Filtro!$A$5:$AW$2673,8,FALSE),0) -> 0 | J91: =IFERROR(VLOOKUP($A91,Filtro!$A$5:$AW$2673,9,FALSE),0) -> 0 | K91: =IFERROR(VLOOKUP($A91,Filtro!$A$5:$AW$2673,10,FALSE),0) -> 0 | L91: =IFERROR(VLOOKUP($A91,Filtro!$A$5:$AW$2673,11,FALSE),0) -> 0 | M91: =IFERROR(VLOOKUP($A91,Filtro!$A$5:$AW$2673,12,FALSE),0) -> 0 | N91: =IFERROR(VLOOKUP($A91,Filtro!$A$5:$AW$2673,13,FALSE),0) -> 0 | O91: =IFERROR(VLOOKUP($A91,Filtro!$A$5:$AW$2673,14,FALSE),0) -> 0 | P91: =IFERROR(VLOOKUP($A91,Filtro!$A$5:$AW$2673,15,FALSE),0) -> 0 | Q91: =IFERROR(VLOOKUP($A91,Filtro!$A$5:$AW$2673,16,FALSE),0) -> 0 | R91: =IFERROR(VLOOKUP($A91,Filtro!$A$5:$AW$2673,17,FALSE),0) -> 0 | S91: =IFERROR(VLOOKUP($A91,Filtro!$A$5:$AW$2673,18,FALSE),0) -> 0 | T91: =IFERROR(VLOOKUP($A91,Filtro!$A$5:$AW$2673,19,FALSE),0) -> 0 | U91: =IFERROR(VLOOKUP($A91,Filtro!$A$5:$AW$2673,20,FALSE),0) -> 0 | V91: =IFERROR(VLOOKUP($A91,Filtro!$A$5:$AW$2673,21,FALSE),0) -> 0 | W91: =IFERROR(VLOOKUP($A91,Filtro!$A$5:$AW$2673,22,FALSE),0) -> 0 | X91: =IFERROR(VLOOKUP($A91,Filtro!$A$5:$AW$2673,23,FALSE),0) -> 0 | Y91: =IFERROR(VLOOKUP($A91,Filtro!$A$5:$AW$2673,24,FALSE),0) -> 2 | Z91: =IFERROR(VLOOKUP($A91,Filtro!$A$5:$AW$2673,25,FALSE),0) -> 1 | AA91: =IFERROR(VLOOKUP($A91,Filtro!$A$5:$AW$2673,26,FALSE),0) -> 0 | AB91: =IFERROR(VLOOKUP($A91,Filtro!$A$5:$AW$2673,27,FALSE),0) -> 3 | AC91: =IFERROR(VLOOKUP($A91,Filtro!$A$5:$AW$2673,28,FALSE),0) -> 3 | AD91: =IFERROR(VLOOKUP($A91,Filtro!$A$5:$AW$2673,29,FALSE),0) -> 2 | AE91: =IFERROR(VLOOKUP($A91,Filtro!$A$5:$AW$2673,30,FALSE),0) -> 10 | AF91: =IFERROR(VLOOKUP($A91,Filtro!$A$5:$AW$2673,31,FALSE),0) -> 0 | AG91: =IFERROR(VLOOKUP($A91,Filtro!$A$5:$AW$2673,32,FALSE),0) -> 0 | AH91: =IFERROR(VLOOKUP($A91,Filtro!$A$5:$AW$2673,33,FALSE),0) -> 0 | AI91: =IFERROR(VLOOKUP($A91,Filtro!$A$5:$AW$2673,34,FALSE),0) -> 0 | CL91: 0 | CM91: 0
A92: 01502040 | B92: Seguimiento a distancia con riesgo moderado (G2) | C92: =IFERROR(VLOOKUP($A92,Filtro!$A$5:$AW$2673,2,FALSE),0) -> 234 | D92: =IFERROR(VLOOKUP($A92,Filtro!$A$5:$AW$2673,3,FALSE),0) -> 91 | E92: =IFERROR(VLOOKUP($A92,Filtro!$A$5:$AW$2673,4,FALSE),0) -> 143 | F92: =IFERROR(VLOOKUP($A92,Filtro!$A$5:$AW$2673,5,FALSE),0) -> 0 | G92: =IFERROR(VLOOKUP($A92,Filtro!$A$5:$AW$2673,6,FALSE),0) -> 0 | H92: =IFERROR(VLOOKUP($A92,Filtro!$A$5:$AW$2673,7,FALSE),0) -> 0 | I92: =IFERROR(VLOOKUP($A92,Filtro!$A$5:$AW$2673,8,FALSE),0) -> 1 | J92: =IFERROR(VLOOKUP($A92,Filtro!$A$5:$AW$2673,9,FALSE),0) -> 0 | K92: =IFERROR(VLOOKUP($A92,Filtro!$A$5:$AW$2673,10,FALSE),0) -> 0 | L92: =IFERROR(VLOOKUP($A92,Filtro!$A$5:$AW$2673,11,FALSE),0) -> 2 | M92: =IFERROR(VLOOKUP($A92,Filtro!$A$5:$AW$2673,12,FALSE),0) -> 0 | N92: =IFERROR(VLOOKUP($A92,Filtro!$A$5:$AW$2673,13,FALSE),0) -> 3 | O92: =IFERROR(VLOOKUP($A92,Filtro!$A$5:$AW$2673,14,FALSE),0) -> 3 | P92: =IFERROR(VLOOKUP($A92,Filtro!$A$5:$AW$2673,15,FALSE),0) -> 0 | Q92: =IFERROR(VLOOKUP($A92,Filtro!$A$5:$AW$2673,16,FALSE),0) -> 2 | R92: =IFERROR(VLOOKUP($A92,Filtro!$A$5:$AW$2673,17,FALSE),0) -> 5 | S92: =IFERROR(VLOOKUP($A92,Filtro!$A$5:$AW$2673,18,FALSE),0) -> 5 | T92: =IFERROR(VLOOKUP($A92,Filtro!$A$5:$AW$2673,19,FALSE),0) -> 10 | U92: =IFERROR(VLOOKUP($A92,Filtro!$A$5:$AW$2673,20,FALSE),0) -> 12 | V92: =IFERROR(VLOOKUP($A92,Filtro!$A$5:$AW$2673,21,FALSE),0) -> 11 | W92: =IFERROR(VLOOKUP($A92,Filtro!$A$5:$AW$2673,22,FALSE),0) -> 16 | X92: =IFERROR(VLOOKUP($A92,Filtro!$A$5:$AW$2673,23,FALSE),0) -> 16 | Y92: =IFERROR(VLOOKUP($A92,Filtro!$A$5:$AW$2673,24,FALSE),0) -> 22 | Z92: =IFERROR(VLOOKUP($A92,Filtro!$A$5:$AW$2673,25,FALSE),0) -> 13 | AA92: =IFERROR(VLOOKUP($A92,Filtro!$A$5:$AW$2673,26,FALSE),0) -> 26 | AB92: =IFERROR(VLOOKUP($A92,Filtro!$A$5:$AW$2673,27,FALSE),0) -> 13 | AC92: =IFERROR(VLOOKUP($A92,Filtro!$A$5:$AW$2673,28,FALSE),0) -> 18 | AD92: =IFERROR(VLOOKUP($A92,Filtro!$A$5:$AW$2673,29,FALSE),0) -> 12 | AE92: =IFERROR(VLOOKUP($A92,Filtro!$A$5:$AW$2673,30,FALSE),0) -> 23 | AF92: =IFERROR(VLOOKUP($A92,Filtro!$A$5:$AW$2673,31,FALSE),0) -> 6 | AG92: =IFERROR(VLOOKUP($A92,Filtro!$A$5:$AW$2673,32,FALSE),0) -> 15 | AH92: =IFERROR(VLOOKUP($A92,Filtro!$A$5:$AW$2673,33,FALSE),0) -> 0 | AI92: =IFERROR(VLOOKUP($A92,Filtro!$A$5:$AW$2673,34,FALSE),0) -> 0 | CL92: 0 | CM92: 0
A93: 01501040 | B93: Seguimiento a distancia con riesgo alto (G3) | C93: =IFERROR(VLOOKUP($A93,Filtro!$A$5:$AW$2673,2,FALSE),0) -> 3707 | D93: =IFERROR(VLOOKUP($A93,Filtro!$A$5:$AW$2673,3,FALSE),0) -> 1043 | E93: =IFERROR(VLOOKUP($A93,Filtro!$A$5:$AW$2673,4,FALSE),0) -> 2664 | F93: =IFERROR(VLOOKUP($A93,Filtro!$A$5:$AW$2673,5,FALSE),0) -> 0 | G93: =IFERROR(VLOOKUP($A93,Filtro!$A$5:$AW$2673,6,FALSE),0) -> 0 | H93: =IFERROR(VLOOKUP($A93,Filtro!$A$5:$AW$2673,7,FALSE),0) -> 0 | I93: =IFERROR(VLOOKUP($A93,Filtro!$A$5:$AW$2673,8,FALSE),0) -> 5 | J93: =IFERROR(VLOOKUP($A93,Filtro!$A$5:$AW$2673,9,FALSE),0) -> 2 | K93: =IFERROR(VLOOKUP($A93,Filtro!$A$5:$AW$2673,10,FALSE),0) -> 2 | L93: =IFERROR(VLOOKUP($A93,Filtro!$A$5:$AW$2673,11,FALSE),0) -> 1 | M93: =IFERROR(VLOOKUP($A93,Filtro!$A$5:$AW$2673,12,FALSE),0) -> 19 | N93: =IFERROR(VLOOKUP($A93,Filtro!$A$5:$AW$2673,13,FALSE),0) -> 7 | O93: =IFERROR(VLOOKUP($A93,Filtro!$A$5:$AW$2673,14,FALSE),0) -> 25 | P93: =IFERROR(VLOOKUP($A93,Filtro!$A$5:$AW$2673,15,FALSE),0) -> 14 | Q93: =IFERROR(VLOOKUP($A93,Filtro!$A$5:$AW$2673,16,FALSE),0) -> 56 | R93: =IFERROR(VLOOKUP($A93,Filtro!$A$5:$AW$2673,17,FALSE),0) -> 31 | S93: =IFERROR(VLOOKUP($A93,Filtro!$A$5:$AW$2673,18,FALSE),0) -> 91 | T93: =IFERROR(VLOOKUP($A93,Filtro!$A$5:$AW$2673,19,FALSE),0) -> 45 | U93: =IFERROR(VLOOKUP($A93,Filtro!$A$5:$AW$2673,20,FALSE),0) -> 158 | V93: =IFERROR(VLOOKUP($A93,Filtro!$A$5:$AW$2673,21,FALSE),0) -> 74 | W93: =IFERROR(VLOOKUP($A93,Filtro!$A$5:$AW$2673,22,FALSE),0) -> 260 | X93: =IFERROR(VLOOKUP($A93,Filtro!$A$5:$AW$2673,23,FALSE),0) -> 95 | Y93: =IFERROR(VLOOKUP($A93,Filtro!$A$5:$AW$2673,24,FALSE),0) -> 345 | Z93: =IFERROR(VLOOKUP($A93,Filtro!$A$5:$AW$2673,25,FALSE),0) -> 292 | AA93: =IFERROR(VLOOKUP($A93,Filtro!$A$5:$AW$2673,26,FALSE),0) -> 653 | AB93: =IFERROR(VLOOKUP($A93,Filtro!$A$5:$AW$2673,27,FALSE),0) -> 164 | AC93: =IFERROR(VLOOKUP($A93,Filtro!$A$5:$AW$2673,28,FALSE),0) -> 415 | AD93: =IFERROR(VLOOKUP($A93,Filtro!$A$5:$AW$2673,29,FALSE),0) -> 138 | AE93: =IFERROR(VLOOKUP($A93,Filtro!$A$5:$AW$2673,30,FALSE),0) -> 305 | AF93: =IFERROR(VLOOKUP($A93,Filtro!$A$5:$AW$2673,31,FALSE),0) -> 180 | AG93: =IFERROR(VLOOKUP($A93,Filtro!$A$5:$AW$2673,32,FALSE),0) -> 330 | AH93: =IFERROR(VLOOKUP($A93,Filtro!$A$5:$AW$2673,33,FALSE),0) -> 3 | AI93: =IFERROR(VLOOKUP($A93,Filtro!$A$5:$AW$2673,34,FALSE),0) -> 11 | CL93: 0 | CM93: 0
A95: CODIGOS ELIMINADOS
A96: 01031500
A97: 01031600
A98: 01031700
A99: 01031800
A100: 01031900
A102: CODIGO NUEVO
A103: 01502041
B151: =SUM(D11:D32,D36:D39,D44:D66,D70:D74,G70:G74,C78:C82,C88:C93) -> 690966 | C151: =SUM(CL11:CS93) -> 9

Sheet A02
B1: SERVICIO DE SALUD
B2: =CONCATENATE("COMUNA: ",[1]NOMBRE!B2," - ","( ",[1]NOMBRE!C2,[1]NOMBRE!D2,[1]NOMBRE!E2,[1]NOMBRE!F2,[1]NOMBRE!G2," )") -> COMUNA: - ( )
B3: =CONCATENATE("ESTABLECIMIENTO/ESTRATEGIA: ",[1]NOMBRE!B3," - ","( ",[1]NOMBRE!C3,[1]NOMBRE!D3,[1]NOMBRE!E3,[1]NOMBRE!F3,[1]NOMBRE!G3,[1]NOMBRE!H3," )") -> ESTABLECIMIENTO/ESTRATEGIA: - ( )
B4: =CONCATENATE("MES: ",[1]NOMBRE!B6," - ","( ",[1]NOMBRE!C6,[1]NOMBRE!D6," )") -> MES: - ( )
B5: =CONCATENATE("AÑO: ",[1]NOMBRE!B7) -> AÑO: 2024
B6: REM-A02. EXAMEN DE MEDICINA PREVENTIVA EN MAYORES DE 15 AÑOS
B8: SECCIÓN A: EMP REALIZADO POR PROFESIONAL
B9: PROFESIONAL | C9: TOTAL | F9: Pueblos Originarios | G9: Migrantes
C10: Ambos Sexos | D10: Hombres | E10: Mujeres
B11: TOTAL | C11: =SUM(C12:C17) -> 91476 | D11: =SUM(D12:D17) -> 33602 | E11: =SUM(E12:E17) -> 57874 | F11: =SUM(F12:F17) -> 696 | G11: =SUM(G12:G17) -> 1580
A12: 03030101 | B12: Médico/a | C12: =IFERROR(VLOOKUP($A12,Filtro!$A$5:$AW$2673,2,FALSE),0) -> 965 | D12: =IFERROR(VLOOKUP($A12,Filtro!$A$5:$AW$2673,3,FALSE),0) -> 487 | E12: =IFERROR(VLOOKUP($A12,Filtro!$A$5:$AW$2673,4,FALSE),0) -> 478 | F12: =IFERROR(VLOOKUP($A12,Filtro!$A$5:$AW$2673,5,FALSE),0) -> 2 | G12: =IFERROR(VLOOKUP($A12,Filtro!$A$5:$AW$2673,6,FALSE),0) -> 4 | H12: =$CB12&CC12 ->  | CB12: =IF(AND($C12<>0,F12=""),"* No olvide ingresar la columna "&F$9&""&" (Digite CERO si no tiene). ",IF(F12>$C12,"* El Número de Pueblos Originarios no puede superar el Total. ","")) ->  | CC12: =IF(AND($C12<>0,G12=""),"* No olvide ingresar la columna "&G$9&""&" (Digite CERO si no tiene). ",IF(G12>$C12,"* El Número de Migrantes no puede superar el Total. ","")) ->  | CG12: =IF(AND($C12<>0,F12=""),1,IF(F12>$C12,1,0)) -> 0 | CH12: 0
A13: 03030102 | B13: Enfermera/o | C13: =IFERROR(VLOOKUP($A13,Filtro!$A$5:$AW$2673,2,FALSE),0) -> 56584 | D13: =IFERROR(VLOOKUP($A13,Filtro!$A$5:$AW$2673,3,FALSE),0) -> 21446 | E13: =IFERROR(VLOOKUP($A13,Filtro!$A$5:$AW$2673,4,FALSE),0) -> 35138 | F13: =IFERROR(VLOOKUP($A13,Filtro!$A$5:$AW$2673,5,FALSE),0) -> 370 | G13: =IFERROR(VLOOKUP($A13,Filtro!$A$5:$AW$2673,6,FALSE),0) -> 1120 | CC13: =IF(AND($C13<>0,G13=""),"* No olvide ingresar la columna "&G$9&""&" (Digite CERO si no tiene). ",IF(G13>$C13,"* El Número de mIGRANTES no puede superar el Total. ","")) ->  | CG13: 0 | CH13: 0
A14: 03030103 | B14: Matrona/ón | C14: =IFERROR(VLOOKUP($A14,Filtro!$A$5:$AW$2673,2,FALSE),0) -> 3447 | D14: =IFERROR(VLOOKUP($A14,Filtro!$A$5:$AW$2673,3,FALSE),0) -> 243 | E14: =IFERROR(VLOOKUP($A14,Filtro!$A$5:$AW$2673,4,FALSE),0) -> 3204 | F14: =IFERROR(VLOOKUP($A14,Filtro!$A$5:$AW$2673,5,FALSE),0) -> 16 | G14: =IFERROR(VLOOKUP($A14,Filtro!$A$5:$AW$2673,6,FALSE),0) -> 41 | CC14: =IF(AND($C14<>0,G14=""),"* No olvide ingresar la columna "&G$9&""&" (Digite CERO si no tiene). ",IF(G14>$C14,"* El Número de mIGRANTES no puede superar el Total. ","")) ->  | CG14: 0 | CH14: 0
A15: 03030104 | B15: Nutricionista | C15: =IFERROR(VLOOKUP($A15,Filtro!$A$5:$AW$2673,2,FALSE),0) -> 7008 | D15: =IFERROR(VLOOKUP($A15,Filtro!$A$5:$AW$2673,3,FALSE),0) -> 2715 | E15: =IFERROR(VLOOKUP($A15,Filtro!$A$5:$AW$2673,4,FALSE),0) -> 4293 | F15: =IFERROR(VLOOKUP($A15,Filtro!$A$5:$AW$2673,5,FALSE),0) -> 55 | G15: =IFERROR(VLOOKUP($A15,Filtro!$A$5:$AW$2673,6,FALSE),0) -> 99 | CC15: =IF(AND($C15<>0,G15=""),"* No olvide ingresar la columna "&G$9&""&" (Digite CERO si no tiene). ",IF(G15>$C15,"* El Número de mIGRANTES no puede superar el Total. ","")) ->  | CG15: 0 | CH15: 0
A16: 03030350 | B16: Otro profesional (capacitados en EMP Y EMPAM) | C16: =IFERROR(VLOOKUP($A16,Filtro!$A$5:$AW$2673,2,FALSE),0) -> 10181 | D16: =IFERROR(VLOOKUP($A16,Filtro!$A$5:$AW$2673,3,FALSE),0) -> 4100 | E16: =IFERROR(VLOOKUP($A16,Filtro!$A$5:$AW$2673,4,FALSE),0) -> 6081 | F16: =IFERROR(VLOOKUP($A16,Filtro!$A$5:$AW$2673,5,FALSE),0) -> 25 | G16: =IFERROR(VLOOKUP($A16,Filtro!$A$5:$AW$2673,6,FALSE),0) -> 56 | CC16: =IF(AND($C16<>0,G16=""),"* No olvide ingresar la columna "&G$9&""&" (Digite CERO si no tiene). ",IF(G16>$C16,"* El Número de mIGRANTES no puede superar el Total. ","")) ->  | CG16: 0 | CH16: 0
A17: 03030110 | B17: Técnico en Enfermería | C17: =IFERROR(VLOOKUP($A17,Filtro!$A$5:$AW$2673,2,FALSE),0) -> 13291 | D17: =IFERROR(VLOOKUP($A17,Filtro!$A$5:$AW$2673,3,FALSE),0) -> 4611 | E17: =IFERROR(VLOOKUP($A17,Filtro!$A$5:$AW$2673,4,FALSE),0) -> 8680 | F17: =IFERROR(VLOOKUP($A17,Filtro!$A$5:$AW$2673,5,FALSE),0) -> 228 | G17: =IFERROR(VLOOKUP($A17,Filtro!$A$5:$AW$2673,6,FALSE),0) -> 260 | CC17: =IF(AND($C17<>0,G17=""),"* No olvide ingresar la columna "&G$9&""&" (Digite CERO si no tiene). ",IF(G17>$C17,"* El Número de mIGRANTES no puede superar el Total. ","")) ->  | CG17: 0 | CH17: 0
B18: SECCIÓN B: EMP SEGÚN RESULTADO DEL ESTADO NUTRICIONAL
B19: ESTADO NUTRICIONAL | C19: TOTAL | F19: 15 - 19 años | H19: 20 - 24 años | J19: 25 - 29 años | L19: 30 - 34 años | N19: 35 - 39 años | P19: 40 - 44 años | R19: 45 - 49 años | T19: 50 - 54 años | V19: 55 - 59 años | X19: 60 - 64 años | Z19: 65 - 69 años | AB19: 70 - 74 años | AD19: 75 - 79 años | AF19: 80 y más años | AH19: Pueblos Originarios | AI19: Migrantes
C20: Ambos Sexos | D20: Hombres | E20: Mujeres | F20: Hombres | G20: Mujeres | H20: Hombres | I20: Mujeres | J20: Hombres | K20: Mujeres | L20: Hombres | M20: Mujeres | N20: Hombres | O20: Mujeres | P20: Hombres | Q20: Mujeres | R20: Hombres | S20: Mujeres | T20: Hombres | U20: Mujeres | V20: Hombres | W20: Mujeres | X20: Hombres | Y20: Mujeres | Z20: Hombres | AA20: Mujeres | AB20: Hombres | AC20: Mujeres | AD20: Hombres | AE20: Mujeres | AF20: Hombres | AG20: Mujeres
B21: TOTAL | C21: =SUM(C22:C25) -> 91462 | D21: 33599 | E21: 57863 | F21: 321 | G21: 463 | H21: 1785 | I21: 3567 | J21: 2113 | K21: 4323 | L21: 2249 | M21: 4909 | N21: 2160 | O21: 4414 | P21: 1968 | Q21: 3992 | R21: 1808 | S21: 3565 | T21: 1787 | U21: 3104 | V21: 1618 | W21: 2486 | X21: 1442 | Y21: 1911 | Z21: 4026 | AA21: 6736 | AB21: 4218 | AC21: 6160 | AD21: 3610 | AE21: 5138 | AF21: 4498 | AG21: 7096 | AH21: 1084 | AI21: 1472 | AJ21: =CB21&CC21&CD21 -> * Debe coincidir el Total de EMP según estado nutricional con el Total de EMP realizados según Profesional de la Sección A * Debe coincidir el Total de EMP según estado nutricional en Hombres, con los EMP realizados en Hombres según Profesional de la Sección A * Debe coincidir el Total de EMP según estado nutricional en Mujeres, con los EMP realizados en Mujeres según Profesional de la Sección A | CB21: =IF(C21<>C11," * Debe coincidir el Total de EMP según estado nutricional con el Total de EMP realizados según Profesional de la Sección A","") -> * Debe coincidir el Total de EMP según estado nutricional con el Total de EMP realizados según Profesional de la Sección A | CC21: =IF(D21<>D11," * Debe coincidir el Total de EMP según estado nutricional en Hombres, con los EMP realizados en Hombres según Profesional de la Sección A","") -> * Debe coincidir el Total de EMP según estado nutricional en Hombres, con los EMP realizados en Hombres según Profesional de la Sección A | CD21: =IF(E21<>E11," * Debe coincidir el Total de EMP según estado nutricional en Mujeres, con los EMP realizados en Mujeres según Profesional de la Sección A","") -> * Debe coincidir el Total de EMP según estado nutricional en Mujeres, con los EMP realizados en Mujeres según Profesional de la Sección A | CG21: =IF(C21<>C11,1,0) -> 1 | CH21: =IF(D21<>D11,1,0) -> 1 | CI21: =IF(E21<>E11,1,0) -> 1
A22: 03030330 | B22: Normal | C22: =IFERROR(VLOOKUP($A22,Filtro!$A$5:$AW$2673,2,FALSE),0) -> 28391 | D22: =IFERROR(VLOOKUP($A22,Filtro!$A$5:$AW$2673,3,FALSE),0) -> 11683 | E22: =IFERROR(VLOOKUP($A22,Filtro!$A$5:$AW$2673,4,FALSE),0) -> 16708 | F22: =IFERROR(VLOOKUP($A22,Filtro!$A$5:$AW$2673,5,FALSE),0) -> 150 | G22: =IFERROR(VLOOKUP($A22,Filtro!$A$5:$AW$2673,6,FALSE),0) -> 196 | H22: =IFERROR(VLOOKUP($A22,Filtro!$A$5:$AW$2673,7,FALSE),0) -> 792 | I22: =IFERROR(VLOOKUP($A22,Filtro!$A$5:$AW$2673,8,FALSE),0) -> 1201 | J22: =IFERROR(VLOOKUP($A22,Filtro!$A$5:$AW$2673,9,FALSE),0) -> 738 | K22: =IFERROR(VLOOKUP($A22,Filtro!$A$5:$AW$2673,10,FALSE),0) -> 1242 | L22: =IFERROR(VLOOKUP($A22,Filtro!$A$5:$AW$2673,11,FALSE),0) -> 643 | M22: =IFERROR(VLOOKUP($A22,Filtro!$A$5:$AW$2673,12,FALSE),0) -> 1256 | N22: =IFERROR(VLOOKUP($A22,Filtro!$A$5:$AW$2673,13,FALSE),0) -> 506 | O22: =IFERROR(VLOOKUP($A22,Filtro!$A$5:$AW$2673,14,FALSE),0) -> 1041 | P22: =IFERROR(VLOOKUP($A22,Filtro!$A$5:$AW$2673,15,FALSE),0) -> 430 | Q22: =IFERROR(VLOOKUP($A22,Filtro!$A$5:$AW$2673,16,FALSE),0) -> 874 | R22: =IFERROR(VLOOKUP($A22,Filtro!$A$5:$AW$2673,17,FALSE),0) -> 405 | S22: =IFERROR(VLOOKUP($A22,Filtro!$A$5:$AW$2673,18,FALSE),0) -> 737 | T22: =IFERROR(VLOOKUP($A22,Filtro!$A$5:$AW$2673,19,FALSE),0) -> 389 | U22: =IFERROR(VLOOKUP($A22,Filtro!$A$5:$AW$2673,20,FALSE),0) -> 650 | V22: =IFERROR(VLOOKUP($A22,Filtro!$A$5:$AW$2673,21,FALSE),0) -> 359 | W22: =IFERROR(VLOOKUP($A22,Filtro!$A$5:$AW$2673,22,FALSE),0) -> 537 | X22: =IFERROR(VLOOKUP($A22,Filtro!$A$5:$AW$2673,23,FALSE),0) -> 358 | Y22: =IFERROR(VLOOKUP($A22,Filtro!$A$5:$AW$2673,24,FALSE),0) -> 446 | Z22: =IFERROR(VLOOKUP($A22,Filtro!$A$5:$AW$2673,25,FALSE),0) -> 1522 | AA22: =IFERROR(VLOOKUP($A22,Filtro!$A$5:$AW$2673,26,FALSE),0) -> 1978 | AB22: =IFERROR(VLOOKUP($A22,Filtro!$A$5:$AW$2673,27,FALSE),0) -> 1697 | AC22: =IFERROR(VLOOKUP($A22,Filtro!$A$5:$AW$2673,28,FALSE),0) -> 1932 | AD22: =IFERROR(VLOOKUP($A22,Filtro!$A$5:$AW$2673,29,FALSE),0) -> 1572 | AE22: =IFERROR(VLOOKUP($A22,Filtro!$A$5:$AW$2673,30,FALSE),0) -> 1781 | AF22: =IFERROR(VLOOKUP($A22,Filtro!$A$5:$AW$2673,31,FALSE),0) -> 2122 | AG22: =IFERROR(VLOOKUP($A22,Filtro!$A$5:$AW$2673,32,FALSE),0) -> 2838 | AH22: =IFERROR(VLOOKUP($A22,Filtro!$A$5:$AW$2673,33,FALSE),0) -> 306 | AI22: =IFERROR(VLOOKUP($A22,Filtro!$A$5:$AW$2673,34,FALSE),0) -> 461 | AJ22: =CB22&CC22&CD22 ->  | CB22: =IF(AND($C22<>0,AH22=""),"* No olvide ingresar la columna "&AH$19&""&" (Digite CERO si no tiene). ",IF(AH22>$C22,"* El Número de Pueblos Originarios no puede superar el Total. ","")) ->  | CC22: =IF(AND($C22<>0,AI22=""),"* No olvide ingresar la columna "&AI$19&""&" (Digite CERO si no tiene). ",IF(AI22>$C22,"* El Número de Migrantes no puede superar el Total. ","")) ->  | CG22: =IF(AND($C22<>0,AH22=""),1,IF(AH22>$C22,1,0)) -> 0 | CH22: 0
A23: 03030340 | B23: Bajo Peso | C23: =IFERROR(VLOOKUP($A23,Filtro!$A$5:$AW$2673,2,FALSE),0) -> 4786 | D23: =IFERROR(VLOOKUP($A23,Filtro!$A$5:$AW$2673,3,FALSE),0) -> 1934 | E23: =IFERROR(VLOOKUP($A23,Filtro!$A$5:$AW$2673,4,FALSE),0) -> 2852 | F23: =IFERROR(VLOOKUP($A23,Filtro!$A$5:$AW$2673,5,FALSE),0) -> 45 | G23: =IFERROR(VLOOKUP($A23,Filtro!$A$5:$AW$2673,6,FALSE),0) -> 20 | H23: =IFERROR(VLOOKUP($A23,Filtro!$A$5:$AW$2673,7,FALSE),0) -> 48 | I23: =IFERROR(VLOOKUP($A23,Filtro!$A$5:$AW$2673,8,FALSE),0) -> 92 | J23: =IFERROR(VLOOKUP($A23,Filtro!$A$5:$AW$2673,9,FALSE),0) -> 26 | K23: =IFERROR(VLOOKUP($A23,Filtro!$A$5:$AW$2673,10,FALSE),0) -> 63 | L23: =IFERROR(VLOOKUP($A23,Filtro!$A$5:$AW$2673,11,FALSE),0) -> 18 | M23: =IFERROR(VLOOKUP($A23,Filtro!$A$5:$AW$2673,12,FALSE),0) -> 35 | N23: =IFERROR(VLOOKUP($A23,Filtro!$A$5:$AW$2673,13,FALSE),0) -> 18 | O23: =IFERROR(VLOOKUP($A23,Filtro!$A$5:$AW$2673,14,FALSE),0) -> 29 | P23: =IFERROR(VLOOKUP($A23,Filtro!$A$5:$AW$2673,15,FALSE),0) -> 15 | Q23: =IFERROR(VLOOKUP($A23,Filtro!$A$5:$AW$2673,16,FALSE),0) -> 22 | R23: =IFERROR(VLOOKUP($A23,Filtro!$A$5:$AW$2673,17,FALSE),0) -> 4 | S23: =IFERROR(VLOOKUP($A23,Filtro!$A$5:$AW$2673,18,FALSE),0) -> 23 | T23: =IFERROR(VLOOKUP($A23,Filtro!$A$5:$AW$2673,19,FALSE),0) -> 20 | U23: =IFERROR(VLOOKUP($A23,Filtro!$A$5:$AW$2673,20,FALSE),0) -> 20 | V23: =IFERROR(VLOOKUP($A23,Filtro!$A$5:$AW$2673,21,FALSE),0) -> 12 | W23: =IFERROR(VLOOKUP($A23,Filtro!$A$5:$AW$2673,22,FALSE),0) -> 16 | X23: =IFERROR(VLOOKUP($A23,Filtro!$A$5:$AW$2673,23,FALSE),0) -> 7 | Y23: =IFERROR(VLOOKUP($A23,Filtro!$A$5:$AW$2673,24,FALSE),0) -> 21 | Z23: =IFERROR(VLOOKUP($A23,Filtro!$A$5:$AW$2673,25,FALSE),0) -> 296 | AA23: =IFERROR(VLOOKUP($A23,Filtro!$A$5:$AW$2673,26,FALSE),0) -> 410 | AB23: =IFERROR(VLOOKUP($A23,Filtro!$A$5:$AW$2673,27,FALSE),0) -> 345 | AC23: =IFERROR(VLOOKUP($A23,Filtro!$A$5:$AW$2673,28,FALSE),0) -> 442 | AD23: =IFERROR(VLOOKUP($A23,Filtro!$A$5:$AW$2673,29,FALSE),0) -> 372 | AE23: =IFERROR(VLOOKUP($A23,Filtro!$A$5:$AW$2673,30,FALSE),0) -> 481 | AF23: =IFERROR(VLOOKUP($A23,Filtro!$A$5:$AW$2673,31,FALSE),0) -> 708 | AG23: =IFERROR(VLOOKUP($A23,Filtro!$A$5:$AW$2673,32,FALSE),0) -> 1178 | AH23: =IFERROR(VLOOKUP($A23,Filtro!$A$5:$AW$2673,33,FALSE),0) -> 65 | AI23: =IFERROR(VLOOKUP($A23,Filtro!$A$5:$AW$2673,34,FALSE),0) -> 37 | AJ23: =CB23&CC23&CD23 ->  | CB23: =IF(AND($C23<>0,AH23=""),"* No olvide ingresar la columna "&AH$19&""&" (Digite CERO si no tiene). ",IF(AH23>$C23,"* El Número de Pueblos Originarios no puede superar el Total. ","")) ->  | CC23: =IF(AND($C23<>0,AI23=""),"* No olvide ingresar la columna "&AI$19&""&" (Digite CERO si no tiene). ",IF(AI23>$C23,"* El Número de Migrantes no puede superar el Total. ","")) ->  | CG23: 0 | CH23: 0
A24: 03030120 | B24: Sobrepeso | C24: =IFERROR(VLOOKUP($A24,Filtro!$A$5:$AW$2673,2,FALSE),0) -> 30697 | D24: =IFERROR(VLOOKUP($A24,Filtro!$A$5:$AW$2673,3,FALSE),0) -> 11966 | E24: =IFERROR(VLOOKUP($A24,Filtro!$A$5:$AW$2673,4,FALSE),0) -> 18731 | F24: =IFERROR(VLOOKUP($A24,Filtro!$A$5:$AW$2673,5,FALSE),0) -> 62 | G24: =IFERROR(VLOOKUP($A24,Filtro!$A$5:$AW$2673,6,FALSE),0) -> 119 | H24: =IFERROR(VLOOKUP($A24,Filtro!$A$5:$AW$2673,7,FALSE),0) -> 575 | I24: =IFERROR(VLOOKUP($A24,Filtro!$A$5:$AW$2673,8,FALSE),0) -> 1099 | J24: =IFERROR(VLOOKUP($A24,Filtro!$A$5:$AW$2673,9,FALSE),0) -> 797 | K24: =IFERROR(VLOOKUP($A24,Filtro!$A$5:$AW$2673,10,FALSE),0) -> 1432 | L24: =IFERROR(VLOOKUP($A24,Filtro!$A$5:$AW$2673,11,FALSE),0) -> 905 | M24: =IFERROR(VLOOKUP($A24,Filtro!$A$5:$AW$2673,12,FALSE),0) -> 1672 | N24: =IFERROR(VLOOKUP($A24,Filtro!$A$5:$AW$2673,13,FALSE),0) -> 921 | O24: =IFERROR(VLOOKUP($A24,Filtro!$A$5:$AW$2673,14,FALSE),0) -> 1567 | P24: =IFERROR(VLOOKUP($A24,Filtro!$A$5:$AW$2673,15,FALSE),0) -> 846 | Q24: =IFERROR(VLOOKUP($A24,Filtro!$A$5:$AW$2673,16,FALSE),0) -> 1468 | R24: =IFERROR(VLOOKUP($A24,Filtro!$A$5:$AW$2673,17,FALSE),0) -> 804 | S24: =IFERROR(VLOOKUP($A24,Filtro!$A$5:$AW$2673,18,FALSE),0) -> 1324 | T24: =IFERROR(VLOOKUP($A24,Filtro!$A$5:$AW$2673,19,FALSE),0) -> 781 | U24: =IFERROR(VLOOKUP($A24,Filtro!$A$5:$AW$2673,20,FALSE),0) -> 1164 | V24: =IFERROR(VLOOKUP($A24,Filtro!$A$5:$AW$2673,21,FALSE),0) -> 764 | W24: =IFERROR(VLOOKUP($A24,Filtro!$A$5:$AW$2673,22,FALSE),0) -> 1007 | X24: =IFERROR(VLOOKUP($A24,Filtro!$A$5:$AW$2673,23,FALSE),0) -> 684 | Y24: =IFERROR(VLOOKUP($A24,Filtro!$A$5:$AW$2673,24,FALSE),0) -> 783 | Z24: =IFERROR(VLOOKUP($A24,Filtro!$A$5:$AW$2673,25,FALSE),0) -> 1320 | AA24: =IFERROR(VLOOKUP($A24,Filtro!$A$5:$AW$2673,26,FALSE),0) -> 2005 | AB24: =IFERROR(VLOOKUP($A24,Filtro!$A$5:$AW$2673,27,FALSE),0) -> 1309 | AC24: =IFERROR(VLOOKUP($A24,Filtro!$A$5:$AW$2673,28,FALSE),0) -> 1846 | AD24: =IFERROR(VLOOKUP($A24,Filtro!$A$5:$AW$2673,29,FALSE),0) -> 1062 | AE24: =IFERROR(VLOOKUP($A24,Filtro!$A$5:$AW$2673,30,FALSE),0) -> 1543 | AF24: =IFERROR(VLOOKUP($A24,Filtro!$A$5:$AW$2673,31,FALSE),0) -> 1140 | AG24: =IFERROR(VLOOKUP($A24,Filtro!$A$5:$AW$2673,32,FALSE),0) -> 1702 | AH24: =IFERROR(VLOOKUP($A24,Filtro!$A$5:$AW$2673,33,FALSE),0) -> 367 | AI24: =IFERROR(VLOOKUP($A24,Filtro!$A$5:$AW$2673,34,FALSE),0) -> 558 | AJ24: =CB24&CC24&CD24 ->  | CB24: =IF(AND($C24<>0,AH24=""),"* No olvide ingresar la columna "&AH$19&""&" (Digite CERO si no tiene). ",IF(AH24>$C24,"* El Número de Pueblos Originarios no puede superar el Total. ","")) ->  | CC24: =IF(AND($C24<>0,AI24=""),"* No olvide ingresar la columna "&AI$19&""&" (Digite CERO si no tiene). ",IF(AI24>$C24,"* El Número de Migrantes no puede superar el Total. ","")) ->  | CG24: 0 | CH24: 0
A25: 03030130 | B25: Obesos | C25: =IFERROR(VLOOKUP($A25,Filtro!$A$5:$AW$2673,2,FALSE),0) -> 27588 | D25: =IFERROR(VLOOKUP($A25,Filtro!$A$5:$AW$2673,3,FALSE),0) -> 8016 | E25: =IFERROR(VLOOKUP($A25,Filtro!$A$5:$AW$2673,4,FALSE),0) -> 19572 | F25: =IFERROR(VLOOKUP($A25,Filtro!$A$5:$AW$2673,5,FALSE),0) -> 64 | G25: =IFERROR(VLOOKUP($A25,Filtro!$A$5:$AW$2673,6,FALSE),0) -> 128 | H25: =IFERROR(VLOOKUP($A25,Filtro!$A$5:$AW$2673,7,FALSE),0) -> 370 | I25: =IFERROR(VLOOKUP($A25,Filtro!$A$5:$AW$2673,8,FALSE),0) -> 1175 | J25: =IFERROR(VLOOKUP($A25,Filtro!$A$5:$AW$2673,9,FALSE),0) -> 552 | K25: =IFERROR(VLOOKUP($A25,Filtro!$A$5:$AW$2673,10,FALSE),0) -> 1586 | L25: =IFERROR(VLOOKUP($A25,Filtro!$A$5:$AW$2673,11,FALSE),0) -> 683 | M25: =IFERROR(VLOOKUP($A25,Filtro!$A$5:$AW$2673,12,FALSE),0) -> 1946 | N25: =IFERROR(VLOOKUP($A25,Filtro!$A$5:$AW$2673,13,FALSE),0) -> 715 | O25: =IFERROR(VLOOKUP($A25,Filtro!$A$5:$AW$2673,14,FALSE),0) -> 1777 | P25: =IFERROR(VLOOKUP($A25,Filtro!$A$5:$AW$2673,15,FALSE),0) -> 677 | Q25: =IFERROR(VLOOKUP($A25,Filtro!$A$5:$AW$2673,16,FALSE),0) -> 1628 | R25: =IFERROR(VLOOKUP($A25,Filtro!$A$5:$AW$2673,17,FALSE),0) -> 595 | S25: =IFERROR(VLOOKUP($A25,Filtro!$A$5:$AW$2673,18,FALSE),0) -> 1481 | T25: =IFERROR(VLOOKUP($A25,Filtro!$A$5:$AW$2673,19,FALSE),0) -> 597 | U25: =IFERROR(VLOOKUP($A25,Filtro!$A$5:$AW$2673,20,FALSE),0) -> 1270 | V25: =IFERROR(VLOOKUP($A25,Filtro!$A$5:$AW$2673,21,FALSE),0) -> 483 | W25: =IFERROR(VLOOKUP($A25,Filtro!$A$5:$AW$2673,22,FALSE),0) -> 926 | X25: =IFERROR(VLOOKUP($A25,Filtro!$A$5:$AW$2673,23,FALSE),0) -> 393 | Y25: =IFERROR(VLOOKUP($A25,Filtro!$A$5:$AW$2673,24,FALSE),0) -> 661 | Z25: =IFERROR(VLOOKUP($A25,Filtro!$A$5:$AW$2673,25,FALSE),0) -> 888 | AA25: =IFERROR(VLOOKUP($A25,Filtro!$A$5:$AW$2673,26,FALSE),0) -> 2343 | AB25: =IFERROR(VLOOKUP($A25,Filtro!$A$5:$AW$2673,27,FALSE),0) -> 867 | AC25: =IFERROR(VLOOKUP($A25,Filtro!$A$5:$AW$2673,28,FALSE),0) -> 1940 | AD25: =IFERROR(VLOOKUP($A25,Filtro!$A$5:$AW$2673,29,FALSE),0) -> 604 | AE25: =IFERROR(VLOOKUP($A25,Filtro!$A$5:$AW$2673,30,FALSE),0) -> 1333 | AF25: =IFERROR(VLOOKUP($A25,Filtro!$A$5:$AW$2673,31,FALSE),0) -> 528 | AG25: =IFERROR(VLOOKUP($A25,Filtro!$A$5:$AW$2673,32,FALSE),0) -> 1378 | AH25: =IFERROR(VLOOKUP($A25,Filtro!$A$5:$AW$2673,33,FALSE),0) -> 346 | AI25: =IFERROR(VLOOKUP($A25,Filtro!$A$5:$AW$2673,34,FALSE),0) -> 416 | AJ25: =CB25&CC25&CD25 ->  | CB25: =IF(AND($C25<>0,AH25=""),"* No olvide ingresar la columna "&AH$19&""&" (Digite CERO si no tiene). ",IF(AH25>$C25,"* El Número de Pueblos Originarios no puede superar el Total. ","")) ->  | CC25: =IF(AND($C25<>0,AI25=""),"* No olvide ingresar la columna "&AI$19&""&" (Digite CERO si no tiene). ",IF(AI25>$C25,"* El Número de Migrantes no puede superar el Total. ","")) ->  | CG25: 0 | CH25: 0
B26: SECCIÓN C: RESULTADOS DE EMP SEGÚN ESTADO DE SALUD
B27: ESTADO DE SALUD | C27: TOTAL | F27: 15 - 19 años | H27: 20 - 24 años | J27: 25 - 29 años | L27: 30 - 34 años | N27: 35 - 39 años | P27: 40 - 44 años | R27: 45 - 49 años | T27: 50 - 54 años | V27: 55 - 59 años | X27: 60 - 64 años | Z27: 65 - 69 años | AB27: 70 - 74 años | AD27: 75 - 79 años | AF27: 80 y más años | AH27: Pueblos Originarios | AI27: Migrantes
C28: Ambos Sexos | D28: Hombres | E28: Mujeres | F28: Hombres | G28: Mujeres | H28: Hombres | I28: Mujeres | J28: Hombres | K28: Mujeres | L28: Hombres | M28: Mujeres | N28: Hombres | O28: Mujeres | P28: Hombres | Q28: Mujeres | R28: Hombres | S28: Mujeres | T28: Hombres | U28: Mujeres | V28: Hombres | W28: Mujeres | X28: Hombres | Y28: Mujeres | Z28: Hombres | AA28: Mujeres | AB28: Hombres | AC28: Mujeres | AD28: Hombres | AE28: Mujeres | AF28: Hombres | AG28: Mujeres
A29: 02200010 | B29: Tabaquismo | C29: =IFERROR(VLOOKUP($A29,Filtro!$A$5:$AW$2673,2,FALSE),0) -> 13345 | D29: =IFERROR(VLOOKUP($A29,Filtro!$A$5:$AW$2673,3,FALSE),0) -> 5404 | E29: =IFERROR(VLOOKUP($A29,Filtro!$A$5:$AW$2673,4,FALSE),0) -> 7942 | F29: =IFERROR(VLOOKUP($A29,Filtro!$A$5:$AW$2673,5,FALSE),0) -> 29 | G29: =IFERROR(VLOOKUP($A29,Filtro!$A$5:$AW$2673,6,FALSE),0) -> 49 | H29: =IFERROR(VLOOKUP($A29,Filtro!$A$5:$AW$2673,7,FALSE),0) -> 448 | I29: =IFERROR(VLOOKUP($A29,Filtro!$A$5:$AW$2673,8,FALSE),0) -> 643 | J29: =IFERROR(VLOOKUP($A29,Filtro!$A$5:$AW$2673,9,FALSE),0) -> 601 | K29: =IFERROR(VLOOKUP($A29,Filtro!$A$5:$AW$2673,10,FALSE),0) -> 845 | L29: =IFERROR(VLOOKUP($A29,Filtro!$A$5:$AW$2673,11,FALSE),0) -> 624 | M29: =IFERROR(VLOOKUP($A29,Filtro!$A$5:$AW$2673,12,FALSE),0) -> 1109 | N29: =IFERROR(VLOOKUP($A29,Filtro!$A$5:$AW$2673,13,FALSE),0) -> 582 | O29: =IFERROR(VLOOKUP($A29,Filtro!$A$5:$AW$2673,14,FALSE),0) -> 1002 | P29: =IFERROR(VLOOKUP($A29,Filtro!$A$5:$AW$2673,15,FALSE),0) -> 610 | Q29: =IFERROR(VLOOKUP($A29,Filtro!$A$5:$AW$2673,16,FALSE),0) -> 979 | R29: =IFERROR(VLOOKUP($A29,Filtro!$A$5:$AW$2673,17,FALSE),0) -> 476 | S29: =IFERROR(VLOOKUP($A29,Filtro!$A$5:$AW$2673,18,FALSE),0) -> 813 | T29: =IFERROR(VLOOKUP($A29,Filtro!$A$5:$AW$2673,19,FALSE),0) -> 411 | U29: =IFERROR(VLOOKUP($A29,Filtro!$A$5:$AW$2673,20,FALSE),0) -> 608 | V29: =IFERROR(VLOOKUP($A29,Filtro!$A$5:$AW$2673,21,FALSE),0) -> 366 | W29: =IFERROR(VLOOKUP($A29,Filtro!$A$5:$AW$2673,22,FALSE),0) -> 413 | X29: =IFERROR(VLOOKUP($A29,Filtro!$A$5:$AW$2673,23,FALSE),0) -> 282 | Y29: =IFERROR(VLOOKUP($A29,Filtro!$A$5:$AW$2673,24,FALSE),0) -> 345 | Z29: =IFERROR(VLOOKUP($A29,Filtro!$A$5:$AW$2673,25,FALSE),0) -> 388 | AA29: =IFERROR(VLOOKUP($A29,Filtro!$A$5:$AW$2673,26,FALSE),0) -> 558 | AB29: =IFERROR(VLOOKUP($A29,Filtro!$A$5:$AW$2673,27,FALSE),0) -> 287 | AC29: =IFERROR(VLOOKUP($A29,Filtro!$A$5:$AW$2673,28,FALSE),0) -> 309 | AD29: =IFERROR(VLOOKUP($A29,Filtro!$A$5:$AW$2673,29,FALSE),0) -> 176 | AE29: =IFERROR(VLOOKUP($A29,Filtro!$A$5:$AW$2673,30,FALSE),0) -> 169 | AF29: =IFERROR(VLOOKUP($A29,Filtro!$A$5:$AW$2673,31,FALSE),0) -> 124 | AG29: =IFERROR(VLOOKUP($A29,Filtro!$A$5:$AW$2673,32,FALSE),0) -> 100 | AH29: =IFERROR(VLOOKUP($A29,Filtro!$A$5:$AW$2673,33,FALSE),0) -> 223 | AI29: =IFERROR(VLOOKUP($A29,Filtro!$A$5:$AW$2673,34,FALSE),0) -> 165 | AJ29: =$CB29&CC29 ->  | CB29: =IF(AND($C29<>0,AH29=""),"* No olvide ingresar la columna "&AH$19&""&" (Digite CERO si no tiene). ",IF(AH29>$C29,"* El Número de Pueblos Originarios no puede superar el Total. ","")) ->  | CC29: =IF(AND($C29<>0,AI29=""),"* No olvide ingresar la columna "&AI$19&""&" (Digite CERO si no tiene). ",IF(AI29>$C29,"* El Número de Migrantes no puede superar el Total. ","")) ->  | CG29: =IF(AND($C29<>0,AH29=""),1,IF(AH29>$C29,1,0)) -> 0 | CH29: =IF(AND($C29<>0,AI29=""),1,IF(AI29>$C29,1,0)) -> 0
A30: 02200020 | B30: Presión arterial elevada (= >140/90 mmHg) | C30: =IFERROR(VLOOKUP($A30,Filtro!$A$5:$AW$2673,2,FALSE),0) -> 15212 | D30: =IFERROR(VLOOKUP($A30,Filtro!$A$5:$AW$2673,3,FALSE),0) -> 6464 | E30: =IFERROR(VLOOKUP($A30,Filtro!$A$5:$AW$2673,4,FALSE),0) -> 8748 | F30: =IFERROR(VLOOKUP($A30,Filtro!$A$5:$AW$2673,5,FALSE),0) -> 22 | G30: =IFERROR(VLOOKUP($A30,Filtro!$A$5:$AW$2673,6,FALSE),0) -> 24 | H30: =IFERROR(VLOOKUP($A30,Filtro!$A$5:$AW$2673,7,FALSE),0) -> 157 | I30: =IFERROR(VLOOKUP($A30,Filtro!$A$5:$AW$2673,8,FALSE),0) -> 149 | J30: =IFERROR(VLOOKUP($A30,Filtro!$A$5:$AW$2673,9,FALSE),0) -> 221 | K30: =IFERROR(VLOOKUP($A30,Filtro!$A$5:$AW$2673,10,FALSE),0) -> 210 | L30: =IFERROR(VLOOKUP($A30,Filtro!$A$5:$AW$2673,11,FALSE),0) -> 248 | M30: =IFERROR(VLOOKUP($A30,Filtro!$A$5:$AW$2673,12,FALSE),0) -> 304 | N30: =IFERROR(VLOOKUP($A30,Filtro!$A$5:$AW$2673,13,FALSE),0) -> 314 | O30: =IFERROR(VLOOKUP($A30,Filtro!$A$5:$AW$2673,14,FALSE),0) -> 352 | P30: =IFERROR(VLOOKUP($A30,Filtro!$A$5:$AW$2673,15,FALSE),0) -> 369 | Q30: =IFERROR(VLOOKUP($A30,Filtro!$A$5:$AW$2673,16,FALSE),0) -> 409 | R30: =IFERROR(VLOOKUP($A30,Filtro!$A$5:$AW$2673,17,FALSE),0) -> 363 | S30: =IFERROR(VLOOKUP($A30,Filtro!$A$5:$AW$2673,18,FALSE),0) -> 506 | T30: =IFERROR(VLOOKUP($A30,Filtro!$A$5:$AW$2673,19,FALSE),0) -> 429 | U30: =IFERROR(VLOOKUP($A30,Filtro!$A$5:$AW$2673,20,FALSE),0) -> 497 | V30: =IFERROR(VLOOKUP($A30,Filtro!$A$5:$AW$2673,21,FALSE),0) -> 415 | W30: =IFERROR(VLOOKUP($A30,Filtro!$A$5:$AW$2673,22,FALSE),0) -> 463 | X30: =IFERROR(VLOOKUP($A30,Filtro!$A$5:$AW$2673,23,FALSE),0) -> 438 | Y30: =IFERROR(VLOOKUP($A30,Filtro!$A$5:$AW$2673,24,FALSE),0) -> 423 | Z30: =IFERROR(VLOOKUP($A30,Filtro!$A$5:$AW$2673,25,FALSE),0) -> 859 | AA30: =IFERROR(VLOOKUP($A30,Filtro!$A$5:$AW$2673,26,FALSE),0) -> 1368 | AB30: =IFERROR(VLOOKUP($A30,Filtro!$A$5:$AW$2673,27,FALSE),0) -> 979 | AC30: =IFERROR(VLOOKUP($A30,Filtro!$A$5:$AW$2673,28,FALSE),0) -> 1301 | AD30: =IFERROR(VLOOKUP($A30,Filtro!$A$5:$AW$2673,29,FALSE),0) -> 810 | AE30: =IFERROR(VLOOKUP($A30,Filtro!$A$5:$AW$2673,30,FALSE),0) -> 1145 | AF30: =IFERROR(VLOOKUP($A30,Filtro!$A$5:$AW$2673,31,FALSE),0) -> 840 | AG30: =IFERROR(VLOOKUP($A30,Filtro!$A$5:$AW$2673,32,FALSE),0) -> 1597 | AH30: =IFERROR(VLOOKUP($A30,Filtro!$A$5:$AW$2673,33,FALSE),0) -> 256 | AI30: =IFERROR(VLOOKUP($A30,Filtro!$A$5:$AW$2673,34,FALSE),0) -> 168 | AJ30: =$CB30&CC30 ->  | CB30: =IF(AND($C30<>0,AH30=""),"* No olvide ingresar la columna "&AH$19&""&" (Digite CERO si no tiene). ",IF(AH30>$C30,"* El Número de Pueblos Originarios no puede superar el Total. ","")) ->  | CC30: =IF(AND($C30<>0,AI30=""),"* No olvide ingresar la columna "&AI$19&""&" (Digite CERO si no tiene). ",IF(AI30>$C30,"* El Número de Migrantes no puede superar el Total. ","")) ->  | CG30: =IF(AND($C30<>0,AH30=""),1,IF(AH30>$C30,1,0)) -> 0 | CH30: =IF(AND($C30<>0,AI30=""),1,IF(AI30>$C30,1,0)) -> 0
B31: SECCIÓN D: RESULTADOS DE EMP SEGÚN ESTADO DE SALUD (EXÁMENES DE LABORATORIO)
B32: ESTADO DE SALUD | C32: TOTAL | F32: 15 - 19 años | H32: 20 - 24 años | J32: 25 - 29 años | L32: 30 - 34 años | N32: 35 - 39 años | P32: 40 - 44 años | R32: 45 - 49 años | T32: 50 - 54 años | V32: 55 - 59 años | X32: 60 - 64 años | Z32: 65 - 69 años | AB32: 70 - 74 años | AD32: 75 - 79 años | AF32: 80 y más años | AH32: Pueblos Originarios | AI32: Migrantes
C33: Ambos Sexos | D33: Hombres | E33: Mujeres | F33: Hombres | G33: Mujeres | H33: Hombres | I33: Mujeres | J33: Hombres | K33: Mujeres | L33: Hombres | M33: Mujeres | N33: Hombres | O33: Mujeres | P33: Hombres | Q33: Mujeres | R33: Hombres | S33: Mujeres | T33: Hombres | U33: Mujeres | V33: Hombres | W33: Mujeres | X33: Hombres | Y33: Mujeres | Z33: Hombres | AA33: Mujeres | AB33: Hombres | AC33: Mujeres | AD33: Hombres | AE33: Mujeres | AF33: Hombres | AG33: Mujeres
A34: 02200030 | B34: Glicemia alterada (= > a 100 mg/dl) | C34: =IFERROR(VLOOKUP($A34,Filtro!$A$5:$AW$2673,2,FALSE),0) -> 11301 | D34: =IFERROR(VLOOKUP($A34,Filtro!$A$5:$AW$2673,3,FALSE),0) -> 4094 | E34: =IFERROR(VLOOKUP($A34,Filtro!$A$5:$AW$2673,4,FALSE),0) -> 7207 | F34: =IFERROR(VLOOKUP($A34,Filtro!$A$5:$AW$2673,5,FALSE),0) -> 10 | G34: =IFERROR(VLOOKUP($A34,Filtro!$A$5:$AW$2673,6,FALSE),0) -> 31 | H34: =IFERROR(VLOOKUP($A34,Filtro!$A$5:$AW$2673,7,FALSE),0) -> 149 | I34: =IFERROR(VLOOKUP($A34,Filtro!$A$5:$AW$2673,8,FALSE),0) -> 385 | J34: =IFERROR(VLOOKUP($A34,Filtro!$A$5:$AW$2673,9,FALSE),0) -> 194 | K34: =IFERROR(VLOOKUP($A34,Filtro!$A$5:$AW$2673,10,FALSE),0) -> 433 | L34: =IFERROR(VLOOKUP($A34,Filtro!$A$5:$AW$2673,11,FALSE),0) -> 240 | M34: =IFERROR(VLOOKUP($A34,Filtro!$A$5:$AW$2673,12,FALSE),0) -> 544 | N34: =IFERROR(VLOOKUP($A34,Filtro!$A$5:$AW$2673,13,FALSE),0) -> 249 | O34: =IFERROR(VLOOKUP($A34,Filtro!$A$5:$AW$2673,14,FALSE),0) -> 496 | P34: =IFERROR(VLOOKUP($A34,Filtro!$A$5:$AW$2673,15,FALSE),0) -> 288 | Q34: =IFERROR(VLOOKUP($A34,Filtro!$A$5:$AW$2673,16,FALSE),0) -> 546 | R34: =IFERROR(VLOOKUP($A34,Filtro!$A$5:$AW$2673,17,FALSE),0) -> 283 | S34: =IFERROR(VLOOKUP($A34,Filtro!$A$5:$AW$2673,18,FALSE),0) -> 568 | T34: =IFERROR(VLOOKUP($A34,Filtro!$A$5:$AW$2673,19,FALSE),0) -> 298 | U34: =IFERROR(VLOOKUP($A34,Filtro!$A$5:$AW$2673,20,FALSE),0) -> 570 | V34: =IFERROR(VLOOKUP($A34,Filtro!$A$5:$AW$2673,21,FALSE),0) -> 257 | W34: =IFERROR(VLOOKUP($A34,Filtro!$A$5:$AW$2673,22,FALSE),0) -> 464 | X34: =IFERROR(VLOOKUP($A34,Filtro!$A$5:$AW$2673,23,FALSE),0) -> 247 | Y34: =IFERROR(VLOOKUP($A34,Filtro!$A$5:$AW$2673,24,FALSE),0) -> 414 | Z34: =IFERROR(VLOOKUP($A34,Filtro!$A$5:$AW$2673,25,FALSE),0) -> 522 | AA34: =IFERROR(VLOOKUP($A34,Filtro!$A$5:$AW$2673,26,FALSE),0) -> 836 | AB34: =IFERROR(VLOOKUP($A34,Filtro!$A$5:$AW$2673,27,FALSE),0) -> 552 | AC34: =IFERROR(VLOOKUP($A34,Filtro!$A$5:$AW$2673,28,FALSE),0) -> 703 | AD34: =IFERROR(VLOOKUP($A34,Filtro!$A$5:$AW$2673,29,FALSE),0) -> 403 | AE34: =IFERROR(VLOOKUP($A34,Filtro!$A$5:$AW$2673,30,FALSE),0) -> 581 | AF34: =IFERROR(VLOOKUP($A34,Filtro!$A$5:$AW$2673,31,FALSE),0) -> 402 | AG34: =IFERROR(VLOOKUP($A34,Filtro!$A$5:$AW$2673,32,FALSE),0) -> 636 | AH34: =IFERROR(VLOOKUP($A34,Filtro!$A$5:$AW$2673,33,FALSE),0) -> 147 | AI34: =IFERROR(VLOOKUP($A34,Filtro!$A$5:$AW$2673,34,FALSE),0) -> 164 | AJ34: =$CB34&CC34 ->  | CB34: =IF(AND($C34<>0,AH34=""),"* No olvide ingresar la columna "&AH$19&""&" (Digite CERO si no tiene). ",IF(AH34>$C34,"* El Número de Pueblos Originarios no puede superar el Total. ","")) ->  | CC34: =IF(AND($C34<>0,AI34=""),"* No olvide ingresar la columna "&AI$19&""&" (Digite CERO si no tiene). ",IF(AI34>$C34,"* El Número de Migrantes no puede superar el Total. ","")) ->  | CG34: =IF(AND($C34<>0,AH34=""),1,IF(AH34>$C34,1,0)) -> 0 | CH34: =IF(AND($C34<>0,AI34=""),1,IF(AI34>$C34,1,0)) -> 0
A35: 02200040 | B35: Colesterol elevado (= > 200 mg/dl) | C35: =IFERROR(VLOOKUP($A35,Filtro!$A$5:$AW$2673,2,FALSE),0) -> 5047 | D35: =IFERROR(VLOOKUP($A35,Filtro!$A$5:$AW$2673,3,FALSE),0) -> 1656 | E35: =IFERROR(VLOOKUP($A35,Filtro!$A$5:$AW$2673,4,FALSE),0) -> 3391 | F35: =IFERROR(VLOOKUP($A35,Filtro!$A$5:$AW$2673,5,FALSE),0) -> 1 | G35: =IFERROR(VLOOKUP($A35,Filtro!$A$5:$AW$2673,6,FALSE),0) -> 4 | H35: =IFERROR(VLOOKUP($A35,Filtro!$A$5:$AW$2673,7,FALSE),0) -> 26 | I35: =IFERROR(VLOOKUP($A35,Filtro!$A$5:$AW$2673,8,FALSE),0) -> 62 | J35: =IFERROR(VLOOKUP($A35,Filtro!$A$5:$AW$2673,9,FALSE),0) -> 50 | K35: =IFERROR(VLOOKUP($A35,Filtro!$A$5:$AW$2673,10,FALSE),0) -> 78 | L35: =IFERROR(VLOOKUP($A35,Filtro!$A$5:$AW$2673,11,FALSE),0) -> 76 | M35: =IFERROR(VLOOKUP($A35,Filtro!$A$5:$AW$2673,12,FALSE),0) -> 130 | N35: =IFERROR(VLOOKUP($A35,Filtro!$A$5:$AW$2673,13,FALSE),0) -> 116 | O35: =IFERROR(VLOOKUP($A35,Filtro!$A$5:$AW$2673,14,FALSE),0) -> 152 | P35: =IFERROR(VLOOKUP($A35,Filtro!$A$5:$AW$2673,15,FALSE),0) -> 135 | Q35: =IFERROR(VLOOKUP($A35,Filtro!$A$5:$AW$2673,16,FALSE),0) -> 194 | R35: =IFERROR(VLOOKUP($A35,Filtro!$A$5:$AW$2673,17,FALSE),0) -> 119 | S35: =IFERROR(VLOOKUP($A35,Filtro!$A$5:$AW$2673,18,FALSE),0) -> 306 | T35: =IFERROR(VLOOKUP($A35,Filtro!$A$5:$AW$2673,19,FALSE),0) -> 131 | U35: =IFERROR(VLOOKUP($A35,Filtro!$A$5:$AW$2673,20,FALSE),0) -> 336 | V35: =IFERROR(VLOOKUP($A35,Filtro!$A$5:$AW$2673,21,FALSE),0) -> 134 | W35: =IFERROR(VLOOKUP($A35,Filtro!$A$5:$AW$2673,22,FALSE),0) -> 297 | X35: =IFERROR(VLOOKUP($A35,Filtro!$A$5:$AW$2673,23,FALSE),0) -> 109 | Y35: =IFERROR(VLOOKUP($A35,Filtro!$A$5:$AW$2673,24,FALSE),0) -> 240 | Z35: =IFERROR(VLOOKUP($A35,Filtro!$A$5:$AW$2673,25,FALSE),0) -> 219 | AA35: =IFERROR(VLOOKUP($A35,Filtro!$A$5:$AW$2673,26,FALSE),0) -> 505 | AB35: =IFERROR(VLOOKUP($A35,Filtro!$A$5:$AW$2673,27,FALSE),0) -> 215 | AC35: =IFERROR(VLOOKUP($A35,Filtro!$A$5:$AW$2673,28,FALSE),0) -> 440 | AD35: =IFERROR(VLOOKUP($A35,Filtro!$A$5:$AW$2673,29,FALSE),0) -> 159 | AE35: =IFERROR(VLOOKUP($A35,Filtro!$A$5:$AW$2673,30,FALSE),0) -> 298 | AF35: =IFERROR(VLOOKUP($A35,Filtro!$A$5:$AW$2673,31,FALSE),0) -> 166 | AG35: =IFERROR(VLOOKUP($A35,Filtro!$A$5:$AW$2673,32,FALSE),0) -> 349 | AH35: =IFERROR(VLOOKUP($A35,Filtro!$A$5:$AW$2673,33,FALSE),0) -> 22 | AI35: =IFERROR(VLOOKUP($A35,Filtro!$A$5:$AW$2673,34,FALSE),0) -> 38 | AJ35: =$CB35&CC35 ->  | CB35: =IF(AND($C35<>0,AH35=""),"* No olvide ingresar la columna "&AH$19&""&" (Digite CERO si no tiene). ",IF(AH35>$C35,"* El Número de Pueblos Originarios no puede superar el Total. ","")) ->  | CC35: =IF(AND($C35<>0,AI35=""),"* No olvide ingresar la columna "&AI$19&""&" (Digite CERO si no tiene). ",IF(AI35>$C35,"* El Número de Migrantes no puede superar el Total. ","")) ->  | CG35: =IF(AND($C35<>0,AH35=""),1,IF(AH35>$C35,1,0)) -> 0 | CH35: =IF(AND($C35<>0,AI35=""),1,IF(AI35>$C35,1,0)) -> 0
B51: =SUM(C12:C17,C22:C25,C29:C30,C34:C35) -> 227843 | C51: =SUM(CG12:CI35) -> 3

Sheet A03
B1: SERVICIO DE SALUD
B2: =CONCATENATE("COMUNA: ",[1]NOMBRE!B2," - ","( ",[1]NOMBRE!C2,[1]NOMBRE!D2,[1]NOMBRE!E2,[1]NOMBRE!F2,[1]NOMBRE!G2," )") -> COMUNA: - ( )
B3: =CONCATENATE("ESTABLECIMIENTO/ESTRATEGIA: ",[1]NOMBRE!B3," - ","( ",[1]NOMBRE!C3,[1]NOMBRE!D3,[1]NOMBRE!E3,[1]NOMBRE!F3,[1]NOMBRE!G3,[1]NOMBRE!H3," )") -> ESTABLECIMIENTO/ESTRATEGIA: - ( )
B4: =CONCATENATE("MES: ",[1]NOMBRE!B6," - ","( ",[1]NOMBRE!C6,[1]NOMBRE!D6," )") -> MES: - ( )
B5: =CONCATENATE("AÑO: ",[1]NOMBRE!B7) -> AÑO: 2024
B6: REM-A03. APLICACIÓN Y RESULTADOS DE ESCALAS DE EVALUACIÓN
B8: SECCIÓN A: APLICACIÓN DE INSTRUMENTO Y RESULTADO EN EL NIÑO (A)
B9: SECCIÓN A.1: APLICACIÓN Y RESULTADOS DE PAUTA BREVE
B10: EVALUACIONES POR EDAD DEL NIÑO | D10: TOTAL | G10: RANGO ETARIO Y SEXO
G11: Menos de 1 mes | I11: 1 mes | K11: 2 meses | M11: 3 meses | O11: 4 meses | Q11: 5 meses | S11: 6 meses | U11: 7 - 11 meses | W11: 12 - 17 meses | Y11: 18 - 24 meses
D12: Ambos Sexos | E12: Hombres | F12: Mujeres | G12: Hombres | H12: Mujeres | I12: Hombres | J12: Mujeres | K12: Hombres | L12: Mujeres | M12: Hombres | N12: Mujeres | O12: Hombres | P12: Mujeres | Q12: Hombres | R12: Mujeres | S12: Hombres | T12: Mujeres | U12: Hombres | V12: Mujeres | W12: Hombres | X12: Mujeres | Y12: Hombres | Z12: Mujeres
A13: 02021730 | B13: Aplicación Pauta Breve | D13: =IFERROR(VLOOKUP($A13,Filtro!$A$5:$AW$2673,2,FALSE),0) -> 13348 | E13: =IFERROR(VLOOKUP($A13,Filtro!$A$5:$AW$2673,3,FALSE),0) -> 6744 | F13: =IFERROR(VLOOKUP($A13,Filtro!$A$5:$AW$2673,4,FALSE),0) -> 6604 | G13: =IFERROR(VLOOKUP($A13,Filtro!$A$5:$AW$2673,5,FALSE),0) -> 11 | H13: =IFERROR(VLOOKUP($A13,Filtro!$A$5:$AW$2673,6,FALSE),0) -> 3 | I13: =IFERROR(VLOOKUP($A13,Filtro!$A$5:$AW$2673,7,FALSE),0) -> 76 | J13: =IFERROR(VLOOKUP($A13,Filtro!$A$5:$AW$2673,8,FALSE),0) -> 68 | K13: =IFERROR(VLOOKUP($A13,Filtro!$A$5:$AW$2673,9,FALSE),0) -> 15 | L13: =IFERROR(VLOOKUP($A13,Filtro!$A$5:$AW$2673,10,FALSE),0) -> 16 | M13: =IFERROR(VLOOKUP($A13,Filtro!$A$5:$AW$2673,11,FALSE),0) -> 149 | N13: =IFERROR(VLOOKUP($A13,Filtro!$A$5:$AW$2673,12,FALSE),0) -> 119 | O13: =IFERROR(VLOOKUP($A13,Filtro!$A$5:$AW$2673,13,FALSE),0) -> 2083 | P13: =IFERROR(VLOOKUP($A13,Filtro!$A$5:$AW$2673,14,FALSE),0) -> 2031 | Q13: =IFERROR(VLOOKUP($A13,Filtro!$A$5:$AW$2673,15,FALSE),0) -> 65 | R13: =IFERROR(VLOOKUP($A13,Filtro!$A$5:$AW$2673,16,FALSE),0) -> 52 | S13: =IFERROR(VLOOKUP($A13,Filtro!$A$5:$AW$2673,17,FALSE),0) -> 23 | T13: =IFERROR(VLOOKUP($A13,Filtro!$A$5:$AW$2673,18,FALSE),0) -> 20 | U13: =IFERROR(VLOOKUP($A13,Filtro!$A$5:$AW$2673,19,FALSE),0) -> 91 | V13: =IFERROR(VLOOKUP($A13,Filtro!$A$5:$AW$2673,20,FALSE),0) -> 88 | W13: =IFERROR(VLOOKUP($A13,Filtro!$A$5:$AW$2673,21,FALSE),0) -> 2104 | X13: =IFERROR(VLOOKUP($A13,Filtro!$A$5:$AW$2673,22,FALSE),0) -> 2089 | Y13: =IFERROR(VLOOKUP($A13,Filtro!$A$5:$AW$2673,23,FALSE),0) -> 2115 | Z13: =IFERROR(VLOOKUP($A13,Filtro!$A$5:$AW$2673,24,FALSE),0) -> 2109
A14: 03500020 | B14: Resultados | C14: Normal | D14: =IFERROR(VLOOKUP($A14,Filtro!$A$5:$AW$2673,2,FALSE),0) -> 12001 | E14: =IFERROR(VLOOKUP($A14,Filtro!$A$5:$AW$2673,3,FALSE),0) -> 5917 | F14: =IFERROR(VLOOKUP($A14,Filtro!$A$5:$AW$2673,4,FALSE),0) -> 6084 | G14: =IFERROR(VLOOKUP($A14,Filtro!$A$5:$AW$2673,5,FALSE),0) -> 9 | H14: =IFERROR(VLOOKUP($A14,Filtro!$A$5:$AW$2673,6,FALSE),0) -> 3 | I14: =IFERROR(VLOOKUP($A14,Filtro!$A$5:$AW$2673,7,FALSE),0) -> 77 | J14: =IFERROR(VLOOKUP($A14,Filtro!$A$5:$AW$2673,8,FALSE),0) -> 68 | K14: =IFERROR(VLOOKUP($A14,Filtro!$A$5:$AW$2673,9,FALSE),0) -> 14 | L14: =IFERROR(VLOOKUP($A14,Filtro!$A$5:$AW$2673,10,FALSE),0) -> 17 | M14: =IFERROR(VLOOKUP($A14,Filtro!$A$5:$AW$2673,11,FALSE),0) -> 143 | N14: =IFERROR(VLOOKUP($A14,Filtro!$A$5:$AW$2673,12,FALSE),0) -> 113 | O14: =IFERROR(VLOOKUP($A14,Filtro!$A$5:$AW$2673,13,FALSE),0) -> 2023 | P14: =IFERROR(VLOOKUP($A14,Filtro!$A$5:$AW$2673,14,FALSE),0) -> 1993 | Q14: =IFERROR(VLOOKUP($A14,Filtro!$A$5:$AW$2673,15,FALSE),0) -> 63 | R14: =IFERROR(VLOOKUP($A14,Filtro!$A$5:$AW$2673,16,FALSE),0) -> 49 | S14: =IFERROR(VLOOKUP($A14,Filtro!$A$5:$AW$2673,17,FALSE),0) -> 22 | T14: =IFERROR(VLOOKUP($A14,Filtro!$A$5:$AW$2673,18,FALSE),0) -> 23 | U14: =IFERROR(VLOOKUP($A14,Filtro!$A$5:$AW$2673,19,FALSE),0) -> 78 | V14: =IFERROR(VLOOKUP($A14,Filtro!$A$5:$AW$2673,20,FALSE),0) -> 82 | W14: =IFERROR(VLOOKUP($A14,Filtro!$A$5:$AW$2673,21,FALSE),0) -> 1880 | X14: =IFERROR(VLOOKUP($A14,Filtro!$A$5:$AW$2673,22,FALSE),0) -> 1924 | Y14: =IFERROR(VLOOKUP($A14,Filtro!$A$5:$AW$2673,23,FALSE),0) -> 1598 | Z14: =IFERROR(VLOOKUP($A14,Filtro!$A$5:$AW$2673,24,FALSE),0) -> 1805
A15: 03500030 | C15: Alterado | D15: =IFERROR(VLOOKUP($A15,Filtro!$A$5:$AW$2673,2,FALSE),0) -> 1459 | E15: =IFERROR(VLOOKUP($A15,Filtro!$A$5:$AW$2673,3,FALSE),0) -> 882 | F15: =IFERROR(VLOOKUP($A15,Filtro!$A$5:$AW$2673,4,FALSE),0) -> 577 | G15: =IFERROR(VLOOKUP($A15,Filtro!$A$5:$AW$2673,5,FALSE),0) -> 2 | H15: =IFERROR(VLOOKUP($A15,Filtro!$A$5:$AW$2673,6,FALSE),0) -> 0 | I15: =IFERROR(VLOOKUP($A15,Filtro!$A$5:$AW$2673,7,FALSE),0) -> 0 | J15: =IFERROR(VLOOKUP($A15,Filtro!$A$5:$AW$2673,8,FALSE),0) -> 0 | K15: =IFERROR(VLOOKUP($A15,Filtro!$A$5:$AW$2673,9,FALSE),0) -> 0 | L15: =IFERROR(VLOOKUP($A15,Filtro!$A$5:$AW$2673,10,FALSE),0) -> 0 | M15: =IFERROR(VLOOKUP($A15,Filtro!$A$5:$AW$2673,11,FALSE),0) -> 6 | N15: =IFERROR(VLOOKUP($A15,Filtro!$A$5:$AW$2673,12,FALSE),0) -> 6 | O15: =IFERROR(VLOOKUP($A15,Filtro!$A$5:$AW$2673,13,FALSE),0) -> 78 | P15: =IFERROR(VLOOKUP($A15,Filtro!$A$5:$AW$2673,14,FALSE),0) -> 51 | Q15: =IFERROR(VLOOKUP($A15,Filtro!$A$5:$AW$2673,15,FALSE),0) -> 2 | R15: =IFERROR(VLOOKUP($A15,Filtro!$A$5:$AW$2673,16,FALSE),0) -> 2 | S15: =IFERROR(VLOOKUP($A15,Filtro!$A$5:$AW$2673,17,FALSE),0) -> 0 | T15: =IFERROR(VLOOKUP($A15,Filtro!$A$5:$AW$2673,18,FALSE),0) -> 0 | U15: =IFERROR(VLOOKUP($A15,Filtro!$A$5:$AW$2673,19,FALSE),0) -> 10 | V15: =IFERROR(VLOOKUP($A15,Filtro!$A$5:$AW$2673,20,FALSE),0) -> 5 | W15: =IFERROR(VLOOKUP($A15,Filtro!$A$5:$AW$2673,21,FALSE),0) -> 245 | X15: =IFERROR(VLOOKUP($A15,Filtro!$A$5:$AW$2673,22,FALSE),0) -> 169 | Y15: =IFERROR(VLOOKUP($A15,Filtro!$A$5:$AW$2673,23,FALSE),0) -> 539 | Z15: =IFERROR(VLOOKUP($A15,Filtro!$A$5:$AW$2673,24,FALSE),0) -> 343
B16: SECCIÓN A.2: RESULTADOS DE LA APLICACIÓN DE ESCALA DE EVALUACIÓN DEL DESARROLLO PSICOMOTOR
B17: ACTIVIDAD | C17: RESULTADO | D17: TOTAL | G17: RANGO ETARIO Y SEXO | S17: Pueblos Originarios | T17: Migrantes
G18: Menos de 7 meses | I18: 7 - 11 meses | K18: 12 - 17 meses | M18: 18 - 23 meses | O18: 24 - 47 meses | Q18: 48 - 59 meses
D19: Ambos Sexos | E19: Hombres | F19: Mujeres | G19: Hombres | H19: Mujeres | I19: Hombres | J19: Mujeres | K19: Hombres | L19: Mujeres | M19: Hombres | N19: Mujeres | O19: Hombres | P19: Mujeres | Q19: Hombres | R19: Mujeres
A20: 02021740 | B20: Aplicación test de Desarrollo Psicomotor | D20: =IFERROR(VLOOKUP($A20,Filtro!$A$5:$AW$2673,2,FALSE),0) -> 16783 | E20: =IFERROR(VLOOKUP($A20,Filtro!$A$5:$AW$2673,3,FALSE),0) -> 8592 | F20: =IFERROR(VLOOKUP($A20,Filtro!$A$5:$AW$2673,4,FALSE),0) -> 8191 | G20: =IFERROR(VLOOKUP($A20,Filtro!$A$5:$AW$2673,5,FALSE),0) -> 68 | H20: =IFERROR(VLOOKUP($A20,Filtro!$A$5:$AW$2673,6,FALSE),0) -> 44 | I20: =IFERROR(VLOOKUP($A20,Filtro!$A$5:$AW$2673,7,FALSE),0) -> 2502 | J20: =IFERROR(VLOOKUP($A20,Filtro!$A$5:$AW$2673,8,FALSE),0) -> 2439 | K20: =IFERROR(VLOOKUP($A20,Filtro!$A$5:$AW$2673,9,FALSE),0) -> 592 | L20: =IFERROR(VLOOKUP($A20,Filtro!$A$5:$AW$2673,10,FALSE),0) -> 524 | M20: =IFERROR(VLOOKUP($A20,Filtro!$A$5:$AW$2673,11,FALSE),0) -> 2977 | N20: =IFERROR(VLOOKUP($A20,Filtro!$A$5:$AW$2673,12,FALSE),0) -> 2914 | O20: =IFERROR(VLOOKUP($A20,Filtro!$A$5:$AW$2673,13,FALSE),0) -> 2268 | P20: =IFERROR(VLOOKUP($A20,Filtro!$A$5:$AW$2673,14,FALSE),0) -> 2146 | Q20: =IFERROR(VLOOKUP($A20,Filtro!$A$5:$AW$2673,15,FALSE),0) -> 185 | R20: =IFERROR(VLOOKUP($A20,Filtro!$A$5:$AW$2673,16,FALSE),0) -> 124 | S20: =IFERROR(VLOOKUP($A20,Filtro!$A$5:$AW$2673,17,FALSE),0) -> 68 | T20: =IFERROR(VLOOKUP($A20,Filtro!$A$5:$AW$2673,18,FALSE),0) -> 91 | U20: =$CB20&CC20 ->  | CB20: =IF(AND($D20<>0,S20=""),"* No olvide ingresar la columna "&S$17&""&" (Digite CERO si no tiene). ",IF(S20>$D20,"* El Número de Pueblos Originarios no puede superar el Total. ","")) ->  | CC20: =IF(AND($D20<>0,T20=""),"* No olvide ingresar la columna "&T$17&""&" (Digite CERO si no tiene). ",IF(T20>$D20,"* El Número de Migrantes no puede superar el Total. ","")) ->  | CL20: =IF(AND($D20<>0,S20=""),1,IF(S20>$D20,1,0)) -> 0 | CM20: =IF(AND($D20<>0,T20=""),1,IF(T20>$D20,1,0)) -> 0
A21: 02010320 | B21: Primera Evaluación | C21: Normal | D21: =IFERROR(VLOOKUP($A21,Filtro!$A$5:$AW$2673,2,FALSE),0) -> 12696 | E21: =IFERROR(VLOOKUP($A21,Filtro!$A$5:$AW$2673,3,FALSE),0) -> 6084 | F21: =IFERROR(VLOOKUP($A21,Filtro!$A$5:$AW$2673,4,FALSE),0) -> 6612 | G21: =IFERROR(VLOOKUP($A21,Filtro!$A$5:$AW$2673,5,FALSE),0) -> 38 | H21: =IFERROR(VLOOKUP($A21,Filtro!$A$5:$AW$2673,6,FALSE),0) -> 31 | I21: =IFERROR(VLOOKUP($A21,Filtro!$A$5:$AW$2673,7,FALSE),0) -> 2227 | J21: =IFERROR(VLOOKUP($A21,Filtro!$A$5:$AW$2673,8,FALSE),0) -> 2187 | K21: =IFERROR(VLOOKUP($A21,Filtro!$A$5:$AW$2673,9,FALSE),0) -> 389 | L21: =IFERROR(VLOOKUP($A21,Filtro!$A$5:$AW$2673,10,FALSE),0) -> 366 | M21: =IFERROR(VLOOKUP($A21,Filtro!$A$5:$AW$2673,11,FALSE),0) -> 2009 | N21: =IFERROR(VLOOKUP($A21,Filtro!$A$5:$AW$2673,12,FALSE),0) -> 2275 | O21: =IFERROR(VLOOKUP($A21,Filtro!$A$5:$AW$2673,13,FALSE),0) -> 1315 | P21: =IFERROR(VLOOKUP($A21,Filtro!$A$5:$AW$2673,14,FALSE),0) -> 1656 | Q21: =IFERROR(VLOOKUP($A21,Filtro!$A$5:$AW$2673,15,FALSE),0) -> 106 | R21: =IFERROR(VLOOKUP($A21,Filtro!$A$5:$AW$2673,16,FALSE),0) -> 97 | S21: =IFERROR(VLOOKUP($A21,Filtro!$A$5:$AW$2673,17,FALSE),0) -> 64 | T21: =IFERROR(VLOOKUP($A21,Filtro!$A$5:$AW$2673,18,FALSE),0) -> 77 | CL21: 0 | CM21: 0
A22: 05225303 | C22: Normal con Rezago | D22: =IFERROR(VLOOKUP($A22,Filtro!$A$5:$AW$2673,2,FALSE),0) -> 959 | E22: =IFERROR(VLOOKUP($A22,Filtro!$A$5:$AW$2673,3,FALSE),0) -> 570 | F22: =IFERROR(VLOOKUP($A22,Filtro!$A$5:$AW$2673,4,FALSE),0) -> 389 | G22: =IFERROR(VLOOKUP($A22,Filtro!$A$5:$AW$2673,5,FALSE),0) -> 11 | H22: =IFERROR(VLOOKUP($A22,Filtro!$A$5:$AW$2673,6,FALSE),0) -> 3 | I22: =IFERROR(VLOOKUP($A22,Filtro!$A$5:$AW$2673,7,FALSE),0) -> 73 | J22: =IFERROR(VLOOKUP($A22,Filtro!$A$5:$AW$2673,8,FALSE),0) -> 74 | K22: =IFERROR(VLOOKUP($A22,Filtro!$A$5:$AW$2673,9,FALSE),0) -> 52 | L22: =IFERROR(VLOOKUP($A22,Filtro!$A$5:$AW$2673,10,FALSE),0) -> 49 | M22: =IFERROR(VLOOKUP($A22,Filtro!$A$5:$AW$2673,11,FALSE),0) -> 119 | N22: =IFERROR(VLOOKUP($A22,Filtro!$A$5:$AW$2673,12,FALSE),0) -> 73 | O22: =IFERROR(VLOOKUP($A22,Filtro!$A$5:$AW$2673,13,FALSE),0) -> 307 | P22: =IFERROR(VLOOKUP($A22,Filtro!$A$5:$AW$2673,14,FALSE),0) -> 186 | Q22: =IFERROR(VLOOKUP($A22,Filtro!$A$5:$AW$2673,15,FALSE),0) -> 8 | R22: =IFERROR(VLOOKUP($A22,Filtro!$A$5:$AW$2673,16,FALSE),0) -> 4 | S22: =IFERROR(VLOOKUP($A22,Filtro!$A$5:$AW$2673,17,FALSE),0) -> 14 | T22: =IFERROR(VLOOKUP($A22,Filtro!$A$5:$AW$2673,18,FALSE),0) -> 8 | CL22: 0 | CM22: 0
A23: 02010321 | C23: Riesgo | D23: =IFERROR(VLOOKUP($A23,Filtro!$A$5:$AW$2673,2,FALSE),0) -> 1294 | E23: =IFERROR(VLOOKUP($A23,Filtro!$A$5:$AW$2673,3,FALSE),0) -> 775 | F23: =IFERROR(VLOOKUP($A23,Filtro!$A$5:$AW$2673,4,FALSE),0) -> 519 | G23: =IFERROR(VLOOKUP($A23,Filtro!$A$5:$AW$2673,5,FALSE),0) -> 7 | H23: =IFERROR(VLOOKUP($A23,Filtro!$A$5:$AW$2673,6,FALSE),0) -> 3 | I23: =IFERROR(VLOOKUP($A23,Filtro!$A$5:$AW$2673,7,FALSE),0) -> 92 | J23: =IFERROR(VLOOKUP($A23,Filtro!$A$5:$AW$2673,8,FALSE),0) -> 100 | K23: =IFERROR(VLOOKUP($A23,Filtro!$A$5:$AW$2673,9,FALSE),0) -> 59 | L23: =IFERROR(VLOOKUP($A23,Filtro!$A$5:$AW$2673,10,FALSE),0) -> 40 | M23: =IFERROR(VLOOKUP($A23,Filtro!$A$5:$AW$2673,11,FALSE),0) -> 351 | N23: =IFERROR(VLOOKUP($A23,Filtro!$A$5:$AW$2673,12,FALSE),0) -> 248 | O23: =IFERROR(VLOOKUP($A23,Filtro!$A$5:$AW$2673,13,FALSE),0) -> 263 | P23: =IFERROR(VLOOKUP($A23,Filtro!$A$5:$AW$2673,14,FALSE),0) -> 125 | Q23: =IFERROR(VLOOKUP($A23,Filtro!$A$5:$AW$2673,15,FALSE),0) -> 3 | R23: =IFERROR(VLOOKUP($A23,Filtro!$A$5:$AW$2673,16,FALSE),0) -> 3 | S23: =IFERROR(VLOOKUP($A23,Filtro!$A$5:$AW$2673,17,FALSE),0) -> 5 | T23: =IFERROR(VLOOKUP($A23,Filtro!$A$5:$AW$2673,18,FALSE),0) -> 11 | CL23: 0 | CM23: 0
A24: 02010322 | C24: Retraso | D24: =IFERROR(VLOOKUP($A24,Filtro!$A$5:$AW$2673,2,FALSE),0) -> 385 | E24: =IFERROR(VLOOKUP($A24,Filtro!$A$5:$AW$2673,3,FALSE),0) -> 246 | F24: =IFERROR(VLOOKUP($A24,Filtro!$A$5:$AW$2673,4,FALSE),0) -> 139 | G24: =IFERROR(VLOOKUP($A24,Filtro!$A$5:$AW$2673,5,FALSE),0) -> 2 | H24: =IFERROR(VLOOKUP($A24,Filtro!$A$5:$AW$2673,6,FALSE),0) -> 2 | I24: =IFERROR(VLOOKUP($A24,Filtro!$A$5:$AW$2673,7,FALSE),0) -> 28 | J24: =IFERROR(VLOOKUP($A24,Filtro!$A$5:$AW$2673,8,FALSE),0) -> 24 | K24: =IFERROR(VLOOKUP($A24,Filtro!$A$5:$AW$2673,9,FALSE),0) -> 14 | L24: =IFERROR(VLOOKUP($A24,Filtro!$A$5:$AW$2673,10,FALSE),0) -> 6 | M24: =IFERROR(VLOOKUP($A24,Filtro!$A$5:$AW$2673,11,FALSE),0) -> 126 | N24: =IFERROR(VLOOKUP($A24,Filtro!$A$5:$AW$2673,12,FALSE),0) -> 84 | O24: =IFERROR(VLOOKUP($A24,Filtro!$A$5:$AW$2673,13,FALSE),0) -> 69 | P24: =IFERROR(VLOOKUP($A24,Filtro!$A$5:$AW$2673,14,FALSE),0) -> 18 | Q24: =IFERROR(VLOOKUP($A24,Filtro!$A$5:$AW$2673,15,FALSE),0) -> 7 | R24: =IFERROR(VLOOKUP($A24,Filtro!$A$5:$AW$2673,16,FALSE),0) -> 5 | S24: =IFERROR(VLOOKUP($A24,Filtro!$A$5:$AW$2673,17,FALSE),0) -> 4 | T24: =IFERROR(VLOOKUP($A24,Filtro!$A$5:$AW$2673,18,FALSE),0) -> 2 | CL24: 0 | CM24: 0
A25: 05225304 | B25: Reevaluación | C25: Normal (desde normal con rezago) | D25: =IFERROR(VLOOKUP($A25,Filtro!$A$5:$AW$2673,2,FALSE),0) -> 406 | E25: =IFERROR(VLOOKUP($A25,Filtro!$A$5:$AW$2673,3,FALSE),0) -> 236 | F25: =IFERROR(VLOOKUP($A25,Filtro!$A$5:$AW$2673,4,FALSE),0) -> 170 | G25: =IFERROR(VLOOKUP($A25,Filtro!$A$5:$AW$2673,5,FALSE),0) -> 1 | H25: =IFERROR(VLOOKUP($A25,Filtro!$A$5:$AW$2673,6,FALSE),0) -> 0 | I25: =IFERROR(VLOOKUP($A25,Filtro!$A$5:$AW$2673,7,FALSE),0) -> 26 | J25: =IFERROR(VLOOKUP($A25,Filtro!$A$5:$AW$2673,8,FALSE),0) -> 25 | K25: =IFERROR(VLOOKUP($A25,Filtro!$A$5:$AW$2673,9,FALSE),0) -> 21 | L25: =IFERROR(VLOOKUP($A25,Filtro!$A$5:$AW$2673,10,FALSE),0) -> 23 | M25: =IFERROR(VLOOKUP($A25,Filtro!$A$5:$AW$2673,11,FALSE),0) -> 40 | N25: =IFERROR(VLOOKUP($A25,Filtro!$A$5:$AW$2673,12,FALSE),0) -> 29 | O25: =IFERROR(VLOOKUP($A25,Filtro!$A$5:$AW$2673,13,FALSE),0) -> 125 | P25: =IFERROR(VLOOKUP($A25,Filtro!$A$5:$AW$2673,14,FALSE),0) -> 83 | Q25: =IFERROR(VLOOKUP($A25,Filtro!$A$5:$AW$2673,15,FALSE),0) -> 23 | R25: =IFERROR(VLOOKUP($A25,Filtro!$A$5:$AW$2673,16,FALSE),0) -> 10 | S25: =IFERROR(VLOOKUP($A25,Filtro!$A$5:$AW$2673,17,FALSE),0) -> 1 | T25: =IFERROR(VLOOKUP($A25,Filtro!$A$5:$AW$2673,18,FALSE),0) -> 6 | CL25: 0 | CM25: 0
A26: 02010420 | C26: Normal (desde riesgo) | D26: =IFERROR(VLOOKUP($A26,Filtro!$A$5:$AW$2673,2,FALSE),0) -> 737 | E26: =IFERROR(VLOOKUP($A26,Filtro!$A$5:$AW$2673,3,FALSE),0) -> 411 | F26: =IFERROR(VLOOKUP($A26,Filtro!$A$5:$AW$2673,4,FALSE),0) -> 326 | G26: =IFERROR(VLOOKUP($A26,Filtro!$A$5:$AW$2673,5,FALSE),0) -> 2 | H26: =IFERROR(VLOOKUP($A26,Filtro!$A$5:$AW$2673,6,FALSE),0) -> 1 | I26: =IFERROR(VLOOKUP($A26,Filtro!$A$5:$AW$2673,7,FALSE),0) -> 51 | J26: =IFERROR(VLOOKUP($A26,Filtro!$A$5:$AW$2673,8,FALSE),0) -> 44 | K26: =IFERROR(VLOOKUP($A26,Filtro!$A$5:$AW$2673,9,FALSE),0) -> 33 | L26: =IFERROR(VLOOKUP($A26,Filtro!$A$5:$AW$2673,10,FALSE),0) -> 19 | M26: =IFERROR(VLOOKUP($A26,Filtro!$A$5:$AW$2673,11,FALSE),0) -> 191 | N26: =IFERROR(VLOOKUP($A26,Filtro!$A$5:$AW$2673,12,FALSE),0) -> 174 | O26: =IFERROR(VLOOKUP($A26,Filtro!$A$5:$AW$2673,13,FALSE),0) -> 103 | P26: =IFERROR(VLOOKUP($A26,Filtro!$A$5:$AW$2673,14,FALSE),0) -> 79 | Q26: =IFERROR(VLOOKUP($A26,Filtro!$A$5:$AW$2673,15,FALSE),0) -> 31 | R26: =IFERROR(VLOOKUP($A26,Filtro!$A$5:$AW$2673,16,FALSE),0) -> 9 | S26: =IFERROR(VLOOKUP($A26,Filtro!$A$5:$AW$2673,17,FALSE),0) -> 3 | T26: =IFERROR(VLOOKUP($A26,Filtro!$A$5:$AW$2673,18,FALSE),0) -> 5 | CL26: 0 | CM26: 0
A27: 05225305 | C27: Normal (desde retraso) | D27: =IFERROR(VLOOKUP($A27,Filtro!$A$5:$AW$2673,2,FALSE),0) -> 62 | E27: =IFERROR(VLOOKUP($A27,Filtro!$A$5:$AW$2673,3,FALSE),0) -> 40 | F27: =IFERROR(VLOOKUP($A27,Filtro!$A$5:$AW$2673,4,FALSE),0) -> 22 | G27: =IFERROR(VLOOKUP($A27,Filtro!$A$5:$AW$2673,5,FALSE),0) -> 0 | H27: =IFERROR(VLOOKUP($A27,Filtro!$A$5:$AW$2673,6,FALSE),0) -> 0 | I27: =IFERROR(VLOOKUP($A27,Filtro!$A$5:$AW$2673,7,FALSE),0) -> 3 | J27: =IFERROR(VLOOKUP($A27,Filtro!$A$5:$AW$2673,8,FALSE),0) -> 3 | K27: =IFERROR(VLOOKUP($A27,Filtro!$A$5:$AW$2673,9,FALSE),0) -> 2 | L27: =IFERROR(VLOOKUP($A27,Filtro!$A$5:$AW$2673,10,FALSE),0) -> 1 | M27: =IFERROR(VLOOKUP($A27,Filtro!$A$5:$AW$2673,11,FALSE),0) -> 16 | N27: =IFERROR(VLOOKUP($A27,Filtro!$A$5:$AW$2673,12,FALSE),0) -> 9 | O27: =IFERROR(VLOOKUP($A27,Filtro!$A$5:$AW$2673,13,FALSE),0) -> 18 | P27: =IFERROR(VLOOKUP($A27,Filtro!$A$5:$AW$2673,14,FALSE),0) -> 9 | Q27: =IFERROR(VLOOKUP($A27,Filtro!$A$5:$AW$2673,15,FALSE),0) -> 1 | R27: =IFERROR(VLOOKUP($A27,Filtro!$A$5:$AW$2673,16,FALSE),0) -> 0 | S27: =IFERROR(VLOOKUP($A27,Filtro!$A$5:$AW$2673,17,FALSE),0) -> 0 | T27: =IFERROR(VLOOKUP($A27,Filtro!$A$5:$AW$2673,18,FALSE),0) -> 0 | CL27: 0 | CM27: 0
A28: 03500366 | C28: Normal Rezago (desde riesgo) | D28: =IFERROR(VLOOKUP($A28,Filtro!$A$5:$AW$2673,2,FALSE),0) -> 166 | E28: =IFERROR(VLOOKUP($A28,Filtro!$A$5:$AW$2673,3,FALSE),0) -> 118 | F28: =IFERROR(VLOOKUP($A28,Filtro!$A$5:$AW$2673,4,FALSE),0) -> 48 | G28: =IFERROR(VLOOKUP($A28,Filtro!$A$5:$AW$2673,5,FALSE),0) -> 0 | H28: =IFERROR(VLOOKUP($A28,Filtro!$A$5:$AW$2673,6,FALSE),0) -> 0 | I28: =IFERROR(VLOOKUP($A28,Filtro!$A$5:$AW$2673,7,FALSE),0) -> 5 | J28: =IFERROR(VLOOKUP($A28,Filtro!$A$5:$AW$2673,8,FALSE),0) -> 6 | K28: =IFERROR(VLOOKUP($A28,Filtro!$A$5:$AW$2673,9,FALSE),0) -> 6 | L28: =IFERROR(VLOOKUP($A28,Filtro!$A$5:$AW$2673,10,FALSE),0) -> 10 | M28: =IFERROR(VLOOKUP($A28,Filtro!$A$5:$AW$2673,11,FALSE),0) -> 67 | N28: =IFERROR(VLOOKUP($A28,Filtro!$A$5:$AW$2673,12,FALSE),0) -> 17 | O28: =IFERROR(VLOOKUP($A28,Filtro!$A$5:$AW$2673,13,FALSE),0) -> 35 | P28: =IFERROR(VLOOKUP($A28,Filtro!$A$5:$AW$2673,14,FALSE),0) -> 12 | Q28: =IFERROR(VLOOKUP($A28,Filtro!$A$5:$AW$2673,15,FALSE),0) -> 5 | R28: =IFERROR(VLOOKUP($A28,Filtro!$A$5:$AW$2673,16,FALSE),0) -> 3 | S28: =IFERROR(VLOOKUP($A28,Filtro!$A$5:$AW$2673,17,FALSE),0) -> 2 | T28: =IFERROR(VLOOKUP($A28,Filtro!$A$5:$AW$2673,18,FALSE),0) -> 0 | CL28: 0 | CM28: 0
A29: 03500400 | C29: Normal con Rezago (desde retraso) | D29: =IFERROR(VLOOKUP($A29,Filtro!$A$5:$AW$2673,2,FALSE),0) -> 32 | E29: =IFERROR(VLOOKUP($A29,Filtro!$A$5:$AW$2673,3,FALSE),0) -> 22 | F29: =IFERROR(VLOOKUP($A29,Filtro!$A$5:$AW$2673,4,FALSE),0) -> 10 | G29: =IFERROR(VLOOKUP($A29,Filtro!$A$5:$AW$2673,5,FALSE),0) -> 0 | H29: =IFERROR(VLOOKUP($A29,Filtro!$A$5:$AW$2673,6,FALSE),0) -> 0 | I29: =IFERROR(VLOOKUP($A29,Filtro!$A$5:$AW$2673,7,FALSE),0) -> 0 | J29: =IFERROR(VLOOKUP($A29,Filtro!$A$5:$AW$2673,8,FALSE),0) -> 0 | K29: =IFERROR(VLOOKUP($A29,Filtro!$A$5:$AW$2673,9,FALSE),0) -> 1 | L29: =IFERROR(VLOOKUP($A29,Filtro!$A$5:$AW$2673,10,FALSE),0) -> 3 | M29: =IFERROR(VLOOKUP($A29,Filtro!$A$5:$AW$2673,11,FALSE),0) -> 8 | N29: =IFERROR(VLOOKUP($A29,Filtro!$A$5:$AW$2673,12,FALSE),0) -> 2 | O29: =IFERROR(VLOOKUP($A29,Filtro!$A$5:$AW$2673,13,FALSE),0) -> 11 | P29: =IFERROR(VLOOKUP($A29,Filtro!$A$5:$AW$2673,14,FALSE),0) -> 4 | Q29: =IFERROR(VLOOKUP($A29,Filtro!$A$5:$AW$2673,15,FALSE),0) -> 2 | R29: =IFERROR(VLOOKUP($A29,Filtro!$A$5:$AW$2673,16,FALSE),0) -> 1 | S29: =IFERROR(VLOOKUP($A29,Filtro!$A$5:$AW$2673,17,FALSE),0) -> 0 | T29: =IFERROR(VLOOKUP($A29,Filtro!$A$5:$AW$2673,18,FALSE),0) -> 0 | CL29: 0 | CM29: 0
A30: 03500401 | C30: Riesgo (desde retraso) | D30: =IFERROR(VLOOKUP($A30,Filtro!$A$5:$AW$2673,2,FALSE),0) -> 61 | E30: =IFERROR(VLOOKUP($A30,Filtro!$A$5:$AW$2673,3,FALSE),0) -> 45 | F30: =IFERROR(VLOOKUP($A30,Filtro!$A$5:$AW$2673,4,FALSE),0) -> 16 | G30: =IFERROR(VLOOKUP($A30,Filtro!$A$5:$AW$2673,5,FALSE),0) -> 0 | H30: =IFERROR(VLOOKUP($A30,Filtro!$A$5:$AW$2673,6,FALSE),0) -> 0 | I30: =IFERROR(VLOOKUP($A30,Filtro!$A$5:$AW$2673,7,FALSE),0) -> 2 | J30: =IFERROR(VLOOKUP($A30,Filtro!$A$5:$AW$2673,8,FALSE),0) -> 0 | K30: =IFERROR(VLOOKUP($A30,Filtro!$A$5:$AW$2673,9,FALSE),0) -> 2 | L30: =IFERROR(VLOOKUP($A30,Filtro!$A$5:$AW$2673,10,FALSE),0) -> 2 | M30: =IFERROR(VLOOKUP($A30,Filtro!$A$5:$AW$2673,11,FALSE),0) -> 27 | N30: =IFERROR(VLOOKUP($A30,Filtro!$A$5:$AW$2673,12,FALSE),0) -> 9 | O30: =IFERROR(VLOOKUP($A30,Filtro!$A$5:$AW$2673,13,FALSE),0) -> 10 | P30: =IFERROR(VLOOKUP($A30,Filtro!$A$5:$AW$2673,14,FALSE),0) -> 5 | Q30: =IFERROR(VLOOKUP($A30,Filtro!$A$5:$AW$2673,15,FALSE),0) -> 4 | R30: =IFERROR(VLOOKUP($A30,Filtro!$A$5:$AW$2673,16,FALSE),0) -> 0 | S30: =IFERROR(VLOOKUP($A30,Filtro!$A$5:$AW$2673,17,FALSE),0) -> 0 | T30: =IFERROR(VLOOKUP($A30,Filtro!$A$5:$AW$2673,18,FALSE),0) -> 0 | CL30: 0 | CM30: 0
A31: 05225306 | C31: Normal con Rezago (desde normal con rezago) | D31: =IFERROR(VLOOKUP($A31,Filtro!$A$5:$AW$2673,2,FALSE),0) -> 92 | E31: =IFERROR(VLOOKUP($A31,Filtro!$A$5:$AW$2673,3,FALSE),0) -> 58 | F31: =IFERROR(VLOOKUP($A31,Filtro!$A$5:$AW$2673,4,FALSE),0) -> 34 | G31: =IFERROR(VLOOKUP($A31,Filtro!$A$5:$AW$2673,5,FALSE),0) -> 0 | H31: =IFERROR(VLOOKUP($A31,Filtro!$A$5:$AW$2673,6,FALSE),0) -> 0 | I31: =IFERROR(VLOOKUP($A31,Filtro!$A$5:$AW$2673,7,FALSE),0) -> 4 | J31: =IFERROR(VLOOKUP($A31,Filtro!$A$5:$AW$2673,8,FALSE),0) -> 5 | K31: =IFERROR(VLOOKUP($A31,Filtro!$A$5:$AW$2673,9,FALSE),0) -> 5 | L31: =IFERROR(VLOOKUP($A31,Filtro!$A$5:$AW$2673,10,FALSE),0) -> 3 | M31: =IFERROR(VLOOKUP($A31,Filtro!$A$5:$AW$2673,11,FALSE),0) -> 12 | N31: =IFERROR(VLOOKUP($A31,Filtro!$A$5:$AW$2673,12,FALSE),0) -> 11 | O31: =IFERROR(VLOOKUP($A31,Filtro!$A$5:$AW$2673,13,FALSE),0) -> 34 | P31: =IFERROR(VLOOKUP($A31,Filtro!$A$5:$AW$2673,14,FALSE),0) -> 13 | Q31: =IFERROR(VLOOKUP($A31,Filtro!$A$5:$AW$2673,15,FALSE),0) -> 3 | R31: =IFERROR(VLOOKUP($A31,Filtro!$A$5:$AW$2673,16,FALSE),0) -> 2 | S31: =IFERROR(VLOOKUP($A31,Filtro!$A$5:$AW$2673,17,FALSE),0) -> 0 | T31: =IFERROR(VLOOKUP($A31,Filtro!$A$5:$AW$2673,18,FALSE),0) -> 1 | CL31: 0 | CM31: 0
A32: 02010421 | C32: Riesgo (desde riesgo) | D32: =IFERROR(VLOOKUP($A32,Filtro!$A$5:$AW$2673,2,FALSE),0) -> 180 | E32: =IFERROR(VLOOKUP($A32,Filtro!$A$5:$AW$2673,3,FALSE),0) -> 114 | F32: =IFERROR(VLOOKUP($A32,Filtro!$A$5:$AW$2673,4,FALSE),0) -> 66 | G32: =IFERROR(VLOOKUP($A32,Filtro!$A$5:$AW$2673,5,FALSE),0) -> 0 | H32: =IFERROR(VLOOKUP($A32,Filtro!$A$5:$AW$2673,6,FALSE),0) -> 0 | I32: =IFERROR(VLOOKUP($A32,Filtro!$A$5:$AW$2673,7,FALSE),0) -> 8 | J32: =IFERROR(VLOOKUP($A32,Filtro!$A$5:$AW$2673,8,FALSE),0) -> 8 | K32: =IFERROR(VLOOKUP($A32,Filtro!$A$5:$AW$2673,9,FALSE),0) -> 13 | L32: =IFERROR(VLOOKUP($A32,Filtro!$A$5:$AW$2673,10,FALSE),0) -> 5 | M32: =IFERROR(VLOOKUP($A32,Filtro!$A$5:$AW$2673,11,FALSE),0) -> 55 | N32: =IFERROR(VLOOKUP($A32,Filtro!$A$5:$AW$2673,12,FALSE),0) -> 33 | O32: =IFERROR(VLOOKUP($A32,Filtro!$A$5:$AW$2673,13,FALSE),0) -> 36 | P32: =IFERROR(VLOOKUP($A32,Filtro!$A$5:$AW$2673,14,FALSE),0) -> 20 | Q32: =IFERROR(VLOOKUP($A32,Filtro!$A$5:$AW$2673,15,FALSE),0) -> 2 | R32: =IFERROR(VLOOKUP($A32,Filtro!$A$5:$AW$2673,16,FALSE),0) -> 0 | S32: =IFERROR(VLOOKUP($A32,Filtro!$A$5:$AW$2673,17,FALSE),0) -> 0 | T32: =IFERROR(VLOOKUP($A32,Filtro!$A$5:$AW$2673,18,FALSE),0) -> 1 | CL32: 0 | CM32: 0
A33: 03600110 | C33: Riesgo (desde normal con rezago) | D33: =IFERROR(VLOOKUP($A33,Filtro!$A$5:$AW$2673,2,FALSE),0) -> 49 | E33: =IFERROR(VLOOKUP($A33,Filtro!$A$5:$AW$2673,3,FALSE),0) -> 34 | F33: =IFERROR(VLOOKUP($A33,Filtro!$A$5:$AW$2673,4,FALSE),0) -> 15 | G33: =IFERROR(VLOOKUP($A33,Filtro!$A$5:$AW$2673,5,FALSE),0) -> 0 | H33: =IFERROR(VLOOKUP($A33,Filtro!$A$5:$AW$2673,6,FALSE),0) -> 0 | I33: =IFERROR(VLOOKUP($A33,Filtro!$A$5:$AW$2673,7,FALSE),0) -> 4 | J33: =IFERROR(VLOOKUP($A33,Filtro!$A$5:$AW$2673,8,FALSE),0) -> 0 | K33: =IFERROR(VLOOKUP($A33,Filtro!$A$5:$AW$2673,9,FALSE),0) -> 6 | L33: =IFERROR(VLOOKUP($A33,Filtro!$A$5:$AW$2673,10,FALSE),0) -> 4 | M33: =IFERROR(VLOOKUP($A33,Filtro!$A$5:$AW$2673,11,FALSE),0) -> 6 | N33: =IFERROR(VLOOKUP($A33,Filtro!$A$5:$AW$2673,12,FALSE),0) -> 2 | O33: =IFERROR(VLOOKUP($A33,Filtro!$A$5:$AW$2673,13,FALSE),0) -> 18 | P33: =IFERROR(VLOOKUP($A33,Filtro!$A$5:$AW$2673,14,FALSE),0) -> 9 | Q33: =IFERROR(VLOOKUP($A33,Filtro!$A$5:$AW$2673,15,FALSE),0) -> 0 | R33: =IFERROR(VLOOKUP($A33,Filtro!$A$5:$AW$2673,16,FALSE),0) -> 0 | S33: =IFERROR(VLOOKUP($A33,Filtro!$A$5:$AW$2673,17,FALSE),0) -> 1 | T33: =IFERROR(VLOOKUP($A33,Filtro!$A$5:$AW$2673,18,FALSE),0) -> 0 | CL33: 0 | CM33: 0
A34: 02010422 | C34: Retraso (desde retraso) | D34: =IFERROR(VLOOKUP($A34,Filtro!$A$5:$AW$2673,2,FALSE),0) -> 59 | E34: =IFERROR(VLOOKUP($A34,Filtro!$A$5:$AW$2673,3,FALSE),0) -> 42 | F34: =IFERROR(VLOOKUP($A34,Filtro!$A$5:$AW$2673,4,FALSE),0) -> 17 | G34: =IFERROR(VLOOKUP($A34,Filtro!$A$5:$AW$2673,5,FALSE),0) -> 0 | H34: =IFERROR(VLOOKUP($A34,Filtro!$A$5:$AW$2673,6,FALSE),0) -> 0 | I34: =IFERROR(VLOOKUP($A34,Filtro!$A$5:$AW$2673,7,FALSE),0) -> 0 | J34: =IFERROR(VLOOKUP($A34,Filtro!$A$5:$AW$2673,8,FALSE),0) -> 1 | K34: =IFERROR(VLOOKUP($A34,Filtro!$A$5:$AW$2673,9,FALSE),0) -> 3 | L34: =IFERROR(VLOOKUP($A34,Filtro!$A$5:$AW$2673,10,FALSE),0) -> 1 | M34: =IFERROR(VLOOKUP($A34,Filtro!$A$5:$AW$2673,11,FALSE),0) -> 27 | N34: =IFERROR(VLOOKUP($A34,Filtro!$A$5:$AW$2673,12,FALSE),0) -> 10 | O34: =IFERROR(VLOOKUP($A34,Filtro!$A$5:$AW$2673,13,FALSE),0) -> 7 | P34: =IFERROR(VLOOKUP($A34,Filtro!$A$5:$AW$2673,14,FALSE),0) -> 3 | Q34: =IFERROR(VLOOKUP($A34,Filtro!$A$5:$AW$2673,15,FALSE),0) -> 5 | R34: =IFERROR(VLOOKUP($A34,Filtro!$A$5:$AW$2673,16,FALSE),0) -> 2 | S34: =IFERROR(VLOOKUP($A34,Filtro!$A$5:$AW$2673,17,FALSE),0) -> 0 | T34: =IFERROR(VLOOKUP($A34,Filtro!$A$5:$AW$2673,18,FALSE),0) -> 0 | CL34: 0 | CM34: 0
A35: 03600120 | C35: Retraso (desde riesgo) | D35: =IFERROR(VLOOKUP($A35,Filtro!$A$5:$AW$2673,2,FALSE),0) -> 35 | E35: =IFERROR(VLOOKUP($A35,Filtro!$A$5:$AW$2673,3,FALSE),0) -> 26 | F35: =IFERROR(VLOOKUP($A35,Filtro!$A$5:$AW$2673,4,FALSE),0) -> 9 | G35: =IFERROR(VLOOKUP($A35,Filtro!$A$5:$AW$2673,5,FALSE),0) -> 0 | H35: =IFERROR(VLOOKUP($A35,Filtro!$A$5:$AW$2673,6,FALSE),0) -> 0 | I35: =IFERROR(VLOOKUP($A35,Filtro!$A$5:$AW$2673,7,FALSE),0) -> 1 | J35: =IFERROR(VLOOKUP($A35,Filtro!$A$5:$AW$2673,8,FALSE),0) -> 1 | K35: =IFERROR(VLOOKUP($A35,Filtro!$A$5:$AW$2673,9,FALSE),0) -> 5 | L35: =IFERROR(VLOOKUP($A35,Filtro!$A$5:$AW$2673,10,FALSE),0) -> 2 | M35: =IFERROR(VLOOKUP($A35,Filtro!$A$5:$AW$2673,11,FALSE),0) -> 7 | N35: =IFERROR(VLOOKUP($A35,Filtro!$A$5:$AW$2673,12,FALSE),0) -> 3 | O35: =IFERROR(VLOOKUP($A35,Filtro!$A$5:$AW$2673,13,FALSE),0) -> 12 | P35: =IFERROR(VLOOKUP($A35,Filtro!$A$5:$AW$2673,14,FALSE),0) -> 3 | Q35: =IFERROR(VLOOKUP($A35,Filtro!$A$5:$AW$2673,15,FALSE),0) -> 1 | R35: =IFERROR(VLOOKUP($A35,Filtro!$A$5:$AW$2673,16,FALSE),0) -> 0 | S35: =IFERROR(VLOOKUP($A35,Filtro!$A$5:$AW$2673,17,FALSE),0) -> 0 | T35: =IFERROR(VLOOKUP($A35,Filtro!$A$5:$AW$2673,18,FALSE),0) -> 0 | CL35: 0 | CM35: 0
A36: 03600130 | C36: Retraso (desde normal con rezago) | D36: =IFERROR(VLOOKUP($A36,Filtro!$A$5:$AW$2673,2,FALSE),0) -> 8 | E36: =IFERROR(VLOOKUP($A36,Filtro!$A$5:$AW$2673,3,FALSE),0) -> 2 | F36: =IFERROR(VLOOKUP($A36,Filtro!$A$5:$AW$2673,4,FALSE),0) -> 6 | G36: =IFERROR(VLOOKUP($A36,Filtro!$A$5:$AW$2673,5,FALSE),0) -> 0 | H36: =IFERROR(VLOOKUP($A36,Filtro!$A$5:$AW$2673,6,FALSE),0) -> 0 | I36: =IFERROR(VLOOKUP($A36,Filtro!$A$5:$AW$2673,7,FALSE),0) -> 0 | J36: =IFERROR(VLOOKUP($A36,Filtro!$A$5:$AW$2673,8,FALSE),0) -> 2 | K36: =IFERROR(VLOOKUP($A36,Filtro!$A$5:$AW$2673,9,FALSE),0) -> 0 | L36: =IFERROR(VLOOKUP($A36,Filtro!$A$5:$AW$2673,10,FALSE),0) -> 0 | M36: =IFERROR(VLOOKUP($A36,Filtro!$A$5:$AW$2673,11,FALSE),0) -> 1 | N36: =IFERROR(VLOOKUP($A36,Filtro!$A$5:$AW$2673,12,FALSE),0) -> 3 | O36: =IFERROR(VLOOKUP($A36,Filtro!$A$5:$AW$2673,13,FALSE),0) -> 1 | P36: =IFERROR(VLOOKUP($A36,Filtro!$A$5:$AW$2673,14,FALSE),0) -> 1 | Q36: =IFERROR(VLOOKUP($A36,Filtro!$A$5:$AW$2673,15,FALSE),0) -> 0 | R36: =IFERROR(VLOOKUP($A36,Filtro!$A$5:$AW$2673,16,FALSE),0) -> 0 | S36: =IFERROR(VLOOKUP($A36,Filtro!$A$5:$AW$2673,17,FALSE),0) -> 0 | T36: =IFERROR(VLOOKUP($A36,Filtro!$A$5:$AW$2673,18,FALSE),0) -> 0 | CL36: 0 | CM36: 0
A37: 03500331 | B37: Derivados a Especialidad | C37: Riesgo | D37: =IFERROR(VLOOKUP($A37,Filtro!$A$5:$AW$2673,2,FALSE),0) -> 125 | E37: =IFERROR(VLOOKUP($A37,Filtro!$A$5:$AW$2673,3,FALSE),0) -> 78 | F37: =IFERROR(VLOOKUP($A37,Filtro!$A$5:$AW$2673,4,FALSE),0) -> 47 | G37: =IFERROR(VLOOKUP($A37,Filtro!$A$5:$AW$2673,5,FALSE),0) -> 0 | H37: =IFERROR(VLOOKUP($A37,Filtro!$A$5:$AW$2673,6,FALSE),0) -> 0 | I37: =IFERROR(VLOOKUP($A37,Filtro!$A$5:$AW$2673,7,FALSE),0) -> 2 | J37: =IFERROR(VLOOKUP($A37,Filtro!$A$5:$AW$2673,8,FALSE),0) -> 2 | K37: =IFERROR(VLOOKUP($A37,Filtro!$A$5:$AW$2673,9,FALSE),0) -> 3 | L37: =IFERROR(VLOOKUP($A37,Filtro!$A$5:$AW$2673,10,FALSE),0) -> 3 | M37: =IFERROR(VLOOKUP($A37,Filtro!$A$5:$AW$2673,11,FALSE),0) -> 44 | N37: =IFERROR(VLOOKUP($A37,Filtro!$A$5:$AW$2673,12,FALSE),0) -> 25 | O37: =IFERROR(VLOOKUP($A37,Filtro!$A$5:$AW$2673,13,FALSE),0) -> 28 | P37: =IFERROR(VLOOKUP($A37,Filtro!$A$5:$AW$2673,14,FALSE),0) -> 17 | Q37: =IFERROR(VLOOKUP($A37,Filtro!$A$5:$AW$2673,15,FALSE),0) -> 1 | R37: =IFERROR(VLOOKUP($A37,Filtro!$A$5:$AW$2673,16,FALSE),0) -> 0 | S37: =IFERROR(VLOOKUP($A37,Filtro!$A$5:$AW$2673,17,FALSE),0) -> 0 | T37: =IFERROR(VLOOKUP($A37,Filtro!$A$5:$AW$2673,18,FALSE),0) -> 0 | CL37: 0 | CM37: 0
A38: 03500332 | C38: Retraso | D38: =IFERROR(VLOOKUP($A38,Filtro!$A$5:$AW$2673,2,FALSE),0) -> 113 | E38: =IFERROR(VLOOKUP($A38,Filtro!$A$5:$AW$2673,3,FALSE),0) -> 78 | F38: =IFERROR(VLOOKUP($A38,Filtro!$A$5:$AW$2673,4,FALSE),0) -> 35 | G38: =IFERROR(VLOOKUP($A38,Filtro!$A$5:$AW$2673,5,FALSE),0) -> 0 | H38: =IFERROR(VLOOKUP($A38,Filtro!$A$5:$AW$2673,6,FALSE),0) -> 0 | I38: =IFERROR(VLOOKUP($A38,Filtro!$A$5:$AW$2673,7,FALSE),0) -> 2 | J38: =IFERROR(VLOOKUP($A38,Filtro!$A$5:$AW$2673,8,FALSE),0) -> 3 | K38: =IFERROR(VLOOKUP($A38,Filtro!$A$5:$AW$2673,9,FALSE),0) -> 7 | L38: =IFERROR(VLOOKUP($A38,Filtro!$A$5:$AW$2673,10,FALSE),0) -> 1 | M38: =IFERROR(VLOOKUP($A38,Filtro!$A$5:$AW$2673,11,FALSE),0) -> 38 | N38: =IFERROR(VLOOKUP($A38,Filtro!$A$5:$AW$2673,12,FALSE),0) -> 23 | O38: =IFERROR(VLOOKUP($A38,Filtro!$A$5:$AW$2673,13,FALSE),0) -> 27 | P38: =IFERROR(VLOOKUP($A38,Filtro!$A$5:$AW$2673,14,FALSE),0) -> 6 | Q38: =IFERROR(VLOOKUP($A38,Filtro!$A$5:$AW$2673,15,FALSE),0) -> 4 | R38: =IFERROR(VLOOKUP($A38,Filtro!$A$5:$AW$2673,16,FALSE),0) -> 2 | S38: =IFERROR(VLOOKUP($A38,Filtro!$A$5:$AW$2673,17,FALSE),0) -> 0 | T38: =IFERROR(VLOOKUP($A38,Filtro!$A$5:$AW$2673,18,FALSE),0) -> 0 | CL38: 0 | CM38: 0
A39: 03500333 | B39: Traslado de Establecimiento | C39: Normal con Rezago | D39: =IFERROR(VLOOKUP($A39,Filtro!$A$5:$AW$2673,2,FALSE),0) -> 8 | E39: =IFERROR(VLOOKUP($A39,Filtro!$A$5:$AW$2673,3,FALSE),0) -> 4 | F39: =IFERROR(VLOOKUP($A39,Filtro!$A$5:$AW$2673,4,FALSE),0) -> 4 | G39: =IFERROR(VLOOKUP($A39,Filtro!$A$5:$AW$2673,5,FALSE),0) -> 0 | H39: =IFERROR(VLOOKUP($A39,Filtro!$A$5:$AW$2673,6,FALSE),0) -> 0 | I39: =IFERROR(VLOOKUP($A39,Filtro!$A$5:$AW$2673,7,FALSE),0) -> 3 | J39: =IFERROR(VLOOKUP($A39,Filtro!$A$5:$AW$2673,8,FALSE),0) -> 1 | K39: =IFERROR(VLOOKUP($A39,Filtro!$A$5:$AW$2673,9,FALSE),0) -> 0 | L39: =IFERROR(VLOOKUP($A39,Filtro!$A$5:$AW$2673,10,FALSE),0) -> 0 | M39: =IFERROR(VLOOKUP($A39,Filtro!$A$5:$AW$2673,11,FALSE),0) -> 0 | N39: =IFERROR(VLOOKUP($A39,Filtro!$A$5:$AW$2673,12,FALSE),0) -> 2 | O39: =IFERROR(VLOOKUP($A39,Filtro!$A$5:$AW$2673,13,FALSE),0) -> 1 | P39: =IFERROR(VLOOKUP($A39,Filtro!$A$5:$AW$2673,14,FALSE),0) -> 0 | Q39: =IFERROR(VLOOKUP($A39,Filtro!$A$5:$AW$2673,15,FALSE),0) -> 0 | R39: =IFERROR(VLOOKUP($A39,Filtro!$A$5:$AW$2673,16,FALSE),0) -> 1 | S39: =IFERROR(VLOOKUP($A39,Filtro!$A$5:$AW$2673,17,FALSE),0) -> 0 | T39: =IFERROR(VLOOKUP($A39,Filtro!$A$5:$AW$2673,18,FALSE),0) -> 0 | CL39: 0 | CM39: 0
A40: 03500334 | C40: Riesgo | D40: =IFERROR(VLOOKUP($A40,Filtro!$A$5:$AW$2673,2,FALSE),0) -> 11 | E40: =IFERROR(VLOOKUP($A40,Filtro!$A$5:$AW$2673,3,FALSE),0) -> 7 | F40: =IFERROR(VLOOKUP($A40,Filtro!$A$5:$AW$2673,4,FALSE),0) -> 4 | G40: =IFERROR(VLOOKUP($A40,Filtro!$A$5:$AW$2673,5,FALSE),0) -> 0 | H40: =IFERROR(VLOOKUP($A40,Filtro!$A$5:$AW$2673,6,FALSE),0) -> 0 | I40: =IFERROR(VLOOKUP($A40,Filtro!$A$5:$AW$2673,7,FALSE),0) -> 1 | J40: =IFERROR(VLOOKUP($A40,Filtro!$A$5:$AW$2673,8,FALSE),0) -> 1 | K40: =IFERROR(VLOOKUP($A40,Filtro!$A$5:$AW$2673,9,FALSE),0) -> 0 | L40: =IFERROR(VLOOKUP($A40,Filtro!$A$5:$AW$2673,10,FALSE),0) -> 0 | M40: =IFERROR(VLOOKUP($A40,Filtro!$A$5:$AW$2673,11,FALSE),0) -> 6 | N40: =IFERROR(VLOOKUP($A40,Filtro!$A$5:$AW$2673,12,FALSE),0) -> 1 | O40: =IFERROR(VLOOKUP($A40,Filtro!$A$5:$AW$2673,13,FALSE),0) -> 0 | P40: =IFERROR(VLOOKUP($A40,Filtro!$A$5:$AW$2673,14,FALSE),0) -> 2 | Q40: =IFERROR(VLOOKUP($A40,Filtro!$A$5:$AW$2673,15,FALSE),0) -> 0 | R40: =IFERROR(VLOOKUP($A40,Filtro!$A$5:$AW$2673,16,FALSE),0) -> 0 | S40: =IFERROR(VLOOKUP($A40,Filtro!$A$5:$AW$2673,17,FALSE),0) -> 0 | T40: =IFERROR(VLOOKUP($A40,Filtro!$A$5:$AW$2673,18,FALSE),0) -> 0 | CL40: 0 | CM40: 0
A41: 03500335 | C41: Retraso | D41: =IFERROR(VLOOKUP($A41,Filtro!$A$5:$AW$2673,2,FALSE),0) -> 4 | E41: =IFERROR(VLOOKUP($A41,Filtro!$A$5:$AW$2673,3,FALSE),0) -> 4 | F41: =IFERROR(VLOOKUP($A41,Filtro!$A$5:$AW$2673,4,FALSE),0) -> 0 | G41: =IFERROR(VLOOKUP($A41,Filtro!$A$5:$AW$2673,5,FALSE),0) -> 0 | H41: =IFERROR(VLOOKUP($A41,Filtro!$A$5:$AW$2673,6,FALSE),0) -> 0 | I41: =IFERROR(VLOOKUP($A41,Filtro!$A$5:$AW$2673,7,FALSE),0) -> 0 | J41: =IFERROR(VLOOKUP($A41,Filtro!$A$5:$AW$2673,8,FALSE),0) -> 0 | K41: =IFERROR(VLOOKUP($A41,Filtro!$A$5:$AW$2673,9,FALSE),0) -> 0 | L41: =IFERROR(VLOOKUP($A41,Filtro!$A$5:$AW$2673,10,FALSE),0) -> 0 | M41: =IFERROR(VLOOKUP($A41,Filtro!$A$5:$AW$2673,11,FALSE),0) -> 3 | N41: =IFERROR(VLOOKUP($A41,Filtro!$A$5:$AW$2673,12,FALSE),0) -> 0 | O41: =IFERROR(VLOOKUP($A41,Filtro!$A$5:$AW$2673,13,FALSE),0) -> 0 | P41: =IFERROR(VLOOKUP($A41,Filtro!$A$5:$AW$2673,14,FALSE),0) -> 0 | Q41: =IFERROR(VLOOKUP($A41,Filtro!$A$5:$AW$2673,15,FALSE),0) -> 1 | R41: =IFERROR(VLOOKUP($A41,Filtro!$A$5:$AW$2673,16,FALSE),0) -> 0 | S41: =IFERROR(VLOOKUP($A41,Filtro!$A$5:$AW$2673,17,FALSE),0) -> 0 | T41: =IFERROR(VLOOKUP($A41,Filtro!$A$5:$AW$2673,18,FALSE),0) -> 0 | CL41: 0 | CM41: 0
B42: SECCIÓN A.3: NIÑOS Y NIÑAS CON REZAGO, DÉFICIT O RIESGO BIOPSICOSOCIAL DERIVADOS A ALGUNA MODALIDAD DE ESTIMULACIÓN EN LA PRIMERA EVALUACIÓN
B43: NIÑO / A | C43: TOTAL | F43: RANGO ETARIO Y SEXO | R43: Pueblos Originarios | S43: Migrantes
F44: Menos de 7 meses | H44: 7 - 11 meses | J44: 12 - 17 meses | L44: 18 - 23 meses | N44: 24 - 47 meses | P44: 48 - 59 meses
C45: Ambos Sexos | D45: Hombres | E45: Mujeres | F45: Hombres | G45: Mujeres | H45: Hombres | I45: Mujeres | J45: Hombres | K45: Mujeres | L45: Hombres | M45: Mujeres | N45: Hombres | O45: Mujeres | P45: Hombres | Q45: Mujeres
A46: 02021790 | B46: Normal con Rezago | C46: =IFERROR(VLOOKUP($A46,Filtro!$A$5:$AW$2673,2,FALSE),0) -> 918 | D46: =IFERROR(VLOOKUP($A46,Filtro!$A$5:$AW$2673,3,FALSE),0) -> 559 | E46: =IFERROR(VLOOKUP($A46,Filtro!$A$5:$AW$2673,4,FALSE),0) -> 359 | F46: =IFERROR(VLOOKUP($A46,Filtro!$A$5:$AW$2673,5,FALSE),0) -> 16 | G46: =IFERROR(VLOOKUP($A46,Filtro!$A$5:$AW$2673,6,FALSE),0) -> 6 | H46: =IFERROR(VLOOKUP($A46,Filtro!$A$5:$AW$2673,7,FALSE),0) -> 68 | I46: =IFERROR(VLOOKUP($A46,Filtro!$A$5:$AW$2673,8,FALSE),0) -> 59 | J46: =IFERROR(VLOOKUP($A46,Filtro!$A$5:$AW$2673,9,FALSE),0) -> 62 | K46: =IFERROR(VLOOKUP($A46,Filtro!$A$5:$AW$2673,10,FALSE),0) -> 48 | L46: =IFERROR(VLOOKUP($A46,Filtro!$A$5:$AW$2673,11,FALSE),0) -> 115 | M46: =IFERROR(VLOOKUP($A46,Filtro!$A$5:$AW$2673,12,FALSE),0) -> 73 | N46: =IFERROR(VLOOKUP($A46,Filtro!$A$5:$AW$2673,13,FALSE),0) -> 286 | O46: =IFERROR(VLOOKUP($A46,Filtro!$A$5:$AW$2673,14,FALSE),0) -> 166 | P46: =IFERROR(VLOOKUP($A46,Filtro!$A$5:$AW$2673,15,FALSE),0) -> 12 | Q46: =IFERROR(VLOOKUP($A46,Filtro!$A$5:$AW$2673,16,FALSE),0) -> 7 | R46: =IFERROR(VLOOKUP($A46,Filtro!$A$5:$AW$2673,17,FALSE),0) -> 8 | S46: =IFERROR(VLOOKUP($A46,Filtro!$A$5:$AW$2673,18,FALSE),0) -> 6 | T46: =$CB46&CC46 ->  | CB46: =IF(AND($C46<>0,R46=""),"* No olvide ingresar la columna "&R$43&""&" (Digite CERO si no tiene). ",IF(R46>$C46,"* El Número de Pueblos Originarios no puede superar el Total. ","")) ->  | CC46: =IF(AND($C46<>0,S46=""),"* No olvide ingresar la columna "&S$43&""&" (Digite CERO si no tiene). ",IF(S46>$C46,"* El Número de Migrantes no puede superar el Total. ","")) ->  | CL46: =IF(AND($C46<>0,R46=""),1,IF(R46>$C46,1,0)) -> 0 | CM46: 0
A47: 02021810 | B47: Riesgo | C47: =IFERROR(VLOOKUP($A47,Filtro!$A$5:$AW$2673,2,FALSE),0) -> 1112 | D47: =IFERROR(VLOOKUP($A47,Filtro!$A$5:$AW$2673,3,FALSE),0) -> 673 | E47: =IFERROR(VLOOKUP($A47,Filtro!$A$5:$AW$2673,4,FALSE),0) -> 439 | F47: =IFERROR(VLOOKUP($A47,Filtro!$A$5:$AW$2673,5,FALSE),0) -> 9 | G47: =IFERROR(VLOOKUP($A47,Filtro!$A$5:$AW$2673,6,FALSE),0) -> 8 | H47: =IFERROR(VLOOKUP($A47,Filtro!$A$5:$AW$2673,7,FALSE),0) -> 70 | I47: =IFERROR(VLOOKUP($A47,Filtro!$A$5:$AW$2673,8,FALSE),0) -> 71 | J47: =IFERROR(VLOOKUP($A47,Filtro!$A$5:$AW$2673,9,FALSE),0) -> 64 | K47: =IFERROR(VLOOKUP($A47,Filtro!$A$5:$AW$2673,10,FALSE),0) -> 45 | L47: =IFERROR(VLOOKUP($A47,Filtro!$A$5:$AW$2673,11,FALSE),0) -> 286 | M47: =IFERROR(VLOOKUP($A47,Filtro!$A$5:$AW$2673,12,FALSE),0) -> 196 | N47: =IFERROR(VLOOKUP($A47,Filtro!$A$5:$AW$2673,13,FALSE),0) -> 242 | O47: =IFERROR(VLOOKUP($A47,Filtro!$A$5:$AW$2673,14,FALSE),0) -> 116 | P47: =IFERROR(VLOOKUP($A47,Filtro!$A$5:$AW$2673,15,FALSE),0) -> 2 | Q47: =IFERROR(VLOOKUP($A47,Filtro!$A$5:$AW$2673,16,FALSE),0) -> 3 | R47: =IFERROR(VLOOKUP($A47,Filtro!$A$5:$AW$2673,17,FALSE),0) -> 1 | S47: =IFERROR(VLOOKUP($A47,Filtro!$A$5:$AW$2673,18,FALSE),0) -> 4 | T47: =$CB47&CC47 ->  | CB47: =IF(AND($C47<>0,R47=""),"* No olvide ingresar la columna "&R$43&""&" (Digite CERO si no tiene). ",IF(R47>$C47,"* El Número de Pueblos Originarios no puede superar el Total. ","")) ->  | CC47: =IF(AND($C47<>0,S47=""),"* No olvide ingresar la columna "&S$43&""&" (Digite CERO si no tiene). ",IF(S47>$C47,"* El Número de Migrantes no puede superar el Total. ","")) ->  | CL47: 0 | CM47: 0
A48: 02021820 | B48: Retraso | C48: =IFERROR(VLOOKUP($A48,Filtro!$A$5:$AW$2673,2,FALSE),0) -> 272 | D48: =IFERROR(VLOOKUP($A48,Filtro!$A$5:$AW$2673,3,FALSE),0) -> 178 | E48: =IFERROR(VLOOKUP($A48,Filtro!$A$5:$AW$2673,4,FALSE),0) -> 94 | F48: =IFERROR(VLOOKUP($A48,Filtro!$A$5:$AW$2673,5,FALSE),0) -> 3 | G48: =IFERROR(VLOOKUP($A48,Filtro!$A$5:$AW$2673,6,FALSE),0) -> 2 | H48: =IFERROR(VLOOKUP($A48,Filtro!$A$5:$AW$2673,7,FALSE),0) -> 11 | I48: =IFERROR(VLOOKUP($A48,Filtro!$A$5:$AW$2673,8,FALSE),0) -> 9 | J48: =IFERROR(VLOOKUP($A48,Filtro!$A$5:$AW$2673,9,FALSE),0) -> 14 | K48: =IFERROR(VLOOKUP($A48,Filtro!$A$5:$AW$2673,10,FALSE),0) -> 6 | L48: =IFERROR(VLOOKUP($A48,Filtro!$A$5:$AW$2673,11,FALSE),0) -> 88 | M48: =IFERROR(VLOOKUP($A48,Filtro!$A$5:$AW$2673,12,FALSE),0) -> 56 | N48: =IFERROR(VLOOKUP($A48,Filtro!$A$5:$AW$2673,13,FALSE),0) -> 57 | O48: =IFERROR(VLOOKUP($A48,Filtro!$A$5:$AW$2673,14,FALSE),0) -> 17 | P48: =IFERROR(VLOOKUP($A48,Filtro!$A$5:$AW$2673,15,FALSE),0) -> 5 | Q48: =IFERROR(VLOOKUP($A48,Filtro!$A$5:$AW$2673,16,FALSE),0) -> 4 | R48: =IFERROR(VLOOKUP($A48,Filtro!$A$5:$AW$2673,17,FALSE),0) -> 4 | S48: =IFERROR(VLOOKUP($A48,Filtro!$A$5:$AW$2673,18,FALSE),0) -> 1 | T48: =$CB48&CC48 ->  | CB48: =IF(AND($C48<>0,R48=""),"* No olvide ingresar la columna "&R$43&""&" (Digite CERO si no tiene). ",IF(R48>$C48,"* El Número de Pueblos Originarios no puede superar el Total. ","")) ->  | CC48: =IF(AND($C48<>0,S48=""),"* No olvide ingresar la columna "&S$43&""&" (Digite CERO si no tiene). ",IF(S48>$C48,"* El Número de Migrantes no puede superar el Total. ","")) ->  | CL48: 0 | CM48: 0
A49: 03700101 | B49: Normal con Riesgo Biopsicosocial | C49: =IFERROR(VLOOKUP($A49,Filtro!$A$5:$AW$2673,2,FALSE),0) -> 1531 | D49: =IFERROR(VLOOKUP($A49,Filtro!$A$5:$AW$2673,3,FALSE),0) -> 788 | E49: =IFERROR(VLOOKUP($A49,Filtro!$A$5:$AW$2673,4,FALSE),0) -> 743 | F49: =IFERROR(VLOOKUP($A49,Filtro!$A$5:$AW$2673,5,FALSE),0) -> 202 | G49: =IFERROR(VLOOKUP($A49,Filtro!$A$5:$AW$2673,6,FALSE),0) -> 199 | H49: =IFERROR(VLOOKUP($A49,Filtro!$A$5:$AW$2673,7,FALSE),0) -> 79 | I49: =IFERROR(VLOOKUP($A49,Filtro!$A$5:$AW$2673,8,FALSE),0) -> 118 | J49: =IFERROR(VLOOKUP($A49,Filtro!$A$5:$AW$2673,9,FALSE),0) -> 75 | K49: =IFERROR(VLOOKUP($A49,Filtro!$A$5:$AW$2673,10,FALSE),0) -> 60 | L49: =IFERROR(VLOOKUP($A49,Filtro!$A$5:$AW$2673,11,FALSE),0) -> 119 | M49: =IFERROR(VLOOKUP($A49,Filtro!$A$5:$AW$2673,12,FALSE),0) -> 91 | N49: =IFERROR(VLOOKUP($A49,Filtro!$A$5:$AW$2673,13,FALSE),0) -> 250 | O49: =IFERROR(VLOOKUP($A49,Filtro!$A$5:$AW$2673,14,FALSE),0) -> 169 | P49: =IFERROR(VLOOKUP($A49,Filtro!$A$5:$AW$2673,15,FALSE),0) -> 63 | Q49: =IFERROR(VLOOKUP($A49,Filtro!$A$5:$AW$2673,16,FALSE),0) -> 106 | R49: =IFERROR(VLOOKUP($A49,Filtro!$A$5:$AW$2673,17,FALSE),0) -> 0 | S49: =IFERROR(VLOOKUP($A49,Filtro!$A$5:$AW$2673,18,FALSE),0) -> 3 | T49: =$CB49&CC49 ->  | CB49: =IF(AND($C49<>0,R49=""),"* No olvide ingresar la columna "&R$43&""&" (Digite CERO si no tiene). ",IF(R49>$C49,"* El Número de Pueblos Originarios no puede superar el Total. ","")) ->  | CC49: =IF(AND($C49<>0,S49=""),"* No olvide ingresar la columna "&S$43&""&" (Digite CERO si no tiene). ",IF(S49>$C49,"* El Número de Migrantes no puede superar el Total. ","")) ->  | CL49: 0 | CM49: 0
B50: SECCIÓN A.4: RESULTADOS DE LA APLICACIÓN DE PROTOCOLO NEUROSENSORIAL
B51: RESULTADOS | C51: TOTAL | F51: RANGO ETARIO Y SEXO | J51: Pueblos Originarios | K51: Migrantes
F52: 1 mes | H52: 2 meses
C53: Ambos Sexos | D53: Hombres | E53: Mujeres | F53: Hombres | G53: Mujeres | H53: Hombres | I53: Mujeres
B54: Aplicación de Protocolo Neurosensorial (1-2 meses) | C54: =SUM(D54+E54) -> 4436 | D54: =SUM(F54+H54) -> 2225 | E54: =SUM(G54+I54) -> 2211 | F54: =SUM(F55:F57) -> 1871 | G54: 1871 | H54: 354 | I54: 340 | J54: 32 | K54: 12
A55: 03500040 | B55: Normal | C55: =IFERROR(VLOOKUP($A55,Filtro!$A$5:$AW$2673,2,FALSE),0) -> 3484 | D55: =IFERROR(VLOOKUP($A55,Filtro!$A$5:$AW$2673,3,FALSE),0) -> 1729 | E55: =IFERROR(VLOOKUP($A55,Filtro!$A$5:$AW$2673,4,FALSE),0) -> 1755 | F55: =IFERROR(VLOOKUP($A55,Filtro!$A$5:$AW$2673,5,FALSE),0) -> 1473 | G55: =IFERROR(VLOOKUP($A55,Filtro!$A$5:$AW$2673,6,FALSE),0) -> 1516 | H55: =IFERROR(VLOOKUP($A55,Filtro!$A$5:$AW$2673,7,FALSE),0) -> 256 | I55: =IFERROR(VLOOKUP($A55,Filtro!$A$5:$AW$2673,8,FALSE),0) -> 239 | J55: =IFERROR(VLOOKUP($A55,Filtro!$A$5:$AW$2673,9,FALSE),0) -> 22 | K55: =IFERROR(VLOOKUP($A55,Filtro!$A$5:$AW$2673,10,FALSE),0) -> 10 | L55: =$CB55&CC55 ->  | CB55: =IF(AND($C55<>0,J55=""),"* No olvide ingresar la columna "&J$51&""&" (Digite CERO si no tiene). ",IF(J55>$C55,"* El Número de Pueblos Originarios no puede superar el Total. ","")) ->  | CC55: =IF(AND($C55<>0,K55=""),"* No olvide ingresar la columna "&K$51&""&" (Digite CERO si no tiene). ",IF(K55>$C55,"* El Número de Migrantes no puede superar el Total. ","")) ->  | CL55: =IF(AND($C55<>0,J55=""),1,IF(J55>$C55,1,0)) -> 0 | CM55: 0
A56: 03500050 | B56: Anormal | C56: =IFERROR(VLOOKUP($A56,Filtro!$A$5:$AW$2673,2,FALSE),0) -> 850 | D56: =IFERROR(VLOOKUP($A56,Filtro!$A$5:$AW$2673,3,FALSE),0) -> 438 | E56: =IFERROR(VLOOKUP($A56,Filtro!$A$5:$AW$2673,4,FALSE),0) -> 412 | F56: =IFERROR(VLOOKUP($A56,Filtro!$A$5:$AW$2673,5,FALSE),0) -> 350 | G56: =IFERROR(VLOOKUP($A56,Filtro!$A$5:$AW$2673,6,FALSE),0) -> 330 | H56: =IFERROR(VLOOKUP($A56,Filtro!$A$5:$AW$2673,7,FALSE),0) -> 88 | I56: =IFERROR(VLOOKUP($A56,Filtro!$A$5:$AW$2673,8,FALSE),0) -> 82 | J56: =IFERROR(VLOOKUP($A56,Filtro!$A$5:$AW$2673,9,FALSE),0) -> 8 | K56: =IFERROR(VLOOKUP($A56,Filtro!$A$5:$AW$2673,10,FALSE),0) -> 2 | L56: =$CB56&CC56 ->  | CB56: =IF(AND($C56<>0,J56=""),"* No olvide ingresar la columna "&J$51&""&" (Digite CERO si no tiene). ",IF(J56>$C56,"* El Número de Pueblos Originarios no puede superar el Total. ","")) ->  | CC56: =IF(AND($C56<>0,K56=""),"* No olvide ingresar la columna "&K$51&""&" (Digite CERO si no tiene). ",IF(K56>$C56,"* El Número de Migrantes no puede superar el Total. ","")) ->  | CL56: 0 | CM56: 0
A57: 03500060 | B57: Muy Anormal | C57: =IFERROR(VLOOKUP($A57,Filtro!$A$5:$AW$2673,2,FALSE),0) -> 102 | D57: =IFERROR(VLOOKUP($A57,Filtro!$A$5:$AW$2673,3,FALSE),0) -> 58 | E57: =IFERROR(VLOOKUP($A57,Filtro!$A$5:$AW$2673,4,FALSE),0) -> 44 | F57: =IFERROR(VLOOKUP($A57,Filtro!$A$5:$AW$2673,5,FALSE),0) -> 48 | G57: =IFERROR(VLOOKUP($A57,Filtro!$A$5:$AW$2673,6,FALSE),0) -> 25 | H57: =IFERROR(VLOOKUP($A57,Filtro!$A$5:$AW$2673,7,FALSE),0) -> 10 | I57: =IFERROR(VLOOKUP($A57,Filtro!$A$5:$AW$2673,8,FALSE),0) -> 19 | J57: =IFERROR(VLOOKUP($A57,Filtro!$A$5:$AW$2673,9,FALSE),0) -> 2 | K57: =IFERROR(VLOOKUP($A57,Filtro!$A$5:$AW$2673,10,FALSE),0) -> 0 | L57: =$CB57&CC57 ->  | CB57: =IF(AND($C57<>0,J57=""),"* No olvide ingresar la columna "&J$51&""&" (Digite CERO si no tiene). ",IF(J57>$C57,"* El Número de Pueblos Originarios no puede superar el Total. ","")) ->  | CC57: =IF(AND($C57<>0,K57=""),"* No olvide ingresar la columna "&K$51&""&" (Digite CERO si no tiene). ",IF(K57>$C57,"* El Número de Migrantes no puede superar el Total. ","")) ->  | CL57: 0 | CM57: 0
B58: SECCIÓN A.5: LACTANCIA EN NIÑOS Y NIÑAS CONTROLADOS
B59: TIPO DE ALIMENTACIÓN | D59: TOTAL | E59: Según Control Programático | L59: Pueblos Originarios | M59: Migrantes
E60: Diada hasta 10 días de vida | F60: Diada entre 11 y 28 días de vida | G60: Del 1° mes | H60: Del 3° mes | I60: Del 6° mes | J60: Del 12° mes | K60: Del 24° mes
A61: A0200002 | B61: Lactancia Materna exclusiva | D61: =IFERROR(VLOOKUP($A61,Filtro!$A$5:$AW$2673,2,FALSE),0) -> 11039 | E61: =IFERROR(VLOOKUP($A61,Filtro!$A$5:$AW$2673,3,FALSE),0) -> 2359 | F61: =IFERROR(VLOOKUP($A61,Filtro!$A$5:$AW$2673,4,FALSE),0) -> 1047 | G61: =IFERROR(VLOOKUP($A61,Filtro!$A$5:$AW$2673,5,FALSE),0) -> 2738 | H61: =IFERROR(VLOOKUP($A61,Filtro!$A$5:$AW$2673,6,FALSE),0) -> 2425 | I61: =IFERROR(VLOOKUP($A61,Filtro!$A$5:$AW$2673,7,FALSE),0) -> 2471 | J61: =IFERROR(VLOOKUP($A61,Filtro!$A$5:$AW$2673,8,FALSE),0) -> 0 | K61: =IFERROR(VLOOKUP($A61,Filtro!$A$5:$AW$2673,9,FALSE),0) -> 0 | L61: =IFERROR(VLOOKUP($A61,Filtro!$A$5:$AW$2673,10,FALSE),0) -> 88 | M61: =IFERROR(VLOOKUP($A61,Filtro!$A$5:$AW$2673,11,FALSE),0) -> 57 | N61: =$CB61&CC61 ->  | CB61: =IF(AND($D61<>0,L61=""),"* No olvide ingresar la columna "&L$59&""&" (Digite CERO si no tiene). ",IF(L61>$D61,"* El Número de Pueblos Originarios no puede superar el Total. ","")) ->  | CC61: =IF(AND($D61<>0,M61=""),"* No olvide ingresar la columna "&M$59&""&" (Digite CERO si no tiene). ",IF(M61>$D61,"* El Número de Migrantes no puede superar el Total. ","")) ->  | CL61: =IF(AND($D61<>0,L61=""),1,IF(L61>$D61,1,0)) -> 0 | CM61: 0
A62: 03500359 | B62: Lactancia Materna / Formula Láctea | D62: =IFERROR(VLOOKUP($A62,Filtro!$A$5:$AW$2673,2,FALSE),0) -> 3947 | E62: =IFERROR(VLOOKUP($A62,Filtro!$A$5:$AW$2673,3,FALSE),0) -> 647 | F62: =IFERROR(VLOOKUP($A62,Filtro!$A$5:$AW$2673,4,FALSE),0) -> 382 | G62: =IFERROR(VLOOKUP($A62,Filtro!$A$5:$AW$2673,5,FALSE),0) -> 1147 | H62: =IFERROR(VLOOKUP($A62,Filtro!$A$5:$AW$2673,6,FALSE),0) -> 1084 | I62: =IFERROR(VLOOKUP($A62,Filtro!$A$5:$AW$2673,7,FALSE),0) -> 687 | J62: =IFERROR(VLOOKUP($A62,Filtro!$A$5:$AW$2673,8,FALSE),0) -> 0 | K62: =IFERROR(VLOOKUP($A62,Filtro!$A$5:$AW$2673,9,FALSE),0) -> 0 | L62: =IFERROR(VLOOKUP($A62,Filtro!$A$5:$AW$2673,10,FALSE),0) -> 35 | M62: =IFERROR(VLOOKUP($A62,Filtro!$A$5:$AW$2673,11,FALSE),0) -> 15 | CL62: 0 | CM62: 0
A63: 03500360 | B63: Formula Láctea | D63: =IFERROR(VLOOKUP($A63,Filtro!$A$5:$AW$2673,2,FALSE),0) -> 1583 | E63: =IFERROR(VLOOKUP($A63,Filtro!$A$5:$AW$2673,3,FALSE),0) -> 49 | F63: =IFERROR(VLOOKUP($A63,Filtro!$A$5:$AW$2673,4,FALSE),0) -> 52 | G63: =IFERROR(VLOOKUP($A63,Filtro!$A$5:$AW$2673,5,FALSE),0) -> 308 | H63: =IFERROR(VLOOKUP($A63,Filtro!$A$5:$AW$2673,6,FALSE),0) -> 504 | I63: =IFERROR(VLOOKUP($A63,Filtro!$A$5:$AW$2673,7,FALSE),0) -> 670 | J63: =IFERROR(VLOOKUP($A63,Filtro!$A$5:$AW$2673,8,FALSE),0) -> 0 | K63: =IFERROR(VLOOKUP($A63,Filtro!$A$5:$AW$2673,9,FALSE),0) -> 0 | L63: =IFERROR(VLOOKUP($A63,Filtro!$A$5:$AW$2673,10,FALSE),0) -> 12 | M63: =IFERROR(VLOOKUP($A63,Filtro!$A$5:$AW$2673,11,FALSE),0) -> 3 | CL63: 0 | CM63: 0
A64: A0200003 | B64: Lactancia Materna más alimentación complementaria | D64: =IFERROR(VLOOKUP($A64,Filtro!$A$5:$AW$2673,2,FALSE),0) -> 1957 | E64: =IFERROR(VLOOKUP($A64,Filtro!$A$5:$AW$2673,3,FALSE),0) -> 0 | F64: =IFERROR(VLOOKUP($A64,Filtro!$A$5:$AW$2673,4,FALSE),0) -> 0 | G64: =IFERROR(VLOOKUP($A64,Filtro!$A$5:$AW$2673,5,FALSE),0) -> 0 | H64: =IFERROR(VLOOKUP($A64,Filtro!$A$5:$AW$2673,6,FALSE),0) -> 0 | I64: =IFERROR(VLOOKUP($A64,Filtro!$A$5:$AW$2673,7,FALSE),0) -> 207 | J64: =IFERROR(VLOOKUP($A64,Filtro!$A$5:$AW$2673,8,FALSE),0) -> 1261 | K64: =IFERROR(VLOOKUP($A64,Filtro!$A$5:$AW$2673,9,FALSE),0) -> 489 | L64: =IFERROR(VLOOKUP($A64,Filtro!$A$5:$AW$2673,10,FALSE),0) -> 37 | M64: =IFERROR(VLOOKUP($A64,Filtro!$A$5:$AW$2673,11,FALSE),0) -> 13 | CL64: 0 | CM64: 0
A65: 03600140 | B65: Lactancia Materna/ Fórmula Láctea/alimentación complementaria | D65: =IFERROR(VLOOKUP($A65,Filtro!$A$5:$AW$2673,2,FALSE),0) -> 2677 | E65: =IFERROR(VLOOKUP($A65,Filtro!$A$5:$AW$2673,3,FALSE),0) -> 0 | F65: =IFERROR(VLOOKUP($A65,Filtro!$A$5:$AW$2673,4,FALSE),0) -> 0 | G65: =IFERROR(VLOOKUP($A65,Filtro!$A$5:$AW$2673,5,FALSE),0) -> 0 | H65: =IFERROR(VLOOKUP($A65,Filtro!$A$5:$AW$2673,6,FALSE),0) -> 0 | I65: =IFERROR(VLOOKUP($A65,Filtro!$A$5:$AW$2673,7,FALSE),0) -> 273 | J65: =IFERROR(VLOOKUP($A65,Filtro!$A$5:$AW$2673,8,FALSE),0) -> 1294 | K65: =IFERROR(VLOOKUP($A65,Filtro!$A$5:$AW$2673,9,FALSE),0) -> 1110 | L65: =IFERROR(VLOOKUP($A65,Filtro!$A$5:$AW$2673,10,FALSE),0) -> 38 | M65: =IFERROR(VLOOKUP($A65,Filtro!$A$5:$AW$2673,11,FALSE),0) -> 74 | CL65: 0 | CM65: 0
A66: 03600150 | B66: Fórmula Láctea Alimentación complementaria | D66: =IFERROR(VLOOKUP($A66,Filtro!$A$5:$AW$2673,2,FALSE),0) -> 3762 | E66: =IFERROR(VLOOKUP($A66,Filtro!$A$5:$AW$2673,3,FALSE),0) -> 0 | F66: =IFERROR(VLOOKUP($A66,Filtro!$A$5:$AW$2673,4,FALSE),0) -> 0 | G66: =IFERROR(VLOOKUP($A66,Filtro!$A$5:$AW$2673,5,FALSE),0) -> 0 | H66: =IFERROR(VLOOKUP($A66,Filtro!$A$5:$AW$2673,6,FALSE),0) -> 0 | I66: =IFERROR(VLOOKUP($A66,Filtro!$A$5:$AW$2673,7,FALSE),0) -> 263 | J66: =IFERROR(VLOOKUP($A66,Filtro!$A$5:$AW$2673,8,FALSE),0) -> 1451 | K66: =IFERROR(VLOOKUP($A66,Filtro!$A$5:$AW$2673,9,FALSE),0) -> 2047 | L66: =IFERROR(VLOOKUP($A66,Filtro!$A$5:$AW$2673,10,FALSE),0) -> 44 | M66: =IFERROR(VLOOKUP($A66,Filtro!$A$5:$AW$2673,11,FALSE),0) -> 32 | CL66: 0 | CM66: 0
A67: A0200001 | B67: Número de niños y niñas controlados | D67: =IFERROR(VLOOKUP($A67,Filtro!$A$5:$AW$2673,2,FALSE),0) -> 24287 | E67: =IFERROR(VLOOKUP($A67,Filtro!$A$5:$AW$2673,3,FALSE),0) -> 2797 | F67: =IFERROR(VLOOKUP($A67,Filtro!$A$5:$AW$2673,4,FALSE),0) -> 1389 | G67: =IFERROR(VLOOKUP($A67,Filtro!$A$5:$AW$2673,5,FALSE),0) -> 4137 | H67: =IFERROR(VLOOKUP($A67,Filtro!$A$5:$AW$2673,6,FALSE),0) -> 3962 | I67: =IFERROR(VLOOKUP($A67,Filtro!$A$5:$AW$2673,7,FALSE),0) -> 4483 | J67: =IFERROR(VLOOKUP($A67,Filtro!$A$5:$AW$2673,8,FALSE),0) -> 3935 | K67: =IFERROR(VLOOKUP($A67,Filtro!$A$5:$AW$2673,9,FALSE),0) -> 3584 | L67: =IFERROR(VLOOKUP($A67,Filtro!$A$5:$AW$2673,10,FALSE),0) -> 220 | M67: =IFERROR(VLOOKUP($A67,Filtro!$A$5:$AW$2673,11,FALSE),0) -> 104 | CL67: 0 | CM67: 0
B68: SECCIÓN A.6: RESULTADOS RADIOGRAFÍA DE PELVIS (CADERA)
B69: RESULTADO | C69: TOTAL | F69: RANGO ETARIO Y SEXO | J69: Pueblos Originarios | K69: Migrantes
F70: 3 meses | H70: 4 meses
C71: Ambos Sexos | D71: Hombres | E71: Mujeres | F71: Hombres | G71: Mujeres | H71: Hombres | I71: Mujeres
